Workbook

Sheet Proteins_Result_Summary
A1: Index | B1: Protein ID | C1: Same Sets | D1: Protein Coverage | E1: Protein Mass | F1: Protein Length | G1: #of Peptides | H1: #of Unique peptides | I1: #of Unique Spectra | J1: Identified by | K1: LM_Abund | L1: LAD-D_Abund | M1: LAD-M_Abund | N1: LAD-P_Abund | O1: LCX-D_Abund | P1: LCX-M_Abund | Q1: LCX-P_Abund | R1: RCA-D_Abund | S1: RCA-M_Abund | T1: RCA-P_Abund | U1: Average_1 | V1: LM-2_Abund | W1: LAD-D-2_Abund | X1: LAD-M-2_Abund | Y1: LAD-P-2_Abund | Z1: LCX-D-2_Abund | AA1: LCX-M-2_Abund | AB1: LCX-P-2_Abund | AC1: RCA-D-2_Abund | AD1: RCA-M-2_Abund | AE1: RCA-P-2_Abund | AF1: Average_2 | AG1: LAD-D-2/LAD-D | AH1: LAD-D-2/LAD-M-2 | AI1: LAD-D-2/LAD-P-2 | AJ1: LAD-D/LAD-M | AK1: LAD-D/LAD-P | AL1: LAD-M-2/LAD-M | AM1: LAD-M-2/LAD-P-2 | AN1: LAD-M/LAD-P | AO1: LAD-P-2/LAD-P | AP1: LCX-D-2/LCX-D | AQ1: LCX-D-2/LCX-M-2 | AR1: LCX-D-2/LCX-P-2 | AS1: LCX-D/LCX-M | AT1: LCX-D/LCX-P | AU1: LCX-M-2/LCX-M | AV1: LCX-M-2/LCX-P-2 | AW1: LCX-M/LCX-P | AX1: LCX-P-2/LCX-P | AY1: LM-2/LM | AZ1: RCA-D-2/RCA-D | BA1: RCA-D-2/RCA-M-2 | BB1: RCA-D-2/RCA-P-2 | BC1: RCA-D/RCA-M | BD1: RCA-D/RCA-P | BE1: RCA-M-2/RCA-M | BF1: RCA-M-2/RCA-P-2 | BG1: RCA-M/RCA-P | BH1: RCA-P-2/RCA-P
A2: 1 | B2: sp|A0A075B6I0|LV861_HUMAN | C2: sp|A0A075B6I0|LV861_HUMAN | D2: 13.1 | E2: 12.814 | F2: 122 | G2: 2 | H2: 2 | I2: 11 | J2: LAD-D-2;LAD-M-2;LAD-P-2;LCX-M-2;LM-2;RCA-D-2;RCA-P-2 | K2: 0 | L2: 0 | M2: 0 | N2: 0 | O2: 0 | P2: 0 | Q2: 0 | R2: 0 | S2: 0 | T2: 0 | U2: =AVERAGE(K2:T2) -> 0 | V2: 11412000 | W2: 5576300 | X2: 5952500 | Y2: 12581000 | Z2: 0 | AA2: 0 | AB2: 5709200 | AC2: 0 | AD2: 4471700 | AE2: 7391200 | AF2: =AVERAGE(V2:AE2) -> 5309390 | AG2: 999 | AH2: 0.9368 | AI2: 0.4432 | AJ2: NA | AK2: NA | AL2: 999 | AM2: 0.4731 | AN2: NA | AO2: 999 | AP2: NA | AQ2: NA | AR2: -999 | AS2: NA | AT2: NA | AU2: NA | AV2: -999 | AW2: NA | AX2: 999 | AY2: 999 | AZ2: NA | BA2: -999 | BB2: -999 | BC2: NA | BD2: NA | BE2: 999 | BF2: 0.605 | BG2: NA | BH2: 999
A3: 2 | B3: sp|P04211|LV743_HUMAN | C3: sp|P04211|LV743_HUMAN;sp|A0A075B6I9|LV746_HUMAN | D3: 13.7 | E3: 12.451 | F3: 117 | G3: 2;2 | H3: 2 | I3: 20 | J3: LAD-D-2;LAD-M-2;LAD-P;LAD-P-2;LCX-D-2;LCX-M;LCX-P;LM;LM-2;RCA-D;RCA-M;RCA-M-2;RCA-P;RCA-P-2 | K3: 13194000 | L3: 0 | M3: 0 | N3: 26485000 | O3: 0 | P3: 19199000 | Q3: 11872000 | R3: 55491000 | S3: 21000000 | T3: 0 | U3: =AVERAGE(K3:T3) -> 14724100 | V3: 24753000 | W3: 24537000 | X3: 15386000 | Y3: 28828000 | Z3: 15441000 | AA3: 13615000 | AB3: 8766500 | AC3: 0 | AD3: 18321000 | AE3: 17348000 | AF3: =AVERAGE(V3:AE3) -> 16699550 | AG3: 999 | AH3: 1.5948 | AI3: 0.8512 | AJ3: NA | AK3: -999 | AL3: 999 | AM3: 0.5337 | AN3: -999 | AO3: 1.0885 | AP3: 999 | AQ3: 1.1341 | AR3: 1.7614 | AS3: -999 | AT3: -999 | AU3: 0.7092 | AV3: 1.5531 | AW3: 1.6172 | AX3: 0.7384 | AY3: 1.8761 | AZ3: -999 | BA3: -999 | BB3: -999 | BC3: 2.6424 | BD3: 999 | BE3: 0.8724 | BF3: 1.0561 | BG3: 999 | BH3: 999
A4: 3 | B4: sp|A0A075B6J9|LV218_HUMAN | C4: sp|A0A075B6J9|LV218_HUMAN | D4: 11 | E4: 12.412 | F4: 118 | G4: 1 | H4: 1 | I4: 7 | J4: LAD-P-2;LCX-M;LM;RCA-D;RCA-M;RCA-M-2;RCA-P-2 | K4: 5781700 | L4: 4476300 | M4: 4175700 | N4: 0 | O4: 0 | P4: 5936600 | Q4: 0 | R4: 5540700 | S4: 9702300 | T4: 6218200 | U4: 4183150 | V4: 4595400 | W4: 3791700 | X4: 0 | Y4: 4710400 | Z4: 0 | AA4: 0 | AB4: 6676700 | AC4: 0 | AD4: 3279100 | AE4: 3609300 | AF4: 2666260 | AG4: 0.8471 | AH4: 999 | AI4: 0.805 | AJ4: 1.072 | AK4: 999 | AL4: -999 | AM4: -999 | AN4: 999 | AO4: 999 | AP4: NA | AQ4: NA | AR4: -999 | AS4: -999 | AT4: NA | AU4: -999 | AV4: -999 | AW4: 999 | AX4: 999 | AY4: 0.7948 | AZ4: -999 | BA4: -999 | BB4: -999 | BC4: 0.5711 | BD4: 0.891 | BE4: 0.338 | BF4: 0.9085 | BG4: 1.5603 | BH4: 0.5804
A5: 4 | B5: sp|A0A075B6K5|LV39_HUMAN | C5: sp|A0A075B6K5|LV39_HUMAN | D5: 16.5 | E5: 12.332 | F5: 115 | G5: 2 | H5: 1 | I5: 4 | J5: LAD-P-2;LM-2 | K5: 0 | L5: 3561300 | M5: 0 | N5: 0 | O5: 0 | P5: 4322700 | Q5: 0 | R5: 0 | S5: 0 | T5: 0 | U5: 788400 | V5: 9841600 | W5: 6631600 | X5: 5823500 | Y5: 9380200 | Z5: 8622200 | AA5: 6357300 | AB5: 0 | AC5: 3845100 | AD5: 5493800 | AE5: 6497500 | AF5: 6249280 | AG5: 1.8621 | AH5: 1.1388 | AI5: 0.707 | AJ5: 999 | AK5: 999 | AL5: 999 | AM5: 0.6208 | AN5: NA | AO5: 999 | AP5: 999 | AQ5: 1.3563 | AR5: 999 | AS5: -999 | AT5: NA | AU5: 1.4707 | AV5: 999 | AW5: 999 | AX5: NA | AY5: 999 | AZ5: 999 | BA5: 0.6999 | BB5: 0.5918 | BC5: NA | BD5: NA | BE5: 999 | BF5: 0.8455 | BG5: NA | BH5: 999
A6: 5 | B6: sp|P01615|KVD28_HUMAN | C6: sp|P01615|KVD28_HUMAN;sp|A0A075B6P5|KV228_HUMAN;sp|P01614|KVD40_HUMAN;sp|A0A087WW87|KV240_HUMAN | D6: 16.7 | E6: 12.957 | F6: 120 | G6: 2;2;2;2;1 | H6: 1 | I6: 81 | J6: LAD-D;LAD-D-2;LAD-M;LAD-M-2;LAD-P;LAD-P-2;LCX-D;LCX-D-2;LCX-M;LCX-M-2;LCX-P;LCX-P-2;LM;LM-2;RCA-D;RCA-D-2;RCA-M;RCA-M-2;RCA-P;RCA-P-2 | K6: 66506000 | L6: 70453000 | M6: 88116000 | N6: 146940000 | O6: 88909000 | P6: 111780000 | Q6: 97359000 | R6: 129970000 | S6: 131200000 | T6: 120650000 | U6: 105188300 | V6: 209790000 | W6: 79669000 | X6: 121920000 | Y6: 237650000 | Z6: 204170000 | AA6: 76644000 | AB6: 83484000 | AC6: 65106000 | AD6: 135470000 | AE6: 144660000 | AF6: 135856300 | AG6: 1.1308 | AH6: 0.6535 | AI6: 0.3352 | AJ6: 0.7995 | AK6: 0.4795 | AL6: 1.3836 | AM6: 0.513 | AN6: 0.5997 | AO6: 1.6173 | AP6: 2.2964 | AQ6: 2.6639 | AR6: 2.4456 | AS6: 0.7954 | AT6: 0.9132 | AU6: 0.6857 | AV6: 0.9181 | AW6: 1.1481 | AX6: 0.8575 | AY6: 3.1545 | AZ6: 0.5009 | BA6: 0.4806 | BB6: 0.4501 | BC6: 0.9906 | BD6: 1.0772 | BE6: 1.0325 | BF6: 0.9365 | BG6: 1.0874 | BH6: 1.199
A7: 6 | B7: sp|A0A087WSY6|KVD15_HUMAN | C7: sp|A0A087WSY6|KVD15_HUMAN | D7: 7.8 | E7: 12.534 | F7: 115 | G7: 3 | H7: 1 | I7: 21 | J7: LAD-D-2;LAD-M;LAD-M-2;LAD-P;LAD-P-2;LCX-D;LCX-D-2;LCX-M;LCX-M-2;LCX-P;LCX-P-2;LM-2;RCA-D;RCA-D-2;RCA-M-2;RCA-P-2 | K7: 2806100 | L7: 2076700 | M7: 1978100 | N7: 3308100 | O7: 2918700 | P7: 10399000 | Q7: 2901900 | R7: 4466300 | S7: 3383900 | T7: 3870400 | U7: 3810920 | V7: 12347000 | W7: 3112400 | X7: 4545800 | Y7: 7909700 | Z7: 5132800 | AA7: 6439600 | AB7: 3367200 | AC7: 2613100 | AD7: 5619300 | AE7: 5008300 | AF7: 5609520 | AG7: 1.4987 | AH7: 0.6847 | AI7: 0.3935 | AJ7: 1.0498 | AK7: 0.6278 | AL7: 2.2981 | AM7: 0.5747 | AN7: 0.598 | AO7: 2.391 | AP7: 1.7586 | AQ7: 0.7971 | AR7: 1.5244 | AS7: 0.2807 | AT7: 1.0058 | AU7: 0.6193 | AV7: 1.9124 | AW7: 3.5835 | AX7: 1.1603 | AY7: 4.4001 | AZ7: 0.5851 | BA7: 0.465 | BB7: 0.5218 | BC7: 1.3199 | BD7: 1.154 | BE7: 1.6606 | BF7: 1.122 | BG7: 0.8743 | BH7: 1.294
A8: 7 | B8: sp|A0A0A0MS15|HV349_HUMAN | C8: sp|A0A0A0MS15|HV349_HUMAN | D8: 41.2 | E8: 13.056 | F8: 119 | G8: 6 | H8: 5 | I8: 60 | J8: LAD-D;LAD-D-2;LAD-M;LAD-M-2;LAD-P;LAD-P-2;LCX-D;LCX-D-2;LCX-M;LCX-M-2;LCX-P;LCX-P-2;LM;LM-2;RCA-D;RCA-D-2;RCA-M;RCA-M-2;RCA-P;RCA-P-2 | K8: 18545000 | L8: 15231000 | M8: 8077000 | N8: 7670500 | O8: 5982500 | P8: 17483000 | Q8: 7106800 | R8: 11423000 | S8: 14489000 | T8: 19428000 | U8: 12543580 | V8: 34918000 | W8: 31384000 | X8: 37200000 | Y8: 40014000 | Z8: 58815000 | AA8: 59379000 | AB8: 11876000 | AC8: 24806000 | AD8: 27443000 | AE8: 37260000 | AF8: 36309500 | AG8: 2.0605 | AH8: 0.8437 | AI8: 0.7843 | AJ8: 1.8857 | AK8: 1.9857 | AL8: 4.6057 | AM8: 0.9297 | AN8: 1.053 | AO8: 5.2166 | AP8: 9.8312 | AQ8: 0.9905 | AR8: 4.9524 | AS8: 0.3422 | AT8: 0.8418 | AU8: 3.3964 | AV8: 4.9999 | AW8: 2.46 | AX8: 1.6711 | AY8: 1.8829 | AZ8: 2.1716 | BA8: 0.9039 | BB8: 0.6658 | BC8: 0.7884 | BD8: 0.588 | BE8: 1.8941 | BF8: 0.7365 | BG8: 0.7458 | BH8: 1.9179
A9: 8 | B9: sp|A0A0B4J1U7|HV601_HUMAN | C9: sp|A0A0B4J1U7|HV601_HUMAN | D9: 5.8 | E9: 13.481 | F9: 121 | G9: 1 | H9: 1 | I9: 61 | J9: LAD-D;LAD-D-2;LAD-M;LAD-M-2;LAD-P;LAD-P-2;LCX-D;LCX-D-2;LCX-M;LCX-M-2;LCX-P;LCX-P-2;LM;LM-2;RCA-D;RCA-D-2;RCA-M;RCA-M-2;RCA-P;RCA-P-2 | K9: 13659000 | L9: 8257500 | M9: 8199400 | N9: 16343000 | O9: 8048600 | P9: 21640000 | Q9: 13557000 | R9: 13352000 | S9: 11813000 | T9: 11026000 | U9: 12589550 | V9: 39276000 | W9: 26070000 | X9: 15134000 | Y9: 89428000 | Z9: 15792000 | AA9: 12537000 | AB9: 19625000 | AC9: 21170000 | AD9: 57657000 | AE9: 47447000 | AF9: 34413600 | AG9: 3.1571 | AH9: 1.7226 | AI9: 0.2915 | AJ9: 1.0071 | AK9: 0.5053 | AL9: 1.8457 | AM9: 0.1692 | AN9: 0.5017 | AO9: 5.4719 | AP9: 1.9621 | AQ9: 1.2596 | AR9: 0.8047 | AS9: 0.3719 | AT9: 0.5937 | AU9: 0.5793 | AV9: 0.6388 | AW9: 1.5962 | AX9: 1.4476 | AY9: 2.8755 | AZ9: 1.5855 | BA9: 0.3672 | BB9: 0.4462 | BC9: 1.1303 | BD9: 1.211 | BE9: 4.8808 | BF9: 1.2152 | BG9: 1.0714 | BH9: 4.3032
A10: 9 | B10: sp|A0A0B4J1V0|HV315_HUMAN | C10: sp|A0A0B4J1V0|HV315_HUMAN | D10: 39.5 | E10: 12.926 | F10: 119 | G10: 6 | H10: 3 | I10: 9 | J10: LAD-D;LAD-M-2;LAD-P;LAD-P-2;LCX-D-2;LCX-M;LM-2;RCA-M;RCA-P | K10: 2832200 | L10: 1934200 | M10: 0 | N10: 3656600 | O10: 0 | P10: 0 | Q10: 0 | R10: 3309800 | S10: 0 | T10: 2134500 | U10: 1386730 | V10: 1640700 | W10: 0 | X10: 1819100 | Y10: 1271800 | Z10: 1691100 | AA10: 9450000 | AB10: 0 | AC10: 1480800 | AD10: 0 | AE10: 1787600 | AF10: 1914110 | AG10: -999 | AH10: -999 | AI10: -999 | AJ10: 999 | AK10: 0.529 | AL10: 999 | AM10: 1.4303 | AN10: -999 | AO10: 0.3478 | AP10: 999 | AQ10: 0.179 | AR10: 999 | AS10: NA | AT10: NA | AU10: 999 | AV10: 999 | AW10: NA | AX10: NA | AY10: 0.5793 | AZ10: 0.4474 | BA10: 999 | BB10: 0.8284 | BC10: 999 | BD10: 1.5506 | BE10: NA | BF10: -999 | BG10: -999 | BH10: 0.8375
A11: 10 | B11: sp|A0A0B4J1V2|HV226_HUMAN | C11: sp|A0A0B4J1V2|HV226_HUMAN | D11: 17.6 | E11: 13.182 | F11: 119 | G11: 2 | H11: 2 | I11: 9 | J11: LAD-D-2;LAD-M-2;LCX-D;LM;LM-2;RCA-D;RCA-M-2 | K11: 3443000 | L11: 7246900 | M11: 0 | N11: 0 | O11: 6180000 | P11: 0 | Q11: 4020600 | R11: 2301200 | S11: 0 | T11: 6366800 | U11: 2955850 | V11: 14678000 | W11: 4242900 | X11: 2208100 | Y11: 0 | Z11: 3889700 | AA11: 5167700 | AB11: 4146500 | AC11: 5585900 | AD11: 9078300 | AE11: 0 | AF11: 4899710 | AG11: 0.5855 | AH11: 1.9215 | AI11: 999 | AJ11: 999 | AK11: 999 | AL11: 999 | AM11: 999 | AN11: NA | AO11: NA | AP11: 0.6294 | AQ11: 0.7527 | AR11: 0.9381 | AS11: 999 | AT11: 1.5371 | AU11: 999 | AV11: 1.2463 | AW11: -999 | AX11: 1.0313 | AY11: 4.2631 | AZ11: 2.4274 | BA11: 0.6153 | BB11: 999 | BC11: 999 | BD11: 0.3614 | BE11: 999 | BF11: 999 | BG11: -999 | BH11: -999
A12: 11 | B12: sp|A0A0B4J1X5|HV374_HUMAN | C12: sp|A0A0B4J1X5|HV374_HUMAN | D12: 31.6 | E12: 12.839 | F12: 117 | G12: 6 | H12: 3 | I12: 97 | J12: LAD-D;LAD-D-2;LAD-M;LAD-M-2;LAD-P;LAD-P-2;LCX-D;LCX-D-2;LCX-M;LCX-M-2;LCX-P;LCX-P-2;LM;LM-2;RCA-D;RCA-D-2;RCA-M;RCA-M-2;RCA-P;RCA-P-2 | K12: 74134000 | L12: 43326000 | M12: 59971000 | N12: 74390000 | O12: 40319000 | P12: 63096000 | Q12: 39626000 | R12: 61163000 | S12: 78940000 | T12: 70312000 | U12: 60527700 | V12: 79215000 | W12: 70508000 | X12: 76738000 | Y12: 92176000 | Z12: 65105000 | AA12: 48013000 | AB12: 27365000 | AC12: 56022000 | AD12: 62031000 | AE12: 63940000 | AF12: 64111300 | AG12: 1.6274 | AH12: 0.9188 | AI12: 0.7649 | AJ12: 0.7224 | AK12: 0.5824 | AL12: 1.2796 | AM12: 0.8325 | AN12: 0.8062 | AO12: 1.2391 | AP12: 1.6147 | AQ12: 1.356 | AR12: 2.3791 | AS12: 0.639 | AT12: 1.0175 | AU12: 0.761 | AV12: 1.7545 | AW12: 1.5923 | AX12: 0.6906 | AY12: 1.0685 | AZ12: 0.9159 | BA12: 0.9031 | BB12: 0.8762 | BC12: 0.7748 | BD12: 0.8699 | BE12: 0.7858 | BF12: 0.9701 | BG12: 1.1227 | BH12: 0.9094
A13: 12 | B13: sp|A0A0B4J1X8|HV343_HUMAN | C13: sp|A0A0B4J1X8|HV343_HUMAN | D13: 9.3 | E13: 13.077 | F13: 118 | G13: 3 | H13: 1 | I13: 2 | J13: LM-2;RCA-D | K13: 0 | L13: 0 | M13: 0 | N13: 4813600 | O13: 0 | P13: 0 | Q13: 4010600 | R13: 5325600 | S13: 0 | T13: 0 | U13: 1414980 | V13: 5726800 | W13: 4616100 | X13: 0 | Y13: 5327900 | Z13: 3995800 | AA13: 3783900 | AB13: 3667700 | AC13: 0 | AD13: 5767400 | AE13: 0 | AF13: 3288560 | AG13: 999 | AH13: 999 | AI13: 0.8664 | AJ13: NA | AK13: -999 | AL13: NA | AM13: -999 | AN13: -999 | AO13: 1.1068 | AP13: 999 | AQ13: 1.056 | AR13: 1.0895 | AS13: NA | AT13: -999 | AU13: 999 | AV13: 1.0317 | AW13: -999 | AX13: 0.9145 | AY13: 999 | AZ13: -999 | BA13: -999 | BB13: NA | BC13: 999 | BD13: 999 | BE13: 999 | BF13: 999 | BG13: NA | BH13: NA
A14: 13 | B14: sp|A0A0B4J1Y8|LV949_HUMAN | C14: sp|A0A0B4J1Y8|LV949_HUMAN | D14: 22 | E14: 13.024 | F14: 123 | G14: 1 | H14: 1 | I14: 2 | J14: LAD-M-2 | K14: 0 | L14: 0 | M14: 0 | N14: 0 | O14: 0 | P14: 0 | Q14: 0 | R14: 0 | S14: 0 | T14: 0 | U14: 0 | V14: 0 | W14: 0 | X14: 33014000 | Y14: 0 | Z14: 0 | AA14: 0 | AB14: 0 | AC14: 0 | AD14: 0 | AE14: 0 | AF14: 3301400 | AG14: NA | AH14: -999 | AI14: NA | AJ14: NA | AK14: NA | AL14: 999 | AM14: 999 | AN14: NA | AO14: NA | AP14: NA | AQ14: NA | AR14: NA | AS14: NA | AT14: NA | AU14: NA | AV14: NA | AW14: NA | AX14: NA | AY14: NA | AZ14: NA | BA14: NA | BB14: NA | BC14: NA | BD14: NA | BE14: NA | BF14: NA | BG14: NA | BH14: NA
A15: 14 | B15: sp|A0A0B4J1Y9|HV372_HUMAN | C15: sp|A0A0B4J1Y9|HV372_HUMAN | D15: 44.5 | E15: 13.203 | F15: 119 | G15: 6 | H15: 5 | I15: 55 | J15: LAD-D;LAD-D-2;LAD-M;LAD-M-2;LAD-P;LAD-P-2;LCX-D;LCX-D-2;LCX-M;LCX-M-2;LCX-P;LCX-P-2;LM;LM-2;RCA-D;RCA-D-2;RCA-M;RCA-M-2;RCA-P;RCA-P-2 | K15: 57680000 | L15: 32582000 | M15: 18721000 | N15: 94038000 | O15: 51969000 | P15: 54547000 | Q15: 54238000 | R15: 59266000 | S15: 44129000 | T15: 39371000 | U15: 50654100 | V15: 72196000 | W15: 55867000 | X15: 36152000 | Y15: 65072000 | Z15: 16239000 | AA15: 15206000 | AB15: 37187000 | AC15: 73861000 | AD15: 57414000 | AE15: 49151000 | AF15: 47834500 | AG15: 1.7147 | AH15: 1.5453 | AI15: 0.8585 | AJ15: 1.7404 | AK15: 0.3465 | AL15: 1.9311 | AM15: 0.5556 | AN15: 0.1991 | AO15: 0.692 | AP15: 0.3125 | AQ15: 1.0679 | AR15: 0.4367 | AS15: 0.9527 | AT15: 0.9582 | AU15: 0.2788 | AV15: 0.4089 | AW15: 1.0057 | AX15: 0.6856 | AY15: 1.2517 | AZ15: 1.2463 | BA15: 1.2865 | BB15: 1.5027 | BC15: 1.343 | BD15: 1.5053 | BE15: 1.301 | BF15: 1.1681 | BG15: 1.1209 | BH15: 1.2484
A16: 15 | B16: sp|P0DPI2|GAL3A_HUMAN | C16: sp|P0DPI2|GAL3A_HUMAN;sp|A0A0B4J2D5|GAL3B_HUMAN | D16: 62.7 | E16: 28.17 | F16: 268 | G16: 12;12 | H16: 12 | I16: 113 | J16: LAD-D;LAD-D-2;LAD-M;LAD-M-2;LAD-P;LAD-P-2;LCX-D-2;LCX-M-2;LCX-P;LCX-P-2;LM;LM-2;RCA-D;RCA-D-2;RCA-M;RCA-M-2;RCA-P;RCA-P-2 | K16: 49449000 | L16: 73287000 | M16: 69525000 | N16: 20805000 | O16: 24945000 | P16: 28850000 | Q16: 36186000 | R16: 45754000 | S16: 33397000 | T16: 42087000 | U16: 42428500 | V16: 30770000 | W16: 27548000 | X16: 73923000 | Y16: 39342000 | Z16: 89515000 | AA16: 108800000 | AB16: 327190000 | AC16: 74389000 | AD16: 166830000 | AE16: 80781000 | AF16: 101908800 | AG16: 0.3759 | AH16: 0.3727 | AI16: 0.7002 | AJ16: 1.0541 | AK16: 3.5226 | AL16: 1.0633 | AM16: 1.879 | AN16: 3.3417 | AO16: 1.891 | AP16: 3.5885 | AQ16: 0.8227 | AR16: 0.2736 | AS16: 0.8646 | AT16: 0.6894 | AU16: 3.7712 | AV16: 0.3325 | AW16: 0.7973 | AX16: 9.0419 | AY16: 0.6223 | AZ16: 1.6258 | BA16: 0.4459 | BB16: 0.9209 | BC16: 1.37 | BD16: 1.0871 | BE16: 4.9954 | BF16: 2.0652 | BG16: 0.7935 | BH16: 1.9194
A17: 16 | B17: sp|A0A0C4DH25|KVD20_HUMAN | C17: sp|A0A0C4DH25|KVD20_HUMAN | D17: 7.8 | E17: 12.515 | F17: 116 | G17: 3 | H17: 1 | I17: 13 | J17: LAD-D;LAD-D-2;LAD-M;LAD-P;LAD-P-2;LCX-D-2;LCX-M;LM;LM-2;RCA-D-2;RCA-M;RCA-P;RCA-P-2 | K17: 6415700 | L17: 5605200 | M17: 7083500 | N17: 7681100 | O17: 0 | P17: 10366000 | Q17: 0 | R17: 0 | S17: 14830000 | T17: 6534100 | U17: 5851560 | V17: 41296000 | W17: 22510000 | X17: 0 | Y17: 44971000 | Z17: 43787000 | AA17: 0 | AB17: 15921000 | AC17: 18038000 | AD17: 28374000 | AE17: 24614000 | AF17: 23951100 | AG17: 4.0159 | AH17: 999 | AI17: 0.5005 | AJ17: 0.7913 | AK17: 0.7297 | AL17: -999 | AM17: -999 | AN17: 0.9222 | AO17: 5.8548 | AP17: 999 | AQ17: 999 | AR17: 2.7503 | AS17: -999 | AT17: NA | AU17: -999 | AV17: -999 | AW17: 999 | AX17: 999 | AY17: 6.4367 | AZ17: 999 | BA17: 0.6357 | BB17: 0.7328 | BC17: -999 | BD17: -999 | BE17: 1.9133 | BF17: 1.1528 | BG17: 2.2696 | BH17: 3.767
A18: 17 | B18: sp|A0A0C4DH29|HV103_HUMAN | C18: sp|A0A0C4DH29|HV103_HUMAN | D18: 22.2 | E18: 13.008 | F18: 117 | G18: 2;1;1;1 | H18: 2 | I18: 31 | J18: LAD-D-2;LAD-P-2;LCX-D;LCX-D-2;LCX-M;LCX-M-2;LCX-P;LCX-P-2;LM;LM-2;RCA-D;RCA-D-2;RCA-M;RCA-M-2;RCA-P;RCA-P-2 | K18: 39045000 | L18: 23049000 | M18: 17912000 | N18: 52938000 | O18: 52381000 | P18: 58408000 | Q18: 49509000 | R18: 81663000 | S18: 41536000 | T18: 26286000 | U18: 44272700 | V18: 41245000 | W18: 35134000 | X18: 18985000 | Y18: 46574000 | Z18: 40810000 | AA18: 17766000 | AB18: 20825000 | AC18: 28901000 | AD18: 29367000 | AE18: 26216000 | AF18: 30582300 | AG18: 1.5243 | AH18: 1.8506 | AI18: 0.7544 | AJ18: 1.2868 | AK18: 0.4354 | AL18: 1.0599 | AM18: 0.4076 | AN18: 0.3384 | AO18: 0.8798 | AP18: 0.7791 | AQ18: 2.2971 | AR18: 1.9597 | AS18: 0.8968 | AT18: 1.058 | AU18: 0.3042 | AV18: 0.8531 | AW18: 1.1797 | AX18: 0.4206 | AY18: 1.0563 | AZ18: 0.3539 | BA18: 0.9841 | BB18: 1.1024 | BC18: 1.9661 | BD18: 3.1067 | BE18: 0.707 | BF18: 1.1202 | BG18: 1.5802 | BH18: 0.9973
A19: 18 | B19: sp|P23083|HV102_HUMAN | C19: sp|P23083|HV102_HUMAN;sp|A0A0C4DH31|HV118_HUMAN | D19: 9.4 | E19: 13.085 | F19: 117 | G19: 1;1 | H19: 1 | I19: 16 | J19: LAD-D;LAD-D-2;LAD-M;LAD-M-2;LAD-P;LAD-P-2;LCX-M-2;LCX-P;LCX-P-2;LM;RCA-D-2;RCA-M;RCA-M-2;RCA-P | K19: 33434000 | L19: 17052000 | M19: 18905000 | N19: 39435000 | O19: 40119000 | P19: 38264000 | Q19: 39536000 | R19: 51624000 | S19: 36911000 | T19: 21392000 | U19: 33667200 | V19: 90358000 | W19: 62031000 | X19: 69622000 | Y19: 104490000 | Z19: 94529000 | AA19: 28463000 | AB19: 40659000 | AC19: 76130000 | AD19: 69746000 | AE19: 58981000 | AF19: 69500900 | AG19: 3.6378 | AH19: 0.891 | AI19: 0.5937 | AJ19: 0.902 | AK19: 0.4324 | AL19: 3.6827 | AM19: 0.6663 | AN19: 0.4794 | AO19: 2.6497 | AP19: 2.3562 | AQ19: 3.3211 | AR19: 2.3249 | AS19: 1.0485 | AT19: 1.0147 | AU19: 0.7439 | AV19: 0.7 | AW19: 0.9678 | AX19: 1.0284 | AY19: 2.7026 | AZ19: 1.4747 | BA19: 1.0915 | BB19: 1.2908 | BC19: 1.3986 | BD19: 2.4132 | BE19: 1.8896 | BF19: 1.1825 | BG19: 1.7255 | BH19: 2.7572
A20: 19 | B20: sp|A0A0C4DH38|HV551_HUMAN | C20: sp|A0A0C4DH38|HV551_HUMAN | D20: 34.2 | E20: 12.674 | F20: 117 | G20: 3 | H20: 3 | I20: 80 | J20: LAD-D;LAD-D-2;LAD-M;LAD-M-2;LAD-P;LAD-P-2;LCX-D;LCX-D-2;LCX-M;LCX-M-2;LCX-P;LCX-P-2;LM;LM-2;RCA-D;RCA-D-2;RCA-M;RCA-M-2;RCA-P;RCA-P-2 | K20: 40261000 | L20: 42027000 | M20: 15314000 | N20: 12323000 | O20: 30372000 | P20: 50705000 | Q20: 16528000 | R20: 32596000 | S20: 45948000 | T20: 67752000 | U20: 35382600 | V20: 49928000 | W20: 30820000 | X20: 41180000 | Y20: 35925000 | Z20: 64473000 | AA20: 43381000 | AB20: 18863000 | AC20: 30107000 | AD20: 31721000 | AE20: 33487000 | AF20: 37988500 | AG20: 0.7333 | AH20: 0.7484 | AI20: 0.8579 | AJ20: 2.7444 | AK20: 3.4105 | AL20: 2.689 | AM20: 1.1463 | AN20: 1.2427 | AO20: 2.9153 | AP20: 2.1228 | AQ20: 1.4862 | AR20: 3.418 | AS20: 0.599 | AT20: 1.8376 | AU20: 0.8556 | AV20: 2.2998 | AW20: 3.0678 | AX20: 1.1413 | AY20: 1.2401 | AZ20: 0.9236 | BA20: 0.9491 | BB20: 0.8991 | BC20: 0.7094 | BD20: 0.4811 | BE20: 0.6904 | BF20: 0.9473 | BG20: 0.6782 | BH20: 0.4943
A21: 20 | B21: sp|A0A0C4DH67|KV108_HUMAN | C21: sp|A0A0C4DH67|KV108_HUMAN;sp|A0A0C4DH69|KV109_HUMAN | D21: 32.2 | E21: 12.537 | F21: 115 | G21: 2;2;1 | H21: 2 | I21: 45 | J21: LAD-D;LAD-D-2;LAD-M;LAD-M-2;LAD-P;LAD-P-2;LCX-D;LCX-D-2;LCX-M;LCX-M-2;LCX-P;LCX-P-2;LM;LM-2;RCA-D;RCA-D-2;RCA-M;RCA-P;RCA-P-2 | K21: 10569000 | L21: 6750300 | M21: 8387700 | N21: 15320000 | O21: 13308000 | P21: 15851000 | Q21: 11284000 | R21: 15176000 | S21: 13192000 | T21: 11967000 | U21: 12180500 | V21: 12590000 | W21: 11786000 | X21: 12431000 | Y21: 14384000 | Z21: 21768000 | AA21: 8717000 | AB21: 3759900 | AC21: 12540000 | AD21: 5433800 | AE21: 16704000 | AF21: 12011370 | AG21: 1.746 | AH21: 0.9481 | AI21: 0.8194 | AJ21: 0.8048 | AK21: 0.4406 | AL21: 1.4821 | AM21: 0.8642 | AN21: 0.5475 | AO21: 0.9389 | AP21: 1.6357 | AQ21: 2.4972 | AR21: 5.7895 | AS21: 0.8396 | AT21: 1.1794 | AU21: 0.5499 | AV21: 2.3184 | AW21: 1.4047 | AX21: 0.3332 | AY21: 1.1912 | AZ21: 0.8263 | BA21: 2.3078 | BB21: 0.7507 | BC21: 1.1504 | BD21: 1.2682 | BE21: 0.4119 | BF21: 0.3253 | BG21: 1.1024 | BH21: 1.3958
A22: 21 | B22: sp|A0A0C4DH68|KV224_HUMAN | C22: sp|A0A0C4DH68|KV224_HUMAN | D22: 38.3 | E22: 13.079 | F22: 120 | G22: 3 | H22: 3 | I22: 66 | J22: LAD-D;LAD-D-2;LAD-M;LAD-M-2;LAD-P;LAD-P-2;LCX-D;LCX-D-2;LCX-M;LCX-M-2;LCX-P;LCX-P-2;LM;LM-2;RCA-D;RCA-D-2;RCA-M;RCA-M-2;RCA-P;RCA-P-2 | K22: 32332000 | L22: 27474000 | M22: 52595000 | N22: 65728000 | O22: 23051000 | P22: 41133000 | Q22: 22840000 | R22: 36190000 | S22: 62169000 | T22: 55205000 | U22: 41871700 | V22: 92993000 | W22: 59348000 | X22: 87890000 | Y22: 84928000 | Z22: 157700000 | AA22: 61417000 | AB22: 32383000 | AC22: 63545000 | AD22: 74698000 | AE22: 56920000 | AF22: 77182200 | AG22: 2.1602 | AH22: 0.6753 | AI22: 0.6988 | AJ22: 0.5224 | AK22: 0.418 | AL22: 1.6711 | AM22: 1.0349 | AN22: 0.8002 | AO22: 1.2921 | AP22: 6.8414 | AQ22: 2.5677 | AR22: 4.8698 | AS22: 0.5604 | AT22: 1.0092 | AU22: 1.4931 | AV22: 1.8966 | AW22: 1.8009 | AX22: 1.4178 | AY22: 2.8762 | AZ22: 1.7559 | BA22: 0.8507 | BB22: 1.1164 | BC22: 0.5821 | BD22: 0.6556 | BE22: 1.2015 | BF22: 1.3123 | BG22: 1.1261 | BH22: 1.0311
A23: 22 | B23: sp|A0A0C4DH72|KV106_HUMAN | C23: sp|A0A0C4DH72|KV106_HUMAN | D23: 12.8 | E23: 12.697 | F23: 117 | G23: 2 | H23: 1 | I23: 5 | J23: LAD-P-2;LCX-D;LCX-M;LM;RCA-D | K23: 16903000 | L23: 0 | M23: 0 | N23: 0 | O23: 30041000 | P23: 19285000 | Q23: 16986000 | R23: 51281000 | S23: 21313000 | T23: 0 | U23: 15580900 | V23: 16673000 | W23: 11350000 | X23: 7442400 | Y23: 19710000 | Z23: 0 | AA23: 0 | AB23: 0 | AC23: 0 | AD23: 0 | AE23: 17600000 | AF23: 7277540 | AG23: 999 | AH23: 1.525 | AI23: 0.5758 | AJ23: NA | AK23: NA | AL23: 999 | AM23: 0.3776 | AN23: NA | AO23: 999 | AP23: -999 | AQ23: NA | AR23: NA | AS23: 1.5577 | AT23: 1.7686 | AU23: -999 | AV23: NA | AW23: 1.1353 | AX23: -999 | AY23: 0.9864 | AZ23: -999 | BA23: NA | BB23: -999 | BC23: 2.4061 | BD23: 999 | BE23: -999 | BF23: -999 | BG23: 999 | BH23: 999
A24: 23 | B24: sp|P01611|KVD12_HUMAN | C24: sp|P01611|KVD12_HUMAN;sp|A0A0C4DH73|KV112_HUMAN | D24: 17.9 | E24: 12.62 | F24: 117 | G24: 2;2 | H24: 1 | I24: 5 | J24: LAD-P;LCX-D;LCX-M;RCA-D;RCA-M | K24: 4217400 | L24: 0 | M24: 0 | N24: 6684400 | O24: 8288300 | P24: 10483000 | Q24: 4208100 | R24: 10302000 | S24: 9837900 | T24: 0 | U24: 5402110 | V24: 0 | W24: 0 | X24: 0 | Y24: 0 | Z24: 0 | AA24: 0 | AB24: 0 | AC24: 0 | AD24: 0 | AE24: 0 | AF24: 0 | AG24: NA | AH24: NA | AI24: NA | AJ24: NA | AK24: -999 | AL24: NA | AM24: NA | AN24: -999 | AO24: -999 | AP24: -999 | AQ24: NA | AR24: NA | AS24: 0.7906 | AT24: 1.9696 | AU24: -999 | AV24: NA | AW24: 2.4911 | AX24: -999 | AY24: -999 | AZ24: -999 | BA24: NA | BB24: NA | BC24: 1.0472 | BD24: 999 | BE24: -999 | BF24: NA | BG24: 999 | BH24: NA
A25: 24 | B25: sp|A0A0J9YX35|HV64D_HUMAN | C25: sp|A0A0J9YX35|HV64D_HUMAN | D25: 9.4 | E25: 12.822 | F25: 117 | G25: 2 | H25: 1 | I25: 2 | J25: LCX-P;RCA-D | K25: 0 | L25: 0 | M25: 0 | N25: 0 | O25: 3700800 | P25: 0 | Q25: 3589300 | R25: 3106300 | S25: 0 | T25: 0 | U25: 1039640 | V25: 0 | W25: 0 | X25: 0 | Y25: 0 | Z25: 0 | AA25: 0 | AB25: 0 | AC25: 10707000 | AD25: 1410500 | AE25: 0 | AF25: 1211750 | AG25: NA | AH25: NA | AI25: NA | AJ25: NA | AK25: NA | AL25: NA | AM25: NA | AN25: NA | AO25: NA | AP25: -999 | AQ25: NA | AR25: NA | AS25: 999 | AT25: 1.0311 | AU25: NA | AV25: NA | AW25: -999 | AX25: -999 | AY25: NA | AZ25: 3.4469 | BA25: 7.5909 | BB25: 999 | BC25: 999 | BD25: 999 | BE25: 999 | BF25: 999 | BG25: NA | BH25: NA
A26: 25 | B26: sp|A0A0J9YXX1|HV5X1_HUMAN | C26: sp|A0A0J9YXX1|HV5X1_HUMAN | D26: 6 | E26: 12.772 | F26: 117 | G26: 3 | H26: 1 | I26: 10 | J26: LAD-D;LAD-P;LCX-D;LCX-M;LM;RCA-D;RCA-M;RCA-P | K26: 5731400 | L26: 4920900 | M26: 1560700 | N26: 8832000 | O26: 4582800 | P26: 7753500 | Q26: 4226600 | R26: 5000000 | S26: 5401000 | T26: 6320100 | U26: 5432900 | V26: 954800 | W26: 0 | X26: 0 | Y26: 1180600 | Z26: 0 | AA26: 0 | AB26: 0 | AC26: 0 | AD26: 0 | AE26: 0 | AF26: 213540 | AG26: -999 | AH26: NA | AI26: -999 | AJ26: 3.153 | AK26: 0.5572 | AL26: -999 | AM26: -999 | AN26: 0.1767 | AO26: 0.1337 | AP26: -999 | AQ26: NA | AR26: NA | AS26: 0.5911 | AT26: 1.0843 | AU26: -999 | AV26: NA | AW26: 1.8345 | AX26: -999 | AY26: 0.1666 | AZ26: -999 | BA26: NA | BB26: NA | BC26: 0.9258 | BD26: 0.7911 | BE26: -999 | BF26: NA | BG26: 0.8546 | BH26: -999
A27: 26 | B27: sp|A0AVT1|UBA6_HUMAN | C27: sp|A0AVT1|UBA6_HUMAN | D27: 6.3 | E27: 117.97 | F27: 1052 | G27: 4 | H27: 4 | I27: 4 | J27: LAD-P;LM-2;RCA-P-2 | K27: 0 | L27: 0 | M27: 0 | N27: 0 | O27: 0 | P27: 0 | Q27: 1701700 | R27: 0 | S27: 2336800 | T27: 0 | U27: 403850 | V27: 2663900 | W27: 0 | X27: 2212000 | Y27: 2104200 | Z27: 0 | AA27: 3174600 | AB27: 2155100 | AC27: 0 | AD27: 1564400 | AE27: 2386900 | AF27: 1626110 | AG27: NA | AH27: -999 | AI27: -999 | AJ27: NA | AK27: NA | AL27: 999 | AM27: 1.0512 | AN27: NA | AO27: 999 | AP27: NA | AQ27: -999 | AR27: -999 | AS27: NA | AT27: -999 | AU27: 999 | AV27: 1.4731 | AW27: -999 | AX27: 1.2664 | AY27: 999 | AZ27: NA | BA27: -999 | BB27: -999 | BC27: -999 | BD27: NA | BE27: 0.6695 | BF27: 0.6554 | BG27: 999 | BH27: 999
A28: 27 | B28: sp|A1L0T0|ILVBL_HUMAN | C28: sp|A1L0T0|ILVBL_HUMAN | D28: 13.3 | E28: 67.867 | F28: 632 | G28: 4 | H28: 4 | I28: 10 | J28: LCX-D-2;LCX-M-2;LCX-P-2;RCA-M-2;RCA-P-2 | K28: 2227600 | L28: 4927100 | M28: 4877800 | N28: 0 | O28: 0 | P28: 5226800 | Q28: 2666600 | R28: 3243300 | S28: 5053500 | T28: 0 | U28: 2822270 | V28: 6007600 | W28: 4208500 | X28: 4970500 | Y28: 3460200 | Z28: 14736000 | AA28: 10659000 | AB28: 8286100 | AC28: 2733900 | AD28: 9497500 | AE28: 5700600 | AF28: 7025990 | AG28: 0.8542 | AH28: 0.8467 | AI28: 1.2163 | AJ28: 1.0101 | AK28: 999 | AL28: 1.019 | AM28: 1.4365 | AN28: 999 | AO28: 999 | AP28: 999 | AQ28: 1.3825 | AR28: 1.7784 | AS28: -999 | AT28: -999 | AU28: 2.0393 | AV28: 1.2864 | AW28: 1.9601 | AX28: 3.1074 | AY28: 2.6969 | AZ28: 0.8429 | BA28: 0.2879 | BB28: 0.4796 | BC28: 0.6418 | BD28: 999 | BE28: 1.8794 | BF28: 1.6661 | BG28: 999 | BH28: 999
A29: 28 | B29: sp|A2NJV5|KV229_HUMAN | C29: sp|A2NJV5|KV229_HUMAN | D29: 36.7 | E29: 13.085 | F29: 120 | G29: 3;2;2 | H29: 3 | I29: 27 | J29: LAD-D;LAD-D-2;LAD-M;LAD-M-2;LAD-P;LAD-P-2;LCX-D-2;LCX-M;LCX-M-2;LCX-P-2;LM;LM-2;RCA-D-2;RCA-M-2;RCA-P;RCA-P-2 | K29: 57499000 | L29: 33026000 | M29: 10677000 | N29: 63301000 | O29: 0 | P29: 42116000 | Q29: 0 | R29: 0 | S29: 32887000 | T29: 24395000 | U29: 26390100 | V29: 125570000 | W29: 119900000 | X29: 84981000 | Y29: 123480000 | Z29: 113080000 | AA29: 57617000 | AB29: 44209000 | AC29: 90655000 | AD29: 94858000 | AE29: 90447000 | AF29: 94479700 | AG29: 3.6305 | AH29: 1.4109 | AI29: 0.971 | AJ29: 3.0932 | AK29: 0.5217 | AL29: 7.9593 | AM29: 0.6882 | AN29: 0.1687 | AO29: 1.9507 | AP29: 999 | AQ29: 1.9626 | AR29: 2.5579 | AS29: -999 | AT29: NA | AU29: 1.3681 | AV29: 1.3033 | AW29: 999 | AX29: 999 | AY29: 2.1839 | AZ29: 999 | BA29: 0.9557 | BB29: 1.0023 | BC29: -999 | BD29: -999 | BE29: 2.8844 | BF29: 1.0488 | BG29: 1.3481 | BH29: 3.7076
A30: 29 | B30: sp|A6NMB1|SIG16_HUMAN | C30: sp|A6NMB1|SIG16_HUMAN | D30: 5.6 | E30: 52.991 | F30: 481 | G30: 2;1 | H30: 2 | I30: 41 | J30: LAD-D;LAD-D-2;LAD-M;LAD-M-2;LAD-P;LAD-P-2;LCX-D;LCX-D-2;LCX-M;LCX-M-2;LCX-P;LCX-P-2;LM;LM-2;RCA-D;RCA-D-2;RCA-M-2;RCA-P;RCA-P-2 | K30: 54232000 | L30: 62001000 | M30: 111000000 | N30: 214060000 | O30: 158400000 | P30: 68012000 | Q30: 66305000 | R30: 120280000 | S30: 0 | T30: 228270000 | U30: 108256000 | V30: 150220000 | W30: 61543000 | X30: 89157000 | Y30: 87322000 | Z30: 108800000 | AA30: 68225000 | AB30: 38326000 | AC30: 53571000 | AD30: 50988000 | AE30: 158360000 | AF30: 86651200 | AG30: 0.9926 | AH30: 0.6903 | AI30: 0.7048 | AJ30: 0.5586 | AK30: 0.2896 | AL30: 0.8032 | AM30: 1.021 | AN30: 0.5185 | AO30: 0.4079 | AP30: 0.6869 | AQ30: 1.5947 | AR30: 2.8388 | AS30: 2.329 | AT30: 2.389 | AU30: 1.0031 | AV30: 1.7801 | AW30: 1.0257 | AX30: 0.578 | AY30: 2.77 | AZ30: 0.4454 | BA30: 1.0507 | BB30: 0.3383 | BC30: 999 | BD30: 0.5269 | BE30: 999 | BF30: 0.322 | BG30: -999 | BH30: 0.6937
A31: 30 | B31: sp|A6NMZ7|CO6A6_HUMAN | C31: sp|A6NMZ7|CO6A6_HUMAN | D31: 19.7 | E31: 247.17 | F31: 2263 | G31: 31 | H31: 31 | I31: 197 | J31: LAD-D;LAD-D-2;LAD-M;LAD-M-2;LAD-P-2;LCX-D-2;LCX-M;LCX-M-2;LCX-P;LCX-P-2;LM;LM-2;RCA-D;RCA-D-2;RCA-M;RCA-M-2;RCA-P;RCA-P-2 | K31: 61643000 | L31: 83868000 | M31: 35072000 | N31: 2830400 | O31: 9461900 | P31: 43694000 | Q31: 19692000 | R31: 35396000 | S31: 45878000 | T31: 59795000 | U31: 39733030 | V31: 52766000 | W31: 125780000 | X31: 79854000 | Y31: 91151000 | Z31: 359300000 | AA31: 233210000 | AB31: 52951000 | AC31: 99961000 | AD31: 98031000 | AE31: 79113000 | AF31: 127211700 | AG31: 1.4997 | AH31: 1.5751 | AI31: 1.3799 | AJ31: 2.3913 | AK31: 29.6311 | AL31: 2.2769 | AM31: 0.8761 | AN31: 12.3912 | AO31: 32.2043 | AP31: 37.9733 | AQ31: 1.5407 | AR31: 6.7855 | AS31: 0.2165 | AT31: 0.4805 | AU31: 5.3373 | AV31: 4.4043 | AW31: 2.2189 | AX31: 2.689 | AY31: 0.856 | AZ31: 2.8241 | BA31: 1.0197 | BB31: 1.2635 | BC31: 0.7715 | BD31: 0.592 | BE31: 2.1368 | BF31: 1.2391 | BG31: 0.7673 | BH31: 1.3231
A32: 31 | B32: sp|A6NNT2|CP096_HUMAN | C32: sp|A6NNT2|CP096_HUMAN | D32: 0.6 | E32: 125.04 | F32: 1141 | G32: 1 | H32: 1 | I32: 4 | J32: LCX-P-2;RCA-M-2 | K32: 0 | L32: 0 | M32: 0 | N32: 0 | O32: 0 | P32: 0 | Q32: 0 | R32: 0 | S32: 0 | T32: 0 | U32: 0 | V32: 0 | W32: 0 | X32: 0 | Y32: 0 | Z32: 0 | AA32: 0 | AB32: 13706000 | AC32: 0 | AD32: 4826100 | AE32: 1068900 | AF32: 1960100 | AG32: NA | AH32: NA | AI32: NA | AJ32: NA | AK32: NA | AL32: NA | AM32: NA | AN32: NA | AO32: NA | AP32: NA | AQ32: NA | AR32: -999 | AS32: NA | AT32: NA | AU32: NA | AV32: -999 | AW32: NA | AX32: 999 | AY32: NA | AZ32: NA | BA32: -999 | BB32: -999 | BC32: NA | BD32: NA | BE32: 999 | BF32: 4.515 | BG32: NA | BH32: 999
A33: 32 | B33: sp|A6PVY3|F177B_HUMAN | C33: sp|A6PVY3|F177B_HUMAN | D33: 8.2 | E33: 18.145 | F33: 158 | G33: 1 | H33: 1 | I33: 2 | J33: LCX-P;RCA-D | K33: 0 | L33: 0 | M33: 0 | N33: 0 | O33: 8646800 | P33: 0 | Q33: 28112000 | R33: 23151000 | S33: 0 | T33: 0 | U33: 5990980 | V33: 5931300 | W33: 0 | X33: 0 | Y33: 5463300 | Z33: 4755100 | AA33: 0 | AB33: 0 | AC33: 8681600 | AD33: 3897900 | AE33: 4166800 | AF33: 3289600 | AG33: NA | AH33: NA | AI33: -999 | AJ33: NA | AK33: NA | AL33: NA | AM33: -999 | AN33: NA | AO33: 999 | AP33: 0.5499 | AQ33: 999 | AR33: 999 | AS33: 999 | AT33: 0.3076 | AU33: NA | AV33: NA | AW33: -999 | AX33: -999 | AY33: 999 | AZ33: 0.375 | BA33: 2.2273 | BB33: 2.0835 | BC33: 999 | BD33: 999 | BE33: 999 | BF33: 0.9355 | BG33: NA | BH33: 999
A34: 33 | B34: sp|A8MUH7|PDZ1P_HUMAN | C34: sp|A8MUH7|PDZ1P_HUMAN;sp|Q5T2W1|NHRF3_HUMAN | D34: 4 | E34: 44.055 | F34: 402 | G34: 1;1 | H34: 1 | I34: 17 | J34: LAD-D;LAD-D-2;LAD-M-2;LAD-P-2;LCX-M;LM-2;RCA-D-2;RCA-M;RCA-M-2;RCA-P-2 | K34: 0 | L34: 256310000 | M34: 1914000 | N34: 2565000 | O34: 11727000 | P34: 84906000 | Q34: 0 | R34: 0 | S34: 82340000 | T34: 0 | U34: 43976200 | V34: 29869000 | W34: 133360000 | X34: 222620000 | Y34: 34489000 | Z34: 0 | AA34: 0 | AB34: 0 | AC34: 154110000 | AD34: 18063000 | AE34: 448270000 | AF34: 104078100 | AG34: 0.5203 | AH34: 0.599 | AI34: 3.8667 | AJ34: 133.9133 | AK34: 99.9259 | AL34: 116.3114 | AM34: 6.4548 | AN34: 0.7462 | AO34: 13.446 | AP34: -999 | AQ34: NA | AR34: NA | AS34: 0.1381 | AT34: 999 | AU34: -999 | AV34: NA | AW34: 999 | AX34: NA | AY34: 999 | AZ34: 999 | BA34: 8.5318 | BB34: 0.3438 | BC34: -999 | BD34: NA | BE34: 0.2194 | BF34: 0.0403 | BG34: 999 | BH34: 999
A35: 34 | B35: sp|P62308|RUXG_HUMAN | C35: sp|P62308|RUXG_HUMAN;sp|A8MWD9|RUXGL_HUMAN | D35: 17.1 | E35: 8.496 | F35: 76 | G35: 1;1 | H35: 1 | I35: 9 | J35: LAD-D;LAD-D-2;LAD-M-2;LAD-P-2;LCX-M-2;LM;LM-2;RCA-D-2;RCA-P-2 | K35: 1665300 | L35: 1449000 | M35: 0 | N35: 0 | O35: 0 | P35: 1960600 | Q35: 0 | R35: 0 | S35: 0 | T35: 2174400 | U35: 724930 | V35: 1576400 | W35: 2380600 | X35: 1958300 | Y35: 1733000 | Z35: 3670400 | AA35: 2409700 | AB35: 1639800 | AC35: 1828900 | AD35: 1373000 | AE35: 1921400 | AF35: 2049150 | AG35: 1.6429 | AH35: 1.2156 | AI35: 1.3737 | AJ35: 999 | AK35: 999 | AL35: 999 | AM35: 1.13 | AN35: NA | AO35: 999 | AP35: 999 | AQ35: 1.5232 | AR35: 2.2383 | AS35: -999 | AT35: NA | AU35: 1.2291 | AV35: 1.4695 | AW35: 999 | AX35: 999 | AY35: 0.9466 | AZ35: 999 | BA35: 1.332 | BB35: 0.9519 | BC35: NA | BD35: -999 | BE35: 999 | BF35: 0.7146 | BG35: -999 | BH35: 0.8836
A36: 35 | B36: sp|Q99613|EIF3C_HUMAN | C36: sp|Q99613|EIF3C_HUMAN;sp|B5ME19|EIFCL_HUMAN | D36: 10 | E36: 105.34 | F36: 913 | G36: 5;5 | H36: 5 | I36: 11 | J36: LAD-M;LAD-M-2;RCA-D;RCA-D-2;RCA-P;RCA-P-2 | K36: 357670000 | L36: 422790000 | M36: 1423600000 | N36: 433650000 | O36: 573750000 | P36: 175040000 | Q36: 393230000 | R36: 777620000 | S36: 12913000 | T36: 891410000 | U36: 546167300 | V36: 282580000 | W36: 197060000 | X36: 738210000 | Y36: 173680000 | Z36: 106880000 | AA36: 143730000 | AB36: 279000000 | AC36: 660150000 | AD36: 342800000 | AE36: 400750000 | AF36: 332484000 | AG36: 0.4661 | AH36: 0.2669 | AI36: 1.1346 | AJ36: 0.297 | AK36: 0.975 | AL36: 0.5186 | AM36: 4.2504 | AN36: 3.2828 | AO36: 0.4005 | AP36: 0.1863 | AQ36: 0.7436 | AR36: 0.3831 | AS36: 3.2778 | AT36: 1.4591 | AU36: 0.8211 | AV36: 0.5152 | AW36: 0.4451 | AX36: 0.7095 | AY36: 0.7901 | AZ36: 0.8489 | BA36: 1.9258 | BB36: 1.6473 | BC36: 60.2199 | BD36: 0.8723 | BE36: 26.5469 | BF36: 0.8554 | BG36: 0.0145 | BH36: 0.4496
A37: 36 | B37: sp|E9PAV3|NACAM_HUMAN | C37: sp|E9PAV3|NACAM_HUMAN | D37: 2.7 | E37: 205.42 | F37: 2078 | G37: 4;2;1 | H37: 4 | I37: 12 | J37: LAD-D;LAD-D-2;LCX-D-2;LCX-P-2;LM;RCA-D-2;RCA-M-2;RCA-P-2 | K37: 4432200 | L37: 7533300 | M37: 2726200 | N37: 3790900 | O37: 0 | P37: 4584000 | Q37: 0 | R37: 0 | S37: 3388100 | T37: 5362900 | U37: 3181760 | V37: 3286200 | W37: 9664100 | X37: 6816300 | Y37: 3817700 | Z37: 8825200 | AA37: 9845500 | AB37: 8492900 | AC37: 9142400 | AD37: 11062000 | AE37: 9450100 | AF37: 8040240 | AG37: 1.2829 | AH37: 1.4178 | AI37: 2.5314 | AJ37: 2.7633 | AK37: 1.9872 | AL37: 2.5003 | AM37: 1.7854 | AN37: 0.7191 | AO37: 1.0071 | AP37: 999 | AQ37: 0.8964 | AR37: 1.0391 | AS37: -999 | AT37: NA | AU37: 2.1478 | AV37: 1.1593 | AW37: 999 | AX37: 999 | AY37: 0.7414 | AZ37: 999 | BA37: 0.8265 | BB37: 0.9674 | BC37: -999 | BD37: -999 | BE37: 3.265 | BF37: 1.1706 | BG37: 0.6318 | BH37: 1.7621
A38: 37 | B38: sp|O00151|PDLI1_HUMAN | C38: sp|O00151|PDLI1_HUMAN | D38: 53.8 | E38: 36.071 | F38: 329 | G38: 11 | H38: 11 | I38: 114 | J38: LAD-D;LAD-D-2;LAD-M;LAD-M-2;LAD-P;LAD-P-2;LCX-D;LCX-D-2;LCX-M;LCX-M-2;LCX-P;LCX-P-2;LM;LM-2;RCA-D;RCA-D-2;RCA-M;RCA-M-2;RCA-P;RCA-P-2 | K38: 36445000 | L38: 52896000 | M38: 55659000 | N38: 38725000 | O38: 39519000 | P38: 38456000 | Q38: 55707000 | R38: 18999000 | S38: 30118000 | T38: 40983000 | U38: 40750700 | V38: 38522000 | W38: 53882000 | X38: 33344000 | Y38: 40254000 | Z38: 29176000 | AA38: 47266000 | AB38: 80681000 | AC38: 53387000 | AD38: 54045000 | AE38: 36942000 | AF38: 46749900 | AG38: 1.0186 | AH38: 1.6159 | AI38: 1.3386 | AJ38: 0.9504 | AK38: 1.3659 | AL38: 0.5991 | AM38: 0.8283 | AN38: 1.4373 | AO38: 1.0395 | AP38: 0.7383 | AQ38: 0.6173 | AR38: 0.3616 | AS38: 1.0276 | AT38: 0.7094 | AU38: 1.2291 | AV38: 0.5858 | AW38: 0.6903 | AX38: 1.4483 | AY38: 1.057 | AZ38: 2.81 | BA38: 0.9878 | BB38: 1.4452 | BC38: 0.6308 | BD38: 0.4636 | BE38: 1.7944 | BF38: 1.463 | BG38: 0.7349 | BH38: 0.9014
A39: 38 | B39: sp|O00159|MYO1C_HUMAN | C39: sp|O00159|MYO1C_HUMAN | D39: 59.5 | E39: 121.68 | F39: 1063 | G39: 59 | H39: 59 | I39: 749 | J39: LAD-D;LAD-D-2;LAD-M;LAD-M-2;LAD-P;LAD-P-2;LCX-D;LCX-D-2;LCX-M;LCX-M-2;LCX-P;LCX-P-2;LM;LM-2;RCA-D;RCA-D-2;RCA-M;RCA-M-2;RCA-P;RCA-P-2 | K39: 367350000 | L39: 577410000 | M39: 703930000 | N39: 186070000 | O39: 303730000 | P39: 370050000 | Q39: 363520000 | R39: 323270000 | S39: 366440000 | T39: 389440000 | U39: 395121000 | V39: 293440000 | W39: 484440000 | X39: 515160000 | Y39: 467350000 | Z39: 814210000 | AA39: 603710000 | AB39: 296170000 | AC39: 579290000 | AD39: 459110000 | AE39: 466880000 | AF39: 497976000 | AG39: 0.839 | AH39: 0.9404 | AI39: 1.0366 | AJ39: 0.8203 | AK39: 3.1032 | AL39: 0.7318 | AM39: 1.1023 | AN39: 3.7831 | AO39: 2.5117 | AP39: 2.6807 | AQ39: 1.3487 | AR39: 2.7491 | AS39: 0.8208 | AT39: 0.8355 | AU39: 1.6314 | AV39: 2.0384 | AW39: 1.018 | AX39: 0.8147 | AY39: 0.7988 | AZ39: 1.792 | BA39: 1.2618 | BB39: 1.2408 | BC39: 0.8822 | BD39: 0.8301 | BE39: 1.2529 | BF39: 0.9834 | BG39: 0.9409 | BH39: 1.1988
A40: 39 | B40: sp|O00160|MYO1F_HUMAN | C40: sp|O00160|MYO1F_HUMAN;sp|Q12965|MYO1E_HUMAN | D40: 1.5 | E40: 124.84 | F40: 1098 | G40: 1;1 | H40: 1 | I40: 2 | J40: LCX-M;RCA-P-2 | K40: 1012600 | L40: 0 | M40: 625600 | N40: 0 | O40: 0 | P40: 1893300 | Q40: 0 | R40: 0 | S40: 0 | T40: 1386100 | U40: 491760 | V40: 1338500 | W40: 0 | X40: 1318200 | Y40: 997080 | Z40: 1048800 | AA40: 0 | AB40: 0 | AC40: 1273400 | AD40: 828840 | AE40: 2780300 | AF40: 958512 | AG40: NA | AH40: -999 | AI40: -999 | AJ40: -999 | AK40: NA | AL40: 2.1071 | AM40: 1.3221 | AN40: 999 | AO40: 999 | AP40: 999 | AQ40: 999 | AR40: 999 | AS40: -999 | AT40: NA | AU40: -999 | AV40: NA | AW40: 999 | AX40: NA | AY40: 1.3218 | AZ40: 999 | BA40: 1.5364 | BB40: 0.458 | BC40: NA | BD40: -999 | BE40: 999 | BF40: 0.2981 | BG40: -999 | BH40: 2.0058
A41: 40 | B41: sp|O00170|AIP_HUMAN | C41: sp|O00170|AIP_HUMAN | D41: 4.2 | E41: 37.636 | F41: 330 | G41: 1 | H41: 1 | I41: 6 | J41: LAD-D;LAD-P;LCX-D-2;LCX-P;RCA-P;RCA-P-2 | K41: 0 | L41: 1790300 | M41: 2145100 | N41: 0 | O41: 0 | P41: 0 | Q41: 1301600 | R41: 1811700 | S41: 1817900 | T41: 2253900 | U41: 1112050 | V41: 0 | W41: 0 | X41: 0 | Y41: 0 | Z41: 2266200 | AA41: 1852000 | AB41: 0 | AC41: 0 | AD41: 1251500 | AE41: 2128600 | AF41: 749830 | AG41: -999 | AH41: NA | AI41: NA | AJ41: 0.8346 | AK41: 999 | AL41: -999 | AM41: NA | AN41: 999 | AO41: NA | AP41: 999 | AQ41: 1.2237 | AR41: 999 | AS41: NA | AT41: -999 | AU41: 999 | AV41: 999 | AW41: -999 | AX41: -999 | AY41: NA | AZ41: -999 | BA41: -999 | BB41: -999 | BC41: 0.9966 | BD41: 0.8038 | BE41: 0.6884 | BF41: 0.5879 | BG41: 0.8066 | BH41: 0.9444
A42: 41 | B42: sp|O00203|AP3B1_HUMAN | C42: sp|O00203|AP3B1_HUMAN | D42: 3.3 | E42: 121.32 | F42: 1094 | G42: 2;1 | H42: 2 | I42: 2 | J42: LAD-M-2;LCX-M-2 | K42: 0 | L42: 289500 | M42: 0 | N42: 0 | O42: 0 | P42: 0 | Q42: 0 | R42: 0 | S42: 0 | T42: 285330 | U42: 57483 | V42: 0 | W42: 0 | X42: 1065900 | Y42: 653660 | Z42: 0 | AA42: 669590 | AB42: 0 | AC42: 611240 | AD42: 0 | AE42: 365080 | AF42: 336547 | AG42: -999 | AH42: -999 | AI42: -999 | AJ42: 999 | AK42: 999 | AL42: 999 | AM42: 1.6307 | AN42: NA | AO42: 999 | AP42: NA | AQ42: -999 | AR42: NA | AS42: NA | AT42: NA | AU42: 999 | AV42: 999 | AW42: NA | AX42: NA | AY42: NA | AZ42: 999 | BA42: 999 | BB42: 1.6743 | BC42: NA | BD42: -999 | BE42: NA | BF42: -999 | BG42: -999 | BH42: 1.2795
A43: 42 | B43: sp|O00217|NDUS8_HUMAN | C43: sp|O00217|NDUS8_HUMAN | D43: 20.5 | E43: 23.705 | F43: 210 | G43: 3 | H43: 3 | I43: 35 | J43: LAD-D;LAD-D-2;LAD-M;LAD-M-2;LAD-P-2;LCX-D-2;LCX-M-2;LCX-P-2;LM-2;RCA-D-2;RCA-M;RCA-M-2;RCA-P;RCA-P-2 | K43: 0 | L43: 3913600 | M43: 5585200 | N43: 0 | O43: 1298700 | P43: 0 | Q43: 0 | R43: 0 | S43: 3178300 | T43: 4824800 | U43: 1880060 | V43: 3000100 | W43: 2853300 | X43: 4087900 | Y43: 3227900 | Z43: 5695100 | AA43: 5533500 | AB43: 24556000 | AC43: 4178500 | AD43: 17662000 | AE43: 6348900 | AF43: 7714320 | AG43: 0.7291 | AH43: 0.698 | AI43: 0.8839 | AJ43: 0.7007 | AK43: 999 | AL43: 0.7319 | AM43: 1.2664 | AN43: 999 | AO43: 999 | AP43: 4.3852 | AQ43: 1.0292 | AR43: 0.2319 | AS43: 999 | AT43: 999 | AU43: 999 | AV43: 0.2253 | AW43: NA | AX43: 999 | AY43: 999 | AZ43: 999 | BA43: 0.2366 | BB43: 0.6581 | BC43: -999 | BD43: -999 | BE43: 5.5571 | BF43: 2.7819 | BG43: 0.6587 | BH43: 1.3159
A44: 43 | B44: sp|O00231|PSD11_HUMAN | C44: sp|O00231|PSD11_HUMAN | D44: 14.7 | E44: 47.463 | F44: 422 | G44: 4 | H44: 4 | I44: 9 | J44: LAD-D;LAD-M;LCX-D-2;LCX-M-2;LCX-P-2;LM-2;RCA-M | K44: 5797000 | L44: 7111700 | M44: 4689400 | N44: 0 | O44: 0 | P44: 8179600 | Q44: 0 | R44: 0 | S44: 6446000 | T44: 4972000 | U44: 3719570 | V44: 5612900 | W44: 5698500 | X44: 3446100 | Y44: 5527000 | Z44: 10041000 | AA44: 7721100 | AB44: 5340300 | AC44: 4409200 | AD44: 7841800 | AE44: 6304200 | AF44: 6194210 | AG44: 0.8013 | AH44: 1.6536 | AI44: 1.031 | AJ44: 1.5165 | AK44: 999 | AL44: 0.7349 | AM44: 0.6235 | AN44: 999 | AO44: 999 | AP44: 999 | AQ44: 1.3005 | AR44: 1.8802 | AS44: -999 | AT44: NA | AU44: 0.9439 | AV44: 1.4458 | AW44: 999 | AX44: 999 | AY44: 0.9682 | AZ44: 999 | BA44: 0.5623 | BB44: 0.6994 | BC44: -999 | BD44: -999 | BE44: 1.2165 | BF44: 1.2439 | BG44: 1.2965 | BH44: 1.2679
A45: 44 | B45: sp|O00232|PSD12_HUMAN | C45: sp|O00232|PSD12_HUMAN | D45: 7.5 | E45: 52.904 | F45: 456 | G45: 2 | H45: 2 | I45: 10 | J45: LAD-D;LAD-P-2;LCX-D-2;LCX-M;RCA-M;RCA-M-2;RCA-P;RCA-P-2 | K45: 0 | L45: 2102100 | M45: 1961300 | N45: 971790 | O45: 0 | P45: 2099100 | Q45: 1305900 | R45: 3107100 | S45: 2137200 | T45: 2266900 | U45: 1595139 | V45: 1734900 | W45: 0 | X45: 0 | Y45: 2004000 | Z45: 10258000 | AA45: 0 | AB45: 2250900 | AC45: 0 | AD45: 1996500 | AE45: 2896800 | AF45: 2114110 | AG45: -999 | AH45: NA | AI45: -999 | AJ45: 1.0718 | AK45: 2.1631 | AL45: -999 | AM45: -999 | AN45: 2.0182 | AO45: 2.0622 | AP45: 999 | AQ45: 999 | AR45: 4.5573 | AS45: -999 | AT45: -999 | AU45: -999 | AV45: -999 | AW45: 1.6074 | AX45: 1.7236 | AY45: 999 | AZ45: -999 | BA45: -999 | BB45: -999 | BC45: 1.4538 | BD45: 1.3706 | BE45: 0.9342 | BF45: 0.6892 | BG45: 0.9428 | BH45: 1.2779
A46: 45 | B46: sp|O00233|PSMD9_HUMAN | C46: sp|O00233|PSMD9_HUMAN | D46: 12.6 | E46: 24.682 | F46: 223 | G46: 2 | H46: 2 | I46: 13 | J46: LAD-D;LAD-D-2;LAD-P;LCX-D-2;LCX-M;LCX-P;LCX-P-2;LM;RCA-D-2;RCA-M-2;RCA-P-2 | K46: 3076100 | L46: 7046700 | M46: 5366000 | N46: 9903800 | O46: 1966500 | P46: 3916400 | Q46: 2675200 | R46: 1706800 | S46: 3100400 | T46: 4267900 | U46: 4302580 | V46: 3543200 | W46: 2820700 | X46: 3141000 | Y46: 0 | Z46: 6603200 | AA46: 1816900 | AB46: 4327600 | AC46: 3032300 | AD46: 2959100 | AE46: 3207200 | AF46: 3145120 | AG46: 0.4003 | AH46: 0.898 | AI46: 999 | AJ46: 1.3132 | AK46: 0.7115 | AL46: 0.5854 | AM46: 999 | AN46: 0.5418 | AO46: -999 | AP46: 3.3578 | AQ46: 3.6343 | AR46: 1.5258 | AS46: 0.5021 | AT46: 0.7351 | AU46: 0.4639 | AV46: 0.4198 | AW46: 1.464 | AX46: 1.6177 | AY46: 1.1518 | AZ46: 1.7766 | BA46: 1.0247 | BB46: 0.9455 | BC46: 0.5505 | BD46: 0.3999 | BE46: 0.9544 | BF46: 0.9226 | BG46: 0.7264 | BH46: 0.7515
A47: 46 | B47: sp|O00264|PGRC1_HUMAN | C47: sp|O00264|PGRC1_HUMAN | D47: 11.8 | E47: 21.671 | F47: 195 | G47: 3 | H47: 3 | I47: 61 | J47: LAD-D;LAD-D-2;LAD-M;LAD-M-2;LAD-P;LAD-P-2;LCX-D;LCX-D-2;LCX-M;LCX-M-2;LCX-P;LCX-P-2;LM;LM-2;RCA-D;RCA-D-2;RCA-M;RCA-M-2;RCA-P;RCA-P-2 | K47: 12057000 | L47: 22419000 | M47: 20358000 | N47: 15823000 | O47: 10105000 | P47: 18489000 | Q47: 21808000 | R47: 15199000 | S47: 22432000 | T47: 14391000 | U47: 17308100 | V47: 12270000 | W47: 13045000 | X47: 19402000 | Y47: 19813000 | Z47: 47697000 | AA47: 22367000 | AB47: 8441000 | AC47: 13582000 | AD47: 17973000 | AE47: 20269000 | AF47: 19485900 | AG47: 0.5819 | AH47: 0.6724 | AI47: 0.6584 | AJ47: 1.1012 | AK47: 1.4169 | AL47: 0.953 | AM47: 0.9793 | AN47: 1.2866 | AO47: 1.2522 | AP47: 4.7201 | AQ47: 2.1325 | AR47: 5.6506 | AS47: 0.5465 | AT47: 0.4634 | AU47: 1.2097 | AV47: 2.6498 | AW47: 0.8478 | AX47: 0.3871 | AY47: 1.0177 | AZ47: 0.8936 | BA47: 0.7557 | BB47: 0.6701 | BC47: 0.6776 | BD47: 1.0561 | BE47: 0.8012 | BF47: 0.8867 | BG47: 1.5588 | BH47: 1.4084
A48: 47 | B48: sp|O00299|CLIC1_HUMAN | C48: sp|O00299|CLIC1_HUMAN | D48: 81.3 | E48: 26.922 | F48: 241 | G48: 17 | H48: 17 | I48: 248 | J48: LAD-D;LAD-D-2;LAD-M;LAD-M-2;LAD-P;LAD-P-2;LCX-D;LCX-D-2;LCX-M;LCX-M-2;LCX-P;LCX-P-2;LM;LM-2;RCA-D;RCA-D-2;RCA-M;RCA-M-2;RCA-P;RCA-P-2 | K48: 161660000 | L48: 170010000 | M48: 242560000 | N48: 166570000 | O48: 128270000 | P48: 263720000 | Q48: 123900000 | R48: 146050000 | S48: 234460000 | T48: 218640000 | U48: 185584000 | V48: 196690000 | W48: 195410000 | X48: 236400000 | Y48: 171430000 | Z48: 197480000 | AA48: 199250000 | AB48: 99637000 | AC48: 149010000 | AD48: 115120000 | AE48: 211990000 | AF48: 177241700 | AG48: 1.1494 | AH48: 0.8266 | AI48: 1.1399 | AJ48: 0.7009 | AK48: 1.0207 | AL48: 0.9746 | AM48: 1.379 | AN48: 1.4562 | AO48: 1.0292 | AP48: 1.5396 | AQ48: 0.9911 | AR48: 1.982 | AS48: 0.4864 | AT48: 1.0353 | AU48: 0.7555 | AV48: 1.9998 | AW48: 2.1285 | AX48: 0.8042 | AY48: 1.2167 | AZ48: 1.0203 | BA48: 1.2944 | BB48: 0.7029 | BC48: 0.6229 | BD48: 0.668 | BE48: 0.491 | BF48: 0.543 | BG48: 1.0724 | BH48: 0.9696
A49: 48 | B49: sp|O00300|TR11B_HUMAN | C49: sp|O00300|TR11B_HUMAN | D49: 7.7 | E49: 46.026 | F49: 401 | G49: 2 | H49: 2 | I49: 4 | J49: LM;LM-2;RCA-P | K49: 3632500 | L49: 2119300 | M49: 0 | N49: 0 | O49: 0 | P49: 1775900 | Q49: 1313300 | R49: 0 | S49: 1662700 | T49: 2706600 | U49: 1321030 | V49: 6041500 | W49: 1354300 | X49: 0 | Y49: 1876400 | Z49: 0 | AA49: 0 | AB49: 0 | AC49: 0 | AD49: 0 | AE49: 0 | AF49: 927220 | AG49: 0.639 | AH49: 999 | AI49: 0.7218 | AJ49: 999 | AK49: 999 | AL49: NA | AM49: -999 | AN49: NA | AO49: 999 | AP49: NA | AQ49: NA | AR49: NA | AS49: -999 | AT49: -999 | AU49: -999 | AV49: NA | AW49: 1.3522 | AX49: -999 | AY49: 1.6632 | AZ49: NA | BA49: NA | BB49: NA | BC49: -999 | BD49: -999 | BE49: -999 | BF49: NA | BG49: 0.6143 | BH49: -999
A50: 49 | B50: sp|O00303|EIF3F_HUMAN | C50: sp|O00303|EIF3F_HUMAN | D50: 9.5 | E50: 37.563 | F50: 357 | G50: 2 | H50: 2 | I50: 16 | J50: LAD-D;LAD-D-2;LAD-M-2;LAD-P-2;LCX-D-2;LCX-M-2;LM-2;RCA-D-2;RCA-M;RCA-M-2;RCA-P;RCA-P-2 | K50: 1965700 | L50: 4676700 | M50: 3286800 | N50: 2615300 | O50: 0 | P50: 2692000 | Q50: 0 | R50: 0 | S50: 3571000 | T50: 822890 | U50: 1963039 | V50: 3623700 | W50: 4397800 | X50: 9450100 | Y50: 4084600 | Z50: 14026000 | AA50: 7648300 | AB50: 0 | AC50: 5373900 | AD50: 2157500 | AE50: 2972400 | AF50: 5373430 | AG50: 0.9404 | AH50: 0.4654 | AI50: 1.0767 | AJ50: 1.4229 | AK50: 1.7882 | AL50: 2.8752 | AM50: 2.3136 | AN50: 1.2568 | AO50: 1.5618 | AP50: 999 | AQ50: 1.8339 | AR50: 999 | AS50: -999 | AT50: NA | AU50: 2.8411 | AV50: 999 | AW50: 999 | AX50: NA | AY50: 1.8435 | AZ50: 999 | BA50: 2.4908 | BB50: 1.8079 | BC50: -999 | BD50: -999 | BE50: 0.6042 | BF50: 0.7258 | BG50: 4.3396 | BH50: 3.6121
A51: 50 | B51: sp|O00330|ODPX_HUMAN | C51: sp|O00330|ODPX_HUMAN | D51: 13.8 | E51: 54.122 | F51: 501 | G51: 6 | H51: 6 | I51: 11 | J51: LAD-D;LAD-D-2;LAD-P-2;LCX-P-2;RCA-M-2 | K51: 905990 | L51: 2519800 | M51: 755330 | N51: 0 | O51: 0 | P51: 743690 | Q51: 0 | R51: 0 | S51: 744820 | T51: 961680 | U51: 663131 | V51: 1075300 | W51: 2043300 | X51: 1321800 | Y51: 1587200 | Z51: 1215100 | AA51: 1784600 | AB51: 37313000 | AC51: 1529200 | AD51: 11041000 | AE51: 3348100 | AF51: 6225860 | AG51: 0.8109 | AH51: 1.5458 | AI51: 1.2874 | AJ51: 3.336 | AK51: 999 | AL51: 1.75 | AM51: 0.8328 | AN51: 999 | AO51: 999 | AP51: 999 | AQ51: 0.6809 | AR51: 0.0326 | AS51: -999 | AT51: NA | AU51: 2.3997 | AV51: 0.0478 | AW51: 999 | AX51: 999 | AY51: 1.1869 | AZ51: 999 | BA51: 0.1385 | BB51: 0.4567 | BC51: -999 | BD51: -999 | BE51: 14.8237 | BF51: 3.2977 | BG51: 0.7745 | BH51: 3.4815
A52: 51 | B52: sp|O00339|MATN2_HUMAN | C52: sp|O00339|MATN2_HUMAN | D52: 6.3 | E52: 106.84 | F52: 956 | G52: 4 | H52: 4 | I52: 10 | J52: LAD-D;LAD-M;LAD-M-2;LAD-P-2;LCX-M-2;LM;RCA-M-2;RCA-P-2 | K52: 4989100 | L52: 4140400 | M52: 5698500 | N52: 4891200 | O52: 0 | P52: 3703900 | Q52: 2002300 | R52: 2348500 | S52: 0 | T52: 2790100 | U52: 3056400 | V52: 2735100 | W52: 2193000 | X52: 6897900 | Y52: 4897000 | Z52: 3172400 | AA52: 7719800 | AB52: 2348200 | AC52: 3825800 | AD52: 4003600 | AE52: 2452700 | AF52: 4024550 | AG52: 0.5297 | AH52: 0.3179 | AI52: 0.4478 | AJ52: 0.7266 | AK52: 0.8465 | AL52: 1.2105 | AM52: 1.4086 | AN52: 1.1651 | AO52: 1.0012 | AP52: 999 | AQ52: 0.4109 | AR52: 1.351 | AS52: -999 | AT52: -999 | AU52: 2.0842 | AV52: 3.2875 | AW52: 1.8498 | AX52: 1.1728 | AY52: 0.5482 | AZ52: 1.629 | BA52: 0.9556 | BB52: 1.5598 | BC52: 999 | BD52: 0.8417 | BE52: 999 | BF52: 1.6323 | BG52: -999 | BH52: 0.8791
A53: 52 | B53: sp|O00391|QSOX1_HUMAN | C53: sp|O00391|QSOX1_HUMAN | D53: 24.8 | E53: 82.577 | F53: 747 | G53: 13 | H53: 13 | I53: 46 | J53: LAD-D;LAD-M;LAD-M-2;LAD-P;LCX-D;LCX-M;LCX-M-2;LCX-P;LM;LM-2;RCA-D;RCA-M | K53: 52018000 | L53: 29928000 | M53: 36195000 | N53: 23173000 | O53: 30148000 | P53: 75152000 | Q53: 28407000 | R53: 83880000 | S53: 107980000 | T53: 23917000 | U53: 49079800 | V53: 50607000 | W53: 7048500 | X53: 17735000 | Y53: 20116000 | Z53: 12653000 | AA53: 25665000 | AB53: 13486000 | AC53: 10574000 | AD53: 6075600 | AE53: 10442000 | AF53: 17440210 | AG53: 0.2355 | AH53: 0.3974 | AI53: 0.3504 | AJ53: 0.8269 | AK53: 1.2915 | AL53: 0.49 | AM53: 0.8816 | AN53: 1.5619 | AO53: 0.8681 | AP53: 0.4197 | AQ53: 0.493 | AR53: 0.9382 | AS53: 0.4012 | AT53: 1.0613 | AU53: 0.3415 | AV53: 1.9031 | AW53: 2.6455 | AX53: 0.4747 | AY53: 0.9729 | AZ53: 0.1261 | BA53: 1.7404 | BB53: 1.0126 | BC53: 0.7768 | BD53: 3.5071 | BE53: 0.0563 | BF53: 0.5818 | BG53: 4.5148 | BH53: 0.4366
A54: 53 | B54: sp|O00410|IPO5_HUMAN | C54: sp|O00410|IPO5_HUMAN | D54: 8.5 | E54: 123.63 | F54: 1097 | G54: 5 | H54: 5 | I54: 9 | J54: LAD-D;LAD-P-2;LCX-M;LCX-M-2;LM;LM-2;RCA-P-2 | K54: 8887700 | L54: 3770300 | M54: 6873000 | N54: 5051800 | O54: 2450500 | P54: 5809100 | Q54: 3716800 | R54: 1975600 | S54: 5563900 | T54: 3921500 | U54: 4802020 | V54: 6956300 | W54: 7813700 | X54: 6332100 | Y54: 3817200 | Z54: 6310700 | AA54: 6313300 | AB54: 3772900 | AC54: 3699900 | AD54: 3755800 | AE54: 2338400 | AF54: 5111030 | AG54: 2.0724 | AH54: 1.234 | AI54: 2.047 | AJ54: 0.5486 | AK54: 0.7463 | AL54: 0.9213 | AM54: 1.6588 | AN54: 1.3605 | AO54: 0.7556 | AP54: 2.5753 | AQ54: 0.9996 | AR54: 1.6726 | AS54: 0.4218 | AT54: 0.6593 | AU54: 1.0868 | AV54: 1.6733 | AW54: 1.5629 | AX54: 1.0151 | AY54: 0.7827 | AZ54: 1.8728 | BA54: 0.9851 | BB54: 1.5822 | BC54: 0.3551 | BD54: 0.5038 | BE54: 0.675 | BF54: 1.6061 | BG54: 1.4188 | BH54: 0.5963
A55: 54 | B55: sp|O00429|DNM1L_HUMAN | C55: sp|O00429|DNM1L_HUMAN | D55: 19.7 | E55: 81.876 | F55: 736 | G55: 8 | H55: 8 | I55: 27 | J55: LAD-D;LAD-M;LAD-P-2;LCX-D;LCX-D-2;LCX-M;LCX-M-2;LCX-P-2;LM;LM-2;RCA-D-2;RCA-M-2;RCA-P;RCA-P-2 | K55: 2454300 | L55: 5637900 | M55: 4423700 | N55: 0 | O55: 0 | P55: 2468800 | Q55: 0 | R55: 0 | S55: 1326000 | T55: 4385200 | U55: 2069590 | V55: 3368100 | W55: 1944500 | X55: 3896100 | Y55: 1096400 | Z55: 0 | AA55: 7837200 | AB55: 11725000 | AC55: 4360100 | AD55: 8660000 | AE55: 3362700 | AF55: 4625010 | AG55: 0.3449 | AH55: 0.4991 | AI55: 1.7735 | AJ55: 1.2745 | AK55: 999 | AL55: 0.8807 | AM55: 3.5535 | AN55: 999 | AO55: 999 | AP55: NA | AQ55: -999 | AR55: -999 | AS55: -999 | AT55: NA | AU55: 3.1745 | AV55: 0.6684 | AW55: 999 | AX55: 999 | AY55: 1.3723 | AZ55: 999 | BA55: 0.5035 | BB55: 1.2966 | BC55: -999 | BD55: -999 | BE55: 6.5309 | BF55: 2.5753 | BG55: 0.3024 | BH55: 0.7668
A56: 55 | B56: sp|O00442|RTCA_HUMAN | C56: sp|O00442|RTCA_HUMAN | D56: 8.2 | E56: 39.336 | F56: 366 | G56: 2 | H56: 2 | I56: 8 | J56: LAD-M;LCX-D-2;LCX-M;LCX-M-2;LCX-P-2;LM;RCA-M;RCA-P-2 | K56: 1728700 | L56: 964930 | M56: 1914000 | N56: 0 | O56: 0 | P56: 1578800 | Q56: 511090 | R56: 0 | S56: 1454500 | T56: 1154600 | U56: 930662 | V56: 826730 | W56: 0 | X56: 873060 | Y56: 0 | Z56: 1831100 | AA56: 1310000 | AB56: 1680300 | AC56: 0 | AD56: 1024100 | AE56: 993930 | AF56: 853922 | AG56: -999 | AH56: -999 | AI56: NA | AJ56: 0.5041 | AK56: 999 | AL56: 0.4561 | AM56: 999 | AN56: 999 | AO56: NA | AP56: 999 | AQ56: 1.3978 | AR56: 1.0897 | AS56: -999 | AT56: -999 | AU56: 0.8297 | AV56: 0.7796 | AW56: 3.0891 | AX56: 3.2877 | AY56: 0.4782 | AZ56: NA | BA56: -999 | BB56: -999 | BC56: -999 | BD56: -999 | BE56: 0.7041 | BF56: 1.0304 | BG56: 1.2597 | BH56: 0.8608
A57: 56 | B57: sp|O00468|AGRIN_HUMAN | C57: sp|O00468|AGRIN_HUMAN | D57: 6.3 | E57: 217.32 | F57: 2068 | G57: 10 | H57: 10 | I57: 26 | J57: LAD-D;LAD-M;LAD-M-2;LAD-P-2;LCX-D-2;LCX-M-2;LCX-P;LCX-P-2;LM;LM-2;RCA-D-2;RCA-P-2 | K57: 6855400 | L57: 8578100 | M57: 20340000 | N57: 6300900 | O57: 0 | P57: 12160000 | Q57: 3163800 | R57: 0 | S57: 15492000 | T57: 7269900 | U57: 8016010 | V57: 9203800 | W57: 9633100 | X57: 12703000 | Y57: 13010000 | Z57: 3855100 | AA57: 13774000 | AB57: 6191700 | AC57: 14488000 | AD57: 7676300 | AE57: 7798600 | AF57: 9833360 | AG57: 1.123 | AH57: 0.7583 | AI57: 0.7404 | AJ57: 0.4217 | AK57: 1.3614 | AL57: 0.6245 | AM57: 0.9764 | AN57: 3.2281 | AO57: 2.0648 | AP57: 999 | AQ57: 0.2799 | AR57: 0.6226 | AS57: -999 | AT57: -999 | AU57: 1.1327 | AV57: 2.2246 | AW57: 3.8435 | AX57: 1.957 | AY57: 1.3426 | AZ57: 999 | BA57: 1.8874 | BB57: 1.8578 | BC57: -999 | BD57: -999 | BE57: 0.4955 | BF57: 0.9843 | BG57: 2.131 | BH57: 1.0727
A58: 57 | B58: sp|O00483|NDUA4_HUMAN | C58: sp|O00483|NDUA4_HUMAN | D58: 46.9 | E58: 9.3697 | F58: 81 | G58: 5 | H58: 5 | I58: 25 | J58: LAD-D;LAD-D-2;LAD-P-2;LCX-D-2;LCX-P;LCX-P-2;LM;LM-2;RCA-M-2;RCA-P;RCA-P-2 | K58: 5906700 | L58: 18291000 | M58: 1587300 | N58: 0 | O58: 2122300 | P58: 2761700 | Q58: 32089000 | R58: 2673200 | S58: 4017300 | T58: 2269800 | U58: 7171830 | V58: 3137700 | W58: 2801700 | X58: 2295500 | Y58: 4310100 | Z58: 4555100 | AA58: 4880000 | AB58: 428060000 | AC58: 5118500 | AD58: 166330000 | AE58: 32885000 | AF58: 65437360 | AG58: 0.1532 | AH58: 1.2205 | AI58: 0.65 | AJ58: 11.5233 | AK58: 999 | AL58: 1.4462 | AM58: 0.5326 | AN58: 999 | AO58: 999 | AP58: 2.1463 | AQ58: 0.9334 | AR58: 0.0106 | AS58: 0.7685 | AT58: 0.0661 | AU58: 1.767 | AV58: 0.0114 | AW58: 0.0861 | AX58: 13.3398 | AY58: 0.5312 | AZ58: 1.9147 | BA58: 0.0308 | BB58: 0.1556 | BC58: 0.6654 | BD58: 1.1777 | BE58: 41.4034 | BF58: 5.0579 | BG58: 1.7699 | BH58: 14.4881
A59: 58 | B59: sp|O00487|PSDE_HUMAN | C59: sp|O00487|PSDE_HUMAN | D59: 4.2 | E59: 34.577 | F59: 310 | G59: 1 | H59: 1 | I59: 10 | J59: LAD-M;LAD-M-2;LAD-P;LAD-P-2;LCX-D-2;LCX-M;LCX-P;LM-2;RCA-M-2;RCA-P-2 | K59: 0 | L59: 0 | M59: 0 | N59: 0 | O59: 0 | P59: 0 | Q59: 0 | R59: 0 | S59: 0 | T59: 0 | U59: 0 | V59: 0 | W59: 0 | X59: 0 | Y59: 0 | Z59: 0 | AA59: 0 | AB59: 0 | AC59: 0 | AD59: 0 | AE59: 4413200 | AF59: 441320 | AG59: NA | AH59: NA | AI59: NA | AJ59: NA | AK59: NA | AL59: NA | AM59: NA | AN59: NA | AO59: NA | AP59: NA | AQ59: NA | AR59: NA | AS59: NA | AT59: NA | AU59: NA | AV59: NA | AW59: NA | AX59: NA | AY59: NA | AZ59: NA | BA59: NA | BB59: -999 | BC59: NA | BD59: NA | BE59: NA | BF59: -999 | BG59: NA | BH59: 999
A60: 59 | B60: sp|O00533|NCHL1_HUMAN | C60: sp|O00533|NCHL1_HUMAN | D60: 1.1 | E60: 135.07 | F60: 1208 | G60: 1 | H60: 1 | I60: 2 | J60: LAD-P;LM | K60: 1183500 | L60: 0 | M60: 0 | N60: 1854200 | O60: 0 | P60: 0 | Q60: 0 | R60: 0 | S60: 0 | T60: 0 | U60: 303770 | V60: 0 | W60: 0 | X60: 0 | Y60: 0 | Z60: 0 | AA60: 0 | AB60: 0 | AC60: 0 | AD60: 0 | AE60: 0 | AF60: 0 | AG60: NA | AH60: NA | AI60: NA | AJ60: NA | AK60: -999 | AL60: NA | AM60: NA | AN60: -999 | AO60: -999 | AP60: NA | AQ60: NA | AR60: NA | AS60: NA | AT60: NA | AU60: NA | AV60: NA | AW60: NA | AX60: NA | AY60: -999 | AZ60: NA | BA60: NA | BB60: NA | BC60: NA | BD60: NA | BE60: NA | BF60: NA | BG60: NA | BH60: NA
A61: 60 | B61: sp|O00534|VMA5A_HUMAN | C61: sp|O00534|VMA5A_HUMAN | D61: 5.7 | E61: 86.488 | F61: 786 | G61: 2 | H61: 2 | I61: 2 | J61: LCX-M;RCA-M | K61: 2085200 | L61: 0 | M61: 0 | N61: 0 | O61: 0 | P61: 1629100 | Q61: 0 | R61: 0 | S61: 0 | T61: 0 | U61: 371430 | V61: 0 | W61: 0 | X61: 3194000 | Y61: 0 | Z61: 0 | AA61: 0 | AB61: 0 | AC61: 0 | AD61: 0 | AE61: 0 | AF61: 319400 | AG61: NA | AH61: -999 | AI61: NA | AJ61: NA | AK61: NA | AL61: 999 | AM61: 999 | AN61: NA | AO61: NA | AP61: NA | AQ61: NA | AR61: NA | AS61: -999 | AT61: NA | AU61: -999 | AV61: NA | AW61: 999 | AX61: NA | AY61: -999 | AZ61: NA | BA61: NA | BB61: NA | BC61: NA | BD61: NA | BE61: NA | BF61: NA | BG61: NA | BH61: NA
A62: 61 | B62: sp|O00560|SDCB1_HUMAN | C62: sp|O00560|SDCB1_HUMAN | D62: 17.1 | E62: 32.444 | F62: 298 | G62: 3 | H62: 3 | I62: 11 | J62: LAD-M;LAD-P-2;LCX-M;LCX-M-2;LM;LM-2;RCA-D-2;RCA-M-2;RCA-P;RCA-P-2 | K62: 1769300 | L62: 1664700 | M62: 3159200 | N62: 0 | O62: 0 | P62: 5776400 | Q62: 0 | R62: 0 | S62: 3521700 | T62: 3072800 | U62: 1896410 | V62: 3161200 | W62: 2766200 | X62: 2549200 | Y62: 1762300 | Z62: 3213000 | AA62: 4786100 | AB62: 2383800 | AC62: 2623900 | AD62: 3062600 | AE62: 2955000 | AF62: 2926330 | AG62: 1.6617 | AH62: 1.0851 | AI62: 1.5697 | AJ62: 0.5269 | AK62: 999 | AL62: 0.8069 | AM62: 1.4465 | AN62: 999 | AO62: 999 | AP62: 999 | AQ62: 0.6713 | AR62: 1.3478 | AS62: -999 | AT62: NA | AU62: 0.8286 | AV62: 2.0078 | AW62: 999 | AX62: 999 | AY62: 1.7867 | AZ62: 999 | BA62: 0.8568 | BB62: 0.888 | BC62: -999 | BD62: -999 | BE62: 0.8696 | BF62: 1.0364 | BG62: 1.1461 | BH62: 0.9617
A63: 62 | B63: sp|O00567|NOP56_HUMAN | C63: sp|O00567|NOP56_HUMAN | D63: 5.2 | E63: 66.049 | F63: 594 | G63: 2 | H63: 2 | I63: 2 | J63: LCX-M-2;LCX-P-2 | K63: 0 | L63: 0 | M63: 2405000 | N63: 0 | O63: 0 | P63: 3049000 | Q63: 0 | R63: 0 | S63: 0 | T63: 0 | U63: 545400 | V63: 0 | W63: 0 | X63: 1917900 | Y63: 0 | Z63: 0 | AA63: 0 | AB63: 112820000 | AC63: 3645300 | AD63: 0 | AE63: 3584500 | AF63: 12196770 | AG63: NA | AH63: -999 | AI63: NA | AJ63: -999 | AK63: NA | AL63: 0.7975 | AM63: 999 | AN63: 999 | AO63: NA | AP63: NA | AQ63: NA | AR63: -999 | AS63: -999 | AT63: NA | AU63: -999 | AV63: -999 | AW63: 999 | AX63: 999 | AY63: NA | AZ63: 999 | BA63: 999 | BB63: 1.017 | BC63: NA | BD63: NA | BE63: NA | BF63: -999 | BG63: NA | BH63: 999
A64: 63 | B64: sp|O00571|DDX3X_HUMAN | C64: sp|O00571|DDX3X_HUMAN | D64: 16.2 | E64: 73.243 | F64: 662 | G64: 7;5;1 | H64: 7 | I64: 39 | J64: LAD-D;LAD-D-2;LAD-M;LAD-M-2;LAD-P;LAD-P-2;LCX-D;LCX-D-2;LCX-M;LCX-M-2;LCX-P;LCX-P-2;LM-2;RCA-D-2;RCA-M;RCA-M-2;RCA-P;RCA-P-2 | K64: 9367000 | L64: 18702000 | M64: 21053000 | N64: 16678000 | O64: 9078000 | P64: 10702000 | Q64: 5950600 | R64: 3278400 | S64: 13634000 | T64: 19380000 | U64: 12782300 | V64: 13988000 | W64: 19946000 | X64: 14021000 | Y64: 10784000 | Z64: 14981000 | AA64: 18157000 | AB64: 9669100 | AC64: 22830000 | AD64: 13533000 | AE64: 21513000 | AF64: 15942210 | AG64: 1.0665 | AH64: 1.4226 | AI64: 1.8496 | AJ64: 0.8883 | AK64: 1.1214 | AL64: 0.666 | AM64: 1.3002 | AN64: 1.2623 | AO64: 0.6466 | AP64: 1.6503 | AQ64: 0.8251 | AR64: 1.5494 | AS64: 0.8483 | AT64: 1.5256 | AU64: 1.6966 | AV64: 1.8778 | AW64: 1.7985 | AX64: 1.6249 | AY64: 1.4933 | AZ64: 6.9638 | BA64: 1.687 | BB64: 1.0612 | BC64: 0.2405 | BD64: 0.1692 | BE64: 0.9926 | BF64: 0.6291 | BG64: 0.7035 | BH64: 1.1101
A65: 64 | B65: sp|O00585|CCL21_HUMAN | C65: sp|O00585|CCL21_HUMAN | D65: 13.4 | E65: 14.646 | F65: 134 | G65: 1 | H65: 1 | I65: 6 | J65: LAD-M;LAD-P;LCX-D;RCA-M | K65: 439040 | L65: 0 | M65: 6086700 | N65: 2621900 | O65: 7930700 | P65: 0 | Q65: 0 | R65: 0 | S65: 3229700 | T65: 0 | U65: 2030804 | V65: 0 | W65: 0 | X65: 1411900 | Y65: 0 | Z65: 521980 | AA65: 0 | AB65: 1377500 | AC65: 0 | AD65: 0 | AE65: 0 | AF65: 331138 | AG65: NA | AH65: -999 | AI65: NA | AJ65: -999 | AK65: -999 | AL65: 0.232 | AM65: 999 | AN65: 2.3215 | AO65: -999 | AP65: 0.0658 | AQ65: 999 | AR65: 0.3789 | AS65: 999 | AT65: 999 | AU65: NA | AV65: -999 | AW65: NA | AX65: 999 | AY65: -999 | AZ65: NA | BA65: NA | BB65: NA | BC65: -999 | BD65: NA | BE65: -999 | BF65: NA | BG65: 999 | BH65: NA
A66: 65 | B66: sp|O00629|IMA3_HUMAN | C66: sp|O00629|IMA3_HUMAN | D66: 8.6 | E66: 57.886 | F66: 521 | G66: 2 | H66: 2 | I66: 21 | J66: LAD-D;LAD-D-2;LAD-M;LAD-M-2;LAD-P-2;LCX-D-2;LCX-M;LCX-M-2;LCX-P-2;RCA-D-2;RCA-M;RCA-M-2;RCA-P;RCA-P-2 | K66: 0 | L66: 7372900 | M66: 3098000 | N66: 0 | O66: 0 | P66: 7131400 | Q66: 0 | R66: 3299400 | S66: 1374800 | T66: 1462500 | U66: 2373900 | V66: 9031500 | W66: 6019700 | X66: 5139800 | Y66: 7094800 | Z66: 10487000 | AA66: 15976000 | AB66: 7188900 | AC66: 7218900 | AD66: 5397300 | AE66: 4496300 | AF66: 7805020 | AG66: 0.8165 | AH66: 1.1712 | AI66: 0.8485 | AJ66: 2.3799 | AK66: 999 | AL66: 1.6591 | AM66: 0.7244 | AN66: 999 | AO66: 999 | AP66: 999 | AQ66: 0.6564 | AR66: 1.4588 | AS66: -999 | AT66: NA | AU66: 2.2402 | AV66: 2.2223 | AW66: 999 | AX66: 999 | AY66: 999 | AZ66: 2.1879 | BA66: 1.3375 | BB66: 1.6055 | BC66: 2.3999 | BD66: 2.256 | BE66: 3.9259 | BF66: 1.2004 | BG66: 0.94 | BH66: 3.0744
A67: 66 | B67: sp|O00748|EST2_HUMAN | C67: sp|O00748|EST2_HUMAN | D67: 10.6 | E67: 61.806 | F67: 559 | G67: 3 | H67: 3 | I67: 4 | J67: LAD-D;LCX-P-2;RCA-M-2 | K67: 0 | L67: 9805300 | M67: 6454500 | N67: 0 | O67: 0 | P67: 2388900 | Q67: 0 | R67: 0 | S67: 3247400 | T67: 3682400 | U67: =AVERAGE(K67:T67) -> 2557850 | V67: 2338200 | W67: 0 | X67: 3603600 | Y67: 1934900 | Z67: 4261300 | AA67: 3839500 | AB67: 11659000 | AC67: 3621900 | AD67: 10185000 | AE67: 2980800 | AF67: =AVERAGE(V67:AE67) -> 4442420 | AG67: -999 | AH67: -999 | AI67: -999 | AJ67: 1.5191 | AK67: 999 | AL67: 0.5583 | AM67: 1.8624 | AN67: 999 | AO67: 999 | AP67: 999 | AQ67: 1.1099 | AR67: 0.3655 | AS67: -999 | AT67: NA | AU67: 1.6072 | AV67: 0.3293 | AW67: 999 | AX67: 999 | AY67: 999 | AZ67: 999 | BA67: 0.3556 | BB67: 1.2151 | BC67: -999 | BD67: -999 | BE67: 3.1364 | BF67: 3.4169 | BG67: 0.8819 | BH67: 0.8095
A68: 67 | B68: sp|O00763|ACACB_HUMAN | C68: sp|O00763|ACACB_HUMAN | D68: 31.7 | E68: 276.54 | F68: 2458 | G68: 48 | H68: 48 | I68: 189 | J68: LAD-D;LAD-D-2;LAD-M;LAD-M-2;LAD-P-2;LCX-D-2;LCX-M;LCX-M-2;LCX-P;LM-2;RCA-D;RCA-D-2;RCA-M;RCA-M-2;RCA-P-2 | K68: 11235000 | L68: 123940000 | M68: 33743000 | N68: 6272100 | O68: 7143300 | P68: 90339000 | Q68: 26645000 | R68: 3118400 | S68: 76214000 | T68: 22164000 | U68: 40081380 | V68: 44690000 | W68: 104610000 | X68: 147600000 | Y68: 132020000 | Z68: 592520000 | AA68: 104670000 | AB68: 20314000 | AC68: 76788000 | AD68: 177630000 | AE68: 172080000 | AF68: 157292200 | AG68: 0.844 | AH68: 0.7087 | AI68: 0.7924 | AJ68: 3.6731 | AK68: 19.7605 | AL68: 4.3742 | AM68: 1.118 | AN68: 5.3799 | AO68: 21.0488 | AP68: 82.9477 | AQ68: 5.6608 | AR68: 29.1681 | AS68: 0.0791 | AT68: 0.2681 | AU68: 1.1586 | AV68: 5.1526 | AW68: 3.3905 | AX68: 0.7624 | AY68: 3.9777 | AZ68: 24.6242 | BA68: 0.4323 | BB68: 0.4462 | BC68: 0.0409 | BD68: 0.1407 | BE68: 2.3307 | BF68: 1.0323 | BG68: 3.4386 | BH68: 7.7639
A69: 68 | B69: sp|O00764|PDXK_HUMAN | C69: sp|O00764|PDXK_HUMAN | D69: 49 | E69: 35.102 | F69: 312 | G69: 9 | H69: 9 | I69: 108 | J69: LAD-D;LAD-D-2;LAD-M;LAD-M-2;LAD-P-2;LCX-D;LCX-D-2;LCX-M;LCX-M-2;LCX-P;LCX-P-2;LM;LM-2;RCA-D;RCA-D-2;RCA-M;RCA-M-2;RCA-P;RCA-P-2 | K69: 39653000 | L69: 39975000 | M69: 48723000 | N69: 2749300 | O69: 27784000 | P69: 56551000 | Q69: 13423000 | R69: 21412000 | S69: 55519000 | T69: 40692000 | U69: 34648130 | V69: 43416000 | W69: 48744000 | X69: 43818000 | Y69: 34746000 | Z69: 78112000 | AA69: 40096000 | AB69: 18056000 | AC69: 35273000 | AD69: 41169000 | AE69: 48286000 | AF69: 43171600 | AG69: 1.2194 | AH69: 1.1124 | AI69: 1.4029 | AJ69: 0.8205 | AK69: 14.5401 | AL69: 0.8993 | AM69: 1.2611 | AN69: 17.722 | AO69: 12.6381 | AP69: 2.8114 | AQ69: 1.9481 | AR69: 4.3261 | AS69: 0.4913 | AT69: 2.0699 | AU69: 0.709 | AV69: 2.2206 | AW69: 4.213 | AX69: 1.3452 | AY69: 1.0949 | AZ69: 1.6473 | BA69: 0.8568 | BB69: 0.7305 | BC69: 0.3857 | BD69: 0.5262 | BE69: 0.7415 | BF69: 0.8526 | BG69: 1.3644 | BH69: 1.1866
A70: 69 | B70: sp|O14498|ISLR_HUMAN | C70: sp|O14498|ISLR_HUMAN | D70: 15.2 | E70: 45.997 | F70: 428 | G70: 3 | H70: 3 | I70: 11 | J70: LAD-D-2;LAD-M-2;LAD-P;LAD-P-2;LCX-M;LM;LM-2;RCA-P;RCA-P-2 | K70: 3973800 | L70: 0 | M70: 2324300 | N70: 0 | O70: 0 | P70: 3324200 | Q70: 0 | R70: 0 | S70: 1746700 | T70: 3822400 | U70: 1519140 | V70: 5625100 | W70: 3571500 | X70: 5010100 | Y70: 3223100 | Z70: 2796400 | AA70: 2360800 | AB70: 1229300 | AC70: 2298800 | AD70: 0 | AE70: 2970300 | AF70: 2908540 | AG70: 999 | AH70: 0.7129 | AI70: 1.1081 | AJ70: -999 | AK70: NA | AL70: 2.1555 | AM70: 1.5544 | AN70: 999 | AO70: 999 | AP70: 999 | AQ70: 1.1845 | AR70: 2.2748 | AS70: -999 | AT70: NA | AU70: 0.7102 | AV70: 1.9204 | AW70: 999 | AX70: 999 | AY70: 1.4155 | AZ70: 999 | BA70: 999 | BB70: 0.7739 | BC70: -999 | BD70: -999 | BE70: -999 | BF70: -999 | BG70: 0.457 | BH70: 0.7771
A71: 70 | B71: sp|O14522|PTPRT_HUMAN | C71: sp|O14522|PTPRT_HUMAN | D71: 0.6 | E71: 162.13 | F71: 1441 | G71: 1 | H71: 1 | I71: 6 | J71: LAD-D;LCX-M;LM;LM-2;RCA-P | K71: 3866500 | L71: 0 | M71: 1660500 | N71: 0 | O71: 0 | P71: 2610200 | Q71: 0 | R71: 0 | S71: 2373300 | T71: 4788600 | U71: 1529910 | V71: 2847200 | W71: 1063100 | X71: 1812100 | Y71: 1494400 | Z71: 935590 | AA71: 0 | AB71: 0 | AC71: 1463100 | AD71: 836200 | AE71: 0 | AF71: 1045169 | AG71: 999 | AH71: 0.5867 | AI71: 0.7114 | AJ71: -999 | AK71: NA | AL71: 1.0913 | AM71: 1.2126 | AN71: 999 | AO71: 999 | AP71: 999 | AQ71: 999 | AR71: 999 | AS71: -999 | AT71: NA | AU71: -999 | AV71: NA | AW71: 999 | AX71: NA | AY71: 0.7364 | AZ71: 999 | BA71: 1.7497 | BB71: 999 | BC71: -999 | BD71: -999 | BE71: 0.3523 | BF71: 999 | BG71: 0.4956 | BH71: -999
A72: 71 | B72: sp|O14558|HSPB6_HUMAN | C72: sp|O14558|HSPB6_HUMAN | D72: 93.8 | E72: 17.135 | F72: 160 | G72: 10 | H72: 10 | I72: 353 | J72: LAD-D;LAD-D-2;LAD-M;LAD-M-2;LAD-P;LAD-P-2;LCX-D;LCX-D-2;LCX-M;LCX-M-2;LCX-P;LCX-P-2;LM;LM-2;RCA-D;RCA-D-2;RCA-M;RCA-M-2;RCA-P;RCA-P-2 | K72: 367180000 | L72: 594360000 | M72: 422630000 | N72: 476450000 | O72: 347400000 | P72: 319560000 | Q72: 453280000 | R72: 348220000 | S72: 419290000 | T72: 294050000 | U72: 404242000 | V72: 208430000 | W72: 307550000 | X72: 431350000 | Y72: 446710000 | Z72: 372490000 | AA72: 557340000 | AB72: 835920000 | AC72: 426020000 | AD72: 689640000 | AE72: 349090000 | AF72: 462454000 | AG72: 0.5174 | AH72: 0.713 | AI72: 0.6885 | AJ72: 1.4063 | AK72: 1.2475 | AL72: 1.0206 | AM72: 0.9656 | AN72: 0.887 | AO72: 0.9376 | AP72: 1.0722 | AQ72: 0.6683 | AR72: 0.4456 | AS72: 1.0871 | AT72: 0.7664 | AU72: 1.7441 | AV72: 0.6667 | AW72: 0.705 | AX72: 1.8442 | AY72: 0.5677 | AZ72: 1.2234 | BA72: 0.6177 | BB72: 1.2204 | BC72: 0.8305 | BD72: 1.1842 | BE72: 1.6448 | BF72: 1.9755 | BG72: 1.4259 | BH72: 1.1872
A73: 72 | B73: sp|O14561|ACPM_HUMAN | C73: sp|O14561|ACPM_HUMAN | D73: 23.7 | E73: 17.417 | F73: 156 | G73: 3 | H73: 3 | I73: 60 | J73: LAD-D;LAD-M-2;LAD-P-2;LCX-D-2;LCX-M;LCX-M-2;LCX-P-2;LM;LM-2;RCA-D-2;RCA-M-2;RCA-P;RCA-P-2 | K73: 13529000 | L73: 20663000 | M73: 0 | N73: 0 | O73: 6784300 | P73: 9816100 | Q73: 7815400 | R73: 6066700 | S73: 6041500 | T73: 10709000 | U73: 8142500 | V73: 12030000 | W73: 7805400 | X73: 16340000 | Y73: 13136000 | Z73: 9771500 | AA73: 17934000 | AB73: 88204000 | AC73: 14813000 | AD73: 52499000 | AE73: 27199000 | AF73: 25973190 | AG73: 0.3777 | AH73: 0.4777 | AI73: 0.5942 | AJ73: 999 | AK73: 999 | AL73: 999 | AM73: 1.2439 | AN73: NA | AO73: 999 | AP73: 1.4403 | AQ73: 0.5449 | AR73: 0.1108 | AS73: 0.6911 | AT73: 0.8681 | AU73: 1.827 | AV73: 0.2033 | AW73: 1.256 | AX73: 11.2859 | AY73: 0.8892 | AZ73: 2.4417 | BA73: 0.2822 | BB73: 0.5446 | BC73: 1.0042 | BD73: 0.5665 | BE73: 8.6897 | BF73: 1.9302 | BG73: 0.5642 | BH73: 2.5398
A74: 73 | B74: sp|O14579|COPE_HUMAN | C74: sp|O14579|COPE_HUMAN | D74: 28.9 | E74: 34.482 | F74: 308 | G74: 4 | H74: 4 | I74: 12 | J74: LAD-M-2;LCX-M-2;RCA-D;RCA-M-2;RCA-P-2 | K74: 18931000 | L74: 27311000 | M74: 25317000 | N74: 0 | O74: 0 | P74: 15407000 | Q74: 27561000 | R74: 23257000 | S74: 33326000 | T74: 26529000 | U74: 19763900 | V74: 19166000 | W74: 0 | X74: 38709000 | Y74: 23054000 | Z74: 30087000 | AA74: 33609000 | AB74: 0 | AC74: 18299000 | AD74: 23100000 | AE74: 49542000 | AF74: 23556600 | AG74: -999 | AH74: -999 | AI74: -999 | AJ74: 1.0788 | AK74: 999 | AL74: 1.529 | AM74: 1.6791 | AN74: 999 | AO74: 999 | AP74: 999 | AQ74: 0.8952 | AR74: 999 | AS74: -999 | AT74: -999 | AU74: 2.1814 | AV74: 999 | AW74: 0.559 | AX74: -999 | AY74: 1.0124 | AZ74: 0.7868 | BA74: 0.7922 | BB74: 0.3694 | BC74: 0.6979 | BD74: 0.8767 | BE74: 0.6932 | BF74: 0.4663 | BG74: 1.2562 | BH74: 1.8675
A75: 74 | B75: sp|O14618|CCS_HUMAN | C75: sp|O14618|CCS_HUMAN | D75: 5.5 | E75: 29.04 | F75: 274 | G75: 2 | H75: 2 | I75: 3 | J75: LCX-M;LM | K75: 2381600 | L75: 0 | M75: 0 | N75: 0 | O75: 0 | P75: 1771900 | Q75: 0 | R75: 0 | S75: 0 | T75: 0 | U75: 415350 | V75: 0 | W75: 1828000 | X75: 0 | Y75: 0 | Z75: 0 | AA75: 0 | AB75: 0 | AC75: 0 | AD75: 0 | AE75: 1377300 | AF75: 320530 | AG75: 999 | AH75: 999 | AI75: 999 | AJ75: NA | AK75: NA | AL75: NA | AM75: NA | AN75: NA | AO75: NA | AP75: NA | AQ75: NA | AR75: NA | AS75: -999 | AT75: NA | AU75: -999 | AV75: NA | AW75: 999 | AX75: NA | AY75: -999 | AZ75: NA | BA75: NA | BB75: -999 | BC75: NA | BD75: NA | BE75: NA | BF75: -999 | BG75: NA | BH75: 999
A76: 75 | B76: sp|O14639|ABLM1_HUMAN | C76: sp|O14639|ABLM1_HUMAN | D76: 25.8 | E76: 87.687 | F76: 778 | G76: 13 | H76: 13 | I76: 31 | J76: LAD-M-2;LAD-P-2;LCX-D-2;LCX-M-2;LCX-P-2;LM-2;RCA-M-2;RCA-P-2 | K76: 5761700 | L76: 3916300 | M76: 0 | N76: 387600 | O76: 0 | P76: 1127400 | Q76: 1406300 | R76: 841960 | S76: 1396400 | T76: 663810 | U76: 1550147 | V76: 3406400 | W76: 3396400 | X76: 2672500 | Y76: 4048600 | Z76: 6935000 | AA76: 16622000 | AB76: 173560000 | AC76: 1960500 | AD76: 90730000 | AE76: 16884000 | AF76: 32021540 | AG76: 0.8672 | AH76: 1.2709 | AI76: 0.8389 | AJ76: 999 | AK76: 10.104 | AL76: 999 | AM76: 0.6601 | AN76: -999 | AO76: 10.4453 | AP76: 999 | AQ76: 0.4172 | AR76: 0.04 | AS76: -999 | AT76: -999 | AU76: 14.7437 | AV76: 0.0958 | AW76: 0.8017 | AX76: 123.4161 | AY76: 0.5912 | AZ76: 2.3285 | BA76: 0.0216 | BB76: 0.1161 | BC76: 0.603 | BD76: 1.2684 | BE76: 64.9742 | BF76: 5.3737 | BG76: 2.1036 | BH76: 25.435
A77: 76 | B77: sp|O14737|PDCD5_HUMAN | C77: sp|O14737|PDCD5_HUMAN | D77: 27.2 | E77: 14.285 | F77: 125 | G77: 3 | H77: 3 | I77: 21 | J77: LAD-D;LAD-D-2;LAD-P;LAD-P-2;LCX-D-2;LCX-M;LCX-M-2;LCX-P;LCX-P-2;LM;RCA-D-2;RCA-M-2;RCA-P-2 | K77: 3750500 | L77: 6799500 | M77: 3917800 | N77: 5314900 | O77: 0 | P77: 4381700 | Q77: 3933000 | R77: 0 | S77: 0 | T77: 0 | U77: 2809740 | V77: 4577200 | W77: 6532300 | X77: 5002100 | Y77: 2692700 | Z77: 5748900 | AA77: 5179700 | AB77: 5564300 | AC77: 5364300 | AD77: 4979200 | AE77: 4099100 | AF77: 4973980 | AG77: 0.9607 | AH77: 1.3059 | AI77: 2.4259 | AJ77: 1.7355 | AK77: 1.2793 | AL77: 1.2768 | AM77: 1.8577 | AN77: 0.7371 | AO77: 0.5066 | AP77: 999 | AQ77: 1.1099 | AR77: 1.0332 | AS77: -999 | AT77: -999 | AU77: 1.1821 | AV77: 0.9309 | AW77: 1.1141 | AX77: 1.4148 | AY77: 1.2204 | AZ77: 999 | BA77: 1.0773 | BB77: 1.3087 | BC77: NA | BD77: NA | BE77: 999 | BF77: 1.2147 | BG77: NA | BH77: 999
A78: 77 | B78: sp|O14773|TPP1_HUMAN | C78: sp|O14773|TPP1_HUMAN | D78: 22.2 | E78: 61.247 | F78: 563 | G78: 6 | H78: 6 | I78: 80 | J78: LAD-D;LAD-D-2;LAD-M;LAD-M-2;LAD-P-2;LCX-D-2;LCX-M;LCX-M-2;LCX-P;LCX-P-2;LM;LM-2;RCA-D;RCA-D-2;RCA-M;RCA-M-2;RCA-P;RCA-P-2 | K78: 13021000 | L78: 26441000 | M78: 5579200 | N78: 1936400 | O78: 9417300 | P78: 30571000 | Q78: 33687000 | R78: 12139000 | S78: 9654200 | T78: 18917000 | U78: 16136310 | V78: 58968000 | W78: 41143000 | X78: 44497000 | Y78: 44639000 | Z78: 55794000 | AA78: 31747000 | AB78: 81574000 | AC78: 27697000 | AD78: 81470000 | AE78: 104750000 | AF78: 57227900 | AG78: 1.556 | AH78: 0.9246 | AI78: 0.9217 | AJ78: 4.7392 | AK78: 13.6547 | AL78: 7.9755 | AM78: 0.9968 | AN78: 2.8812 | AO78: 23.0526 | AP78: 5.9246 | AQ78: 1.7575 | AR78: 0.684 | AS78: 0.308 | AT78: 0.2796 | AU78: 1.0385 | AV78: 0.3892 | AW78: 0.9075 | AX78: 2.4215 | AY78: 4.5287 | AZ78: 2.2817 | BA78: 0.34 | BB78: 0.2644 | BC78: 1.2574 | BD78: 0.6417 | BE78: 8.4388 | BF78: 0.7778 | BG78: 0.5103 | BH78: 5.5373
A79: 78 | B79: sp|O14786|NRP1_HUMAN | C79: sp|O14786|NRP1_HUMAN | D79: 4.9 | E79: 103.13 | F79: 923 | G79: 2 | H79: 2 | I79: 5 | J79: LAD-D-2;LAD-M-2;LCX-D-2;LCX-M-2 | K79: 2638800 | L79: 2662600 | M79: 4078600 | N79: 0 | O79: 0 | P79: 2644200 | Q79: 0 | R79: 1804500 | S79: 3537400 | T79: 2965900 | U79: 2033200 | V79: 3931200 | W79: 5148900 | X79: 6139600 | Y79: 3898900 | Z79: 12113000 | AA79: 6415500 | AB79: 1892900 | AC79: 2480900 | AD79: 2798300 | AE79: 3445400 | AF79: 4826460 | AG79: 1.9338 | AH79: 0.8386 | AI79: 1.3206 | AJ79: 0.6528 | AK79: 999 | AL79: 1.5053 | AM79: 1.5747 | AN79: 999 | AO79: 999 | AP79: 999 | AQ79: 1.8881 | AR79: 6.3992 | AS79: -999 | AT79: NA | AU79: 2.4263 | AV79: 3.3892 | AW79: 999 | AX79: 999 | AY79: 1.4898 | AZ79: 1.3748 | BA79: 0.8866 | BB79: 0.7201 | BC79: 0.5101 | BD79: 0.6084 | BE79: 0.7911 | BF79: 0.8122 | BG79: 1.1927 | BH79: 1.1617
A80: 79 | B80: sp|O14787|TNPO2_HUMAN | C80: sp|O14787|TNPO2_HUMAN | D80: 7.5 | E80: 101.39 | F80: 897 | G80: 4;3 | H80: 4 | I80: 11 | J80: LAD-M-2;LCX-D-2;LCX-M;LCX-M-2;LCX-P;LM;RCA-D-2;RCA-M-2;RCA-P-2 | K80: 21003000 | L80: 29954000 | M80: 0 | N80: 0 | O80: 0 | P80: 16126000 | Q80: 49589000 | R80: 29805000 | S80: 0 | T80: 33453000 | U80: 17993000 | V80: 29874000 | W80: 25773000 | X80: 54094000 | Y80: 22139000 | Z80: 40353000 | AA80: 43947000 | AB80: 15339000 | AC80: 38460000 | AD80: 28360000 | AE80: 42925000 | AF80: 34126400 | AG80: 0.8604 | AH80: 0.4764 | AI80: 1.1641 | AJ80: 999 | AK80: 999 | AL80: 999 | AM80: 2.4434 | AN80: NA | AO80: 999 | AP80: 999 | AQ80: 0.9182 | AR80: 2.6307 | AS80: -999 | AT80: -999 | AU80: 2.7252 | AV80: 2.865 | AW80: 0.3252 | AX80: 0.3093 | AY80: 1.4224 | AZ80: 1.2904 | BA80: 1.3561 | BB80: 0.896 | BC80: 999 | BD80: 0.891 | BE80: 999 | BF80: 0.6607 | BG80: -999 | BH80: 1.2831
A81: 80 | B81: sp|O14791|APOL1_HUMAN | C81: sp|O14791|APOL1_HUMAN | D81: 32.4 | E81: 43.974 | F81: 398 | G81: 8 | H81: 8 | I81: 20 | J81: LAD-M;LAD-P;LCX-D;LCX-M;LM;LM-2;RCA-M;RCA-P;RCA-P-2 | K81: 11741000 | L81: 8949500 | M81: 57856000 | N81: 34621000 | O81: 38751000 | P81: 9888300 | Q81: 8819100 | R81: 8496700 | S81: 71786000 | T81: 19759000 | U81: 27066760 | V81: 23716000 | W81: 6761500 | X81: 11375000 | Y81: 14932000 | Z81: 12234000 | AA81: 14361000 | AB81: 0 | AC81: 8291500 | AD81: 6094600 | AE81: 16912000 | AF81: 11467760 | AG81: 0.7555 | AH81: 0.5944 | AI81: 0.4528 | AJ81: 0.1547 | AK81: 0.2585 | AL81: 0.1966 | AM81: 0.7618 | AN81: 1.6711 | AO81: 0.4313 | AP81: 0.3157 | AQ81: 0.8519 | AR81: 999 | AS81: 3.9189 | AT81: 4.394 | AU81: 1.4523 | AV81: 999 | AW81: 1.1212 | AX81: -999 | AY81: 2.0199 | AZ81: 0.9758 | BA81: 1.3605 | BB81: 0.4903 | BC81: 0.1184 | BD81: 0.43 | BE81: 0.0849 | BF81: 0.3604 | BG81: 3.6331 | BH81: 0.8559
A82: 81 | B82: sp|O14818|PSA7_HUMAN | C82: sp|O14818|PSA7_HUMAN | D82: 55.2 | E82: 27.887 | F82: 248 | G82: 10;5 | H82: 10 | I82: 81 | J82: LAD-D;LAD-D-2;LAD-M;LAD-M-2;LAD-P;LAD-P-2;LCX-D;LCX-D-2;LCX-M;LCX-M-2;LCX-P;LCX-P-2;LM;LM-2;RCA-D;RCA-D-2;RCA-M;RCA-M-2;RCA-P;RCA-P-2 | K82: 21447000 | L82: 24495000 | M82: 34502000 | N82: 28074000 | O82: 22106000 | P82: 34393000 | Q82: 21320000 | R82: 26633000 | S82: 38876000 | T82: 31473000 | U82: 28331900 | V82: 22067000 | W82: 31147000 | X82: 39420000 | Y82: 27164000 | Z82: 37474000 | AA82: 33999000 | AB82: 37820000 | AC82: 32122000 | AD82: 30419000 | AE82: 24131000 | AF82: 31576300 | AG82: 1.2716 | AH82: 0.7901 | AI82: 1.1466 | AJ82: 0.71 | AK82: 0.8725 | AL82: 1.1425 | AM82: 1.4512 | AN82: 1.229 | AO82: 0.9676 | AP82: 1.6952 | AQ82: 1.1022 | AR82: 0.9909 | AS82: 0.6427 | AT82: 1.0369 | AU82: 0.9885 | AV82: 0.899 | AW82: 1.6132 | AX82: 1.7739 | AY82: 1.0289 | AZ82: 1.2061 | BA82: 1.056 | BB82: 1.3312 | BC82: 0.6851 | BD82: 0.8462 | BE82: 0.7825 | BF82: 1.2606 | BG82: 1.2352 | BH82: 0.7667
A83: 82 | B83: sp|O14880|MGST3_HUMAN | C83: sp|O14880|MGST3_HUMAN | D83: 69.7 | E83: 16.516 | F83: 152 | G83: 6 | H83: 6 | I83: 111 | J83: LAD-D;LAD-D-2;LAD-M;LAD-M-2;LAD-P;LAD-P-2;LCX-D;LCX-D-2;LCX-M;LCX-M-2;LCX-P;LCX-P-2;LM;LM-2;RCA-D;RCA-D-2;RCA-M;RCA-M-2;RCA-P;RCA-P-2 | K83: 14027000 | L83: 91035000 | M83: 83591000 | N83: 9584100 | O83: 48011000 | P83: 36371000 | Q83: 57391000 | R83: 58658000 | S83: 38896000 | T83: 36912000 | U83: 47447610 | V83: 25340000 | W83: 126090000 | X83: 104540000 | Y83: 68996000 | Z83: 164970000 | AA83: 113220000 | AB83: 237210000 | AC83: 116180000 | AD83: 184820000 | AE83: 80283000 | AF83: 122164900 | AG83: 1.3851 | AH83: 1.2061 | AI83: 1.8275 | AJ83: 1.0891 | AK83: 9.4985 | AL83: 1.2506 | AM83: 1.5152 | AN83: 8.7218 | AO83: 7.199 | AP83: 3.4361 | AQ83: 1.4571 | AR83: 0.6955 | AS83: 1.32 | AT83: 0.8366 | AU83: 3.1129 | AV83: 0.4773 | AW83: 0.6337 | AX83: 4.1332 | AY83: 1.8065 | AZ83: 1.9806 | BA83: 0.6286 | BB83: 1.4471 | BC83: 1.5081 | BD83: 1.5891 | BE83: 4.7516 | BF83: 2.3021 | BG83: 1.0537 | BH83: 2.175
A84: 83 | B84: sp|O14949|QCR8_HUMAN | C84: sp|O14949|QCR8_HUMAN | D84: 62.2 | E84: 9.9062 | F84: 82 | G84: 4 | H84: 4 | I84: 12 | J84: LCX-P-2;RCA-M-2 | K84: 980990 | L84: 0 | M84: 0 | N84: 0 | O84: 0 | P84: 0 | Q84: 0 | R84: 0 | S84: 0 | T84: 0 | U84: 98099 | V84: 0 | W84: 0 | X84: 379480 | Y84: 1840500 | Z84: 586020 | AA84: 0 | AB84: 150870000 | AC84: 932360 | AD84: 20512000 | AE84: 2010800 | AF84: 17713116 | AG84: NA | AH84: -999 | AI84: -999 | AJ84: NA | AK84: NA | AL84: 999 | AM84: 0.2062 | AN84: NA | AO84: 999 | AP84: 999 | AQ84: 999 | AR84: 0.0039 | AS84: NA | AT84: NA | AU84: NA | AV84: -999 | AW84: NA | AX84: 999 | AY84: -999 | AZ84: 999 | BA84: 0.0455 | BB84: 0.4637 | BC84: NA | BD84: NA | BE84: 999 | BF84: 10.2009 | BG84: NA | BH84: 999
A85: 84 | B85: sp|P19105|ML12A_HUMAN | C85: sp|P19105|ML12A_HUMAN;sp|O14950|ML12B_HUMAN | D85: 17.5 | E85: 19.794 | F85: 171 | G85: 10;10 | H85: 3 | I85: 91 | J85: LAD-D;LAD-D-2;LAD-M;LAD-M-2;LAD-P;LAD-P-2;LCX-D;LCX-D-2;LCX-M;LCX-M-2;LCX-P;LCX-P-2;LM;LM-2;RCA-D;RCA-D-2;RCA-M;RCA-M-2;RCA-P;RCA-P-2 | K85: 92813000 | L85: 58722000 | M85: 58689000 | N85: 45635000 | O85: 29530000 | P85: 31326000 | Q85: 25177000 | R85: 26290000 | S85: 42919000 | T85: 63043000 | U85: 47414400 | V85: 54636000 | W85: 69849000 | X85: 69354000 | Y85: 44338000 | Z85: 48193000 | AA85: 62662000 | AB85: 41435000 | AC85: 57944000 | AD85: 39218000 | AE85: 52215000 | AF85: 53984400 | AG85: 1.1895 | AH85: 1.0071 | AI85: 1.5754 | AJ85: 1.0006 | AK85: 1.2868 | AL85: 1.1817 | AM85: 1.5642 | AN85: 1.2861 | AO85: 0.9716 | AP85: 1.632 | AQ85: 0.7691 | AR85: 1.1631 | AS85: 0.9427 | AT85: 1.1729 | AU85: 2.0003 | AV85: 1.5123 | AW85: 1.2442 | AX85: 1.6457 | AY85: 0.5887 | AZ85: 2.204 | BA85: 1.4775 | BB85: 1.1097 | BC85: 0.6125 | BD85: 0.417 | BE85: 0.9138 | BF85: 0.7511 | BG85: 0.6808 | BH85: 0.8282
A86: 85 | B86: sp|O14958|CASQ2_HUMAN | C86: sp|O14958|CASQ2_HUMAN | D86: 54.4 | E86: 46.435 | F86: 399 | G86: 15 | H86: 15 | I86: 76 | J86: LAD-D;LAD-M;LCX-M-2;LCX-P-2;RCA-M-2;RCA-P-2 | K86: 0 | L86: 3251500 | M86: 7679100 | N86: 98260 | O86: 570470 | P86: 0 | Q86: 433580 | R86: 0 | S86: 197360 | T86: 0 | U86: 1223027 | V86: 0 | W86: 0 | X86: 0 | Y86: 0 | Z86: 0 | AA86: 3871100 | AB86: 180630000 | AC86: 1159400 | AD86: 144530000 | AE86: 11131000 | AF86: 34132150 | AG86: -999 | AH86: NA | AI86: NA | AJ86: 0.4234 | AK86: 33.0908 | AL86: -999 | AM86: NA | AN86: 78.1508 | AO86: -999 | AP86: -999 | AQ86: -999 | AR86: -999 | AS86: 999 | AT86: 1.3157 | AU86: 999 | AV86: 0.0214 | AW86: -999 | AX86: 416.6013 | AY86: NA | AZ86: 999 | BA86: 0.008 | BB86: 0.1042 | BC86: -999 | BD86: NA | BE86: 732.3166 | BF86: 12.9845 | BG86: 999 | BH86: 999
A87: 86 | B87: sp|O14960|LECT2_HUMAN | C87: sp|O14960|LECT2_HUMAN | D87: 6 | E87: 16.39 | F87: 151 | G87: 1 | H87: 1 | I87: 3 | J87: LAD-P;LCX-P;RCA-D | K87: 1364400 | L87: 896150 | M87: 1173700 | N87: 3598800 | O87: 1217700 | P87: 884460 | Q87: 1790600 | R87: 3980900 | S87: 1247800 | T87: 1120900 | U87: 1727541 | V87: 485880 | W87: 0 | X87: 0 | Y87: 0 | Z87: 0 | AA87: 0 | AB87: 0 | AC87: 0 | AD87: 0 | AE87: 0 | AF87: 48588 | AG87: -999 | AH87: NA | AI87: NA | AJ87: 0.7635 | AK87: 0.249 | AL87: -999 | AM87: NA | AN87: 0.3261 | AO87: -999 | AP87: -999 | AQ87: NA | AR87: NA | AS87: 1.3768 | AT87: 0.6801 | AU87: -999 | AV87: NA | AW87: 0.4939 | AX87: -999 | AY87: 0.3561 | AZ87: -999 | BA87: NA | BB87: NA | BC87: 3.1903 | BD87: 3.5515 | BE87: -999 | BF87: NA | BG87: 1.1132 | BH87: -999
A88: 87 | B88: sp|O14964|HGS_HUMAN | C88: sp|O14964|HGS_HUMAN | D88: 1.7 | E88: 86.191 | F88: 777 | G88: 1 | H88: 1 | I88: 1 | J88: LCX-M-2 | K88: 0 | L88: 0 | M88: 0 | N88: 0 | O88: 0 | P88: 0 | Q88: 0 | R88: 0 | S88: 0 | T88: 0 | U88: 0 | V88: 0 | W88: 0 | X88: 0 | Y88: 0 | Z88: 0 | AA88: 1676300 | AB88: 0 | AC88: 0 | AD88: 0 | AE88: 0 | AF88: 167630 | AG88: NA | AH88: NA | AI88: NA | AJ88: NA | AK88: NA | AL88: NA | AM88: NA | AN88: NA | AO88: NA | AP88: NA | AQ88: -999 | AR88: NA | AS88: NA | AT88: NA | AU88: 999 | AV88: 999 | AW88: NA | AX88: NA | AY88: NA | AZ88: NA | BA88: NA | BB88: NA | BC88: NA | BD88: NA | BE88: NA | BF88: NA | BG88: NA | BH88: NA
A89: 88 | B89: sp|O14974|MYPT1_HUMAN | C89: sp|O14974|MYPT1_HUMAN | D89: 3.2 | E89: 115.28 | F89: 1030 | G89: 2 | H89: 2 | I89: 20 | J89: LAD-D;LAD-D-2;LAD-M-2;LAD-P-2;LCX-M-2;LCX-P;LCX-P-2;LM;LM-2;RCA-D-2;RCA-M-2;RCA-P | K89: 10955000 | L89: 15421000 | M89: 0 | N89: 0 | O89: 0 | P89: 0 | Q89: 2638100 | R89: 0 | S89: 0 | T89: 8091400 | U89: 3710550 | V89: 5051500 | W89: 7618800 | X89: 12702000 | Y89: 2959400 | Z89: 0 | AA89: 11690000 | AB89: 4557800 | AC89: 9387300 | AD89: 5149500 | AE89: 2855500 | AF89: 6197180 | AG89: 0.4941 | AH89: 0.5998 | AI89: 2.5744 | AJ89: 999 | AK89: 999 | AL89: 999 | AM89: 4.2921 | AN89: NA | AO89: 999 | AP89: NA | AQ89: -999 | AR89: -999 | AS89: NA | AT89: -999 | AU89: 999 | AV89: 2.5648 | AW89: -999 | AX89: 1.7277 | AY89: 0.4611 | AZ89: 999 | BA89: 1.823 | BB89: 3.2874 | BC89: NA | BD89: -999 | BE89: 999 | BF89: 1.8034 | BG89: -999 | BH89: 0.3529
A90: 89 | B90: sp|O14979|HNRDL_HUMAN | C90: sp|O14979|HNRDL_HUMAN | D90: 7.9 | E90: 46.437 | F90: 420 | G90: 4 | H90: 3 | I90: 8 | J90: LAD-D;LAD-D-2;LAD-M-2;LCX-P;LCX-P-2;RCA-D-2;RCA-M;RCA-P-2 | K90: 2641500 | L90: 3123600 | M90: 0 | N90: 0 | O90: 0 | P90: 0 | Q90: 0 | R90: 0 | S90: 1777100 | T90: 0 | U90: 754220 | V90: 0 | W90: 0 | X90: 3203800 | Y90: 3887900 | Z90: 0 | AA90: 2963300 | AB90: 3057300 | AC90: 3371500 | AD90: 3506600 | AE90: 4116800 | AF90: 2410720 | AG90: -999 | AH90: -999 | AI90: -999 | AJ90: 999 | AK90: 999 | AL90: 999 | AM90: 0.824 | AN90: NA | AO90: 999 | AP90: NA | AQ90: -999 | AR90: -999 | AS90: NA | AT90: NA | AU90: 999 | AV90: 0.9693 | AW90: NA | AX90: 999 | AY90: -999 | AZ90: 999 | BA90: 0.9615 | BB90: 0.819 | BC90: -999 | BD90: NA | BE90: 1.9732 | BF90: 0.8518 | BG90: 999 | BH90: 999
A91: 90 | B91: sp|O14980|XPO1_HUMAN | C91: sp|O14980|XPO1_HUMAN | D91: 7 | E91: 123.38 | F91: 1071 | G91: 4 | H91: 4 | I91: 14 | J91: LAD-D;LAD-M-2;LAD-P-2;LCX-D-2;LCX-M;LCX-M-2;LCX-P;LM;LM-2;RCA-D-2;RCA-P-2 | K91: 11903000 | L91: 4612800 | M91: 4596500 | N91: 1371100 | O91: 2201000 | P91: 7409600 | Q91: 3843900 | R91: 0 | S91: 4019200 | T91: 6757200 | U91: 4671430 | V91: 3861300 | W91: 3162400 | X91: 10706000 | Y91: 6396300 | Z91: 7836300 | AA91: 6500300 | AB91: 3943300 | AC91: 4257900 | AD91: 3313900 | AE91: 4605000 | AF91: 5458270 | AG91: 0.6856 | AH91: 0.2954 | AI91: 0.4944 | AJ91: 1.0035 | AK91: 3.3643 | AL91: 2.3292 | AM91: 1.6738 | AN91: 3.3524 | AO91: 4.6651 | AP91: 3.5603 | AQ91: 1.2055 | AR91: 1.9872 | AS91: 0.297 | AT91: 0.5726 | AU91: 0.8773 | AV91: 1.6484 | AW91: 1.9276 | AX91: 1.0259 | AY91: 0.3244 | AZ91: 999 | BA91: 1.2849 | BB91: 0.9246 | BC91: -999 | BD91: -999 | BE91: 0.8245 | BF91: 0.7196 | BG91: 0.5948 | BH91: 0.6815
A92: 91 | B92: sp|O14986|PI51B_HUMAN | C92: sp|O14986|PI51B_HUMAN | D92: 2.8 | E92: 61.036 | F92: 540 | G92: 1 | H92: 1 | I92: 32 | J92: LAD-D;LAD-D-2;LAD-M;LAD-M-2;LAD-P;LAD-P-2;LCX-D-2;LCX-M;LCX-M-2;LCX-P;LCX-P-2;LM;LM-2;RCA-D-2;RCA-M;RCA-M-2;RCA-P;RCA-P-2 | K92: 36067000 | L92: 41980000 | M92: 0 | N92: 9304600 | O92: 8125900 | P92: 22346000 | Q92: 19042000 | R92: 4880500 | S92: 19296000 | T92: 34008000 | U92: 19505000 | V92: 25836000 | W92: 45729000 | X92: 37324000 | Y92: 23542000 | Z92: 12238000 | AA92: 79601000 | AB92: 25027000 | AC92: 51568000 | AD92: 16729000 | AE92: 23615000 | AF92: 34120900 | AG92: 1.0893 | AH92: 1.2252 | AI92: 1.9424 | AJ92: 999 | AK92: 4.5117 | AL92: 999 | AM92: 1.5854 | AN92: -999 | AO92: 2.5301 | AP92: 1.506 | AQ92: 0.1537 | AR92: 0.489 | AS92: 0.3636 | AT92: 0.4267 | AU92: 3.5622 | AV92: 3.1806 | AW92: 1.1735 | AX92: 1.3143 | AY92: 0.7163 | AZ92: 10.5661 | BA92: 3.0826 | BB92: 2.1837 | BC92: 0.2529 | BD92: 0.1435 | BE92: 0.867 | BF92: 0.7084 | BG92: 0.5674 | BH92: 0.6944
A93: 92 | B93: sp|O15061|SYNEM_HUMAN | C93: sp|O15061|SYNEM_HUMAN | D93: 8.9 | E93: 172.77 | F93: 1565 | G93: 10 | H93: 10 | I93: 34 | J93: LAD-D;LAD-M;LAD-M-2;LAD-P;LAD-P-2;LCX-M;LCX-M-2;LCX-P;LCX-P-2;LM;LM-2;RCA-D;RCA-D-2;RCA-M;RCA-M-2;RCA-P;RCA-P-2 | K93: 15421000 | L93: 21689000 | M93: 18050000 | N93: 0 | O93: 8568100 | P93: 16293000 | Q93: 28501000 | R93: 7159000 | S93: 14296000 | T93: 16680000 | U93: 14665710 | V93: 9712500 | W93: 17326000 | X93: 20283000 | Y93: 11153000 | Z93: 8546300 | AA93: 24210000 | AB93: 25260000 | AC93: 10615000 | AD93: 17190000 | AE93: 14192000 | AF93: 15848780 | AG93: 0.7988 | AH93: 0.8542 | AI93: 1.5535 | AJ93: 1.2016 | AK93: 999 | AL93: 1.1237 | AM93: 1.8186 | AN93: 999 | AO93: 999 | AP93: 0.9975 | AQ93: 0.353 | AR93: 0.3383 | AS93: 0.5259 | AT93: 0.3006 | AU93: 1.4859 | AV93: 0.9584 | AW93: 0.5717 | AX93: 0.8863 | AY93: 0.6298 | AZ93: 1.4827 | BA93: 0.6175 | BB93: 0.748 | BC93: 0.5008 | BD93: 0.4292 | BE93: 1.2024 | BF93: 1.2112 | BG93: 0.8571 | BH93: 0.8508
A94: 93 | B94: sp|O15075|DCLK1_HUMAN | C94: sp|O15075|DCLK1_HUMAN | D94: 3.8 | E94: 82.223 | F94: 740 | G94: 2 | H94: 2 | I94: 4 | J94: LCX-D-2;LM;RCA-D-2;RCA-P-2 | K94: 0 | L94: 0 | M94: 0 | N94: 0 | O94: 0 | P94: 0 | Q94: 0 | R94: 0 | S94: 0 | T94: 0 | U94: 0 | V94: 0 | W94: 0 | X94: 0 | Y94: 0 | Z94: 0 | AA94: 0 | AB94: 0 | AC94: 1888100 | AD94: 0 | AE94: 0 | AF94: 188810 | AG94: NA | AH94: NA | AI94: NA | AJ94: NA | AK94: NA | AL94: NA | AM94: NA | AN94: NA | AO94: NA | AP94: NA | AQ94: NA | AR94: NA | AS94: NA | AT94: NA | AU94: NA | AV94: NA | AW94: NA | AX94: NA | AY94: NA | AZ94: 999 | BA94: 999 | BB94: 999 | BC94: NA | BD94: NA | BE94: NA | BF94: NA | BG94: NA | BH94: NA
A95: 94 | B95: sp|O15120|PLCB_HUMAN | C95: sp|O15120|PLCB_HUMAN | D95: 4.7 | E95: 30.914 | F95: 278 | G95: 1 | H95: 1 | I95: 1 | J95: LCX-D-2 | K95: 0 | L95: 0 | M95: 0 | N95: 0 | O95: 0 | P95: 0 | Q95: 0 | R95: 0 | S95: 0 | T95: 0 | U95: 0 | V95: 0 | W95: 0 | X95: 1470800 | Y95: 0 | Z95: 3632200 | AA95: 0 | AB95: 0 | AC95: 0 | AD95: 0 | AE95: 0 | AF95: 510300 | AG95: NA | AH95: -999 | AI95: NA | AJ95: NA | AK95: NA | AL95: 999 | AM95: 999 | AN95: NA | AO95: NA | AP95: 999 | AQ95: 999 | AR95: 999 | AS95: NA | AT95: NA | AU95: NA | AV95: NA | AW95: NA | AX95: NA | AY95: NA | AZ95: NA | BA95: NA | BB95: NA | BC95: NA | BD95: NA | BE95: NA | BF95: NA | BG95: NA | BH95: NA
A96: 95 | B96: sp|O15143|ARC1B_HUMAN | C96: sp|O15143|ARC1B_HUMAN | D96: 35.2 | E96: 40.949 | F96: 372 | G96: 11 | H96: 11 | I96: 115 | J96: LAD-D;LAD-D-2;LAD-M;LAD-M-2;LAD-P;LAD-P-2;LCX-D;LCX-D-2;LCX-M;LCX-M-2;LCX-P;LCX-P-2;LM;LM-2;RCA-D;RCA-D-2;RCA-M;RCA-M-2;RCA-P;RCA-P-2 | K96: 72419000 | L96: 43324000 | M96: 67644000 | N96: 104800000 | O96: 71162000 | P96: 74673000 | Q96: 93400000 | R96: 71332000 | S96: 49917000 | T96: 66233000 | U96: 71490400 | V96: 59601000 | W96: 55561000 | X96: 56270000 | Y96: 41984000 | Z96: 34385000 | AA96: 44537000 | AB96: 26429000 | AC96: 48872000 | AD96: 25184000 | AE96: 66759000 | AF96: 45958200 | AG96: 1.2825 | AH96: 0.9874 | AI96: 1.3234 | AJ96: 0.6405 | AK96: 0.4134 | AL96: 0.8319 | AM96: 1.3403 | AN96: 0.6455 | AO96: 0.4006 | AP96: 0.4832 | AQ96: 0.7721 | AR96: 1.301 | AS96: 0.953 | AT96: 0.7619 | AU96: 0.5964 | AV96: 1.6852 | AW96: 0.7995 | AX96: 0.283 | AY96: 0.823 | AZ96: 0.6851 | BA96: 1.9406 | BB96: 0.7321 | BC96: 1.429 | BD96: 1.077 | BE96: 0.5045 | BF96: 0.3772 | BG96: 0.7537 | BH96: 1.0079
A97: 96 | B97: sp|O15144|ARPC2_HUMAN | C97: sp|O15144|ARPC2_HUMAN | D97: 53.3 | E97: 34.333 | F97: 300 | G97: 14 | H97: 14 | I97: 157 | J97: LAD-D;LAD-D-2;LAD-M;LAD-M-2;LAD-P;LAD-P-2;LCX-D;LCX-D-2;LCX-M;LCX-M-2;LCX-P;LCX-P-2;LM;LM-2;RCA-D;RCA-D-2;RCA-M;RCA-M-2;RCA-P;RCA-P-2 | K97: 49176000 | L97: 54647000 | M97: 43595000 | N97: 75690000 | O97: 56863000 | P97: 54037000 | Q97: 85185000 | R97: 55061000 | S97: 37389000 | T97: 45523000 | U97: 55716600 | V97: 43603000 | W97: 50779000 | X97: 42232000 | Y97: 36202000 | Z97: 42032000 | AA97: 59701000 | AB97: 37100000 | AC97: 38239000 | AD97: 25479000 | AE97: 53774000 | AF97: 42914100 | AG97: 0.9292 | AH97: 1.2024 | AI97: 1.4027 | AJ97: 1.2535 | AK97: 0.722 | AL97: 0.9687 | AM97: 1.1666 | AN97: 0.576 | AO97: 0.4783 | AP97: 0.7392 | AQ97: 0.704 | AR97: 1.1329 | AS97: 1.0523 | AT97: 0.6675 | AU97: 1.1048 | AV97: 1.6092 | AW97: 0.6343 | AX97: 0.4355 | AY97: 0.8867 | AZ97: 0.6945 | BA97: 1.5008 | BB97: 0.7111 | BC97: 1.4727 | BD97: 1.2095 | BE97: 0.6815 | BF97: 0.4738 | BG97: 0.8213 | BH97: 1.1812
A98: 97 | B98: sp|O15145|ARPC3_HUMAN | C98: sp|O15145|ARPC3_HUMAN | D98: 39.9 | E98: 20.546 | F98: 178 | G98: 7 | H98: 7 | I98: 97 | J98: LAD-D;LAD-D-2;LAD-M;LAD-M-2;LAD-P;LAD-P-2;LCX-D;LCX-D-2;LCX-M;LCX-M-2;LCX-P;LCX-P-2;LM;LM-2;RCA-D;RCA-D-2;RCA-M;RCA-M-2;RCA-P;RCA-P-2 | K98: 38130000 | L98: 32353000 | M98: 33749000 | N98: 27899000 | O98: 18255000 | P98: 38656000 | Q98: 28002000 | R98: 19318000 | S98: 25488000 | T98: 43987000 | U98: 30583700 | V98: 44475000 | W98: 34371000 | X98: 40499000 | Y98: 31466000 | Z98: 36189000 | AA98: 39795000 | AB98: 16966000 | AC98: 39662000 | AD98: 22812000 | AE98: 41648000 | AF98: 34788300 | AG98: 1.0624 | AH98: 0.8487 | AI98: 1.0923 | AJ98: 0.9586 | AK98: 1.1596 | AL98: 1.2 | AM98: 1.2871 | AN98: 1.2097 | AO98: 1.1279 | AP98: 1.9824 | AQ98: 0.9094 | AR98: 2.133 | AS98: 0.4722 | AT98: 0.6519 | AU98: 1.0295 | AV98: 2.3456 | AW98: 1.3805 | AX98: 0.6059 | AY98: 1.1664 | AZ98: 2.0531 | BA98: 1.7386 | BB98: 0.9523 | BC98: 0.7579 | BD98: 0.4392 | BE98: 0.895 | BF98: 0.5477 | BG98: 0.5794 | BH98: 0.9468
A99: 98 | B99: sp|O15173|PGRC2_HUMAN | C99: sp|O15173|PGRC2_HUMAN | D99: 32.3 | E99: 23.818 | F99: 223 | G99: 4 | H99: 4 | I99: 44 | J99: LAD-D;LAD-D-2;LAD-M;LAD-M-2;LAD-P;LAD-P-2;LCX-D-2;LCX-M;LCX-M-2;LCX-P;LCX-P-2;LM;LM-2;RCA-D;RCA-D-2;RCA-M;RCA-M-2;RCA-P;RCA-P-2 | K99: 12971000 | L99: 19161000 | M99: 25336000 | N99: 17721000 | O99: 0 | P99: 13646000 | Q99: 11018000 | R99: 6959200 | S99: 18241000 | T99: 12468000 | U99: 13752120 | V99: 13758000 | W99: 13895000 | X99: 15949000 | Y99: 14334000 | Z99: 41886000 | AA99: 14910000 | AB99: 11811000 | AC99: 10676000 | AD99: 14716000 | AE99: 14676000 | AF99: 16661100 | AG99: 0.7252 | AH99: 0.8712 | AI99: 0.9694 | AJ99: 0.7563 | AK99: 1.0813 | AL99: 0.6295 | AM99: 1.1127 | AN99: 1.4297 | AO99: 0.8089 | AP99: 999 | AQ99: 2.8093 | AR99: 3.5464 | AS99: -999 | AT99: -999 | AU99: 1.0926 | AV99: 1.2624 | AW99: 1.2385 | AX99: 1.072 | AY99: 1.0607 | AZ99: 1.5341 | BA99: 0.7255 | BB99: 0.7274 | BC99: 0.3815 | BD99: 0.5582 | BE99: 0.8068 | BF99: 1.0027 | BG99: 1.463 | BH99: 1.1771
A100: 99 | B100: sp|O15195|VILL_HUMAN | C100: sp|O15195|VILL_HUMAN | D100: 3.9 | E100: 95.906 | F100: 856 | G100: 2 | H100: 2 | I100: 4 | J100: LAD-D;LCX-P-2;RCA-D | K100: 11802000 | L100: 14424000 | M100: 11797000 | N100: 11136000 | O100: 6322600 | P100: 13117000 | Q100: 0 | R100: 13468000 | S100: 15241000 | T100: 12203000 | U100: 10951060 | V100: 6072100 | W100: 7398200 | X100: 11662000 | Y100: 7886100 | Z100: 16255000 | AA100: 8654700 | AB100: 10963000 | AC100: 7832900 | AD100: 16593000 | AE100: 13994000 | AF100: 10731100 | AG100: 0.5129 | AH100: 0.6344 | AI100: 0.9381 | AJ100: 1.2227 | AK100: 1.2953 | AL100: 0.9886 | AM100: 1.4788 | AN100: 1.0594 | AO100: 0.7082 | AP100: 2.5709 | AQ100: 1.8782 | AR100: 1.4827 | AS100: 0.482 | AT100: 999 | AU100: 0.6598 | AV100: 0.7894 | AW100: 999 | AX100: 999 | AY100: 0.5145 | AZ100: 0.5816 | BA100: 0.4721 | BB100: 0.5597 | BC100: 0.8837 | BD100: 1.1037 | BE100: 1.0887 | BF100: 1.1857 | BG100: 1.249 | BH100: 1.1468
A101: 100 | B101: sp|O15230|LAMA5_HUMAN | C101: sp|O15230|LAMA5_HUMAN | D101: 38.4 | E101: 399.73 | F101: 3695 | G101: 96;1 | H101: 96 | I101: 1491 | J101: LAD-D;LAD-D-2;LAD-M;LAD-M-2;LAD-P;LAD-P-2;LCX-D;LCX-D-2;LCX-M;LCX-M-2;LCX-P;LCX-P-2;LM;LM-2;RCA-D;RCA-D-2;RCA-M;RCA-M-2;RCA-P;RCA-P-2 | K101: 824170000 | L101: 1057400000 | M101: 1005900000 | N101: 1174000000 | O101: 981280000 | P101: 644370000 | Q101: 952120000 | R101: 618290000 | S101: 805700000 | T101: 758940000 | U101: 882217000 | V101: 1217800000 | W101: 1400500000 | X101: 1351100000 | Y101: 1086600000 | Z101: 590350000 | AA101: 1987300000 | AB101: 1117900000 | AC101: 2222200000 | AD101: 947460000 | AE101: 1090400000 | AF101: 1301161000 | AG101: 1.3245 | AH101: 1.0366 | AI101: 1.2889 | AJ101: 1.0512 | AK101: 0.9007 | AL101: 1.3432 | AM101: 1.2434 | AN101: 0.8568 | AO101: 0.9256 | AP101: 0.6016 | AQ101: 0.2971 | AR101: 0.5281 | AS101: 1.5229 | AT101: 1.0306 | AU101: 3.0841 | AV101: 1.7777 | AW101: 0.6768 | AX101: 1.1741 | AY101: 1.4776 | AZ101: 3.5941 | BA101: 2.3454 | BB101: 2.038 | BC101: 0.7674 | BD101: 0.8147 | BE101: 1.1759 | BF101: 0.8689 | BG101: 1.0616 | BH101: 1.4367
A102: 101 | B102: sp|O15247|CLIC2_HUMAN | C102: sp|O15247|CLIC2_HUMAN | D102: 20.2 | E102: 28.356 | F102: 247 | G102: 4 | H102: 3 | I102: 5 | J102: LAD-M-2;LCX-D-2;LCX-M-2;RCA-M;RCA-P-2 | K102: 7626700 | L102: 0 | M102: 5201200 | N102: 0 | O102: 6535000 | P102: 7643500 | Q102: 0 | R102: 0 | S102: 13788000 | T102: 0 | U102: 4079440 | V102: 7516400 | W102: 0 | X102: 4890100 | Y102: 8026400 | Z102: 12465000 | AA102: 3735500 | AB102: 0 | AC102: 0 | AD102: 0 | AE102: 6644300 | AF102: 4327770 | AG102: NA | AH102: -999 | AI102: -999 | AJ102: -999 | AK102: NA | AL102: 0.9402 | AM102: 0.6093 | AN102: 999 | AO102: 999 | AP102: 1.9074 | AQ102: 3.3369 | AR102: 999 | AS102: 0.855 | AT102: 999 | AU102: 0.4887 | AV102: 999 | AW102: 999 | AX102: NA | AY102: 0.9855 | AZ102: NA | BA102: NA | BB102: -999 | BC102: -999 | BD102: NA | BE102: -999 | BF102: -999 | BG102: 999 | BH102: 999
A103: 102 | B103: sp|O15260|SURF4_HUMAN | C103: sp|O15260|SURF4_HUMAN | D103: 13.8 | E103: 30.394 | F103: 269 | G103: 3 | H103: 3 | I103: 12 | J103: LAD-D;LAD-M;LAD-P;LCX-D-2;LCX-M;LCX-M-2;LM;RCA-P-2 | K103: 4776600 | L103: 8029600 | M103: 5460300 | N103: 11904000 | O103: 0 | P103: 7382800 | Q103: 0 | R103: 0 | S103: 3760300 | T103: 4146100 | U103: 4545970 | V103: 2385500 | W103: 1866100 | X103: 3372000 | Y103: 3469700 | Z103: 4189500 | AA103: 7899500 | AB103: 3034600 | AC103: 3859400 | AD103: 2947100 | AE103: 5700200 | AF103: 3872360 | AG103: 0.2324 | AH103: 0.5534 | AI103: 0.5378 | AJ103: 1.4705 | AK103: 0.6745 | AL103: 0.6175 | AM103: 0.9718 | AN103: 0.4587 | AO103: 0.2915 | AP103: 999 | AQ103: 0.5304 | AR103: 1.3806 | AS103: -999 | AT103: NA | AU103: 1.07 | AV103: 2.6031 | AW103: 999 | AX103: 999 | AY103: 0.4994 | AZ103: 999 | BA103: 1.3096 | BB103: 0.6771 | BC103: -999 | BD103: -999 | BE103: 0.7837 | BF103: 0.517 | BG103: 0.9069 | BH103: 1.3748
A104: 103 | B104: sp|O15273|TELT_HUMAN | C104: sp|O15273|TELT_HUMAN | D104: 28.1 | E104: 19.051 | F104: 167 | G104: 4 | H104: 4 | I104: 12 | J104: LCX-P-2;RCA-M-2 | K104: 0 | L104: 0 | M104: 0 | N104: 0 | O104: 0 | P104: 0 | Q104: 0 | R104: 0 | S104: 0 | T104: 0 | U104: 0 | V104: 0 | W104: 0 | X104: 0 | Y104: 0 | Z104: 0 | AA104: 0 | AB104: 32158000 | AC104: 0 | AD104: 15966000 | AE104: 1808500 | AF104: 4993250 | AG104: NA | AH104: NA | AI104: NA | AJ104: NA | AK104: NA | AL104: NA | AM104: NA | AN104: NA | AO104: NA | AP104: NA | AQ104: NA | AR104: -999 | AS104: NA | AT104: NA | AU104: NA | AV104: -999 | AW104: NA | AX104: 999 | AY104: NA | AZ104: NA | BA104: -999 | BB104: -999 | BC104: NA | BD104: NA | BE104: 999 | BF104: 8.8283 | BG104: NA | BH104: 999
A105: 104 | B105: sp|O15371|EIF3D_HUMAN | C105: sp|O15371|EIF3D_HUMAN | D105: 12.6 | E105: 63.972 | F105: 548 | G105: 4 | H105: 4 | I105: 4 | J105: LAD-D;LAD-M;LCX-D-2 | K105: 2686100 | L105: 3338500 | M105: 3999900 | N105: 0 | O105: 2007500 | P105: 0 | Q105: 0 | R105: 0 | S105: 1593400 | T105: 2022500 | U105: 1564790 | V105: 0 | W105: 2903600 | X105: 1253600 | Y105: 0 | Z105: 0 | AA105: 1586400 | AB105: 1316600 | AC105: 0 | AD105: 0 | AE105: 1584800 | AF105: 864500 | AG105: 0.8697 | AH105: 2.3162 | AI105: 999 | AJ105: 0.8346 | AK105: 999 | AL105: 0.3134 | AM105: 999 | AN105: 999 | AO105: NA | AP105: -999 | AQ105: -999 | AR105: -999 | AS105: 999 | AT105: 999 | AU105: 999 | AV105: 1.2049 | AW105: NA | AX105: 999 | AY105: -999 | AZ105: NA | BA105: NA | BB105: -999 | BC105: -999 | BD105: -999 | BE105: -999 | BF105: -999 | BG105: 0.7878 | BH105: 0.7836
A106: 105 | B106: sp|O15372|EIF3H_HUMAN | C106: sp|O15372|EIF3H_HUMAN | D106: 4.3 | E106: 39.93 | F106: 352 | G106: 1 | H106: 1 | I106: 7 | J106: LAD-D-2;LAD-M-2;LCX-D-2;LCX-M;LCX-P-2;RCA-P;RCA-P-2 | K106: 983520 | L106: 2038500 | M106: 0 | N106: 0 | O106: 0 | P106: 4948600 | Q106: 0 | R106: 0 | S106: 2646700 | T106: 1835600 | U106: 1245292 | V106: 1525300 | W106: 3637900 | X106: 5817600 | Y106: 2367800 | Z106: 16247000 | AA106: 1988800 | AB106: 1202600 | AC106: 1024500 | AD106: 0 | AE106: 2781800 | AF106: 3659330 | AG106: 1.7846 | AH106: 0.6253 | AI106: 1.5364 | AJ106: 999 | AK106: 999 | AL106: 999 | AM106: 2.457 | AN106: NA | AO106: 999 | AP106: 999 | AQ106: 8.1692 | AR106: 13.5099 | AS106: -999 | AT106: NA | AU106: 0.4019 | AV106: 1.6538 | AW106: 999 | AX106: 999 | AY106: 1.5509 | AZ106: 999 | BA106: 999 | BB106: 0.3683 | BC106: -999 | BD106: -999 | BE106: -999 | BF106: -999 | BG106: 1.4419 | BH106: 1.5155
A107: 106 | B107: sp|O15382|BCAT2_HUMAN | C107: sp|O15382|BCAT2_HUMAN | D107: 24 | E107: 44.287 | F107: 392 | G107: 7 | H107: 7 | I107: 27 | J107: LAD-M-2;LAD-P-2;LCX-D-2;LCX-M-2;LCX-P-2;LM-2;RCA-D-2;RCA-M-2;RCA-P-2 | K107: 4774900 | L107: 3248400 | M107: 3233700 | N107: 990940 | O107: 0 | P107: 2957900 | Q107: 3785000 | R107: 1669100 | S107: 0 | T107: 0 | U107: 2065994 | V107: 6447000 | W107: 7016100 | X107: 6359900 | Y107: 5832700 | Z107: 16760000 | AA107: 15454000 | AB107: 38834000 | AC107: 9800200 | AD107: 16275000 | AE107: 10695000 | AF107: 13347390 | AG107: 2.1599 | AH107: 1.1032 | AI107: 1.2029 | AJ107: 1.0045 | AK107: 3.2781 | AL107: 1.9668 | AM107: 1.0904 | AN107: 3.2633 | AO107: 5.886 | AP107: 999 | AQ107: 1.0845 | AR107: 0.4316 | AS107: -999 | AT107: -999 | AU107: 5.2247 | AV107: 0.398 | AW107: 0.7815 | AX107: 10.26 | AY107: 1.3502 | AZ107: 5.8715 | BA107: 0.6022 | BB107: 0.9163 | BC107: 999 | BD107: 999 | BE107: 999 | BF107: 1.5217 | BG107: NA | BH107: 999
A108: 107 | B108: sp|O15400|STX7_HUMAN | C108: sp|O15400|STX7_HUMAN | D108: 16.1 | E108: 29.815 | F108: 261 | G108: 3 | H108: 3 | I108: 16 | J108: LAD-D-2;LAD-M;LAD-P;LAD-P-2;LCX-M;LCX-P;LM-2;RCA-D;RCA-M;RCA-M-2;RCA-P-2 | K108: 5729600 | L108: 7017600 | M108: 10328000 | N108: 13223000 | O108: 6137200 | P108: 8260700 | Q108: 14307000 | R108: 11031000 | S108: 9696300 | T108: 6357200 | U108: 9208760 | V108: 8004900 | W108: 8154200 | X108: 0 | Y108: 7322000 | Z108: 1559300 | AA108: 8101800 | AB108: 5890000 | AC108: 4966100 | AD108: 8203000 | AE108: 7676800 | AF108: 5987810 | AG108: 1.162 | AH108: 999 | AI108: 1.1137 | AJ108: 0.6795 | AK108: 0.5307 | AL108: -999 | AM108: -999 | AN108: 0.7811 | AO108: 0.5537 | AP108: 0.2541 | AQ108: 0.1925 | AR108: 0.2647 | AS108: 0.7429 | AT108: 0.429 | AU108: 0.9808 | AV108: 1.3755 | AW108: 0.5774 | AX108: 0.4117 | AY108: 1.3971 | AZ108: 0.4502 | BA108: 0.6054 | BB108: 0.6469 | BC108: 1.1377 | BD108: 1.7352 | BE108: 0.846 | BF108: 1.0685 | BG108: 1.5252 | BH108: 1.2076
A109: 108 | B109: sp|O15511|ARPC5_HUMAN | C109: sp|O15511|ARPC5_HUMAN | D109: 20.5 | E109: 16.32 | F109: 151 | G109: 2 | H109: 2 | I109: 23 | J109: LAD-D;LAD-D-2;LAD-M-2;LAD-P;LAD-P-2;LCX-D;LCX-D-2;LCX-M;LCX-M-2;LCX-P;LM;LM-2;RCA-D;RCA-D-2;RCA-M;RCA-P;RCA-P-2 | K109: 19363000 | L109: 24921000 | M109: 16559000 | N109: 20403000 | O109: 17018000 | P109: 18103000 | Q109: 18825000 | R109: 15512000 | S109: 15881000 | T109: 31113000 | U109: 19769800 | V109: 22356000 | W109: 17615000 | X109: 24583000 | Y109: 15275000 | Z109: 19091000 | AA109: 16399000 | AB109: 8385000 | AC109: 10847000 | AD109: 3988000 | AE109: 21249000 | AF109: 15978800 | AG109: 0.7068 | AH109: 0.7166 | AI109: 1.1532 | AJ109: 1.505 | AK109: 1.2214 | AL109: 1.4846 | AM109: 1.6094 | AN109: 0.8116 | AO109: 0.7487 | AP109: 1.1218 | AQ109: 1.1642 | AR109: 2.2768 | AS109: 0.9401 | AT109: 0.904 | AU109: 0.9059 | AV109: 1.9558 | AW109: 0.9616 | AX109: 0.4454 | AY109: 1.1546 | AZ109: 0.6993 | BA109: 2.7199 | BB109: 0.5105 | BC109: 0.9768 | BD109: 0.4986 | BE109: 0.2511 | BF109: 0.1877 | BG109: 0.5104 | BH109: 0.683
A110: 109 | B110: sp|O43169|CYB5B_HUMAN | C110: sp|O43169|CYB5B_HUMAN | D110: 23.3 | E110: 16.332 | F110: 146 | G110: 1 | H110: 1 | I110: 12 | J110: LAD-D;LAD-D-2;LAD-M-2;LAD-P-2;LCX-D-2;LCX-M-2;LCX-P;LM-2;RCA-M;RCA-M-2;RCA-P-2 | K110: 4774800 | L110: 7289900 | M110: 0 | N110: 0 | O110: 0 | P110: 0 | Q110: 4904500 | R110: 0 | S110: 6209800 | T110: 0 | U110: 2317900 | V110: 4911000 | W110: 6607500 | X110: 7005100 | Y110: 5167700 | Z110: 11621000 | AA110: 8041900 | AB110: 6980400 | AC110: 0 | AD110: 6524400 | AE110: 6690400 | AF110: 6354940 | AG110: 0.9064 | AH110: 0.9432 | AI110: 1.2786 | AJ110: 999 | AK110: 999 | AL110: 999 | AM110: 1.3556 | AN110: NA | AO110: 999 | AP110: 999 | AQ110: 1.4451 | AR110: 1.6648 | AS110: NA | AT110: -999 | AU110: 999 | AV110: 1.1521 | AW110: -999 | AX110: 1.4233 | AY110: 1.0285 | AZ110: NA | BA110: -999 | BB110: -999 | BC110: -999 | BD110: NA | BE110: 1.0507 | BF110: 0.9752 | BG110: 999 | BH110: 999
A111: 110 | B111: sp|O43175|SERA_HUMAN | C111: sp|O43175|SERA_HUMAN | D111: 38.6 | E111: 56.65 | F111: 533 | G111: 13 | H111: 13 | I111: 101 | J111: LAD-D;LAD-D-2;LAD-M;LAD-M-2;LAD-P;LAD-P-2;LCX-D;LCX-D-2;LCX-M;LCX-M-2;LCX-P;LCX-P-2;LM;LM-2;RCA-D;RCA-D-2;RCA-M;RCA-M-2;RCA-P;RCA-P-2 | K111: 41315000 | L111: 63145000 | M111: 41808000 | N111: 6109500 | O111: 4389800 | P111: 42574000 | Q111: 31648000 | R111: 27754000 | S111: 44959000 | T111: 38377000 | U111: 34207930 | V111: 35825000 | W111: 47649000 | X111: 65304000 | Y111: 56917000 | Z111: 98316000 | AA111: 78451000 | AB111: 16286000 | AC111: 61490000 | AD111: 49884000 | AE111: 36794000 | AF111: 54691600 | AG111: 0.7546 | AH111: 0.7296 | AI111: 0.8372 | AJ111: 1.5104 | AK111: 10.3355 | AL111: 1.562 | AM111: 1.1474 | AN111: 6.8431 | AO111: 9.3161 | AP111: 22.3965 | AQ111: 1.2532 | AR111: 6.0368 | AS111: 0.1031 | AT111: 0.1387 | AU111: 1.8427 | AV111: 4.8171 | AW111: 1.3452 | AX111: 0.5146 | AY111: 0.8671 | AZ111: 2.2155 | BA111: 1.2327 | BB111: 1.6712 | BC111: 0.6173 | BD111: 0.7232 | BE111: 1.1095 | BF111: 1.3558 | BG111: 1.1715 | BH111: 0.9588
A112: 111 | B112: sp|O43181|NDUS4_HUMAN | C112: sp|O43181|NDUS4_HUMAN | D112: 41.7 | E112: 20.108 | F112: 175 | G112: 5 | H112: 5 | I112: 14 | J112: LCX-D-2;LCX-P-2;LM;RCA-D-2;RCA-M-2;RCA-P;RCA-P-2 | K112: 5578200 | L112: 4263500 | M112: 7666800 | N112: 0 | O112: 0 | P112: 2264400 | Q112: 990020 | R112: 0 | S112: 2593100 | T112: 10447000 | U112: 3380302 | V112: 2143200 | W112: 2959300 | X112: 2917200 | Y112: 2291500 | Z112: 6479800 | AA112: 3995400 | AB112: 7359600 | AC112: 3979800 | AD112: 1949500 | AE112: 3366000 | AF112: 3744130 | AG112: 0.6941 | AH112: 1.0144 | AI112: 1.2914 | AJ112: 0.5561 | AK112: 999 | AL112: 0.3805 | AM112: 1.2731 | AN112: 999 | AO112: 999 | AP112: 999 | AQ112: 1.6218 | AR112: 0.8805 | AS112: -999 | AT112: -999 | AU112: 1.7644 | AV112: 0.5429 | AW112: 2.2872 | AX112: 7.4338 | AY112: 0.3842 | AZ112: 999 | BA112: 2.0414 | BB112: 1.1824 | BC112: -999 | BD112: -999 | BE112: 0.7518 | BF112: 0.5792 | BG112: 0.2482 | BH112: 0.3222
A113: 112 | B113: sp|O43237|DC1L2_HUMAN | C113: sp|O43237|DC1L2_HUMAN | D113: 12.8 | E113: 54.099 | F113: 492 | G113: 4 | H113: 4 | I113: 10 | J113: LAD-D;LAD-M-2;LCX-D-2;LCX-M;LCX-P;LM;LM-2;RCA-P | K113: 6085100 | L113: 6608900 | M113: 9174800 | N113: 0 | O113: 3364300 | P113: 4218500 | Q113: 3609700 | R113: 0 | S113: 0 | T113: 7183800 | U113: 4024510 | V113: 0 | W113: 5042200 | X113: 5730100 | Y113: 5637900 | Z113: 5726300 | AA113: 5390000 | AB113: 0 | AC113: 0 | AD113: 3368200 | AE113: 4230000 | AF113: 3512470 | AG113: 0.7629 | AH113: 0.8799 | AI113: 0.8943 | AJ113: 0.7203 | AK113: 999 | AL113: 0.6245 | AM113: 1.0164 | AN113: 999 | AO113: 999 | AP113: 1.7021 | AQ113: 1.0624 | AR113: 999 | AS113: 0.7975 | AT113: 0.932 | AU113: 1.2777 | AV113: 999 | AW113: 1.1687 | AX113: -999 | AY113: -999 | AZ113: NA | BA113: -999 | BB113: -999 | BC113: NA | BD113: -999 | BE113: 999 | BF113: 0.7963 | BG113: -999 | BH113: 0.5888
A114: 113 | B114: sp|O43242|PSMD3_HUMAN | C114: sp|O43242|PSMD3_HUMAN | D114: 5.6 | E114: 60.977 | F114: 534 | G114: 2 | H114: 2 | I114: 10 | J114: LAD-D-2;LAD-P;LCX-D-2;LCX-M-2;LCX-P-2;RCA-M-2;RCA-P-2 | K114: 0 | L114: 2278800 | M114: 1871100 | N114: 8217500 | O114: 1777900 | P114: 2047700 | Q114: 2746500 | R114: 2460000 | S114: 1843100 | T114: 1684500 | U114: 2492710 | V114: 3432200 | W114: 5246400 | X114: 3008900 | Y114: 2944800 | Z114: 7361200 | AA114: 4444500 | AB114: 4243600 | AC114: 2315900 | AD114: 4313000 | AE114: 5408800 | AF114: 4271930 | AG114: 2.3023 | AH114: 1.7436 | AI114: 1.7816 | AJ114: 1.2179 | AK114: 0.2773 | AL114: 1.6081 | AM114: 1.0218 | AN114: 0.2277 | AO114: 0.3584 | AP114: 4.1404 | AQ114: 1.6562 | AR114: 1.7347 | AS114: 0.8682 | AT114: 0.6473 | AU114: 2.1705 | AV114: 1.0473 | AW114: 0.7456 | AX114: 1.5451 | AY114: 999 | AZ114: 0.9414 | BA114: 0.537 | BB114: 0.4282 | BC114: 1.3347 | BD114: 1.4604 | BE114: 2.3401 | BF114: 0.7974 | BG114: 1.0942 | BH114: 3.2109
A115: 114 | B115: sp|O43286|B4GT5_HUMAN | C115: sp|O43286|B4GT5_HUMAN | D115: 2.1 | E115: 45.118 | F115: 388 | G115: 1 | H115: 1 | I115: 1 | J115: LCX-M | K115: 0 | L115: 0 | M115: 0 | N115: 567590 | O115: 0 | P115: 2637700 | Q115: 0 | R115: 0 | S115: 0 | T115: 0 | U115: 320529 | V115: 0 | W115: 662630 | X115: 0 | Y115: 0 | Z115: 0 | AA115: 0 | AB115: 0 | AC115: 0 | AD115: 0 | AE115: 0 | AF115: 66263 | AG115: 999 | AH115: 999 | AI115: 999 | AJ115: NA | AK115: -999 | AL115: NA | AM115: NA | AN115: -999 | AO115: -999 | AP115: NA | AQ115: NA | AR115: NA | AS115: -999 | AT115: NA | AU115: -999 | AV115: NA | AW115: 999 | AX115: NA | AY115: NA | AZ115: NA | BA115: NA | BB115: NA | BC115: NA | BD115: NA | BE115: NA | BF115: NA | BG115: NA | BH115: NA
A116: 115 | B116: sp|O43294|TGFI1_HUMAN | C116: sp|O43294|TGFI1_HUMAN | D116: 55.5 | E116: 49.814 | F116: 461 | G116: 17 | H116: 17 | I116: 259 | J116: LAD-D;LAD-D-2;LAD-M;LAD-M-2;LAD-P;LAD-P-2;LCX-D;LCX-D-2;LCX-M;LCX-M-2;LCX-P;LCX-P-2;LM;LM-2;RCA-D;RCA-D-2;RCA-M;RCA-M-2;RCA-P;RCA-P-2 | K116: 138210000 | L116: 217680000 | M116: 149550000 | N116: 99974000 | O116: 86992000 | P116: 86641000 | Q116: 77978000 | R116: 34589000 | S116: 87246000 | T116: 122900000 | U116: 110176000 | V116: 73673000 | W116: 141430000 | X116: 128550000 | Y116: 115650000 | Z116: 39388000 | AA116: 208930000 | AB116: 73864000 | AC116: 208600000 | AD116: 78683000 | AE116: 93725000 | AF116: 116249300 | AG116: 0.6497 | AH116: 1.1002 | AI116: 1.2229 | AJ116: 1.4556 | AK116: 2.1774 | AL116: 0.8596 | AM116: 1.1115 | AN116: 1.4959 | AO116: 1.1568 | AP116: 0.4528 | AQ116: 0.1885 | AR116: 0.5333 | AS116: 1.0041 | AT116: 1.1156 | AU116: 2.4114 | AV116: 2.8286 | AW116: 1.1111 | AX116: 0.9472 | AY116: 0.5331 | AZ116: 6.0308 | BA116: 2.6511 | BB116: 2.2257 | BC116: 0.3965 | BD116: 0.2814 | BE116: 0.9019 | BF116: 0.8395 | BG116: 0.7099 | BH116: 0.7626
A117: 116 | B117: sp|O43301|HS12A_HUMAN | C117: sp|O43301|HS12A_HUMAN | D117: 26.1 | E117: 74.977 | F117: 675 | G117: 13 | H117: 13 | I117: 54 | J117: LAD-D;LAD-D-2;LAD-M;LAD-M-2;LAD-P;LAD-P-2;LCX-D;LCX-D-2;LCX-M;LCX-M-2;LCX-P;LCX-P-2;LM;LM-2;RCA-D;RCA-D-2;RCA-M;RCA-M-2;RCA-P;RCA-P-2 | K117: 20139000 | L117: 27511000 | M117: 15919000 | N117: 27073000 | O117: 9191400 | P117: 20728000 | Q117: 13530000 | R117: 14976000 | S117: 13022000 | T117: 13109000 | U117: 17519840 | V117: 12281000 | W117: 15291000 | X117: 23555000 | Y117: 19337000 | Z117: 24507000 | AA117: 17316000 | AB117: 9363000 | AC117: 10421000 | AD117: 11958000 | AE117: 11065000 | AF117: 15509400 | AG117: 0.5558 | AH117: 0.6492 | AI117: 0.7908 | AJ117: 1.7282 | AK117: 1.0162 | AL117: 1.4797 | AM117: 1.2181 | AN117: 0.588 | AO117: 0.7143 | AP117: 2.6663 | AQ117: 1.4153 | AR117: 2.6174 | AS117: 0.4434 | AT117: 0.6793 | AU117: 0.8354 | AV117: 1.8494 | AW117: 1.532 | AX117: 0.692 | AY117: 0.6098 | AZ117: 0.6958 | BA117: 0.8715 | BB117: 0.9418 | BC117: 1.1501 | BD117: 1.1424 | BE117: 0.9183 | BF117: 1.0807 | BG117: 0.9934 | BH117: 0.8441
A118: 117 | B118: sp|O43390|HNRPR_HUMAN | C118: sp|O43390|HNRPR_HUMAN | D118: 9.5 | E118: 70.942 | F118: 633 | G118: 8 | H118: 5 | I118: 33 | J118: LAD-D;LAD-D-2;LAD-M;LAD-M-2;LAD-P;LAD-P-2;LCX-D-2;LCX-M;LCX-M-2;LCX-P;LCX-P-2;LM;LM-2;RCA-D;RCA-D-2;RCA-M-2;RCA-P;RCA-P-2 | K118: 3926500 | L118: 5796800 | M118: 7238100 | N118: 8816200 | O118: 4615200 | P118: 5658400 | Q118: 5922800 | R118: 3733100 | S118: 5410800 | T118: 7367300 | U118: 5848520 | V118: 4726500 | W118: 7264400 | X118: 6439800 | Y118: 5260700 | Z118: 8340600 | AA118: 11950000 | AB118: 10317000 | AC118: 7369700 | AD118: 3526200 | AE118: 4547400 | AF118: 6974230 | AG118: 1.2532 | AH118: 1.128 | AI118: 1.3809 | AJ118: 0.8009 | AK118: 0.6575 | AL118: 0.8897 | AM118: 1.2241 | AN118: 0.821 | AO118: 0.5967 | AP118: 1.8072 | AQ118: 0.698 | AR118: 0.8084 | AS118: 0.8156 | AT118: 0.7792 | AU118: 2.1119 | AV118: 1.1583 | AW118: 0.9554 | AX118: 1.7419 | AY118: 1.2037 | AZ118: 1.9742 | BA118: 2.09 | BB118: 1.6206 | BC118: 0.6899 | BD118: 0.5067 | BE118: 0.6517 | BF118: 0.7754 | BG118: 0.7344 | BH118: 0.6172
A119: 118 | B119: sp|O43396|TXNL1_HUMAN | C119: sp|O43396|TXNL1_HUMAN | D119: 13.8 | E119: 32.251 | F119: 289 | G119: 3 | H119: 3 | I119: 24 | J119: LAD-D;LAD-D-2;LAD-M;LAD-M-2;LAD-P;LCX-D;LCX-D-2;LCX-M;LCX-M-2;LCX-P;LCX-P-2;LM;LM-2;RCA-D;RCA-D-2;RCA-M;RCA-M-2;RCA-P;RCA-P-2 | K119: 4519400 | L119: 5286800 | M119: 5184400 | N119: 9990700 | O119: 3198300 | P119: 3575600 | Q119: 8566400 | R119: 5350700 | S119: 5743600 | T119: 6702700 | U119: 5811860 | V119: 6478800 | W119: 6733700 | X119: 5182600 | Y119: 3803000 | Z119: 6265200 | AA119: 808880 | AB119: 3583100 | AC119: 5482700 | AD119: 4928400 | AE119: 6077400 | AF119: 4934378 | AG119: 1.2737 | AH119: 1.2993 | AI119: 1.7706 | AJ119: 1.0198 | AK119: 0.5292 | AL119: 0.9997 | AM119: 1.3628 | AN119: 0.5189 | AO119: 0.3807 | AP119: 1.9589 | AQ119: 7.7455 | AR119: 1.7485 | AS119: 0.8945 | AT119: 0.3734 | AU119: 0.2262 | AV119: 0.2257 | AW119: 0.4174 | AX119: 0.4183 | AY119: 1.4336 | AZ119: 1.0247 | BA119: 1.1125 | BB119: 0.9021 | BC119: 0.9316 | BD119: 0.7983 | BE119: 0.8581 | BF119: 0.8109 | BG119: 0.8569 | BH119: 0.9067
A120: 119 | B120: sp|O43399|TPD54_HUMAN | C120: sp|O43399|TPD54_HUMAN | D120: 47.6 | E120: 22.237 | F120: 206 | G120: 6 | H120: 6 | I120: 77 | J120: LAD-D;LAD-D-2;LAD-M;LAD-M-2;LAD-P;LAD-P-2;LCX-D;LCX-D-2;LCX-M;LCX-M-2;LCX-P;LCX-P-2;LM;LM-2;RCA-D;RCA-D-2;RCA-M;RCA-M-2;RCA-P;RCA-P-2 | K120: 130530000 | L120: 168450000 | M120: 171710000 | N120: 29474000 | O120: 115920000 | P120: 121690000 | Q120: 62796000 | R120: 86780000 | S120: 106250000 | T120: 140720000 | U120: 113432000 | V120: 141670000 | W120: 164420000 | X120: 185400000 | Y120: 145040000 | Z120: 170830000 | AA120: 139100000 | AB120: 81012000 | AC120: 147120000 | AD120: 100730000 | AE120: 160420000 | AF120: 143574200 | AG120: 0.9761 | AH120: 0.8868 | AI120: 1.1336 | AJ120: 0.981 | AK120: 5.7152 | AL120: 1.0797 | AM120: 1.2783 | AN120: 5.8258 | AO120: 4.9209 | AP120: 1.4737 | AQ120: 1.2281 | AR120: 2.1087 | AS120: 0.9526 | AT120: 1.846 | AU120: 1.1431 | AV120: 1.717 | AW120: 1.9379 | AX120: 1.2901 | AY120: 1.0853 | AZ120: 1.6953 | BA120: 1.4605 | BB120: 0.9171 | BC120: 0.8168 | BD120: 0.6167 | BE120: 0.948 | BF120: 0.6279 | BG120: 0.755 | BH120: 1.14
A121: 120 | B121: sp|O43488|ARK72_HUMAN | C121: sp|O43488|ARK72_HUMAN | D121: 28.4 | E121: 39.589 | F121: 359 | G121: 7;1 | H121: 7 | I121: 43 | J121: LAD-D;LAD-D-2;LAD-M;LAD-M-2;LAD-P;LAD-P-2;LCX-D;LCX-D-2;LCX-M;LCX-M-2;LCX-P;LM;RCA-D;RCA-D-2;RCA-M;RCA-M-2;RCA-P;RCA-P-2 | K121: 25203000 | L121: 29732000 | M121: 26744000 | N121: 21124000 | O121: 8841900 | P121: 33652000 | Q121: 19819000 | R121: 16393000 | S121: 47555000 | T121: 21297000 | U121: 25036090 | V121: 14817000 | W121: 17787000 | X121: 19411000 | Y121: 33027000 | Z121: 14955000 | AA121: 21642000 | AB121: 12640000 | AC121: 20089000 | AD121: 18105000 | AE121: 20656000 | AF121: 19312900 | AG121: 0.5982 | AH121: 0.9163 | AI121: 0.5386 | AJ121: 1.1117 | AK121: 1.4075 | AL121: 0.7258 | AM121: 0.5877 | AN121: 1.266 | AO121: 1.5635 | AP121: 1.6914 | AQ121: 0.691 | AR121: 1.1831 | AS121: 0.2627 | AT121: 0.4461 | AU121: 0.6431 | AV121: 1.7122 | AW121: 1.698 | AX121: 0.6378 | AY121: 0.5879 | AZ121: 1.2255 | BA121: 1.1096 | BB121: 0.9726 | BC121: 0.3447 | BD121: 0.7697 | BE121: 0.3807 | BF121: 0.8765 | BG121: 2.2329 | BH121: 0.9699
A122: 121 | B122: sp|O43491|E41L2_HUMAN | C122: sp|O43491|E41L2_HUMAN | D122: 23.9 | E122: 112.59 | F122: 1005 | G122: 13 | H122: 13 | I122: 118 | J122: LAD-D;LAD-D-2;LAD-M;LAD-M-2;LAD-P;LAD-P-2;LCX-D;LCX-D-2;LCX-M;LCX-M-2;LCX-P;LCX-P-2;LM;LM-2;RCA-D;RCA-D-2;RCA-M;RCA-M-2;RCA-P;RCA-P-2 | K122: 52067000 | L122: 53842000 | M122: 58195000 | N122: 32596000 | O122: 18380000 | P122: 40459000 | Q122: 29196000 | R122: 30626000 | S122: 33332000 | T122: 40040000 | U122: 38873300 | V122: 51685000 | W122: 46092000 | X122: 50712000 | Y122: 41703000 | Z122: 58011000 | AA122: 37697000 | AB122: 30475000 | AC122: 39915000 | AD122: 31430000 | AE122: 35634000 | AF122: 42335400 | AG122: 0.8561 | AH122: 0.9089 | AI122: 1.1052 | AJ122: 0.9252 | AK122: 1.6518 | AL122: 0.8714 | AM122: 1.216 | AN122: 1.7853 | AO122: 1.2794 | AP122: 3.1562 | AQ122: 1.5389 | AR122: 1.9036 | AS122: 0.4543 | AT122: 0.6295 | AU122: 0.9317 | AV122: 1.237 | AW122: 1.3858 | AX122: 1.0438 | AY122: 0.9927 | AZ122: 1.3033 | BA122: 1.27 | BB122: 1.1201 | BC122: 0.9188 | BD122: 0.7649 | BE122: 0.9429 | BF122: 0.882 | BG122: 0.8325 | BH122: 0.89
A123: 122 | B123: sp|O43504|LTOR5_HUMAN | C123: sp|O43504|LTOR5_HUMAN | D123: 37.4 | E123: 9.6138 | F123: 91 | G123: 1 | H123: 1 | I123: 4 | J123: LCX-D-2;LM;RCA-M;RCA-P | K123: 3186300 | L123: 0 | M123: 0 | N123: 0 | O123: 0 | P123: 1115600 | Q123: 0 | R123: 0 | S123: 2364300 | T123: 2517400 | U123: 918360 | V123: 0 | W123: 0 | X123: 1653100 | Y123: 1431600 | Z123: 7312700 | AA123: 0 | AB123: 780130 | AC123: 0 | AD123: 629450 | AE123: 0 | AF123: 1180698 | AG123: NA | AH123: -999 | AI123: -999 | AJ123: NA | AK123: NA | AL123: 999 | AM123: 1.1547 | AN123: NA | AO123: 999 | AP123: 999 | AQ123: 999 | AR123: 9.3737 | AS123: -999 | AT123: NA | AU123: -999 | AV123: -999 | AW123: 999 | AX123: 999 | AY123: -999 | AZ123: NA | BA123: -999 | BB123: NA | BC123: -999 | BD123: -999 | BE123: 0.2662 | BF123: 999 | BG123: 0.9392 | BH123: -999
A124: 123 | B124: sp|O43598|DNPH1_HUMAN | C124: sp|O43598|DNPH1_HUMAN | D124: 16.1 | E124: 19.108 | F124: 174 | G124: 2 | H124: 2 | I124: 10 | J124: LAD-M;LAD-M-2;LCX-M;LCX-P;LCX-P-2;LM;RCA-D-2;RCA-M;RCA-P | K124: 2968900 | L124: 4096400 | M124: 3018200 | N124: 0 | O124: 5296100 | P124: 3412400 | Q124: 6712100 | R124: 0 | S124: 3301000 | T124: 5258900 | U124: 3406400 | V124: 0 | W124: 2316800 | X124: 0 | Y124: 0 | Z124: 5463000 | AA124: 2076200 | AB124: 3694200 | AC124: 3658000 | AD124: 0 | AE124: 2929600 | AF124: 2013780 | AG124: 0.5656 | AH124: 999 | AI124: 999 | AJ124: 1.3572 | AK124: 999 | AL124: -999 | AM124: NA | AN124: 999 | AO124: NA | AP124: 1.0315 | AQ124: 2.6312 | AR124: 1.4788 | AS124: 1.552 | AT124: 0.789 | AU124: 0.6084 | AV124: 0.562 | AW124: 0.5084 | AX124: 0.5504 | AY124: -999 | AZ124: 999 | BA124: 999 | BB124: 1.2486 | BC124: -999 | BD124: -999 | BE124: -999 | BF124: -999 | BG124: 0.6277 | BH124: 0.5571
A125: 124 | B125: sp|O43615|TIM44_HUMAN | C125: sp|O43615|TIM44_HUMAN | D125: 8.8 | E125: 51.355 | F125: 452 | G125: 3 | H125: 3 | I125: 5 | J125: LAD-D;LCX-P-2;RCA-M-2 | K125: 1083100 | L125: 1684100 | M125: 1124500 | N125: 0 | O125: 0 | P125: 396070 | Q125: 0 | R125: 0 | S125: 0 | T125: 0 | U125: 428777 | V125: 0 | W125: 0 | X125: 1253200 | Y125: 859440 | Z125: 0 | AA125: 1335500 | AB125: 3785300 | AC125: 0 | AD125: 2892400 | AE125: 0 | AF125: 1012584 | AG125: -999 | AH125: -999 | AI125: -999 | AJ125: 1.4976 | AK125: 999 | AL125: 1.1145 | AM125: 1.4582 | AN125: 999 | AO125: 999 | AP125: NA | AQ125: -999 | AR125: -999 | AS125: -999 | AT125: NA | AU125: 3.3719 | AV125: 0.3528 | AW125: 999 | AX125: 999 | AY125: -999 | AZ125: NA | BA125: -999 | BB125: NA | BC125: NA | BD125: NA | BE125: 999 | BF125: 999 | BG125: NA | BH125: NA
A126: 125 | B126: sp|O43674|NDUB5_HUMAN | C126: sp|O43674|NDUB5_HUMAN | D126: 27.5 | E126: 21.75 | F126: 189 | G126: 4 | H126: 4 | I126: 15 | J126: LCX-D-2;LCX-P-2;RCA-M-2 | K126: 4615500 | L126: 5521600 | M126: 0 | N126: 0 | O126: 3201300 | P126: 0 | Q126: 3942500 | R126: 2346000 | S126: 1763000 | T126: 0 | U126: 2138990 | V126: 3069100 | W126: 2878800 | X126: 3391100 | Y126: 1731800 | Z126: 8799400 | AA126: 0 | AB126: 38959000 | AC126: 4263400 | AD126: 14949000 | AE126: 3390400 | AF126: 8143200 | AG126: 0.5214 | AH126: 0.8489 | AI126: 1.6623 | AJ126: 999 | AK126: 999 | AL126: 999 | AM126: 1.9581 | AN126: NA | AO126: 999 | AP126: 2.7487 | AQ126: 999 | AR126: 0.2259 | AS126: 999 | AT126: 0.812 | AU126: NA | AV126: -999 | AW126: -999 | AX126: 9.8818 | AY126: 0.665 | AZ126: 1.8173 | BA126: 0.2852 | BB126: 1.2575 | BC126: 1.3307 | BD126: 999 | BE126: 8.4793 | BF126: 4.4092 | BG126: 999 | BH126: 999
A127: 126 | B127: sp|O43678|NDUA2_HUMAN | C127: sp|O43678|NDUA2_HUMAN | D127: 42.4 | E127: 10.921 | F127: 99 | G127: 4 | H127: 4 | I127: 9 | J127: LCX-M-2;LCX-P-2;RCA-M-2;RCA-P-2 | K127: 680380 | L127: 1312700 | M127: 1489900 | N127: 0 | O127: 0 | P127: 0 | Q127: 0 | R127: 0 | S127: 0 | T127: 0 | U127: 348298 | V127: 0 | W127: 1243800 | X127: 398840 | Y127: 0 | Z127: 1147600 | AA127: 1665200 | AB127: 64616000 | AC127: 873520 | AD127: 19805000 | AE127: 6775000 | AF127: 9652496 | AG127: 0.9475 | AH127: 3.1185 | AI127: 999 | AJ127: 0.8811 | AK127: 999 | AL127: 0.2677 | AM127: 999 | AN127: 999 | AO127: NA | AP127: 999 | AQ127: 0.6892 | AR127: 0.0178 | AS127: NA | AT127: NA | AU127: 999 | AV127: 0.0258 | AW127: NA | AX127: 999 | AY127: -999 | AZ127: 999 | BA127: 0.0441 | BB127: 0.1289 | BC127: NA | BD127: NA | BE127: 999 | BF127: 2.9232 | BG127: NA | BH127: 999
A128: 127 | B128: sp|O43681|ASNA_HUMAN | C128: sp|O43681|ASNA_HUMAN | D128: 10.1 | E128: 38.792 | F128: 348 | G128: 3 | H128: 3 | I128: 12 | J128: LAD-D;LAD-P-2;LCX-D-2;LCX-M-2;LM-2;RCA-M-2;RCA-P;RCA-P-2 | K128: 6731200 | L128: 3681700 | M128: 2215300 | N128: 2200000 | O128: 0 | P128: 4925900 | Q128: 1687500 | R128: 3178400 | S128: 3866400 | T128: 2130700 | U128: 3061710 | V128: 5613600 | W128: 6297800 | X128: 4372300 | Y128: 4165100 | Z128: 15244000 | AA128: 16459000 | AB128: 4422000 | AC128: 6223700 | AD128: 4413100 | AE128: 7219300 | AF128: 7442990 | AG128: 1.7106 | AH128: 1.4404 | AI128: 1.512 | AJ128: 1.6619 | AK128: 1.6735 | AL128: 1.9737 | AM128: 1.0497 | AN128: 1.007 | AO128: 1.8932 | AP128: 999 | AQ128: 0.9262 | AR128: 3.4473 | AS128: -999 | AT128: -999 | AU128: 3.3413 | AV128: 3.7221 | AW128: 2.9191 | AX128: 2.6204 | AY128: 0.834 | AZ128: 1.9581 | BA128: 1.4103 | BB128: 0.8621 | BC128: 0.8221 | BD128: 1.4917 | BE128: 1.1414 | BF128: 0.6113 | BG128: 1.8146 | BH128: 3.3882
A129: 128 | B129: sp|O43707|ACTN4_HUMAN | C129: sp|O43707|ACTN4_HUMAN | D129: 66.5 | E129: 104.85 | F129: 911 | G129: 79 | H129: 54 | I129: 1452 | J129: LAD-D;LAD-D-2;LAD-M;LAD-M-2;LAD-P;LAD-P-2;LCX-D;LCX-D-2;LCX-M;LCX-M-2;LCX-P;LCX-P-2;LM;LM-2;RCA-D;RCA-D-2;RCA-M;RCA-M-2;RCA-P;RCA-P-2 | K129: 1208900000 | L129: 1380800000 | M129: 1174700000 | N129: 1630500000 | O129: 936260000 | P129: 943660000 | Q129: 1168600000 | R129: 708990000 | S129: 973720000 | T129: 995150000 | U129: 1112128000 | V129: 945950000 | W129: 1282000000 | X129: 1189400000 | Y129: 1146100000 | Z129: 662890000 | AA129: 1103200000 | AB129: 603960000 | AC129: 1403400000 | AD129: 760070000 | AE129: 823680000 | AF129: 992065000 | AG129: 0.9284 | AH129: 1.0779 | AI129: 1.1186 | AJ129: 1.1754 | AK129: 0.8469 | AL129: 1.0125 | AM129: 1.0378 | AN129: 0.7205 | AO129: 0.7029 | AP129: 0.708 | AQ129: 0.6009 | AR129: 1.0976 | AS129: 0.9922 | AT129: 0.8012 | AU129: 1.1691 | AV129: 1.8266 | AW129: 0.8075 | AX129: 0.5168 | AY129: 0.7825 | AZ129: 1.9794 | BA129: 1.8464 | BB129: 1.7038 | BC129: 0.7281 | BD129: 0.7124 | BE129: 0.7806 | BF129: 0.9228 | BG129: 0.9785 | BH129: 0.8277
A130: 129 | B130: sp|O43765|SGTA_HUMAN | C130: sp|O43765|SGTA_HUMAN | D130: 9.3 | E130: 34.063 | F130: 313 | G130: 2 | H130: 2 | I130: 10 | J130: LAD-D-2;LAD-M-2;LAD-P;LAD-P-2;LCX-M;LM-2;RCA-M-2;RCA-P;RCA-P-2 | K130: 1236600 | L130: 1613700 | M130: 0 | N130: 0 | O130: 1287300 | P130: 1597300 | Q130: 709960 | R130: 0 | S130: 979400 | T130: 1190500 | U130: 861476 | V130: 1377000 | W130: 2273700 | X130: 1457900 | Y130: 1073000 | Z130: 887740 | AA130: 0 | AB130: 1567000 | AC130: 2148700 | AD130: 1763500 | AE130: 1695300 | AF130: 1424384 | AG130: 1.409 | AH130: 1.5596 | AI130: 2.119 | AJ130: 999 | AK130: 999 | AL130: 999 | AM130: 1.3587 | AN130: NA | AO130: 999 | AP130: 0.6896 | AQ130: 999 | AR130: 0.5665 | AS130: 0.8059 | AT130: 1.8132 | AU130: -999 | AV130: -999 | AW130: 2.2498 | AX130: 2.2072 | AY130: 1.1135 | AZ130: 999 | BA130: 1.2184 | BB130: 1.2674 | BC130: -999 | BD130: -999 | BE130: 1.8006 | BF130: 1.0402 | BG130: 0.8227 | BH130: 1.424
A131: 130 | B131: sp|O43772|MCAT_HUMAN | C131: sp|O43772|MCAT_HUMAN | D131: 23.9 | E131: 32.943 | F131: 301 | G131: 6 | H131: 6 | I131: 8 | J131: LCX-P-2;RCA-D;RCA-M-2;RCA-P-2 | K131: 0 | L131: 4650900 | M131: 0 | N131: 0 | O131: 0 | P131: 3417600 | Q131: 0 | R131: 0 | S131: 0 | T131: 0 | U131: =AVERAGE(K131:T131) -> 806850 | V131: 2787600 | W131: 0 | X131: 1958400 | Y131: 3240100 | Z131: 3594100 | AA131: 0 | AB131: 33177000 | AC131: 0 | AD131: 16356000 | AE131: 3580300 | AF131: =AVERAGE(V131:AE131) -> 6469350 | AG131: -999 | AH131: -999 | AI131: -999 | AJ131: 999 | AK131: 999 | AL131: 999 | AM131: 0.6044 | AN131: NA | AO131: 999 | AP131: 999 | AQ131: 999 | AR131: 0.1083 | AS131: -999 | AT131: NA | AU131: -999 | AV131: -999 | AW131: 999 | AX131: 999 | AY131: 999 | AZ131: NA | BA131: -999 | BB131: -999 | BC131: NA | BD131: NA | BE131: 999 | BF131: 4.5683 | BG131: NA | BH131: 999
A132: 131 | B132: sp|O43776|SYNC_HUMAN | C132: sp|O43776|SYNC_HUMAN | D132: 7.8 | E132: 62.942 | F132: 548 | G132: 4 | H132: 4 | I132: 13 | J132: LAD-D;LAD-D-2;LAD-M;LCX-D-2;LCX-M;LCX-M-2;LCX-P-2;LM;RCA-M;RCA-M-2;RCA-P-2 | K132: 8075300 | L132: 8745600 | M132: 8724300 | N132: 0 | O132: 0 | P132: 9917000 | Q132: 0 | R132: 0 | S132: 9300000 | T132: 6893300 | U132: 5165550 | V132: 6458300 | W132: 8529900 | X132: 7479800 | Y132: 5995600 | Z132: 15124000 | AA132: 6829100 | AB132: 4566800 | AC132: 7586700 | AD132: 4687200 | AE132: 6512300 | AF132: 7376970 | AG132: 0.9753 | AH132: 1.1404 | AI132: 1.4227 | AJ132: 1.0024 | AK132: 999 | AL132: 0.8574 | AM132: 1.2475 | AN132: 999 | AO132: 999 | AP132: 999 | AQ132: 2.2146 | AR132: 3.3117 | AS132: -999 | AT132: NA | AU132: 0.6886 | AV132: 1.4954 | AW132: 999 | AX132: 999 | AY132: 0.7998 | AZ132: 999 | BA132: 1.6186 | BB132: 1.165 | BC132: -999 | BD132: -999 | BE132: 0.504 | BF132: 0.7197 | BG132: 1.3491 | BH132: 0.9447
A133: 132 | B133: sp|O43795|MYO1B_HUMAN | C133: sp|O43795|MYO1B_HUMAN | D133: 3.9 | E133: 131.98 | F133: 1136 | G133: 2 | H133: 2 | I133: 6 | J133: LAD-D;LAD-D-2;LCX-D-2;LCX-M-2;RCA-D-2;RCA-P-2 | K133: 1747400 | L133: 1125400 | M133: 1341100 | N133: 0 | O133: 0 | P133: 1624200 | Q133: 0 | R133: 0 | S133: 0 | T133: 1940500 | U133: 777860 | V133: 1612900 | W133: 1472400 | X133: 1652800 | Y133: 2300400 | Z133: 6719100 | AA133: 7185900 | AB133: 1213100 | AC133: 1755500 | AD133: 1840600 | AE133: 1561200 | AF133: 2731390 | AG133: 1.3083 | AH133: 0.8909 | AI133: 0.6401 | AJ133: 0.8392 | AK133: 999 | AL133: 1.2324 | AM133: 0.7185 | AN133: 999 | AO133: 999 | AP133: 999 | AQ133: 0.935 | AR133: 5.5388 | AS133: -999 | AT133: NA | AU133: 4.4243 | AV133: 5.9236 | AW133: 999 | AX133: 999 | AY133: 0.923 | AZ133: 999 | BA133: 0.9538 | BB133: 1.1245 | BC133: NA | BD133: -999 | BE133: 999 | BF133: 1.179 | BG133: -999 | BH133: 0.8045
A134: 133 | B134: sp|O43813|LANC1_HUMAN | C134: sp|O43813|LANC1_HUMAN | D134: 24.8 | E134: 45.283 | F134: 399 | G134: 6 | H134: 6 | I134: 23 | J134: LAD-D;LAD-D-2;LAD-M-2;LAD-P;LAD-P-2;LCX-M;LCX-M-2;LCX-P-2;LM;RCA-D-2;RCA-M-2 | K134: 16289000 | L134: 11402000 | M134: 8370300 | N134: 4963300 | O134: 0 | P134: 7900800 | Q134: 3721900 | R134: 3515900 | S134: 6458900 | T134: 7580400 | U134: 7020250 | V134: 8204300 | W134: 10173000 | X134: 11706000 | Y134: 8945300 | Z134: 7982600 | AA134: 16946000 | AB134: 11132000 | AC134: 21420000 | AD134: 14107000 | AE134: 7552100 | AF134: 11816830 | AG134: 0.8922 | AH134: 0.869 | AI134: 1.1372 | AJ134: 1.3622 | AK134: 2.2973 | AL134: 1.3985 | AM134: 1.3086 | AN134: 1.6864 | AO134: 1.8023 | AP134: 999 | AQ134: 0.4711 | AR134: 0.7171 | AS134: -999 | AT134: -999 | AU134: 2.1448 | AV134: 1.5223 | AW134: 2.1228 | AX134: 2.9909 | AY134: 0.5037 | AZ134: 6.0923 | BA134: 1.5184 | BB134: 2.8363 | BC134: 0.5443 | BD134: 0.4638 | BE134: 2.1841 | BF134: 1.868 | BG134: 0.8521 | BH134: 0.9963
A135: 134 | B135: sp|O43837|IDH3B_HUMAN | C135: sp|O43837|IDH3B_HUMAN | D135: 27.3 | E135: 42.183 | F135: 385 | G135: 6 | H135: 6 | I135: 12 | J135: LAD-M-2;LCX-P-2;RCA-M-2 | K135: 3214000 | L135: 3981900 | M135: 0 | N135: 0 | O135: 6321200 | P135: 0 | Q135: 5160400 | R135: 4321800 | S135: 0 | T135: 0 | U135: 2299930 | V135: 0 | W135: 3496300 | X135: 5789800 | Y135: 0 | Z135: 7394200 | AA135: 5256100 | AB135: 27433000 | AC135: 4419100 | AD135: 15693000 | AE135: 5210700 | AF135: 7469220 | AG135: 0.878 | AH135: 0.6039 | AI135: 999 | AJ135: 999 | AK135: 999 | AL135: 999 | AM135: 999 | AN135: NA | AO135: NA | AP135: 1.1697 | AQ135: 1.4068 | AR135: 0.2695 | AS135: 999 | AT135: 1.2249 | AU135: 999 | AV135: 0.1916 | AW135: -999 | AX135: 5.3161 | AY135: -999 | AZ135: 1.0225 | BA135: 0.2816 | BB135: 0.8481 | BC135: 999 | BD135: 999 | BE135: 999 | BF135: 3.0117 | BG135: NA | BH135: 999
A136: 135 | B136: sp|O43852|CALU_HUMAN | C136: sp|O43852|CALU_HUMAN | D136: 23.5 | E136: 37.106 | F136: 315 | G136: 6 | H136: 6 | I136: 56 | J136: LAD-D;LAD-D-2;LAD-M-2;LAD-P-2;LCX-D;LCX-D-2;LCX-M;LCX-M-2;LCX-P;LCX-P-2;LM;LM-2;RCA-D;RCA-D-2;RCA-M-2;RCA-P;RCA-P-2 | K136: 25977000 | L136: 33713000 | M136: 13953000 | N136: 18835000 | O136: 28890000 | P136: 25859000 | Q136: 21755000 | R136: 21816000 | S136: 17777000 | T136: 29191000 | U136: 23776600 | V136: 39322000 | W136: 24267000 | X136: 41569000 | Y136: 27303000 | Z136: 36908000 | AA136: 25441000 | AB136: 18532000 | AC136: 23239000 | AD136: 19632000 | AE136: 49351000 | AF136: 30556400 | AG136: 0.7198 | AH136: 0.5838 | AI136: 0.8888 | AJ136: 2.4162 | AK136: 1.7899 | AL136: 2.9792 | AM136: 1.5225 | AN136: 0.7408 | AO136: 1.4496 | AP136: 1.2775 | AQ136: 1.4507 | AR136: 1.9916 | AS136: 1.1172 | AT136: 1.328 | AU136: 0.9838 | AV136: 1.3728 | AW136: 1.1886 | AX136: 0.8519 | AY136: 1.5137 | AZ136: 1.0652 | BA136: 1.1837 | BB136: 0.4709 | BC136: 1.2272 | BD136: 0.7474 | BE136: 1.1043 | BF136: 0.3978 | BG136: 0.609 | BH136: 1.6906
A137: 136 | B137: sp|O43854|EDIL3_HUMAN | C137: sp|O43854|EDIL3_HUMAN | D137: 12.7 | E137: 53.764 | F137: 480 | G137: 4 | H137: 4 | I137: 8 | J137: LAD-P;LM;RCA-M | K137: 4912400 | L137: 0 | M137: 7354500 | N137: 25668000 | O137: 0 | P137: 6747400 | Q137: 0 | R137: 0 | S137: 18819000 | T137: 8096400 | U137: 7159770 | V137: 5354600 | W137: 0 | X137: 0 | Y137: 0 | Z137: 0 | AA137: 0 | AB137: 0 | AC137: 0 | AD137: 4079100 | AE137: 0 | AF137: 943370 | AG137: NA | AH137: NA | AI137: NA | AJ137: -999 | AK137: -999 | AL137: -999 | AM137: NA | AN137: 0.2865 | AO137: -999 | AP137: NA | AQ137: NA | AR137: NA | AS137: -999 | AT137: NA | AU137: -999 | AV137: NA | AW137: 999 | AX137: NA | AY137: 1.09 | AZ137: NA | BA137: -999 | BB137: NA | BC137: -999 | BD137: -999 | BE137: 0.2168 | BF137: 999 | BG137: 2.3244 | BH137: -999
A138: 137 | B138: sp|O43866|CD5L_HUMAN | C138: sp|O43866|CD5L_HUMAN | D138: 44.4 | E138: 38.087 | F138: 347 | G138: 10 | H138: 10 | I138: 52 | J138: LAD-D;LAD-D-2;LAD-M;LAD-M-2;LAD-P-2;LCX-D;LCX-D-2;LCX-M;LCX-P;LCX-P-2;LM-2;RCA-D;RCA-D-2;RCA-M;RCA-M-2;RCA-P;RCA-P-2 | K138: 4918600 | L138: 13560000 | M138: 9611500 | N138: 0 | O138: 28454000 | P138: 23589000 | Q138: 18285000 | R138: 24675000 | S138: 36167000 | T138: 26504000 | U138: 18576410 | V138: 124760000 | W138: 21812000 | X138: 24801000 | Y138: 65816000 | Z138: 18832000 | AA138: 10961000 | AB138: 7436500 | AC138: 11688000 | AD138: 21502000 | AE138: 52113000 | AF138: 35972150 | AG138: 1.6086 | AH138: 0.8795 | AI138: 0.3314 | AJ138: 1.4108 | AK138: 999 | AL138: 2.5803 | AM138: 0.3768 | AN138: 999 | AO138: 999 | AP138: 0.6618 | AQ138: 1.7181 | AR138: 2.5324 | AS138: 1.2062 | AT138: 1.5561 | AU138: 0.4647 | AV138: 1.4739 | AW138: 1.2901 | AX138: 0.4067 | AY138: 25.3649 | AZ138: 0.4737 | BA138: 0.5436 | BB138: 0.2243 | BC138: 0.6823 | BD138: 0.931 | BE138: 0.5945 | BF138: 0.4126 | BG138: 1.3646 | BH138: 1.9662
A139: 138 | B139: sp|O43920|NDUS5_HUMAN | C139: sp|O43920|NDUS5_HUMAN | D139: 52.8 | E139: 12.517 | F139: 106 | G139: 6 | H139: 6 | I139: 12 | J139: LCX-M-2;LCX-P-2;RCA-M-2 | K139: 0 | L139: 0 | M139: 0 | N139: 0 | O139: 0 | P139: 0 | Q139: 531930 | R139: 788080 | S139: 0 | T139: 0 | U139: 132001 | V139: 0 | W139: 0 | X139: 640310 | Y139: 0 | Z139: 1633300 | AA139: 0 | AB139: 75626000 | AC139: 1721500 | AD139: 9586000 | AE139: 1087900 | AF139: 9029501 | AG139: NA | AH139: -999 | AI139: NA | AJ139: NA | AK139: NA | AL139: 999 | AM139: 999 | AN139: NA | AO139: NA | AP139: 999 | AQ139: 999 | AR139: 0.0216 | AS139: NA | AT139: -999 | AU139: NA | AV139: -999 | AW139: -999 | AX139: 142.1728 | AY139: NA | AZ139: 2.1844 | BA139: 0.1796 | BB139: 1.5824 | BC139: 999 | BD139: 999 | BE139: 999 | BF139: 8.8115 | BG139: NA | BH139: 999
A140: 139 | B140: sp|O60220|TIM8A_HUMAN | C140: sp|O60220|TIM8A_HUMAN | D140: 17.5 | E140: 10.998 | F140: 97 | G140: 2 | H140: 2 | I140: 2 | J140: LCX-P-2 | K140: 0 | L140: 0 | M140: 0 | N140: 0 | O140: 0 | P140: 3807300 | Q140: 2519300 | R140: 0 | S140: 0 | T140: 0 | U140: 632660 | V140: 0 | W140: 0 | X140: 0 | Y140: 0 | Z140: 0 | AA140: 0 | AB140: 6093700 | AC140: 0 | AD140: 0 | AE140: 0 | AF140: 609370 | AG140: NA | AH140: NA | AI140: NA | AJ140: NA | AK140: NA | AL140: NA | AM140: NA | AN140: NA | AO140: NA | AP140: NA | AQ140: NA | AR140: -999 | AS140: -999 | AT140: -999 | AU140: -999 | AV140: -999 | AW140: 1.5113 | AX140: 2.4188 | AY140: NA | AZ140: NA | BA140: NA | BB140: NA | BC140: NA | BD140: NA | BE140: NA | BF140: NA | BG140: NA | BH140: NA
A141: 140 | B141: sp|O60234|GMFG_HUMAN | C141: sp|O60234|GMFG_HUMAN | D141: 9.2 | E141: 16.801 | F141: 142 | G141: 3 | H141: 1 | I141: 5 | J141: LAD-M-2;LAD-P-2;LCX-D-2;RCA-M;RCA-P | K141: 0 | L141: 0 | M141: 2464100 | N141: 0 | O141: 0 | P141: 5470900 | Q141: 0 | R141: 0 | S141: 0 | T141: 2726100 | U141: 1066110 | V141: 0 | W141: 0 | X141: 3760200 | Y141: 3202600 | Z141: 3492600 | AA141: 0 | AB141: 0 | AC141: 0 | AD141: 0 | AE141: 3060300 | AF141: 1351570 | AG141: NA | AH141: -999 | AI141: -999 | AJ141: -999 | AK141: NA | AL141: 1.526 | AM141: 1.1741 | AN141: 999 | AO141: 999 | AP141: 999 | AQ141: 999 | AR141: 999 | AS141: -999 | AT141: NA | AU141: -999 | AV141: NA | AW141: 999 | AX141: NA | AY141: NA | AZ141: NA | BA141: NA | BB141: -999 | BC141: NA | BD141: -999 | BE141: NA | BF141: -999 | BG141: -999 | BH141: 1.1226
A142: 141 | B142: sp|O60237|MYPT2_HUMAN | C142: sp|O60237|MYPT2_HUMAN | D142: 3.1 | E142: 110.4 | F142: 982 | G142: 3 | H142: 3 | I142: 4 | J142: LAD-P;LCX-M-2;LCX-P-2 | K142: 0 | L142: 9494200 | M142: 6504400 | N142: 17973000 | O142: 5081500 | P142: 0 | Q142: 0 | R142: 0 | S142: 2713600 | T142: 8393800 | U142: 5016050 | V142: 5478700 | W142: 7065600 | X142: 3882000 | Y142: 10382000 | Z142: 6810100 | AA142: 24473000 | AB142: 15605000 | AC142: 7149000 | AD142: 7656500 | AE142: 5275300 | AF142: 9377720 | AG142: 0.7442 | AH142: 1.8201 | AI142: 0.6806 | AJ142: 1.4597 | AK142: 0.5282 | AL142: 0.5968 | AM142: 0.3739 | AN142: 0.3619 | AO142: 0.5776 | AP142: 1.3402 | AQ142: 0.2783 | AR142: 0.4364 | AS142: 999 | AT142: 999 | AU142: 999 | AV142: 1.5683 | AW142: NA | AX142: 999 | AY142: 999 | AZ142: 999 | BA142: 0.9337 | BB142: 1.3552 | BC142: -999 | BD142: -999 | BE142: 2.8215 | BF142: 1.4514 | BG142: 0.3233 | BH142: 0.6285
A143: 142 | B143: sp|O60240|PLIN1_HUMAN | C143: sp|O60240|PLIN1_HUMAN | D143: 78.7 | E143: 55.99 | F143: 522 | G143: 37 | H143: 37 | I143: 1021 | J143: LAD-D;LAD-D-2;LAD-M;LAD-M-2;LAD-P;LAD-P-2;LCX-D;LCX-D-2;LCX-M;LCX-M-2;LCX-P;LCX-P-2;LM;LM-2;RCA-D;RCA-D-2;RCA-M;RCA-M-2;RCA-P;RCA-P-2 | K143: 386140000 | L143: 1142700000 | M143: 1093800000 | N143: 403340000 | O143: 464640000 | P143: 671640000 | Q143: 894580000 | R143: 1047800000 | S143: 949370000 | T143: 602690000 | U143: 765670000 | V143: 415210000 | W143: 640870000 | X143: 797020000 | Y143: 782580000 | Z143: 2200600000 | AA143: 589230000 | AB143: 227020000 | AC143: 589330000 | AD143: 891990000 | AE143: 823230000 | AF143: 795708000 | AG143: 0.5608 | AH143: 0.8041 | AI143: 0.8189 | AJ143: 1.0447 | AK143: 2.8331 | AL143: 0.7287 | AM143: 1.0185 | AN143: 2.7119 | AO143: 1.9402 | AP143: 4.7361 | AQ143: 3.7347 | AR143: 9.6934 | AS143: 0.6918 | AT143: 0.5194 | AU143: 0.8773 | AV143: 2.5955 | AW143: 0.7508 | AX143: 0.2538 | AY143: 1.0753 | AZ143: 0.5624 | BA143: 0.6607 | BB143: 0.7159 | BC143: 1.1037 | BD143: 1.7385 | BE143: 0.9396 | BF143: 1.0835 | BG143: 1.5752 | BH143: 1.3659
A144: 143 | B144: sp|O60256|KPRB_HUMAN | C144: sp|O60256|KPRB_HUMAN | D144: 11.4 | E144: 40.925 | F144: 369 | G144: 2 | H144: 2 | I144: 4 | J144: LAD-D;LAD-D-2;LCX-D-2;LCX-M-2 | K144: 0 | L144: 0 | M144: 0 | N144: 0 | O144: 0 | P144: 0 | Q144: 0 | R144: 0 | S144: 0 | T144: 0 | U144: 0 | V144: 941720 | W144: 788120 | X144: 0 | Y144: 0 | Z144: 5312800 | AA144: 0 | AB144: 0 | AC144: 719100 | AD144: 0 | AE144: 630570 | AF144: 839231 | AG144: 999 | AH144: 999 | AI144: 999 | AJ144: NA | AK144: NA | AL144: NA | AM144: NA | AN144: NA | AO144: NA | AP144: 999 | AQ144: 999 | AR144: 999 | AS144: NA | AT144: NA | AU144: NA | AV144: NA | AW144: NA | AX144: NA | AY144: 999 | AZ144: 999 | BA144: 999 | BB144: 1.1404 | BC144: NA | BD144: NA | BE144: NA | BF144: -999 | BG144: NA | BH144: 999
A145: 144 | B145: sp|O60313|OPA1_HUMAN | C145: sp|O60313|OPA1_HUMAN | D145: 18.6 | E145: 111.63 | F145: 960 | G145: 12 | H145: 12 | I145: 22 | J145: LAD-M-2;LCX-P;LCX-P-2;RCA-M-2 | K145: 1081300 | L145: 3791300 | M145: 4124400 | N145: 2207600 | O145: 1494200 | P145: 1364600 | Q145: 3506000 | R145: 2919400 | S145: 1851600 | T145: 1542600 | U145: 2388300 | V145: 0 | W145: 1545500 | X145: 1573300 | Y145: 2961200 | Z145: 6892700 | AA145: 2545000 | AB145: 99663000 | AC145: 0 | AD145: 11557000 | AE145: 5659600 | AF145: 13239730 | AG145: 0.4076 | AH145: 0.9823 | AI145: 0.5219 | AJ145: 0.9192 | AK145: 1.7174 | AL145: 0.3815 | AM145: 0.5313 | AN145: 1.8683 | AO145: 1.3414 | AP145: 4.613 | AQ145: 2.7083 | AR145: 0.0692 | AS145: 1.095 | AT145: 0.4262 | AU145: 1.865 | AV145: 0.0255 | AW145: 0.3892 | AX145: 28.4264 | AY145: -999 | AZ145: -999 | BA145: -999 | BB145: -999 | BC145: 1.5767 | BD145: 1.8925 | BE145: 6.2416 | BF145: 2.042 | BG145: 1.2003 | BH145: 3.6689
A146: 145 | B146: sp|O60437|PEPL_HUMAN | C146: sp|O60437|PEPL_HUMAN | D146: 0.7 | E146: 204.74 | F146: 1756 | G146: 1 | H146: 1 | I146: 3 | J146: LAD-M-2;LCX-D-2;RCA-D-2 | K146: 0 | L146: 0 | M146: 0 | N146: 0 | O146: 0 | P146: 0 | Q146: 0 | R146: 0 | S146: 0 | T146: 0 | U146: 0 | V146: 0 | W146: 0 | X146: 1520600 | Y146: 0 | Z146: 1775600 | AA146: 0 | AB146: 0 | AC146: 1220600 | AD146: 0 | AE146: 0 | AF146: 451680 | AG146: NA | AH146: -999 | AI146: NA | AJ146: NA | AK146: NA | AL146: 999 | AM146: 999 | AN146: NA | AO146: NA | AP146: 999 | AQ146: 999 | AR146: 999 | AS146: NA | AT146: NA | AU146: NA | AV146: NA | AW146: NA | AX146: NA | AY146: NA | AZ146: 999 | BA146: 999 | BB146: 999 | BC146: NA | BD146: NA | BE146: NA | BF146: NA | BG146: NA | BH146: NA
A147: 146 | B147: sp|O60493|SNX3_HUMAN | C147: sp|O60493|SNX3_HUMAN | D147: 45.1 | E147: 18.762 | F147: 162 | G147: 7 | H147: 7 | I147: 41 | J147: LAD-D;LAD-D-2;LAD-M;LAD-P;LAD-P-2;LCX-D;LCX-D-2;LCX-M;LCX-M-2;LCX-P;LCX-P-2;LM;LM-2;RCA-D;RCA-D-2;RCA-M;RCA-M-2;RCA-P;RCA-P-2 | K147: 17849000 | L147: 12480000 | M147: 25596000 | N147: 22238000 | O147: 28891000 | P147: 17312000 | Q147: 21327000 | R147: 34069000 | S147: 15946000 | T147: 10780000 | U147: 20648800 | V147: 24853000 | W147: 15311000 | X147: 12713000 | Y147: 16693000 | Z147: 37618000 | AA147: 6691300 | AB147: 16552000 | AC147: 11035000 | AD147: 13782000 | AE147: 18763000 | AF147: 17401130 | AG147: 1.2268 | AH147: 1.2044 | AI147: 0.9172 | AJ147: 0.4876 | AK147: 0.5612 | AL147: 0.4967 | AM147: 0.7616 | AN147: 1.151 | AO147: 0.7507 | AP147: 1.3021 | AQ147: 5.6219 | AR147: 2.2727 | AS147: 1.6688 | AT147: 1.3547 | AU147: 0.3865 | AV147: 0.4043 | AW147: 0.8117 | AX147: 0.7761 | AY147: 1.3924 | AZ147: 0.3239 | BA147: 0.8007 | BB147: 0.5881 | BC147: 2.1365 | BD147: 3.1604 | BE147: 0.8643 | BF147: 0.7345 | BG147: 1.4792 | BH147: 1.7405
A148: 147 | B148: sp|O60504|VINEX_HUMAN | C148: sp|O60504|VINEX_HUMAN | D148: 15.9 | E148: 75.34 | F148: 671 | G148: 6 | H148: 6 | I148: 16 | J148: LAD-M;LAD-M-2;LAD-P;LAD-P-2;LCX-D;LCX-D-2;LCX-M;LCX-M-2;LCX-P;LCX-P-2;LM;RCA-M;RCA-M-2 | K148: 9855300 | L148: 8629800 | M148: 20657000 | N148: 26845000 | O148: 30895000 | P148: 8502200 | Q148: 13089000 | R148: 10715000 | S148: 12788000 | T148: 8450000 | U148: 15042630 | V148: 4934600 | W148: 10355000 | X148: 12812000 | Y148: 6531400 | Z148: 7024500 | AA148: 13384000 | AB148: 11035000 | AC148: 9281400 | AD148: 4381400 | AE148: 6067600 | AF148: 8580690 | AG148: 1.1999 | AH148: 0.8082 | AI148: 1.5854 | AJ148: 0.4178 | AK148: 0.3215 | AL148: 0.6202 | AM148: 1.9616 | AN148: 0.7695 | AO148: 0.2433 | AP148: 0.2274 | AQ148: 0.5248 | AR148: 0.6366 | AS148: 3.6338 | AT148: 2.3604 | AU148: 1.5742 | AV148: 1.2129 | AW148: 0.6496 | AX148: 0.8431 | AY148: 0.5007 | AZ148: 0.8662 | BA148: 2.1184 | BB148: 1.5297 | BC148: 0.8379 | BD148: 1.268 | BE148: 0.3426 | BF148: 0.7221 | BG148: 1.5134 | BH148: 0.7181
A149: 148 | B149: sp|O60506|HNRPQ_HUMAN | C149: sp|O60506|HNRPQ_HUMAN | D149: 15.2 | E149: 69.602 | F149: 623 | G149: 8 | H149: 8 | I149: 76 | J149: LAD-D;LAD-D-2;LAD-M;LAD-M-2;LAD-P;LAD-P-2;LCX-D-2;LCX-M;LCX-M-2;LCX-P;LCX-P-2;LM;LM-2;RCA-D;RCA-D-2;RCA-M;RCA-M-2;RCA-P;RCA-P-2 | K149: 25607000 | L149: 23053000 | M149: 19825000 | N149: 18597000 | O149: 16253000 | P149: 24815000 | Q149: 26504000 | R149: 18737000 | S149: 20095000 | T149: 26232000 | U149: 21971800 | V149: 17308000 | W149: 27350000 | X149: 21748000 | Y149: 19817000 | Z149: 36896000 | AA149: 32740000 | AB149: 18101000 | AC149: 16803000 | AD149: 20793000 | AE149: 27301000 | AF149: 23885700 | AG149: 1.1864 | AH149: 1.2576 | AI149: 1.3801 | AJ149: 1.1628 | AK149: 1.2396 | AL149: 1.097 | AM149: 1.0974 | AN149: 1.066 | AO149: 1.0656 | AP149: 2.2701 | AQ149: 1.1269 | AR149: 2.0383 | AS149: 0.655 | AT149: 0.6132 | AU149: 1.3194 | AV149: 1.8087 | AW149: 0.9363 | AX149: 0.683 | AY149: 0.6759 | AZ149: 0.8968 | BA149: 0.8081 | BB149: 0.6155 | BC149: 0.9324 | BD149: 0.7143 | BE149: 1.0347 | BF149: 0.7616 | BG149: 0.766 | BH149: 1.0408
A150: 149 | B150: sp|O60568|PLOD3_HUMAN | C150: sp|O60568|PLOD3_HUMAN | D150: 3.7 | E150: 84.784 | F150: 738 | G150: 1 | H150: 1 | I150: 1 | J150: RCA-P-2 | K150: 0 | L150: 0 | M150: 0 | N150: 0 | O150: 0 | P150: 0 | Q150: 0 | R150: 0 | S150: 0 | T150: 0 | U150: 0 | V150: 2010300 | W150: 0 | X150: 0 | Y150: 2230900 | Z150: 2711800 | AA150: 2151600 | AB150: 0 | AC150: 0 | AD150: 0 | AE150: 2681900 | AF150: 1178650 | AG150: NA | AH150: NA | AI150: -999 | AJ150: NA | AK150: NA | AL150: NA | AM150: -999 | AN150: NA | AO150: 999 | AP150: 999 | AQ150: 1.2604 | AR150: 999 | AS150: NA | AT150: NA | AU150: 999 | AV150: 999 | AW150: NA | AX150: NA | AY150: 999 | AZ150: NA | BA150: NA | BB150: -999 | BC150: NA | BD150: NA | BE150: NA | BF150: -999 | BG150: NA | BH150: 999
A151: 150 | B151: sp|O60610|DIAP1_HUMAN | C151: sp|O60610|DIAP1_HUMAN | D151: 7.2 | E151: 141.35 | F151: 1272 | G151: 5 | H151: 5 | I151: 5 | J151: LAD-M-2;LM-2;RCA-M;RCA-P-2 | K151: 0 | L151: 2719400 | M151: 3098800 | N151: 2995100 | O151: 0 | P151: 2909100 | Q151: 0 | R151: 4567300 | S151: 1616600 | T151: 3265800 | U151: 2117210 | V151: 2806100 | W151: 3371300 | X151: 4536300 | Y151: 2224200 | Z151: 3291800 | AA151: 2634600 | AB151: 0 | AC151: 3208000 | AD151: 3087800 | AE151: 7348700 | AF151: 3250880 | AG151: 1.2397 | AH151: 0.7432 | AI151: 1.5157 | AJ151: 0.8776 | AK151: 0.9079 | AL151: 1.4639 | AM151: 2.0395 | AN151: 1.0346 | AO151: 0.7426 | AP151: 999 | AQ151: 1.2494 | AR151: 999 | AS151: -999 | AT151: NA | AU151: 0.9056 | AV151: 999 | AW151: 999 | AX151: NA | AY151: 999 | AZ151: 0.7024 | BA151: 1.0389 | BB151: 0.4365 | BC151: 2.8253 | BD151: 1.3985 | BE151: 1.9101 | BF151: 0.4202 | BG151: 0.495 | BH151: 2.2502
A152: 151 | B152: sp|O60664|PLIN3_HUMAN | C152: sp|O60664|PLIN3_HUMAN | D152: 22.6 | E152: 47.074 | F152: 434 | G152: 6 | H152: 6 | I152: 19 | J152: LAD-D-2;LAD-M;LAD-M-2;LAD-P;LAD-P-2;LCX-D-2;LCX-M-2;LCX-P;LCX-P-2;LM-2;RCA-D;RCA-M;RCA-P;RCA-P-2 | K152: 4595200 | L152: 3336500 | M152: 15510000 | N152: 4783000 | O152: 6641200 | P152: 5946600 | Q152: 5604800 | R152: 7931900 | S152: 6418300 | T152: 8360600 | U152: 6912810 | V152: 8336000 | W152: 5873500 | X152: 9232900 | Y152: 5853600 | Z152: 5881000 | AA152: 7603400 | AB152: 4745300 | AC152: 4586600 | AD152: 5464500 | AE152: 7637300 | AF152: 6521410 | AG152: 1.7604 | AH152: 0.6361 | AI152: 1.0034 | AJ152: 0.2151 | AK152: 0.6976 | AL152: 0.5953 | AM152: 1.5773 | AN152: 3.2427 | AO152: 1.2238 | AP152: 0.8855 | AQ152: 0.7735 | AR152: 1.2393 | AS152: 1.1168 | AT152: 1.1849 | AU152: 1.2786 | AV152: 1.6023 | AW152: 1.061 | AX152: 0.8466 | AY152: 1.8141 | AZ152: 0.5782 | BA152: 0.8393 | BB152: 0.6006 | BC152: 1.2358 | BD152: 0.9487 | BE152: 0.8514 | BF152: 0.7155 | BG152: 0.7677 | BH152: 0.9135
A153: 152 | B153: sp|O60687|SRPX2_HUMAN | C153: sp|O60687|SRPX2_HUMAN | D153: 5.8 | E153: 52.971 | F153: 465 | G153: 2 | H153: 2 | I153: 11 | J153: LAD-D;LAD-M;LAD-P;LCX-D;LCX-M;LCX-P;LM;LM-2;RCA-M;RCA-P-2 | K153: 3501400 | L153: 3375800 | M153: 4634000 | N153: 6984900 | O153: 4493500 | P153: 3983000 | Q153: 5616800 | R153: 3133500 | S153: 3437500 | T153: 3626300 | U153: 4278670 | V153: 5009100 | W153: 0 | X153: 2097300 | Y153: 2942100 | Z153: 0 | AA153: 3148900 | AB153: 1370000 | AC153: 1500300 | AD153: 0 | AE153: 2605700 | AF153: 1867340 | AG153: -999 | AH153: -999 | AI153: -999 | AJ153: 0.7285 | AK153: 0.4833 | AL153: 0.4526 | AM153: 0.7129 | AN153: 0.6634 | AO153: 0.4212 | AP153: -999 | AQ153: -999 | AR153: -999 | AS153: 1.1282 | AT153: 0.8 | AU153: 0.7906 | AV153: 2.2985 | AW153: 0.7091 | AX153: 0.2439 | AY153: 1.4306 | AZ153: 0.4788 | BA153: 999 | BB153: 0.5758 | BC153: 0.9116 | BD153: 0.8641 | BE153: -999 | BF153: -999 | BG153: 0.9479 | BH153: 0.7186
A154: 153 | B154: sp|O60701|UGDH_HUMAN | C154: sp|O60701|UGDH_HUMAN | D154: 36.8 | E154: 55.023 | F154: 494 | G154: 12 | H154: 12 | I154: 90 | J154: LAD-D;LAD-D-2;LAD-M;LAD-M-2;LAD-P;LAD-P-2;LCX-D;LCX-D-2;LCX-M;LCX-M-2;LCX-P;LM;LM-2;RCA-D;RCA-D-2;RCA-M;RCA-M-2;RCA-P;RCA-P-2 | K154: 16841000 | L154: 36905000 | M154: 42851000 | N154: 24523000 | O154: 12620000 | P154: 33285000 | Q154: 22245000 | R154: 23330000 | S154: 27046000 | T154: 41090000 | U154: 28073600 | V154: 38375000 | W154: 24725000 | X154: 28151000 | Y154: 28300000 | Z154: 43516000 | AA154: 29287000 | AB154: 9883200 | AC154: 25814000 | AD154: 10618000 | AE154: 31170000 | AF154: 26983920 | AG154: 0.67 | AH154: 0.8783 | AI154: 0.8737 | AJ154: 0.8612 | AK154: 1.5049 | AL154: 0.657 | AM154: 0.9947 | AN154: 1.7474 | AO154: 1.154 | AP154: 3.4482 | AQ154: 1.4858 | AR154: 4.403 | AS154: 0.3791 | AT154: 0.5673 | AU154: 0.8799 | AV154: 2.9633 | AW154: 1.4963 | AX154: 0.4443 | AY154: 2.2787 | AZ154: 1.1065 | BA154: 2.4312 | BB154: 0.8282 | BC154: 0.8626 | BD154: 0.5678 | BE154: 0.3926 | BF154: 0.3406 | BG154: 0.6582 | BH154: 0.7586
A155: 154 | B155: sp|O60716|CTND1_HUMAN | C155: sp|O60716|CTND1_HUMAN | D155: 5.6 | E155: 108.17 | F155: 968 | G155: 4 | H155: 4 | I155: 4 | J155: LAD-D-2;LAD-P;LCX-M-2 | K155: 0 | L155: 0 | M155: 0 | N155: 0 | O155: 0 | P155: 0 | Q155: 0 | R155: 0 | S155: 0 | T155: 0 | U155: 0 | V155: 0 | W155: 6219600 | X155: 0 | Y155: 0 | Z155: 0 | AA155: 0 | AB155: 0 | AC155: 2746300 | AD155: 0 | AE155: 0 | AF155: 896590 | AG155: 999 | AH155: 999 | AI155: 999 | AJ155: NA | AK155: NA | AL155: NA | AM155: NA | AN155: NA | AO155: NA | AP155: NA | AQ155: NA | AR155: NA | AS155: NA | AT155: NA | AU155: NA | AV155: NA | AW155: NA | AX155: NA | AY155: NA | AZ155: 999 | BA155: 999 | BB155: 999 | BC155: NA | BD155: NA | BE155: NA | BF155: NA | BG155: NA | BH155: NA
A156: 155 | B156: sp|O60749|SNX2_HUMAN | C156: sp|O60749|SNX2_HUMAN | D156: 16.6 | E156: 58.47 | F156: 519 | G156: 8 | H156: 8 | I156: 44 | J156: LAD-D;LAD-D-2;LAD-M;LAD-M-2;LAD-P;LAD-P-2;LCX-D-2;LCX-M;LCX-M-2;LCX-P;LM;LM-2;RCA-D;RCA-D-2;RCA-M;RCA-M-2;RCA-P;RCA-P-2 | K156: 31419000 | L156: 22032000 | M156: 17590000 | N156: 28250000 | O156: 10242000 | P156: 35265000 | Q156: 16782000 | R156: 11220000 | S156: 29974000 | T156: 28685000 | U156: 23145900 | V156: 23576000 | W156: 29668000 | X156: 23143000 | Y156: 21664000 | Z156: 27504000 | AA156: 24227000 | AB156: 11436000 | AC156: 23441000 | AD156: 14950000 | AE156: 20919000 | AF156: 22052800 | AG156: 1.3466 | AH156: 1.2819 | AI156: 1.3695 | AJ156: 1.2525 | AK156: 0.7799 | AL156: 1.3157 | AM156: 1.0683 | AN156: 0.6227 | AO156: 0.7669 | AP156: 2.6854 | AQ156: 1.1353 | AR156: 2.405 | AS156: 0.2904 | AT156: 0.6103 | AU156: 0.687 | AV156: 2.1185 | AW156: 2.1014 | AX156: 0.6814 | AY156: 0.7504 | AZ156: 2.0892 | BA156: 1.568 | BB156: 1.1206 | BC156: 0.3743 | BD156: 0.3911 | BE156: 0.4988 | BF156: 0.7147 | BG156: 1.0449 | BH156: 0.7293
A157: 156 | B157: sp|O60784|TOM1_HUMAN | C157: sp|O60784|TOM1_HUMAN | D157: 2.6 | E157: 53.818 | F157: 492 | G157: 1 | H157: 1 | I157: 13 | J157: LAD-D;LAD-D-2;LAD-M-2;LAD-P-2;LCX-D-2;LCX-M;LCX-M-2;LM-2;RCA-D-2;RCA-M;RCA-M-2;RCA-P;RCA-P-2 | K157: 1905700 | L157: 2025500 | M157: 0 | N157: 486360 | O157: 0 | P157: 2274800 | Q157: 535520 | R157: 600750 | S157: 1101100 | T157: 2649700 | U157: 1157943 | V157: 1370900 | W157: 1752400 | X157: 1547900 | Y157: 1673800 | Z157: 2283700 | AA157: 1694800 | AB157: 1806200 | AC157: 1562600 | AD157: 2189900 | AE157: 2473500 | AF157: 1835570 | AG157: 0.8652 | AH157: 1.1321 | AI157: 1.047 | AJ157: 999 | AK157: 4.1646 | AL157: 999 | AM157: 0.9248 | AN157: -999 | AO157: 3.4415 | AP157: 999 | AQ157: 1.3475 | AR157: 1.2644 | AS157: -999 | AT157: -999 | AU157: 0.745 | AV157: 0.9383 | AW157: 4.2478 | AX157: 3.3728 | AY157: 0.7194 | AZ157: 2.6011 | BA157: 0.7135 | BB157: 0.6317 | BC157: 0.5456 | BD157: 0.2267 | BE157: 1.9888 | BF157: 0.8853 | BG157: 0.4156 | BH157: 0.9335
A158: 157 | B158: sp|Q99880|H2B1L_HUMAN | C158: sp|Q99880|H2B1L_HUMAN;sp|Q99879|H2B1M_HUMAN;sp|Q99877|H2B1N_HUMAN;sp|Q93079|H2B1H_HUMAN;sp|Q5QNW6|H2B2F_HUMAN;sp|P62807|H2B1C_HUMAN;sp|P58876|H2B1D_HUMAN;sp|O60814|H2B1K_HUMAN | D158: 48.4 | E158: 13.952 | F158: 126 | G158: 8;8;8;8;8;8;8;8;7;3 | H158: 8 | I158: 649 | J158: LAD-D;LAD-D-2;LAD-M;LAD-M-2;LAD-P;LAD-P-2;LCX-D;LCX-D-2;LCX-M;LCX-M-2;LCX-P;LCX-P-2;LM;LM-2;RCA-D;RCA-D-2;RCA-M;RCA-M-2;RCA-P;RCA-P-2 | K158: 814050000 | L158: 711570000 | M158: 1759500000 | N158: 811400000 | O158: 1060400000 | P158: 898870000 | Q158: 1345500000 | R158: 1041600000 | S158: 806430000 | T158: 830030000 | U158: 1007935000 | V158: 597360000 | W158: 638830000 | X158: 428240000 | Y158: 866260000 | Z158: 1308600000 | AA158: 1079800000 | AB158: 810140000 | AC158: 1100300000 | AD158: 991150000 | AE158: 737730000 | AF158: 855841000 | AG158: 0.8978 | AH158: 1.4918 | AI158: 0.7375 | AJ158: 0.4044 | AK158: 0.877 | AL158: 0.2434 | AM158: 0.4944 | AN158: 2.1685 | AO158: 1.0676 | AP158: 1.2341 | AQ158: 1.2119 | AR158: 1.6153 | AS158: 1.1797 | AT158: 0.7881 | AU158: 1.2013 | AV158: 1.3329 | AW158: 0.6681 | AX158: 0.6021 | AY158: 0.7338 | AZ158: 1.0564 | BA158: 1.1101 | BB158: 1.4915 | BC158: 1.2916 | BD158: 1.2549 | BE158: 1.2291 | BF158: 1.3435 | BG158: 0.9716 | BH158: 0.8888
A159: 158 | B159: sp|O60831|PRAF2_HUMAN | C159: sp|O60831|PRAF2_HUMAN | D159: 6.2 | E159: 19.258 | F159: 178 | G159: 1 | H159: 1 | I159: 4 | J159: LAD-P;LCX-D-2;LCX-P;RCA-P | K159: 0 | L159: 0 | M159: 4385900 | N159: 0 | O159: 0 | P159: 0 | Q159: 2267400 | R159: 1178400 | S159: 1202000 | T159: 6105000 | U159: 1513870 | V159: 0 | W159: 2531600 | X159: 0 | Y159: 0 | Z159: 0 | AA159: 0 | AB159: 0 | AC159: 0 | AD159: 0 | AE159: 0 | AF159: 253160 | AG159: 999 | AH159: 999 | AI159: 999 | AJ159: -999 | AK159: NA | AL159: -999 | AM159: NA | AN159: 999 | AO159: NA | AP159: NA | AQ159: NA | AR159: NA | AS159: NA | AT159: -999 | AU159: NA | AV159: NA | AW159: -999 | AX159: -999 | AY159: NA | AZ159: -999 | BA159: NA | BB159: NA | BC159: 0.9804 | BD159: 0.193 | BE159: -999 | BF159: NA | BG159: 0.1969 | BH159: -999
A160: 159 | B160: sp|O60888|CUTA_HUMAN | C160: sp|O60888|CUTA_HUMAN | D160: 33 | E160: 19.116 | F160: 179 | G160: 3 | H160: 3 | I160: 79 | J160: LAD-D;LAD-D-2;LAD-M;LAD-M-2;LAD-P;LAD-P-2;LCX-D;LCX-D-2;LCX-M;LCX-M-2;LCX-P;LCX-P-2;LM;LM-2;RCA-D;RCA-D-2;RCA-M;RCA-M-2;RCA-P;RCA-P-2 | K160: 25183000 | L160: 36631000 | M160: 16720000 | N160: 7871400 | O160: 9715300 | P160: 16903000 | Q160: 11646000 | R160: 15354000 | S160: 18553000 | T160: 26693000 | U160: 18526970 | V160: 21853000 | W160: 36106000 | X160: 33453000 | Y160: 23627000 | Z160: 18957000 | AA160: 33478000 | AB160: 18667000 | AC160: 28499000 | AD160: 18719000 | AE160: 21314000 | AF160: 25467300 | AG160: 0.9857 | AH160: 1.0793 | AI160: 1.5282 | AJ160: 2.1908 | AK160: 4.6537 | AL160: 2.0008 | AM160: 1.4159 | AN160: 2.1241 | AO160: 3.0016 | AP160: 1.9513 | AQ160: 0.5663 | AR160: 1.0155 | AS160: 0.5748 | AT160: 0.8342 | AU160: 1.9806 | AV160: 1.7934 | AW160: 1.4514 | AX160: 1.6029 | AY160: 0.8678 | AZ160: 1.8561 | BA160: 1.5225 | BB160: 1.3371 | BC160: 0.8276 | BD160: 0.5752 | BE160: 1.0089 | BF160: 0.8782 | BG160: 0.6951 | BH160: 0.7985
A161: 160 | B161: sp|O60941|DTNB_HUMAN | C161: sp|O60941|DTNB_HUMAN;sp|Q9Y4J8|DTNA_HUMAN | D161: 1.9 | E161: 71.355 | F161: 627 | G161: 1;1 | H161: 1 | I161: 1 | J161: LCX-P-2 | K161: 0 | L161: 0 | M161: 0 | N161: 0 | O161: 1974900 | P161: 0 | Q161: 2113000 | R161: 0 | S161: 0 | T161: 0 | U161: 408790 | V161: 0 | W161: 0 | X161: 0 | Y161: 0 | Z161: 0 | AA161: 0 | AB161: 5756000 | AC161: 0 | AD161: 3304900 | AE161: 0 | AF161: 906090 | AG161: NA | AH161: NA | AI161: NA | AJ161: NA | AK161: NA | AL161: NA | AM161: NA | AN161: NA | AO161: NA | AP161: -999 | AQ161: NA | AR161: -999 | AS161: 999 | AT161: 0.9346 | AU161: NA | AV161: -999 | AW161: -999 | AX161: 2.7241 | AY161: NA | AZ161: NA | BA161: -999 | BB161: NA | BC161: NA | BD161: NA | BE161: 999 | BF161: 999 | BG161: NA | BH161: NA
A162: 161 | B162: sp|O75083|WDR1_HUMAN | C162: sp|O75083|WDR1_HUMAN | D162: 62.4 | E162: 66.193 | F162: 606 | G162: 26 | H162: 26 | I162: 477 | J162: LAD-D;LAD-D-2;LAD-M;LAD-M-2;LAD-P;LAD-P-2;LCX-D;LCX-D-2;LCX-M;LCX-M-2;LCX-P;LCX-P-2;LM;LM-2;RCA-D;RCA-D-2;RCA-M;RCA-M-2;RCA-P;RCA-P-2 | K162: 378470000 | L162: 343670000 | M162: 341130000 | N162: 589890000 | O162: 322260000 | P162: 328590000 | Q162: 316640000 | R162: 274820000 | S162: 303320000 | T162: 293670000 | U162: 349246000 | V162: 312410000 | W162: 390060000 | X162: 292960000 | Y162: 279770000 | Z162: 166880000 | AA162: 338690000 | AB162: 264120000 | AC162: 363280000 | AD162: 233740000 | AE162: 304150000 | AF162: 294606000 | AG162: 1.135 | AH162: 1.3314 | AI162: 1.3942 | AJ162: 1.0074 | AK162: 0.5826 | AL162: 0.8588 | AM162: 1.0471 | AN162: 0.5783 | AO162: 0.4743 | AP162: 0.5178 | AQ162: 0.4927 | AR162: 0.6318 | AS162: 0.9807 | AT162: 1.0177 | AU162: 1.0307 | AV162: 1.2823 | AW162: 1.0377 | AX162: 0.8341 | AY162: 0.8255 | AZ162: 1.3219 | BA162: 1.5542 | BB162: 1.1944 | BC162: 0.906 | BD162: 0.9358 | BE162: 0.7706 | BF162: 0.7685 | BG162: 1.0329 | BH162: 1.0357
A163: 162 | B163: sp|O75112|LDB3_HUMAN | C163: sp|O75112|LDB3_HUMAN | D163: 44.7 | E163: 77.134 | F163: 727 | G163: 26 | H163: 26 | I163: 186 | J163: LAD-D;LAD-D-2;LAD-M;LAD-M-2;LAD-P;LCX-D;LCX-M;LCX-M-2;LCX-P;LCX-P-2;LM;LM-2;RCA-D-2;RCA-M-2;RCA-P-2 | K163: 15391000 | L163: 28709000 | M163: 17937000 | N163: 25039000 | O163: 19389000 | P163: 12076000 | Q163: 30308000 | R163: 0 | S163: 11317000 | T163: 5779200 | U163: 16594520 | V163: 11061000 | W163: 11934000 | X163: 15291000 | Y163: 11557000 | Z163: 0 | AA163: 48912000 | AB163: 1286700000 | AC163: 45742000 | AD163: 633820000 | AE163: 86967000 | AF163: 215198400 | AG163: 0.4157 | AH163: 0.7805 | AI163: 1.0326 | AJ163: 1.6005 | AK163: 1.1466 | AL163: 0.8525 | AM163: 1.3231 | AN163: 0.7164 | AO163: 0.4616 | AP163: -999 | AQ163: -999 | AR163: -999 | AS163: 1.6056 | AT163: 0.6397 | AU163: 4.0503 | AV163: 0.038 | AW163: 0.3984 | AX163: 42.4541 | AY163: 0.7187 | AZ163: 999 | BA163: 0.0722 | BB163: 0.526 | BC163: -999 | BD163: -999 | BE163: 56.006 | BF163: 7.2881 | BG163: 1.9582 | BH163: 15.0483
A164: 163 | B164: sp|O75116|ROCK2_HUMAN | C164: sp|O75116|ROCK2_HUMAN | D164: 3.7 | E164: 160.9 | F164: 1388 | G164: 5 | H164: 5 | I164: 12 | J164: LAD-D;LAD-D-2;LAD-M-2;LAD-P-2;LCX-M-2;RCA-D-2;RCA-M;RCA-P-2 | K164: 0 | L164: 16523000 | M164: 6669800 | N164: 0 | O164: 10816000 | P164: 11156000 | Q164: 14698000 | R164: 9941100 | S164: 46085000 | T164: 12095000 | U164: 12798390 | V164: 14362000 | W164: 14236000 | X164: 19771000 | Y164: 23888000 | Z164: 9725600 | AA164: 19229000 | AB164: 6126300 | AC164: 13108000 | AD164: 3437400 | AE164: 10163000 | AF164: 13404630 | AG164: 0.8616 | AH164: 0.72 | AI164: 0.5959 | AJ164: 2.4773 | AK164: 999 | AL164: 2.9643 | AM164: 0.8277 | AN164: 999 | AO164: 999 | AP164: 0.8992 | AQ164: 0.5058 | AR164: 1.5875 | AS164: 0.9695 | AT164: 0.7359 | AU164: 1.7236 | AV164: 3.1388 | AW164: 0.759 | AX164: 0.4168 | AY164: 999 | AZ164: 1.3186 | BA164: 3.8133 | BB164: 1.2898 | BC164: 0.2157 | BD164: 0.8219 | BE164: 0.0746 | BF164: 0.3382 | BG164: 3.8103 | BH164: 0.8403
A165: 164 | B165: sp|O75131|CPNE3_HUMAN | C165: sp|O75131|CPNE3_HUMAN | D165: 12.3 | E165: 60.13 | F165: 537 | G165: 5;1;1;1;1;1;1 | H165: 5 | I165: 29 | J165: LAD-D;LAD-D-2;LAD-M;LAD-M-2;LAD-P;LAD-P-2;LCX-D-2;LCX-M;LCX-M-2;LCX-P;LCX-P-2;LM;LM-2;RCA-D;RCA-D-2;RCA-M;RCA-M-2;RCA-P;RCA-P-2 | K165: 8812500 | L165: 25142000 | M165: 15695000 | N165: 9228600 | O165: 4905500 | P165: 19436000 | Q165: 11900000 | R165: 7704600 | S165: 6523700 | T165: 18494000 | U165: 12784190 | V165: 10444000 | W165: 12451000 | X165: 17517000 | Y165: 11103000 | Z165: 17930000 | AA165: 17286000 | AB165: 13050000 | AC165: 12353000 | AD165: 9799100 | AE165: 10570000 | AF165: 13250310 | AG165: 0.4952 | AH165: 0.7108 | AI165: 1.1214 | AJ165: 1.6019 | AK165: 2.7244 | AL165: 1.1161 | AM165: 1.5777 | AN165: 1.7007 | AO165: 1.2031 | AP165: 3.6551 | AQ165: 1.0373 | AR165: 1.3739 | AS165: 0.2524 | AT165: 0.4122 | AU165: 0.8894 | AV165: 1.3246 | AW165: 1.6333 | AX165: 1.0966 | AY165: 1.1851 | AZ165: 1.6033 | BA165: 1.2606 | BB165: 1.1687 | BC165: 1.181 | BD165: 0.4166 | BE165: 1.5021 | BF165: 0.9271 | BG165: 0.3527 | BH165: 0.5715
A166: 165 | B166: sp|O75155|CAND2_HUMAN | C166: sp|O75155|CAND2_HUMAN | D166: 1.1 | E166: 135.25 | F166: 1236 | G166: 1 | H166: 1 | I166: 1 | J166: LCX-P-2 | K166: 0 | L166: 0 | M166: 0 | N166: 0 | O166: 0 | P166: 0 | Q166: 0 | R166: 0 | S166: 0 | T166: 0 | U166: 0 | V166: 0 | W166: 0 | X166: 0 | Y166: 0 | Z166: 0 | AA166: 0 | AB166: 0 | AC166: 0 | AD166: 0 | AE166: 0 | AF166: 0 | AG166: NA | AH166: NA | AI166: NA | AJ166: NA | AK166: NA | AL166: NA | AM166: NA | AN166: NA | AO166: NA | AP166: NA | AQ166: NA | AR166: NA | AS166: NA | AT166: NA | AU166: NA | AV166: NA | AW166: NA | AX166: NA | AY166: NA | AZ166: NA | BA166: NA | BB166: NA | BC166: NA | BD166: NA | BE166: NA | BF166: NA | BG166: NA | BH166: NA
A167: 166 | B167: sp|O75208|COQ9_HUMAN | C167: sp|O75208|COQ9_HUMAN | D167: 30.8 | E167: 35.509 | F167: 318 | G167: 5 | H167: 5 | I167: 24 | J167: LAD-D-2;LCX-M-2;LCX-P-2;RCA-M-2;RCA-P-2 | K167: 357940 | L167: 0 | M167: 0 | N167: 1226800 | O167: 0 | P167: 0 | Q167: 0 | R167: 0 | S167: 1596500 | T167: 372500 | U167: 355374 | V167: 1280200 | W167: 0 | X167: 1980300 | Y167: 324710 | Z167: 602550 | AA167: 5381100 | AB167: 83216000 | AC167: 808100 | AD167: 60590000 | AE167: 6683000 | AF167: 16086596 | AG167: NA | AH167: -999 | AI167: -999 | AJ167: NA | AK167: -999 | AL167: 999 | AM167: 6.0987 | AN167: -999 | AO167: 0.2647 | AP167: 999 | AQ167: 0.112 | AR167: 0.0072 | AS167: NA | AT167: NA | AU167: 999 | AV167: 0.0647 | AW167: NA | AX167: 999 | AY167: 3.5766 | AZ167: 999 | BA167: 0.0133 | BB167: 0.1209 | BC167: -999 | BD167: -999 | BE167: 37.9518 | BF167: 9.0663 | BG167: 4.2859 | BH167: 17.9409
A168: 167 | B168: sp|O75251|NDUS7_HUMAN | C168: sp|O75251|NDUS7_HUMAN | D168: 28.2 | E168: 23.563 | F168: 213 | G168: 4 | H168: 4 | I168: 9 | J168: LCX-P-2;RCA-M-2;RCA-P-2 | K168: 1758200 | L168: 0 | M168: 1350000 | N168: 0 | O168: 0 | P168: 0 | Q168: 0 | R168: 0 | S168: 0 | T168: 0 | U168: 310820 | V168: 1796600 | W168: 1442200 | X168: 0 | Y168: 1742100 | Z168: 4410600 | AA168: 2430800 | AB168: 72997000 | AC168: 0 | AD168: 20857000 | AE168: 4583800 | AF168: 11026010 | AG168: 999 | AH168: 999 | AI168: 0.8279 | AJ168: -999 | AK168: NA | AL168: -999 | AM168: -999 | AN168: 999 | AO168: 999 | AP168: 999 | AQ168: 1.8145 | AR168: 0.0604 | AS168: NA | AT168: NA | AU168: 999 | AV168: 0.0333 | AW168: NA | AX168: 999 | AY168: 1.0218 | AZ168: NA | BA168: -999 | BB168: -999 | BC168: NA | BD168: NA | BE168: 999 | BF168: 4.5502 | BG168: NA | BH168: 999
A169: 168 | B169: sp|O75306|NDUS2_HUMAN | C169: sp|O75306|NDUS2_HUMAN | D169: 44.7 | E169: 52.545 | F169: 463 | G169: 13 | H169: 13 | I169: 33 | J169: LAD-M;LCX-P;LCX-P-2;RCA-M-2;RCA-P-2 | K169: 2726700 | L169: 3757200 | M169: 3610600 | N169: 0 | O169: 0 | P169: 2571200 | Q169: 3818400 | R169: 0 | S169: 2776700 | T169: 948030 | U169: 2020883 | V169: 3033100 | W169: 0 | X169: 1802200 | Y169: 3568100 | Z169: 948340 | AA169: 1682800 | AB169: 231160000 | AC169: 2920900 | AD169: 88015000 | AE169: 15898000 | AF169: 34902844 | AG169: -999 | AH169: -999 | AI169: -999 | AJ169: 1.0406 | AK169: 999 | AL169: 0.4991 | AM169: 0.5051 | AN169: 999 | AO169: 999 | AP169: 999 | AQ169: 0.5635 | AR169: 0.0041 | AS169: -999 | AT169: -999 | AU169: 0.6545 | AV169: 0.0073 | AW169: 0.6734 | AX169: 60.5384 | AY169: 1.1124 | AZ169: 999 | BA169: 0.0332 | BB169: 0.1837 | BC169: -999 | BD169: -999 | BE169: 31.6977 | BF169: 5.5362 | BG169: 2.9289 | BH169: 16.7695
A170: 169 | B170: sp|O75323|NIPS2_HUMAN | C170: sp|O75323|NIPS2_HUMAN | D170: 60.1 | E170: 33.742 | F170: 286 | G170: 11 | H170: 11 | I170: 80 | J170: LAD-D;LAD-P-2;LCX-D-2;LCX-M-2;LCX-P;LCX-P-2;LM;RCA-D-2;RCA-M-2;RCA-P-2 | K170: 5289000 | L170: 16289000 | M170: 9119100 | N170: 0 | O170: 2270500 | P170: 4334500 | Q170: 18381000 | R170: 3988700 | S170: 4668500 | T170: 3583300 | U170: 6792360 | V170: 10611000 | W170: 6368600 | X170: 18791000 | Y170: 16402000 | Z170: 35681000 | AA170: 47949000 | AB170: 296390000 | AC170: 16041000 | AD170: 146590000 | AE170: 53947000 | AF170: 64877060 | AG170: 0.391 | AH170: 0.3389 | AI170: 0.3883 | AJ170: 1.7863 | AK170: 999 | AL170: 2.0606 | AM170: 1.1457 | AN170: 999 | AO170: 999 | AP170: 15.715 | AQ170: 0.7441 | AR170: 0.1204 | AS170: 0.5238 | AT170: 0.1235 | AU170: 11.0622 | AV170: 0.1618 | AW170: 0.2358 | AX170: 16.1248 | AY170: 2.0062 | AZ170: 4.0216 | BA170: 0.1094 | BB170: 0.2973 | BC170: 0.8544 | BD170: 1.1131 | BE170: 31.3998 | BF170: 2.7173 | BG170: 1.3028 | BH170: 15.0551
A171: 170 | B171: sp|O75339|CILP1_HUMAN | C171: sp|O75339|CILP1_HUMAN | D171: 12.2 | E171: 132.56 | F171: 1184 | G171: 11 | H171: 11 | I171: 211 | J171: LAD-D;LAD-D-2;LAD-M;LAD-M-2;LAD-P;LAD-P-2;LCX-D;LCX-D-2;LCX-M;LCX-M-2;LCX-P;LCX-P-2;LM;LM-2;RCA-D;RCA-D-2;RCA-M;RCA-M-2;RCA-P;RCA-P-2 | K171: 59000000 | L171: 60311000 | M171: 60149000 | N171: 40956000 | O171: 37784000 | P171: 40869000 | Q171: 44640000 | R171: 27056000 | S171: 55780000 | T171: 26277000 | U171: 45282200 | V171: 46861000 | W171: 39523000 | X171: 60943000 | Y171: 72111000 | Z171: 187330000 | AA171: 96826000 | AB171: 66770000 | AC171: 97603000 | AD171: 209210000 | AE171: 101550000 | AF171: 97872700 | AG171: 0.6553 | AH171: 0.6485 | AI171: 0.5481 | AJ171: 1.0027 | AK171: 1.4726 | AL171: 1.0132 | AM171: 0.8451 | AN171: 1.4686 | AO171: 1.7607 | AP171: 4.9579 | AQ171: 1.9347 | AR171: 2.8056 | AS171: 0.9245 | AT171: 0.8464 | AU171: 2.3692 | AV171: 1.4501 | AW171: 0.9155 | AX171: 1.4957 | AY171: 0.7943 | AZ171: 3.6074 | BA171: 0.4665 | BB171: 0.9611 | BC171: 0.485 | BD171: 1.0296 | BE171: 3.7506 | BF171: 2.0602 | BG171: 2.1228 | BH171: 3.8646
A172: 171 | B172: sp|O75340|PDCD6_HUMAN | C172: sp|O75340|PDCD6_HUMAN | D172: 40.8 | E172: 21.868 | F172: 191 | G172: 5 | H172: 5 | I172: 40 | J172: LAD-D;LAD-D-2;LAD-M;LAD-M-2;LAD-P;LAD-P-2;LCX-D;LCX-D-2;LCX-M-2;LCX-P;LCX-P-2;LM;LM-2;RCA-D;RCA-D-2;RCA-M;RCA-P | K172: 17989000 | L172: 11826000 | M172: 11245000 | N172: 22202000 | O172: 8552500 | P172: 10268000 | Q172: 14911000 | R172: 9974600 | S172: 15342000 | T172: 11263000 | U172: 13357310 | V172: 9261000 | W172: 12818000 | X172: 7469000 | Y172: 10107000 | Z172: 13762000 | AA172: 7872500 | AB172: 9904500 | AC172: 11911000 | AD172: 6115300 | AE172: 6375300 | AF172: 9559560 | AG172: 1.0839 | AH172: 1.7162 | AI172: 1.2682 | AJ172: 1.0517 | AK172: 0.5327 | AL172: 0.6642 | AM172: 0.739 | AN172: 0.5065 | AO172: 0.4552 | AP172: 1.6091 | AQ172: 1.7481 | AR172: 1.3895 | AS172: 0.8329 | AT172: 0.5736 | AU172: 0.7667 | AV172: 0.7948 | AW172: 0.6886 | AX172: 0.6642 | AY172: 0.5148 | AZ172: 1.1941 | BA172: 1.9477 | BB172: 1.8683 | BC172: 0.6501 | BD172: 0.8856 | BE172: 0.3986 | BF172: 0.9592 | BG172: 1.3622 | BH172: 0.566
A173: 172 | B173: sp|O75347|TBCA_HUMAN | C173: sp|O75347|TBCA_HUMAN | D173: 34.3 | E173: 12.855 | F173: 108 | G173: 3 | H173: 3 | I173: 26 | J173: LAD-D;LAD-D-2;LAD-M;LAD-P;LAD-P-2;LCX-D-2;LCX-M;LCX-M-2;LCX-P;LCX-P-2;LM;LM-2;RCA-D;RCA-D-2;RCA-M;RCA-M-2;RCA-P;RCA-P-2 | K173: 24188000 | L173: 21593000 | M173: 21178000 | N173: 30192000 | O173: 16853000 | P173: 17672000 | Q173: 18930000 | R173: 16771000 | S173: 18032000 | T173: 13838000 | U173: 19924700 | V173: 18011000 | W173: 17147000 | X173: 12181000 | Y173: 19163000 | Z173: 9656600 | AA173: 11682000 | AB173: 22275000 | AC173: 15638000 | AD173: 16085000 | AE173: 17703000 | AF173: 15954160 | AG173: 0.7941 | AH173: 1.4077 | AI173: 0.8948 | AJ173: 1.0196 | AK173: 0.7152 | AL173: 0.5752 | AM173: 0.6357 | AN173: 0.7014 | AO173: 0.6347 | AP173: 0.573 | AQ173: 0.8266 | AR173: 0.4335 | AS173: 0.9537 | AT173: 0.8903 | AU173: 0.661 | AV173: 0.5244 | AW173: 0.9335 | AX173: 1.1767 | AY173: 0.7446 | AZ173: 0.9324 | BA173: 0.9722 | BB173: 0.8834 | BC173: 0.9301 | BD173: 1.212 | BE173: 0.892 | BF173: 0.9086 | BG173: 1.3031 | BH173: 1.2793
A174: 173 | B174: sp|O75348|VATG1_HUMAN | C174: sp|O75348|VATG1_HUMAN | D174: 35.6 | E174: 13.757 | F174: 118 | G174: 2;1 | H174: 2 | I174: 7 | J174: LCX-D-2;LCX-P;LCX-P-2;RCA-D;RCA-M-2;RCA-P-2 | K174: 1481400 | L174: 3636700 | M174: 4778000 | N174: 0 | O174: 1995500 | P174: 3840700 | Q174: 6644000 | R174: 2447300 | S174: 6464800 | T174: 4349900 | U174: 3563830 | V174: 6761900 | W174: 4269600 | X174: 6123400 | Y174: 3018900 | Z174: 6515500 | AA174: 0 | AB174: 7787100 | AC174: 3241500 | AD174: 19407000 | AE174: 52819000 | AF174: 10994390 | AG174: 1.174 | AH174: 0.6973 | AI174: 1.4143 | AJ174: 0.7611 | AK174: 999 | AL174: 1.2816 | AM174: 2.0284 | AN174: 999 | AO174: 999 | AP174: 3.2651 | AQ174: 999 | AR174: 0.8367 | AS174: 0.5196 | AT174: 0.3003 | AU174: -999 | AV174: -999 | AW174: 0.5781 | AX174: 1.172 | AY174: 4.5645 | AZ174: 1.3245 | BA174: 0.167 | BB174: 0.0614 | BC174: 0.3786 | BD174: 0.5626 | BE174: 3.0019 | BF174: 0.3674 | BG174: 1.4862 | BH174: 12.1426
A175: 174 | B175: sp|O75367|H2AY_HUMAN | C175: sp|O75367|H2AY_HUMAN | D175: 38.4 | E175: 39.617 | F175: 372 | G175: 9;2 | H175: 9 | I175: 144 | J175: LAD-D;LAD-D-2;LAD-M;LAD-M-2;LAD-P;LAD-P-2;LCX-D;LCX-D-2;LCX-M;LCX-M-2;LCX-P;LCX-P-2;LM;LM-2;RCA-D;RCA-D-2;RCA-M;RCA-M-2;RCA-P;RCA-P-2 | K175: 34699000 | L175: 46911000 | M175: 195440000 | N175: 25303000 | O175: 36680000 | P175: 41564000 | Q175: 37191000 | R175: 36036000 | S175: 47303000 | T175: 78230000 | U175: 57935700 | V175: 38380000 | W175: 40819000 | X175: 44970000 | Y175: 33678000 | Z175: 105430000 | AA175: 60394000 | AB175: 49095000 | AC175: 49806000 | AD175: 51711000 | AE175: 58379000 | AF175: 53266200 | AG175: 0.8701 | AH175: 0.9077 | AI175: 1.212 | AJ175: 0.24 | AK175: 1.854 | AL175: 0.2301 | AM175: 1.3353 | AN175: 7.724 | AO175: 1.331 | AP175: 2.8743 | AQ175: 1.7457 | AR175: 2.1475 | AS175: 0.8825 | AT175: 0.9863 | AU175: 1.453 | AV175: 1.2301 | AW175: 1.1176 | AX175: 1.3201 | AY175: 1.1061 | AZ175: 1.3821 | BA175: 0.9632 | BB175: 0.8531 | BC175: 0.7618 | BD175: 0.4606 | BE175: 1.0932 | BF175: 0.8858 | BG175: 0.6047 | BH175: 0.7462
A176: 175 | B176: sp|O75368|SH3L1_HUMAN | C176: sp|O75368|SH3L1_HUMAN | D176: 89.5 | E176: 12.774 | F176: 114 | G176: 8 | H176: 8 | I176: 79 | J176: LAD-D;LAD-D-2;LAD-M;LAD-M-2;LAD-P;LAD-P-2;LCX-D;LCX-D-2;LCX-M;LCX-M-2;LCX-P;LCX-P-2;LM;LM-2;RCA-D;RCA-D-2;RCA-M;RCA-M-2;RCA-P;RCA-P-2 | K176: 45039000 | L176: 56382000 | M176: 49152000 | N176: 26777000 | O176: 26976000 | P176: 34586000 | Q176: 32723000 | R176: 34766000 | S176: 43815000 | T176: 40354000 | U176: 39057000 | V176: 43958000 | W176: 55422000 | X176: 62931000 | Y176: 50895000 | Z176: 48471000 | AA176: 54700000 | AB176: 32027000 | AC176: 40810000 | AD176: 31968000 | AE176: 44328000 | AF176: 46551000 | AG176: 0.983 | AH176: 0.8807 | AI176: 1.0889 | AJ176: 1.1471 | AK176: 2.1056 | AL176: 1.2803 | AM176: 1.2365 | AN176: 1.8356 | AO176: 1.9007 | AP176: 1.7968 | AQ176: 0.8861 | AR176: 1.5134 | AS176: 0.78 | AT176: 0.8244 | AU176: 1.5816 | AV176: 1.7079 | AW176: 1.0569 | AX176: 0.9787 | AY176: 0.976 | AZ176: 1.1738 | BA176: 1.2766 | BB176: 0.9206 | BC176: 0.7935 | BD176: 0.8615 | BE176: 0.7296 | BF176: 0.7212 | BG176: 1.0858 | BH176: 1.0985
A177: 176 | B177: sp|O75369|FLNB_HUMAN | C177: sp|O75369|FLNB_HUMAN | D177: 13.1 | E177: 278.16 | F177: 2602 | G177: 31 | H177: 20 | I177: 48 | J177: LAD-D-2;LAD-M;LAD-M-2;LAD-P;LAD-P-2;LCX-D-2;LCX-M;LCX-M-2;LCX-P;LM;LM-2;RCA-D;RCA-D-2;RCA-P;RCA-P-2 | K177: 44415000 | L177: 11541000 | M177: 23506000 | N177: 28911000 | O177: 10308000 | P177: 27328000 | Q177: 28900000 | R177: 28526000 | S177: 10948000 | T177: 22361000 | U177: 23674400 | V177: 28214000 | W177: 23666000 | X177: 39195000 | Y177: 50041000 | Z177: 43249000 | AA177: 30995000 | AB177: 9720100 | AC177: 15236000 | AD177: 15059000 | AE177: 28375000 | AF177: 28375010 | AG177: 2.0506 | AH177: 0.6038 | AI177: 0.4729 | AJ177: 0.491 | AK177: 0.3992 | AL177: 1.6674 | AM177: 0.7833 | AN177: 0.813 | AO177: 1.7309 | AP177: 4.1957 | AQ177: 1.3954 | AR177: 4.4494 | AS177: 0.3772 | AT177: 0.3567 | AU177: 1.1342 | AV177: 3.1888 | AW177: 0.9456 | AX177: 0.3363 | AY177: 0.6352 | AZ177: 0.5341 | BA177: 1.0118 | BB177: 0.537 | BC177: 2.6056 | BD177: 1.2757 | BE177: 1.3755 | BF177: 0.5307 | BG177: 0.4896 | BH177: 1.269
A178: 177 | B178: sp|O75380|NDUS6_HUMAN | C178: sp|O75380|NDUS6_HUMAN | D178: 49.2 | E178: 13.711 | F178: 124 | G178: 4 | H178: 4 | I178: 7 | J178: LAD-P-2;LCX-P-2;RCA-M-2 | K178: 2795800 | L178: 3558500 | M178: 4168800 | N178: 5569800 | O178: 0 | P178: 0 | Q178: 4550400 | R178: 4020100 | S178: 3083600 | T178: 2793800 | U178: 3054080 | V178: 2899000 | W178: 4262300 | X178: 5253500 | Y178: 4997600 | Z178: 3260600 | AA178: 4967400 | AB178: 96790000 | AC178: 4437100 | AD178: 13058000 | AE178: 7034000 | AF178: 14695950 | AG178: 1.1978 | AH178: 0.8113 | AI178: 0.8529 | AJ178: 0.8536 | AK178: 0.6389 | AL178: 1.2602 | AM178: 1.0512 | AN178: 0.7485 | AO178: 0.8973 | AP178: 999 | AQ178: 0.6564 | AR178: 0.0337 | AS178: NA | AT178: -999 | AU178: 999 | AV178: 0.0513 | AW178: -999 | AX178: 21.2707 | AY178: 1.0369 | AZ178: 1.1037 | BA178: 0.3398 | BB178: 0.6308 | BC178: 1.3037 | BD178: 1.4389 | BE178: 4.2347 | BF178: 1.8564 | BG178: 1.1037 | BH178: 2.5177
A179: 178 | B179: sp|O75390|CISY_HUMAN | C179: sp|O75390|CISY_HUMAN | D179: 55.4 | E179: 51.712 | F179: 466 | G179: 20 | H179: 20 | I179: 318 | J179: LAD-D;LAD-D-2;LAD-M;LAD-M-2;LAD-P-2;LCX-D;LCX-D-2;LCX-M;LCX-M-2;LCX-P;LCX-P-2;LM;LM-2;RCA-D;RCA-D-2;RCA-M;RCA-M-2;RCA-P;RCA-P-2 | K179: 124840000 | L179: 205380000 | M179: 132200000 | N179: 8358500 | O179: 27629000 | P179: 126020000 | Q179: 107130000 | R179: 102050000 | S179: 109920000 | T179: 77137000 | U179: 102066450 | V179: 95083000 | W179: 121280000 | X179: 200690000 | Y179: 170300000 | Z179: 253640000 | AA179: 241220000 | AB179: 851230000 | AC179: 209470000 | AD179: 492130000 | AE179: 286580000 | AF179: 292162300 | AG179: 0.5905 | AH179: 0.6043 | AI179: 0.7122 | AJ179: 1.5536 | AK179: 24.5714 | AL179: 1.5181 | AM179: 1.1784 | AN179: 15.8162 | AO179: 20.3745 | AP179: 9.1802 | AQ179: 1.0515 | AR179: 0.298 | AS179: 0.2192 | AT179: 0.2579 | AU179: 1.9141 | AV179: 0.2834 | AW179: 1.1763 | AX179: 7.9458 | AY179: 0.7616 | AZ179: 2.0526 | BA179: 0.4256 | BB179: 0.7309 | BC179: 0.9284 | BD179: 1.323 | BE179: 4.4772 | BF179: 1.7173 | BG179: 1.425 | BH179: 3.7152
A180: 179 | B180: sp|O75396|SC22B_HUMAN | C180: sp|O75396|SC22B_HUMAN | D180: 38.6 | E180: 24.593 | F180: 215 | G180: 6 | H180: 6 | I180: 49 | J180: LAD-D;LAD-D-2;LAD-M;LAD-M-2;LAD-P-2;LCX-D;LCX-D-2;LCX-M;LCX-M-2;LCX-P;LCX-P-2;LM;LM-2;RCA-D;RCA-D-2;RCA-M;RCA-M-2;RCA-P;RCA-P-2 | K180: 15342000 | L180: 17065000 | M180: 24673000 | N180: 6151000 | O180: 6897800 | P180: 17444000 | Q180: 9263600 | R180: 10719000 | S180: 22981000 | T180: 19836000 | U180: 15037240 | V180: 15086000 | W180: 12534000 | X180: 22270000 | Y180: 15008000 | Z180: 28640000 | AA180: 30265000 | AB180: 14182000 | AC180: 17508000 | AD180: 14452000 | AE180: 16045000 | AF180: 18599000 | AG180: 0.7345 | AH180: 0.5628 | AI180: 0.8352 | AJ180: 0.6916 | AK180: 2.7743 | AL180: 0.9026 | AM180: 1.4839 | AN180: 4.0112 | AO180: 2.4399 | AP180: 4.152 | AQ180: 0.9463 | AR180: 2.0195 | AS180: 0.3954 | AT180: 0.7446 | AU180: 1.735 | AV180: 2.134 | AW180: 1.8831 | AX180: 1.5309 | AY180: 0.9833 | AZ180: 1.6334 | BA180: 1.2115 | BB180: 1.0912 | BC180: 0.4664 | BD180: 0.5404 | BE180: 0.6289 | BF180: 0.9007 | BG180: 1.1586 | BH180: 0.8089
A181: 180 | B181: sp|O75431|MTX2_HUMAN | C181: sp|O75431|MTX2_HUMAN | D181: 32.7 | E181: 29.763 | F181: 263 | G181: 4 | H181: 4 | I181: 10 | J181: LAD-D;LCX-P-2;RCA-M-2 | K181: 2285900 | L181: 3196700 | M181: 0 | N181: 0 | O181: 0 | P181: 0 | Q181: 2790000 | R181: 0 | S181: 0 | T181: 3098200 | U181: 1137080 | V181: 3375700 | W181: 3885900 | X181: 0 | Y181: 5347200 | Z181: 3589200 | AA181: 5361200 | AB181: 16750000 | AC181: 2661600 | AD181: 10313000 | AE181: 2403300 | AF181: 5368710 | AG181: 1.2156 | AH181: 999 | AI181: 0.7267 | AJ181: 999 | AK181: 999 | AL181: NA | AM181: -999 | AN181: NA | AO181: 999 | AP181: 999 | AQ181: 0.6695 | AR181: 0.2143 | AS181: NA | AT181: -999 | AU181: 999 | AV181: 0.3201 | AW181: -999 | AX181: 6.0036 | AY181: 1.4767 | AZ181: 999 | BA181: 0.2581 | BB181: 1.1075 | BC181: NA | BD181: -999 | BE181: 999 | BF181: 4.2912 | BG181: -999 | BH181: 0.7757
A182: 181 | B182: sp|O75436|VP26A_HUMAN | C182: sp|O75436|VP26A_HUMAN | D182: 24.8 | E182: 38.169 | F182: 327 | G182: 6 | H182: 6 | I182: 16 | J182: LAD-D;LAD-M-2;LCX-D-2;LCX-M-2;LCX-P-2;RCA-D-2;RCA-M;RCA-M-2;RCA-P;RCA-P-2 | K182: 8055200 | L182: 10619000 | M182: 9423900 | N182: 0 | O182: 0 | P182: 9986600 | Q182: 0 | R182: 0 | S182: 8236400 | T182: 8208000 | U182: 5452910 | V182: 10406000 | W182: 5936100 | X182: 11899000 | Y182: 8270700 | Z182: 17320000 | AA182: 10493000 | AB182: 7250000 | AC182: 7609900 | AD182: 8943800 | AE182: 11793000 | AF182: 9992150 | AG182: 0.559 | AH182: 0.4989 | AI182: 0.7177 | AJ182: 1.1268 | AK182: 999 | AL182: 1.2626 | AM182: 1.4387 | AN182: 999 | AO182: 999 | AP182: 999 | AQ182: 1.6506 | AR182: 2.389 | AS182: -999 | AT182: NA | AU182: 1.0507 | AV182: 1.4473 | AW182: 999 | AX182: 999 | AY182: 1.2918 | AZ182: 999 | BA182: 0.8509 | BB182: 0.6453 | BC182: -999 | BD182: -999 | BE182: 1.0859 | BF182: 0.7584 | BG182: 1.0035 | BH182: 1.4368
A183: 182 | B183: sp|O75438|NDUB1_HUMAN | C183: sp|O75438|NDUB1_HUMAN | D183: 69 | E183: 6.9611 | F183: 58 | G183: 4 | H183: 4 | I183: 12 | J183: LAD-D;LCX-M-2;LCX-P;LCX-P-2;RCA-D-2;RCA-M-2 | K183: 0 | L183: 5080500 | M183: 0 | N183: 0 | O183: 0 | P183: 0 | Q183: 2551200 | R183: 0 | S183: 0 | T183: 0 | U183: 763170 | V183: 5070500 | W183: 3166500 | X183: 0 | Y183: 0 | Z183: 0 | AA183: 0 | AB183: 33086000 | AC183: 0 | AD183: 11718000 | AE183: 5172300 | AF183: 5821330 | AG183: 0.6233 | AH183: 999 | AI183: 999 | AJ183: 999 | AK183: 999 | AL183: NA | AM183: NA | AN183: NA | AO183: NA | AP183: NA | AQ183: NA | AR183: -999 | AS183: NA | AT183: -999 | AU183: NA | AV183: -999 | AW183: -999 | AX183: 12.9688 | AY183: 999 | AZ183: NA | BA183: -999 | BB183: -999 | BC183: NA | BD183: NA | BE183: 999 | BF183: 2.2655 | BG183: NA | BH183: 999
A184: 183 | B184: sp|O75439|MPPB_HUMAN | C184: sp|O75439|MPPB_HUMAN | D184: 13.5 | E184: 54.366 | F184: 489 | G184: 3 | H184: 3 | I184: 6 | J184: LCX-D-2;LCX-P-2;RCA-M-2 | K184: 0 | L184: 1038200 | M184: 0 | N184: 712670 | O184: 0 | P184: 2770700 | Q184: 0 | R184: 0 | S184: 0 | T184: 0 | U184: 452157 | V184: 1700400 | W184: 0 | X184: 0 | Y184: 0 | Z184: 4752300 | AA184: 2117200 | AB184: 4302900 | AC184: 0 | AD184: 2622600 | AE184: 1882200 | AF184: 1737760 | AG184: -999 | AH184: NA | AI184: NA | AJ184: 999 | AK184: 1.4568 | AL184: NA | AM184: NA | AN184: -999 | AO184: -999 | AP184: 999 | AQ184: 2.2446 | AR184: 1.1044 | AS184: -999 | AT184: NA | AU184: 0.7641 | AV184: 0.492 | AW184: 999 | AX184: 999 | AY184: 999 | AZ184: NA | BA184: -999 | BB184: -999 | BC184: NA | BD184: NA | BE184: 999 | BF184: 1.3934 | BG184: NA | BH184: 999
A185: 184 | B185: sp|O75462|CRLF1_HUMAN | C185: sp|O75462|CRLF1_HUMAN | D185: 9.7 | E185: 46.301 | F185: 422 | G185: 3 | H185: 3 | I185: 4 | J185: LAD-D-2;LCX-M-2;LM-2 | K185: 0 | L185: 0 | M185: 0 | N185: 0 | O185: 0 | P185: 0 | Q185: 0 | R185: 0 | S185: 0 | T185: 0 | U185: 0 | V185: 6232500 | W185: 5705000 | X185: 0 | Y185: 0 | Z185: 0 | AA185: 4296400 | AB185: 0 | AC185: 4868600 | AD185: 0 | AE185: 4430300 | AF185: 2553280 | AG185: 999 | AH185: 999 | AI185: 999 | AJ185: NA | AK185: NA | AL185: NA | AM185: NA | AN185: NA | AO185: NA | AP185: NA | AQ185: -999 | AR185: NA | AS185: NA | AT185: NA | AU185: 999 | AV185: 999 | AW185: NA | AX185: NA | AY185: 999 | AZ185: 999 | BA185: 999 | BB185: 1.0989 | BC185: NA | BD185: NA | BE185: NA | BF185: -999 | BG185: NA | BH185: 999
A186: 185 | B186: sp|O75489|NDUS3_HUMAN | C186: sp|O75489|NDUS3_HUMAN | D186: 55.3 | E186: 30.241 | F186: 264 | G186: 16 | H186: 16 | I186: 92 | J186: LAD-D;LAD-D-2;LAD-M-2;LAD-P;LAD-P-2;LCX-D-2;LCX-M-2;LCX-P;LCX-P-2;LM;LM-2;RCA-D;RCA-D-2;RCA-M;RCA-M-2;RCA-P;RCA-P-2 | K186: 1517600 | L186: 12289000 | M186: 11131000 | N186: 18405000 | O186: 6321400 | P186: 941420 | Q186: 9776000 | R186: 6639700 | S186: 11423000 | T186: 12221000 | U186: 9066512 | V186: 12173000 | W186: 13053000 | X186: 20156000 | Y186: 13809000 | Z186: 22883000 | AA186: 28231000 | AB186: 209590000 | AC186: 15451000 | AD186: 118600000 | AE186: 38254000 | AF186: 49220000 | AG186: 1.0622 | AH186: 0.6476 | AI186: 0.9453 | AJ186: 1.104 | AK186: 0.6677 | AL186: 1.8108 | AM186: 1.4596 | AN186: 0.6048 | AO186: 0.7503 | AP186: 3.6199 | AQ186: 0.8106 | AR186: 0.1092 | AS186: 6.7148 | AT186: 0.6466 | AU186: 29.9877 | AV186: 0.1347 | AW186: 0.0963 | AX186: 21.4392 | AY186: 8.0212 | AZ186: 2.3271 | BA186: 0.1303 | BB186: 0.4039 | BC186: 0.5813 | BD186: 0.5433 | BE186: 10.3826 | BF186: 3.1003 | BG186: 0.9347 | BH186: 3.1302
A187: 186 | B187: sp|O75521|ECI2_HUMAN | C187: sp|O75521|ECI2_HUMAN | D187: 38.1 | E187: 43.585 | F187: 394 | G187: 9 | H187: 9 | I187: 21 | J187: LCX-D-2;LCX-P-2;RCA-M-2 | K187: 0 | L187: 0 | M187: 700720 | N187: 0 | O187: 0 | P187: 0 | Q187: 0 | R187: 0 | S187: 672450 | T187: 0 | U187: 137317 | V187: 0 | W187: 869130 | X187: 0 | Y187: 0 | Z187: 963610 | AA187: 513370 | AB187: 114240000 | AC187: 0 | AD187: 7914000 | AE187: 1391700 | AF187: 12589181 | AG187: 999 | AH187: 999 | AI187: 999 | AJ187: -999 | AK187: NA | AL187: -999 | AM187: NA | AN187: 999 | AO187: NA | AP187: 999 | AQ187: 1.877 | AR187: 0.0084 | AS187: NA | AT187: NA | AU187: 999 | AV187: 0.0045 | AW187: NA | AX187: 999 | AY187: NA | AZ187: NA | BA187: -999 | BB187: -999 | BC187: -999 | BD187: NA | BE187: 11.7689 | BF187: 5.6866 | BG187: 999 | BH187: 999
A188: 187 | B188: sp|O75531|BAF_HUMAN | C188: sp|O75531|BAF_HUMAN | D188: 67.4 | E188: 10.058 | F188: 89 | G188: 7 | H188: 7 | I188: 111 | J188: LAD-D;LAD-D-2;LAD-M-2;LAD-P;LAD-P-2;LCX-D;LCX-D-2;LCX-M;LCX-M-2;LCX-P;LCX-P-2;LM;LM-2;RCA-D;RCA-D-2;RCA-M;RCA-M-2;RCA-P;RCA-P-2 | K188: 62801000 | L188: 56489000 | M188: 20333000 | N188: 14549000 | O188: 24249000 | P188: 39222000 | Q188: 25013000 | R188: 27322000 | S188: 36972000 | T188: 40595000 | U188: 34754500 | V188: 63351000 | W188: 71535000 | X188: 74711000 | Y188: 65397000 | Z188: 67910000 | AA188: 62292000 | AB188: 28680000 | AC188: 67779000 | AD188: 37797000 | AE188: 55750000 | AF188: 59520200 | AG188: 1.2664 | AH188: 0.9575 | AI188: 1.0939 | AJ188: 2.7782 | AK188: 3.8827 | AL188: 3.6744 | AM188: 1.1424 | AN188: 1.3976 | AO188: 4.4949 | AP188: 2.8005 | AQ188: 1.0902 | AR188: 2.3679 | AS188: 0.6182 | AT188: 0.9695 | AU188: 1.5882 | AV188: 2.172 | AW188: 1.5681 | AX188: 1.1466 | AY188: 1.0088 | AZ188: 2.4807 | BA188: 1.7932 | BB188: 1.2158 | BC188: 0.739 | BD188: 0.673 | BE188: 1.0223 | BF188: 0.678 | BG188: 0.9108 | BH188: 1.3733
A189: 188 | B189: sp|O75608|LYPA1_HUMAN | C189: sp|O75608|LYPA1_HUMAN | D189: 33.9 | E189: 24.669 | F189: 230 | G189: 4 | H189: 4 | I189: 19 | J189: LAD-D-2;LAD-M;LCX-D-2;LCX-M;LCX-P;LCX-P-2;LM-2;RCA-D;RCA-D-2;RCA-M;RCA-P;RCA-P-2 | K189: 6545900 | L189: 5726600 | M189: 15054000 | N189: 1401300 | O189: 2009400 | P189: 12298000 | Q189: 3558000 | R189: 4422700 | S189: 8680200 | T189: 7624000 | U189: 6732010 | V189: 7568600 | W189: 5441800 | X189: 6492400 | Y189: 3951400 | Z189: 14611000 | AA189: 6647800 | AB189: 12494000 | AC189: 8152500 | AD189: 6434300 | AE189: 8460700 | AF189: 8025450 | AG189: 0.9503 | AH189: 0.8382 | AI189: 1.3772 | AJ189: 0.3804 | AK189: 4.0866 | AL189: 0.4313 | AM189: 1.6431 | AN189: 10.7429 | AO189: 2.8198 | AP189: 7.2713 | AQ189: 2.1979 | AR189: 1.1694 | AS189: 0.1634 | AT189: 0.5648 | AU189: 0.5406 | AV189: 0.5321 | AW189: 3.4564 | AX189: 3.5115 | AY189: 1.1562 | AZ189: 1.8433 | BA189: 1.267 | BB189: 0.9636 | BC189: 0.5095 | BD189: 0.5801 | BE189: 0.7413 | BF189: 0.7605 | BG189: 1.1385 | BH189: 1.1097
A190: 189 | B190: sp|O75626|PRDM1_HUMAN | C190: sp|O75626|PRDM1_HUMAN | D190: 2.5 | E190: 91.77 | F190: 825 | G190: 2 | H190: 2 | I190: 3 | J190: LCX-D-2;RCA-D;RCA-M | K190: 4421000 | L190: 0 | M190: 1812800 | N190: 0 | O190: 2474000 | P190: 0 | Q190: 2303500 | R190: 4807900 | S190: 4613600 | T190: 0 | U190: 2043280 | V190: 1128100 | W190: 3122000 | X190: 0 | Y190: 0 | Z190: 0 | AA190: 0 | AB190: 2487700 | AC190: 3831300 | AD190: 0 | AE190: 1191800 | AF190: 1176090 | AG190: 999 | AH190: 999 | AI190: 999 | AJ190: -999 | AK190: NA | AL190: -999 | AM190: NA | AN190: 999 | AO190: NA | AP190: -999 | AQ190: NA | AR190: -999 | AS190: 999 | AT190: 1.074 | AU190: NA | AV190: -999 | AW190: -999 | AX190: 1.08 | AY190: 0.2552 | AZ190: 0.7969 | BA190: 999 | BB190: 3.2147 | BC190: 1.0421 | BD190: 999 | BE190: -999 | BF190: -999 | BG190: 999 | BH190: 999
A191: 190 | B191: sp|O75746|CMC1_HUMAN | C191: sp|O75746|CMC1_HUMAN | D191: 42.3 | E191: 74.761 | F191: 678 | G191: 20;2 | H191: 20 | I191: 75 | J191: LAD-D;LAD-D-2;LAD-M;LAD-M-2;LAD-P-2;LCX-M-2;LCX-P-2;LM-2;RCA-D-2;RCA-M-2;RCA-P;RCA-P-2 | K191: 4886600 | L191: 10226000 | M191: 11164000 | N191: 1385500 | O191: 0 | P191: 3799600 | Q191: 465980 | R191: 2181300 | S191: 0 | T191: 7244500 | U191: 4135348 | V191: 7915200 | W191: 6819200 | X191: 12210000 | Y191: 7294400 | Z191: 6920700 | AA191: 19220000 | AB191: 289280000 | AC191: 11119000 | AD191: 98756000 | AE191: 18102000 | AF191: 47763650 | AG191: 0.6668 | AH191: 0.5585 | AI191: 0.9349 | AJ191: 0.916 | AK191: 7.3807 | AL191: 1.0937 | AM191: 1.6739 | AN191: 8.0577 | AO191: 5.2648 | AP191: 999 | AQ191: 0.3601 | AR191: 0.0239 | AS191: -999 | AT191: -999 | AU191: 5.0584 | AV191: 0.0664 | AW191: 8.154 | AX191: 620.7992 | AY191: 1.6198 | AZ191: 5.0974 | BA191: 0.1126 | BB191: 0.6142 | BC191: 999 | BD191: 0.3011 | BE191: 999 | BF191: 5.4555 | BG191: -999 | BH191: 2.4987
A192: 191 | B192: sp|O75781|PALM_HUMAN | C192: sp|O75781|PALM_HUMAN | D192: 4.9 | E192: 42.075 | F192: 387 | G192: 1 | H192: 1 | I192: 2 | J192: LAD-P-2;LCX-P-2 | K192: 0 | L192: 0 | M192: 0 | N192: 0 | O192: 0 | P192: 0 | Q192: 2618700 | R192: 0 | S192: 0 | T192: 0 | U192: 261870 | V192: 3597900 | W192: 3512900 | X192: 0 | Y192: 3634900 | Z192: 3798700 | AA192: 4954900 | AB192: 3801100 | AC192: 0 | AD192: 3764900 | AE192: 4166700 | AF192: 3123200 | AG192: 999 | AH192: 999 | AI192: 0.9664 | AJ192: NA | AK192: NA | AL192: NA | AM192: -999 | AN192: NA | AO192: 999 | AP192: 999 | AQ192: 0.7667 | AR192: 0.9994 | AS192: NA | AT192: -999 | AU192: 999 | AV192: 1.3035 | AW192: -999 | AX192: 1.4515 | AY192: 999 | AZ192: NA | BA192: -999 | BB192: -999 | BC192: NA | BD192: NA | BE192: 999 | BF192: 0.9036 | BG192: NA | BH192: 999
A193: 192 | B193: sp|O75822|EIF3J_HUMAN | C193: sp|O75822|EIF3J_HUMAN | D193: 5 | E193: 29.062 | F193: 258 | G193: 1 | H193: 1 | I193: 4 | J193: LAD-D;LAD-M-2;RCA-P;RCA-P-2 | K193: 0 | L193: 6006100 | M193: 3985700 | N193: 0 | O193: 1153800 | P193: 0 | Q193: 1921100 | R193: 0 | S193: 3499100 | T193: 2462600 | U193: 1902840 | V193: 0 | W193: 557300 | X193: 2859200 | Y193: 0 | Z193: 0 | AA193: 0 | AB193: 1476700 | AC193: 0 | AD193: 0 | AE193: 45165000 | AF193: 5005820 | AG193: 0.0928 | AH193: 0.1949 | AI193: 999 | AJ193: 1.5069 | AK193: 999 | AL193: 0.7174 | AM193: 999 | AN193: 999 | AO193: NA | AP193: -999 | AQ193: NA | AR193: -999 | AS193: 999 | AT193: 0.6006 | AU193: NA | AV193: -999 | AW193: -999 | AX193: 0.7687 | AY193: NA | AZ193: NA | BA193: NA | BB193: -999 | BC193: -999 | BD193: -999 | BE193: -999 | BF193: -999 | BG193: 1.4209 | BH193: 18.3404
A194: 193 | B194: sp|O75828|CBR3_HUMAN | C194: sp|O75828|CBR3_HUMAN | D194: 15.5 | E194: 30.85 | F194: 277 | G194: 4 | H194: 2 | I194: 7 | J194: LAD-M;LAD-P;LAD-P-2;LCX-D;LCX-P;LM;RCA-P-2 | K194: 13318000 | L194: 6072100 | M194: 8347400 | N194: 21632000 | O194: 23712000 | P194: 6051700 | Q194: 26985000 | R194: 16138000 | S194: 8912000 | T194: 0 | U194: 13116820 | V194: 6567400 | W194: 6160700 | X194: 5512500 | Y194: 10703000 | Z194: 4344100 | AA194: 0 | AB194: 3545900 | AC194: 5554500 | AD194: 4667200 | AE194: 6987300 | AF194: 5404260 | AG194: 1.0146 | AH194: 1.1176 | AI194: 0.5756 | AJ194: 0.7274 | AK194: 0.2807 | AL194: 0.6604 | AM194: 0.515 | AN194: 0.3859 | AO194: 0.4948 | AP194: 0.1832 | AQ194: 999 | AR194: 1.2251 | AS194: 3.9182 | AT194: 0.8787 | AU194: -999 | AV194: -999 | AW194: 0.2243 | AX194: 0.1314 | AY194: 0.4931 | AZ194: 0.3442 | BA194: 1.1901 | BB194: 0.7949 | BC194: 1.8108 | BD194: 999 | BE194: 0.5237 | BF194: 0.668 | BG194: 999 | BH194: 999
A195: 194 | B195: sp|O75874|IDHC_HUMAN | C195: sp|O75874|IDHC_HUMAN | D195: 57.7 | E195: 46.659 | F195: 414 | G195: 23 | H195: 22 | I195: 414 | J195: LAD-D;LAD-D-2;LAD-M;LAD-M-2;LAD-P;LAD-P-2;LCX-D;LCX-D-2;LCX-M;LCX-M-2;LCX-P;LCX-P-2;LM;LM-2;RCA-D;RCA-D-2;RCA-M;RCA-M-2;RCA-P;RCA-P-2 | K195: 113680000 | L195: 215850000 | M195: 184350000 | N195: 160980000 | O195: 87397000 | P195: 203560000 | Q195: 188820000 | R195: 191010000 | S195: 243210000 | T195: 211460000 | U195: =AVERAGE(K195:T195) -> 180031700 | V195: 194160000 | W195: 152710000 | X195: 255540000 | Y195: 198460000 | Z195: 459120000 | AA195: 160270000 | AB195: 69904000 | AC195: 142400000 | AD195: 168350000 | AE195: 219480000 | AF195: =AVERAGE(V195:AE195) -> 202039400 | AG195: 0.7075 | AH195: 0.5976 | AI195: 0.7695 | AJ195: 1.1709 | AK195: 1.3408 | AL195: 1.3862 | AM195: 1.2876 | AN195: 1.1452 | AO195: 1.2328 | AP195: 5.2533 | AQ195: 2.8647 | AR195: 6.5679 | AS195: 0.4293 | AT195: 0.4629 | AU195: 0.7873 | AV195: 2.2927 | AW195: 1.0781 | AX195: 0.3702 | AY195: 1.708 | AZ195: 0.7455 | BA195: 0.8459 | BB195: 0.6488 | BC195: 0.7854 | BD195: 0.9033 | BE195: 0.6922 | BF195: 0.767 | BG195: 1.1501 | BH195: 1.0379
A196: 195 | B196: sp|O75882|ATRN_HUMAN | C196: sp|O75882|ATRN_HUMAN | D196: 0.7 | E196: 158.54 | F196: 1429 | G196: 1 | H196: 1 | I196: 7 | J196: LAD-M;LCX-D-2;LCX-M;LM-2;RCA-M;RCA-P;RCA-P-2 | K196: 0 | L196: 0 | M196: 1935100 | N196: 1106100 | O196: 0 | P196: 2099500 | Q196: 0 | R196: 0 | S196: 2682200 | T196: 1826600 | U196: 964950 | V196: 1833100 | W196: 0 | X196: 1504700 | Y196: 1968900 | Z196: 5156100 | AA196: 1198800 | AB196: 0 | AC196: 1433800 | AD196: 1251700 | AE196: 1691100 | AF196: 1603820 | AG196: NA | AH196: -999 | AI196: -999 | AJ196: -999 | AK196: -999 | AL196: 0.7776 | AM196: 0.7642 | AN196: 1.7495 | AO196: 1.78 | AP196: 999 | AQ196: 4.3011 | AR196: 999 | AS196: -999 | AT196: NA | AU196: 0.571 | AV196: 999 | AW196: 999 | AX196: NA | AY196: 999 | AZ196: 999 | BA196: 1.1455 | BB196: 0.8479 | BC196: -999 | BD196: -999 | BE196: 0.4667 | BF196: 0.7402 | BG196: 1.4684 | BH196: 0.9258
A197: 196 | B197: sp|O75884|RBBP9_HUMAN | C197: sp|O75884|RBBP9_HUMAN | D197: 17.2 | E197: 21 | F197: 186 | G197: 1 | H197: 1 | I197: 4 | J197: LAD-D;LAD-P-2;LM-2;RCA-P | K197: 0 | L197: 3375200 | M197: 0 | N197: 0 | O197: 3444800 | P197: 4078800 | Q197: 3096400 | R197: 3420400 | S197: 0 | T197: 3595400 | U197: 2101100 | V197: 4759600 | W197: 0 | X197: 0 | Y197: 3009600 | Z197: 4692600 | AA197: 4054200 | AB197: 3467700 | AC197: 4241600 | AD197: 3014000 | AE197: 0 | AF197: 2723930 | AG197: -999 | AH197: NA | AI197: -999 | AJ197: 999 | AK197: 999 | AL197: NA | AM197: -999 | AN197: NA | AO197: 999 | AP197: 1.3622 | AQ197: 1.1575 | AR197: 1.3532 | AS197: 0.8446 | AT197: 1.1125 | AU197: 0.994 | AV197: 1.1691 | AW197: 1.3173 | AX197: 1.1199 | AY197: 999 | AZ197: 1.2401 | BA197: 1.4073 | BB197: 999 | BC197: 999 | BD197: 0.9513 | BE197: 999 | BF197: 999 | BG197: -999 | BH197: -999
A198: 197 | B198: sp|O75888|TNF13_HUMAN | C198: sp|O75888|TNF13_HUMAN | D198: 16 | E198: 27.433 | F198: 250 | G198: 2 | H198: 2 | I198: 3 | J198: RCA-D;RCA-P | K198: 0 | L198: 1648400 | M198: 2244800 | N198: 1224500 | O198: 2135600 | P198: 0 | Q198: 1626300 | R198: 2365100 | S198: 2320900 | T198: 3569900 | U198: 1713550 | V198: 1897200 | W198: 0 | X198: 0 | Y198: 0 | Z198: 0 | AA198: 0 | AB198: 0 | AC198: 0 | AD198: 0 | AE198: 1774600 | AF198: 367180 | AG198: -999 | AH198: NA | AI198: NA | AJ198: 0.7343 | AK198: 1.3462 | AL198: -999 | AM198: NA | AN198: 1.8332 | AO198: -999 | AP198: -999 | AQ198: NA | AR198: NA | AS198: 999 | AT198: 1.3132 | AU198: NA | AV198: NA | AW198: -999 | AX198: -999 | AY198: 999 | AZ198: -999 | BA198: NA | BB198: -999 | BC198: 1.019 | BD198: 0.6625 | BE198: -999 | BF198: -999 | BG198: 0.6501 | BH198: 0.4971
A199: 198 | B199: sp|O75891|AL1L1_HUMAN | C199: sp|O75891|AL1L1_HUMAN | D199: 40.6 | E199: 98.828 | F199: 902 | G199: 22;1 | H199: 22 | I199: 107 | J199: LAD-D;LAD-D-2;LAD-M;LAD-M-2;LAD-P;LAD-P-2;LCX-D-2;LCX-M;LCX-M-2;LCX-P;LCX-P-2;LM;RCA-D;RCA-D-2;RCA-M;RCA-M-2;RCA-P;RCA-P-2 | K199: 37738000 | L199: 115790000 | M199: 42708000 | N199: 8126600 | O199: 22082000 | P199: 60237000 | Q199: 46241000 | R199: 63538000 | S199: 85066000 | T199: 47096000 | U199: 52862260 | V199: 30695000 | W199: 62576000 | X199: 82565000 | Y199: 75188000 | Z199: 162930000 | AA199: 37107000 | AB199: 16006000 | AC199: 59959000 | AD199: 70596000 | AE199: 65012000 | AF199: 66263400 | AG199: 0.5404 | AH199: 0.7579 | AI199: 0.8323 | AJ199: 2.7112 | AK199: 14.2483 | AL199: 1.9332 | AM199: 1.0981 | AN199: 5.2553 | AO199: 9.2521 | AP199: 7.3784 | AQ199: 4.3908 | AR199: 10.1793 | AS199: 0.3666 | AT199: 0.4775 | AU199: 0.616 | AV199: 2.3183 | AW199: 1.3027 | AX199: 0.3461 | AY199: 0.8134 | AZ199: 0.9437 | BA199: 0.8493 | BB199: 0.9223 | BC199: 0.7469 | BD199: 1.3491 | BE199: 0.8299 | BF199: 1.0859 | BG199: 1.8062 | BH199: 1.3804
A200: 199 | B200: sp|O75915|PRAF3_HUMAN | C200: sp|O75915|PRAF3_HUMAN | D200: 25 | E200: 21.614 | F200: 188 | G200: 7 | H200: 7 | I200: 92 | J200: LAD-D;LAD-D-2;LAD-M;LAD-M-2;LAD-P;LAD-P-2;LCX-D-2;LCX-M;LCX-M-2;LCX-P;LCX-P-2;LM;LM-2;RCA-D-2;RCA-M;RCA-M-2;RCA-P;RCA-P-2 | K200: 31139000 | L200: 41768000 | M200: 25455000 | N200: 6013400 | O200: 9331600 | P200: 24650000 | Q200: 8412400 | R200: 6396800 | S200: 22698000 | T200: 35070000 | U200: 21093420 | V200: 22712000 | W200: 17552000 | X200: 32045000 | Y200: 18521000 | Z200: 43896000 | AA200: 34861000 | AB200: 28402000 | AC200: 31393000 | AD200: 24592000 | AE200: 33550000 | AF200: 28752400 | AG200: 0.4202 | AH200: 0.5477 | AI200: 0.9477 | AJ200: 1.6409 | AK200: 6.9458 | AL200: 1.2589 | AM200: 1.7302 | AN200: 4.233 | AO200: 3.08 | AP200: 4.704 | AQ200: 1.2592 | AR200: 1.5455 | AS200: 0.3786 | AT200: 1.1093 | AU200: 1.4142 | AV200: 1.2274 | AW200: 2.9302 | AX200: 3.3762 | AY200: 0.7294 | AZ200: 4.9076 | BA200: 1.2766 | BB200: 0.9357 | BC200: 0.2818 | BD200: 0.1824 | BE200: 1.0834 | BF200: 0.733 | BG200: 0.6472 | BH200: 0.9567
... 925 more rows

Sheet Peptides_Result_Summary
A1: Index | B1: Pep. Sequence | C1: Proteins | D1: Charges | E1: Missed Cleavage | F1: Mass | G1: Start Position | H1: End Position | I1: Is Unique | J1: Probility | K1: Score | L1: Spectra Num. | M1: Identified by | N1: LM_Abund | O1: LAD-D_Abund | P1: LAD-M_Abund | Q1: LAD-P_Abund | R1: LCX-D_Abund | S1: LCX-M_Abund | T1: LCX-P_Abund | U1: RCA-D_Abund | V1: RCA-M_Abund | W1: RCA-P_Abund | X1: Average_1 | Y1: LM-2_Abund | Z1: LAD-D-2_Abund | AA1: LAD-M-2_Abund | AB1: LAD-P-2_Abund | AC1: LCX-D-2_Abund | AD1: LCX-M-2_Abund | AE1: LCX-P-2_Abund | AF1: RCA-D-2_Abund | AG1: RCA-M-2_Abund | AH1: RCA-P-2_Abund | AI1: LAD-D-2/LAD-D | AJ1: Average_2 | AK1: LAD-D-2/LAD-M-2 | AL1: LAD-D-2/LAD-P-2 | AM1: LAD-D/LAD-M | AN1: LAD-D/LAD-P | AO1: LAD-M-2/LAD-M | AP1: LAD-M-2/LAD-P-2 | AQ1: LAD-M/LAD-P | AR1: LAD-P-2/LAD-P | AS1: LCX-D-2/LCX-D | AT1: LCX-D-2/LCX-M-2 | AU1: LCX-D-2/LCX-P-2 | AV1: LCX-D/LCX-M | AW1: LCX-D/LCX-P | AX1: LCX-M-2/LCX-M | AY1: LCX-M-2/LCX-P-2 | AZ1: LCX-M/LCX-P | BA1: LCX-P-2/LCX-P | BB1: LM-2/LM | BC1: RCA-D-2/RCA-D | BD1: RCA-D-2/RCA-M-2 | BE1: RCA-D-2/RCA-P-2 | BF1: RCA-D/RCA-M | BG1: RCA-D/RCA-P | BH1: RCA-M-2/RCA-M | BI1: RCA-M-2/RCA-P-2 | BJ1: RCA-M/RCA-P | BK1: RCA-P-2/RCA-P
A2: 1 | B2: AAAAAAGAGPEMVR | C2: sp|P28482|MK01_HUMAN | D2: 2 | E2: 0 | F2: 1241.6187 | G2: 2 | H2: 15 | I2: yes | J2: 7.67E-07 | K2: 132.91 | L2: 6 | M2: LAD-D;LAD-M;LCX-M;LCX-P;LM;RCA-D-2 | N2: 3126000 | O2: 0 | P2: 0 | Q2: 0 | R2: 0 | S2: 3669700 | T2: 2639900 | U2: 0 | V2: 0 | W2: 0 | X2: =AVERAGE(N2:W2) -> 943560 | Y2: 0 | Z2: 0 | AA2: 0 | AB2: 0 | AC2: 1518056.657 | AD2: 0 | AE2: 0 | AF2: 3120359.423 | AG2: 0 | AH2: 3247400 | AI2: NA | AJ2: =AVERAGE(Y2:AI2) -> 788581.608 | AK2: NA | AL2: NA | AM2: NA | AN2: NA | AO2: NA | AP2: NA | AQ2: NA | AR2: NA | AS2: 999 | AT2: 999 | AU2: 999 | AV2: -999 | AW2: -999 | AX2: -999 | AY2: NA | AZ2: 1.3901 | BA2: -999 | BB2: -999 | BC2: 999 | BD2: 999 | BE2: 0.9609 | BF2: NA | BG2: NA | BH2: NA | BI2: -999 | BJ2: NA | BK2: 999
A3: 2 | B3: AAAAAAGEAR | C3: sp|P09417|DHPR_HUMAN | D3: 2 | E3: 0 | F3: 857.43553 | G3: 2 | H3: 11 | I3: yes | J3: 0.062289 | K3: 43.442 | L3: 1 | M3: LAD-P | N3: 0 | O3: 0 | P3: 0 | Q3: 1472600 | R3: 0 | S3: 0 | T3: 0 | U3: 0 | V3: 0 | W3: 0 | X3: =AVERAGE(N3:W3) -> 147260 | Y3: 0 | Z3: 0 | AA3: 0 | AB3: 0 | AC3: 0 | AD3: 0 | AE3: 0 | AF3: 0 | AG3: 0 | AH3: 0 | AI3: NA | AJ3: =AVERAGE(Y3:AI3) -> 0 | AK3: NA | AL3: NA | AM3: NA | AN3: -999 | AO3: NA | AP3: NA | AQ3: -999 | AR3: -999 | AS3: NA | AT3: NA | AU3: NA | AV3: NA | AW3: NA | AX3: NA | AY3: NA | AZ3: NA | BA3: NA | BB3: NA | BC3: NA | BD3: NA | BE3: NA | BF3: NA | BG3: NA | BH3: NA | BI3: NA | BJ3: NA | BK3: NA
A4: 3 | B4: AAAAAEQQQFYLLLGNLLSPDNVVR | C4: sp|O00410|IPO5_HUMAN | D4: 3 | E4: 0 | F4: 2700.4235 | G4: 2 | H4: 26 | I4: yes | J4: 5.90E-07 | K4: 103.29 | L4: 2 | M4: LM-2;RCA-P-2 | N4: 0 | O4: 0 | P4: 0 | Q4: 0 | R4: 0 | S4: 0 | T4: 0 | U4: 0 | V4: 0 | W4: 474510 | X4: 47451 | Y4: 3339632.947 | Z4: 4777931.193 | AA4: 0 | AB4: 0 | AC4: 0 | AD4: 4465500 | AE4: 0 | AF4: 0 | AG4: 0 | AH4: 1100900 | AI4: 999 | AJ4: 1244087.558 | AK4: 999 | AL4: 999 | AM4: NA | AN4: NA | AO4: NA | AP4: NA | AQ4: NA | AR4: NA | AS4: NA | AT4: -999 | AU4: NA | AV4: NA | AW4: NA | AX4: 999 | AY4: 999 | AZ4: NA | BA4: NA | BB4: 999 | BC4: NA | BD4: NA | BE4: -999 | BF4: NA | BG4: -999 | BH4: NA | BI4: -999 | BJ4: -999 | BK4: 2.3201
A5: 4 | B5: AAAAKPNNLSLVVHGPGDLR | C5: sp|Q00796|DHSO_HUMAN | D5: 3 | E5: 1 | F5: 1999.0963 | G5: 2 | H5: 21 | I5: yes | J5: 7.93E-05 | K5: 81.723 | L5: 4 | M5: LAD-D;LAD-D-2;LAD-M-2;RCA-D-2 | N5: 4075400 | O5: 2369600 | P5: 1633400 | Q5: 0 | R5: 0 | S5: 0 | T5: 0 | U5: 0 | V5: 0 | W5: 0 | X5: 807840 | Y5: 2127703.736 | Z5: 3831780.002 | AA5: 2783000 | AB5: 1224500 | AC5: 2119584.805 | AD5: 9502000 | AE5: 0 | AF5: 3479427.761 | AG5: 0 | AH5: 0 | AI5: 1.6171 | AJ5: 2278908.902 | AK5: 1.3769 | AL5: 3.1293 | AM5: 1.4507 | AN5: 999 | AO5: 1.7038 | AP5: 2.2728 | AQ5: 999 | AR5: 999 | AS5: 999 | AT5: 0.2231 | AU5: 999 | AV5: NA | AW5: NA | AX5: 999 | AY5: 999 | AZ5: NA | BA5: NA | BB5: 0.5221 | BC5: 999 | BD5: 999 | BE5: 999 | BF5: NA | BG5: NA | BH5: NA | BI5: NA | BJ5: NA | BK5: NA
A6: 5 | B6: AAAANLCPGDVILAIDGFGTESMTHADAQDR | C6: sp|Q53GG5|PDLI3_HUMAN | D6: 3 | E6: 0 | F6: 3186.471 | G6: 38 | H6: 68 | I6: yes | J6: 9.80E-07 | K6: 77.276 | L6: 4 | M6: LAD-D-2;LCX-D;LCX-D-2;LCX-M | N6: 14110000 | O6: 52670000 | P6: 0 | Q6: 2944900 | R6: 5786100 | S6: 9864800 | T6: 0 | U6: 0 | V6: 0 | W6: 0 | X6: 8537580 | Y6: 17805331 | Z6: 22434702.57 | AA6: 11510000 | AB6: 29897000 | AC6: 9279896.201 | AD6: 19342000 | AE6: 23637000 | AF6: 33536297 | AG6: 22565000 | AH6: 19191000 | AI6: 0.4259 | AJ6: 19018020.65 | AK6: 1.9491 | AL6: 0.7504 | AM6: 999 | AN6: 17.8852 | AO6: 999 | AP6: 0.385 | AQ6: -999 | AR6: 10.1521 | AS6: 1.6038 | AT6: 0.4798 | AU6: 0.3926 | AV6: 0.5865 | AW6: 999 | AX6: 1.9607 | AY6: 0.8183 | AZ6: 999 | BA6: 999 | BB6: 1.2619 | BC6: 999 | BD6: 1.4862 | BE6: 1.7475 | BF6: NA | BG6: NA | BH6: 999 | BI6: 1.1758 | BJ6: NA | BK6: 999
A7: 6 | B7: AAAANLCPGDVILAIDGFGTESMTHADAQDRIK | C7: sp|Q53GG5|PDLI3_HUMAN | D7: 3;4 | E7: 1 | F7: 3427.65 | G7: 38 | H7: 70 | I7: yes | J7: 2.21E-27 | K7: 167.88 | L7: 9 | M7: LAD-M;LCX-M;LCX-P;RCA-M;RCA-P | N7: 0 | O7: 0 | P7: 44967000 | Q7: 983010 | R7: 1627200 | S7: 3867400 | T7: 2299100 | U7: 0 | V7: 10338000 | W7: 7513500 | X7: 7159521 | Y7: 1961219.139 | Z7: 0 | AA7: 3648100 | AB7: 4799200 | AC7: 0 | AD7: 0 | AE7: 0 | AF7: 0 | AG7: 0 | AH7: 0 | AI7: NA | AJ7: 1040851.914 | AK7: -999 | AL7: -999 | AM7: -999 | AN7: -999 | AO7: 0.0811 | AP7: 0.7601 | AQ7: 45.7442 | AR7: 4.8821 | AS7: -999 | AT7: NA | AU7: NA | AV7: 0.4207 | AW7: 0.7078 | AX7: -999 | AY7: NA | AZ7: 1.6821 | BA7: -999 | BB7: 999 | BC7: NA | BD7: NA | BE7: NA | BF7: -999 | BG7: -999 | BH7: -999 | BI7: NA | BJ7: 1.3759 | BK7: -999
A8: 7 | B8: AAADGDDSLYPIAVLIDELR | C8: sp|P30153|2AAA_HUMAN | D8: 2;3 | E8: 0 | F8: 2116.0688 | G8: 2 | H8: 21 | I8: yes | J8: 6.22E-05 | K8: 114.31 | L8: 2 | M8: LAD-D;LCX-M-2 | N8: 0 | O8: 779040 | P8: 0 | Q8: 0 | R8: 0 | S8: 0 | T8: 0 | U8: 0 | V8: 0 | W8: 465400 | X8: 124444 | Y8: 1189206.904 | Z8: 0 | AA8: 1693000 | AB8: 296010 | AC8: 3059972.609 | AD8: 3830700 | AE8: 0 | AF8: 0 | AG8: 0 | AH8: 0 | AI8: -999 | AJ8: 915262.7739 | AK8: -999 | AL8: -999 | AM8: 999 | AN8: 999 | AO8: 999 | AP8: 5.7194 | AQ8: NA | AR8: 999 | AS8: 999 | AT8: 0.7988 | AU8: 999 | AV8: NA | AW8: NA | AX8: 999 | AY8: 999 | AZ8: NA | BA8: NA | BB8: 999 | BC8: NA | BD8: NA | BE8: NA | BF8: NA | BG8: -999 | BH8: NA | BI8: NA | BJ8: -999 | BK8: -999
A9: 8 | B9: AAAEEVPIEPYNIPLSQAEVIQEGSDVTLVAWGTQVHVIR | C9: sp|P21953|ODBB_HUMAN | D9: 3 | E9: 0 | F9: 4328.2329 | G9: 246 | H9: 285 | I9: yes | J9: 0.1257 | K9: 22.332 | L9: 1 | M9: LCX-P-2 | N9: 0 | O9: 0 | P9: 0 | Q9: 0 | R9: 0 | S9: 0 | T9: 0 | U9: 0 | V9: 0 | W9: 0 | X9: 0 | Y9: 0 | Z9: 0 | AA9: 0 | AB9: 0 | AC9: 0 | AD9: 0 | AE9: 3005100 | AF9: 0 | AG9: 0 | AH9: 0 | AI9: NA | AJ9: 300510 | AK9: NA | AL9: NA | AM9: NA | AN9: NA | AO9: NA | AP9: NA | AQ9: NA | AR9: NA | AS9: NA | AT9: NA | AU9: -999 | AV9: NA | AW9: NA | AX9: NA | AY9: -999 | AZ9: NA | BA9: 999 | BB9: NA | BC9: NA | BD9: NA | BE9: NA | BF9: NA | BG9: NA | BH9: NA | BI9: NA | BJ9: NA | BK9: NA
A10: 9 | B10: AAAEVNQDYGLDPK | C10: sp|P07954|FUMH_HUMAN | D10: 2 | E10: 0 | F10: 1489.7049 | G10: 102 | H10: 115 | I10: yes | J10: 4.11E-06 | K10: 136.81 | L10: 7 | M10: LCX-P;LCX-P-2;RCA-D-2;RCA-M;RCA-M-2;RCA-P-2 | N10: 0 | O10: 5426600 | P10: 0 | Q10: 0 | R10: 1984400 | S10: 3698900 | T10: 3692500 | U10: 2286100 | V10: 3724000 | W10: 0 | X10: 2081250 | Y10: 0 | Z10: 2414106.547 | AA10: 5737200 | AB10: 4263200 | AC10: 1527283.212 | AD10: 0 | AE10: 43259000 | AF10: 6380349.965 | AG10: 33964000 | AH10: 9731100 | AI10: 0.4449 | AJ10: 9752385.47 | AK10: 0.4208 | AL10: 0.5663 | AM10: 999 | AN10: 999 | AO10: 999 | AP10: 1.3457 | AQ10: NA | AR10: 999 | AS10: 0.7696 | AT10: 999 | AU10: 0.0353 | AV10: 0.5365 | AW10: 0.5374 | AX10: -999 | AY10: -999 | AZ10: 1.0017 | BA10: 11.7154 | BB10: NA | BC10: 2.7909 | BD10: 0.1879 | BE10: 0.6557 | BF10: 0.6139 | BG10: 999 | BH10: 9.1203 | BI10: 3.4903 | BJ10: 999 | BK10: 999
A11: 10 | B11: AAAHCAHVFTTVSQITAIEAQHLLK | C11: sp|P13807|GYS1_HUMAN | D11: 3;4 | E11: 0 | F11: 2716.4119 | G11: 247 | H11: 271 | I11: yes | J11: 3.46E-07 | K11: 105.96 | L11: 2 | M11: LCX-P-2 | N11: 0 | O11: 0 | P11: 0 | Q11: 0 | R11: 0 | S11: 0 | T11: 0 | U11: 0 | V11: 0 | W11: 0 | X11: 0 | Y11: 0 | Z11: 0 | AA11: 0 | AB11: 0 | AC11: 0 | AD11: 0 | AE11: 7959400 | AF11: 0 | AG11: 0 | AH11: 0 | AI11: NA | AJ11: 795940 | AK11: NA | AL11: NA | AM11: NA | AN11: NA | AO11: NA | AP11: NA | AQ11: NA | AR11: NA | AS11: NA | AT11: NA | AU11: -999 | AV11: NA | AW11: NA | AX11: NA | AY11: -999 | AZ11: NA | BA11: 999 | BB11: NA | BC11: NA | BD11: NA | BE11: NA | BF11: NA | BG11: NA | BH11: NA | BI11: NA | BJ11: NA | BK11: NA
A12: 11 | B12: AAAIGIDLGTTYSCVGVFQHGK | C12: sp|P0DMV9|HS71B_HUMAN;sp|P0DMV8|HS71A_HUMAN | D12: 2;3 | E12: 0 | F12: 2264.126 | G12: 4 | H12: 25 | I12: yes | J12: 9.28E-19 | K12: 176.91 | L12: 25 | M12: LAD-D;LAD-D-2;LAD-M-2;LAD-P;LAD-P-2;LCX-D;LCX-D-2;LCX-M;LCX-M-2;LCX-P;LCX-P-2;LM;RCA-D;RCA-D-2;RCA-M-2;RCA-P;RCA-P-2 | N12: 9951800 | O12: 10073000 | P12: 1406800 | Q12: 2977500 | R12: 2550500 | S12: 6743400 | T12: 4018900 | U12: 2994500 | V12: 2756800 | W12: 3917500 | X12: 4739070 | Y12: 0 | Z12: 12066505.58 | AA12: 5126600 | AB12: 4730600 | AC12: 4218986.521 | AD12: 16119000 | AE12: 5893500 | AF12: 15948214.71 | AG12: 12322000 | AH12: 6704700 | AI12: 1.1979 | AJ12: 7557282.546 | AK12: 2.3537 | AL12: 2.5507 | AM12: 7.1602 | AN12: 3.383 | AO12: 3.6442 | AP12: 1.0837 | AQ12: 0.4725 | AR12: 1.5888 | AS12: 1.6542 | AT12: 0.2617 | AU12: 0.7159 | AV12: 0.3782 | AW12: 0.6346 | AX12: 2.3903 | AY12: 2.735 | AZ12: 1.6779 | BA12: 1.4664 | BB12: -999 | BC12: 5.3258 | BD12: 1.2943 | BE12: 2.3787 | BF12: 1.0862 | BG12: 0.7644 | BH12: 4.4697 | BI12: 1.8378 | BJ12: 0.7037 | BK12: 1.7115
A13: 12 | B13: AAAITSDILEALGR | C13: sp|Q15063|POSTN_HUMAN | D13: 1;2;3 | E13: 0 | F13: 1399.7671 | G13: 252 | H13: 265 | I13: yes | J13: 2.25E-37 | K13: 298.7 | L13: 149 | M13: LAD-D;LAD-D-2;LAD-M;LAD-M-2;LAD-P;LAD-P-2;LCX-D;LCX-D-2;LCX-M;LCX-M-2;LCX-P;LCX-P-2;LM;LM-2;RCA-D;RCA-D-2;RCA-M;RCA-M-2;RCA-P;RCA-P-2 | N13: 380920000 | O13: 84545000 | P13: 502740000 | Q13: 138230000 | R13: 40487000 | S13: 239980000 | T13: 50941000 | U13: 50450000 | V13: 80278000 | W13: 456590000 | X13: 202516100 | Y13: 450032772.6 | Z13: 62862731.56 | AA13: 147600000 | AB13: 139970000 | AC13: 10095148.85 | AD13: 29479000 | AE13: 14934000 | AF13: 20783873.26 | AG13: 19697000 | AH13: 318830000 | AI13: 0.7435 | AJ13: 110389502.5 | AK13: 0.4259 | AL13: 0.4491 | AM13: 0.1682 | AN13: 0.6116 | AO13: 0.2936 | AP13: 1.0545 | AQ13: 3.637 | AR13: 1.0126 | AS13: 0.2493 | AT13: 0.3425 | AU13: 0.676 | AV13: 0.1687 | AW13: 0.7948 | AX13: 0.1228 | AY13: 1.974 | AZ13: 4.7109 | BA13: 0.2932 | BB13: 1.1814 | BC13: 0.412 | BD13: 1.0552 | BE13: 0.0652 | BF13: 0.6284 | BG13: 0.1105 | BH13: 0.2454 | BI13: 0.0618 | BJ13: 0.1758 | BK13: 0.6983
A14: 13 | B14: AAAITSDILEALGRDGHFTLFAPTNEAFEK | C14: sp|Q15063|POSTN_HUMAN | D14: 3;4 | E14: 1 | F14: 3204.6091 | G14: 252 | H14: 281 | I14: yes | J14: 1.76E-42 | K14: 204.92 | L14: 29 | M14: LAD-D;LAD-M;LAD-M-2;LAD-P-2;LCX-M;LM;LM-2;RCA-P;RCA-P-2 | N14: 54269000 | O14: 7898800 | P14: 19119000 | Q14: 1501400 | R14: 3682300 | S14: 16884000 | T14: 1595100 | U14: 3794000 | V14: 2723800 | W14: 24641000 | X14: 13610840 | Y14: 31376447.45 | Z14: 2100793.925 | AA14: 17098000 | AB14: 4271400 | AC14: 0 | AD14: 2866300 | AE14: 1609700 | AF14: 2055568.692 | AG14: 0 | AH14: 9170800 | AI14: 0.266 | AJ14: 6413546.394 | AK14: 0.1229 | AL14: 0.4918 | AM14: 0.4131 | AN14: 5.261 | AO14: 0.8943 | AP14: 4.0029 | AQ14: 12.7341 | AR14: 2.8449 | AS14: -999 | AT14: -999 | AU14: -999 | AV14: 0.2181 | AW14: 2.3085 | AX14: 0.1698 | AY14: 1.7806 | AZ14: 10.5849 | BA14: 1.0092 | BB14: 0.5782 | BC14: 0.5418 | BD14: 999 | BE14: 0.2241 | BF14: 1.3929 | BG14: 0.154 | BH14: -999 | BI14: -999 | BJ14: 0.1105 | BK14: 0.3722
A15: 14 | B15: AAAITSDILEALGRDGHFTLFAPTNEAFEKLPR | C15: sp|Q15063|POSTN_HUMAN | D15: 3;4;5 | E15: 2 | F15: 3570.8471 | G15: 252 | H15: 284 | I15: yes | J15: 3.12E-178 | K15: 366.17 | L15: 156 | M15: LAD-D;LAD-D-2;LAD-M;LAD-M-2;LAD-P;LAD-P-2;LCX-D;LCX-M;LCX-P;LCX-P-2;LM;LM-2;RCA-D;RCA-M;RCA-P;RCA-P-2 | N15: 162580000 | O15: 50727000 | P15: 2019500000 | Q15: 29356000 | R15: 55765000 | S15: 207720000 | T15: 37379000 | U15: 72289000 | V15: 215880000 | W15: 250910000 | X15: 310210600 | Y15: 298000873.9 | Z15: 35226095.96 | AA15: 234160000 | AB15: 120040000 | AC15: 2809558.135 | AD15: 10140000 | AE15: 8241800 | AF15: 8120950.579 | AG15: 1740100 | AH15: 85835000 | AI15: 0.6944 | AJ15: 73119489.03 | AK15: 0.1504 | AL15: 0.2935 | AM15: 0.0251 | AN15: 1.728 | AO15: 0.1159 | AP15: 1.9507 | AQ15: 68.7934 | AR15: 4.0891 | AS15: 0.0504 | AT15: 0.2771 | AU15: 0.3409 | AV15: 0.2685 | AW15: 1.4919 | AX15: 0.0488 | AY15: 1.2303 | AZ15: 5.5571 | BA15: 0.2205 | BB15: 1.8329 | BC15: 0.1123 | BD15: 4.6669 | BE15: 0.0946 | BF15: 0.3349 | BG15: 0.2881 | BH15: 0.0081 | BI15: 0.0203 | BJ15: 0.8604 | BK15: 0.3421
A16: 15 | B16: AAALAHLDR | C16: sp|Q16853|AOC3_HUMAN;sp|O75106|AOC2_HUMAN | D16: 2 | E16: 0 | F16: 936.51411 | G16: 107 | H16: 115 | I16: yes | J16: 8.26E-05 | K16: 152.63 | L16: 5 | M16: LAD-D;LAD-P;LAD-P-2;LCX-D-2;LCX-M-2 | N16: 3642200 | O16: 6580600 | P16: 0 | Q16: 15872000 | R16: 0 | S16: 0 | T16: 0 | U16: 0 | V16: 0 | W16: 3140800 | X16: 2923560 | Y16: 4335154.031 | Z16: 0 | AA16: 4229000 | AB16: 8838700 | AC16: 18608808.48 | AD16: 0 | AE16: 0 | AF16: 15776779.38 | AG16: 10167000 | AH16: 7927400 | AI16: -999 | AJ16: 6352894.808 | AK16: -999 | AL16: -999 | AM16: 999 | AN16: 0.4146 | AO16: 999 | AP16: 0.4785 | AQ16: -999 | AR16: 0.5569 | AS16: 999 | AT16: 999 | AU16: 999 | AV16: NA | AW16: NA | AX16: NA | AY16: NA | AZ16: NA | BA16: NA | BB16: 1.1903 | BC16: 999 | BD16: 1.5518 | BE16: 1.9902 | BF16: NA | BG16: -999 | BH16: 999 | BI16: 1.2825 | BJ16: -999 | BK16: 2.524
A17: 16 | B17: AAALEQFK | C17: sp|Q13423|NNTM_HUMAN | D17: 2 | E17: 0 | F17: 876.47052 | G17: 260 | H17: 267 | I17: yes | J17: 0.0032157 | K17: 102.71 | L17: 1 | M17: LCX-P-2 | N17: 2673500 | O17: 0 | P17: 0 | Q17: 0 | R17: 0 | S17: 0 | T17: 0 | U17: 0 | V17: 0 | W17: 0 | X17: 267350 | Y17: 0 | Z17: 0 | AA17: 0 | AB17: 0 | AC17: 0 | AD17: 1879400 | AE17: 25918000 | AF17: 0 | AG17: 2553600 | AH17: 0 | AI17: NA | AJ17: 3035100 | AK17: NA | AL17: NA | AM17: NA | AN17: NA | AO17: NA | AP17: NA | AQ17: NA | AR17: NA | AS17: NA | AT17: -999 | AU17: -999 | AV17: NA | AW17: NA | AX17: 999 | AY17: 0.0725 | AZ17: NA | BA17: 999 | BB17: -999 | BC17: NA | BD17: -999 | BE17: NA | BF17: NA | BG17: NA | BH17: 999 | BI17: 999 | BJ17: NA | BK17: NA
A18: 17 | B18: AAALVLQTIWGYK | C18: sp|O60716|CTND1_HUMAN | D18: 2 | E18: 0 | F18: 1432.8078 | G18: 821 | H18: 833 | I18: yes | J18: 0.00012626 | K18: 110.14 | L18: 1 | M18: LAD-D-2 | N18: 0 | O18: 0 | P18: 0 | Q18: 0 | R18: 0 | S18: 0 | T18: 0 | U18: 0 | V18: 0 | W18: 0 | X18: 0 | Y18: 0 | Z18: 2633298.815 | AA18: 0 | AB18: 0 | AC18: 0 | AD18: 0 | AE18: 0 | AF18: 0 | AG18: 0 | AH18: 0 | AI18: 999 | AJ18: 239481.6195 | AK18: 999 | AL18: 999 | AM18: NA | AN18: NA | AO18: NA | AP18: NA | AQ18: NA | AR18: NA | AS18: NA | AT18: NA | AU18: NA | AV18: NA | AW18: NA | AX18: NA | AY18: NA | AZ18: NA | BA18: NA | BB18: NA | BC18: NA | BD18: NA | BE18: NA | BF18: NA | BG18: NA | BH18: NA | BI18: NA | BJ18: NA | BK18: NA
A19: 18 | B19: AAAPAPVSEAVCR | C19: sp|P20810|ICAL_HUMAN | D19: 2 | E19: 0 | F19: 1297.6449 | G19: 397 | H19: 409 | I19: yes | J19: 0.0016332 | K19: 82.417 | L19: 1 | M19: LCX-P-2 | N19: 0 | O19: 0 | P19: 0 | Q19: 0 | R19: 0 | S19: 0 | T19: 0 | U19: 0 | V19: 0 | W19: 0 | X19: 0 | Y19: 0 | Z19: 0 | AA19: 0 | AB19: 0 | AC19: 0 | AD19: 0 | AE19: 9192100 | AF19: 25323953.65 | AG19: 0 | AH19: 0 | AI19: NA | AJ19: 3451605.365 | AK19: NA | AL19: NA | AM19: NA | AN19: NA | AO19: NA | AP19: NA | AQ19: NA | AR19: NA | AS19: NA | AT19: NA | AU19: -999 | AV19: NA | AW19: NA | AX19: NA | AY19: -999 | AZ19: NA | BA19: 999 | BB19: NA | BC19: 999 | BD19: 999 | BE19: 999 | BF19: NA | BG19: NA | BH19: NA | BI19: NA | BJ19: NA | BK19: NA
A20: 19 | B20: AAAPDRTNPLNITLPFSFIDYYK | C20: sp|O43301|HS12A_HUMAN | D20: 3 | E20: 1 | F20: 2626.3431 | G20: 392 | H20: 414 | I20: yes | J20: 0.00071759 | K20: 67.413 | L20: 2 | M20: LAD-M;LM | N20: 2948700 | O20: 2302800 | P20: 2363400 | Q20: 210710 | R20: 0 | S20: 1646100 | T20: 420450 | U20: 0 | V20: 1880600 | W20: 2669600 | X20: 1444236 | Y20: 0 | Z20: 0 | AA20: 11572000 | AB20: 0 | AC20: 0 | AD20: 2849300 | AE20: 0 | AF20: 0 | AG20: 0 | AH20: 0 | AI20: -999 | AJ20: 1310936.455 | AK20: -999 | AL20: NA | AM20: 0.9744 | AN20: 10.9288 | AO20: 4.8963 | AP20: 999 | AQ20: 11.2164 | AR20: -999 | AS20: NA | AT20: -999 | AU20: NA | AV20: -999 | AW20: -999 | AX20: 1.7309 | AY20: 999 | AZ20: 3.9151 | BA20: -999 | BB20: -999 | BC20: NA | BD20: NA | BE20: NA | BF20: -999 | BG20: -999 | BH20: -999 | BI20: NA | BJ20: 0.7045 | BK20: -999
A21: 20 | B21: AAAQLLQSQAQQSGAQQTK | C21: sp|Q9NVA2|SEP11_HUMAN | D21: 2 | E21: 0 | F21: 1956.0025 | G21: 400 | H21: 418 | I21: yes | J21: 2.34E-09 | K21: 146 | L21: 1 | M21: RCA-D | N21: 0 | O21: 0 | P21: 0 | Q21: 0 | R21: 0 | S21: 0 | T21: 0 | U21: 3961700 | V21: 0 | W21: 0 | X21: 396170 | Y21: 0 | Z21: 0 | AA21: 0 | AB21: 0 | AC21: 0 | AD21: 0 | AE21: 0 | AF21: 0 | AG21: 0 | AH21: 0 | AI21: NA | AJ21: 0 | AK21: NA | AL21: NA | AM21: NA | AN21: NA | AO21: NA | AP21: NA | AQ21: NA | AR21: NA | AS21: NA | AT21: NA | AU21: NA | AV21: NA | AW21: NA | AX21: NA | AY21: NA | AZ21: NA | BA21: NA | BB21: NA | BC21: -999 | BD21: NA | BE21: NA | BF21: 999 | BG21: 999 | BH21: NA | BI21: NA | BJ21: NA | BK21: NA
A22: 21 | B22: AAATCFAR | C22: sp|P14555|PA2GA_HUMAN | D22: 2 | E22: 0 | F22: 866.40687 | G22: 113 | H22: 120 | I22: yes | J22: 0.0038949 | K22: 124.37 | L22: 2 | M22: LM;RCA-D-2 | N22: 7198100 | O22: 2453900 | P22: 0 | Q22: 0 | R22: 0 | S22: 0 | T22: 0 | U22: 0 | V22: 0 | W22: 0 | X22: 965200 | Y22: 9967445.925 | Z22: 9145207.686 | AA22: 2425600 | AB22: 6649900 | AC22: 714719.2388 | AD22: 0 | AE22: 7644000 | AF22: 26436509.81 | AG22: 0 | AH22: 4724900 | AI22: 3.7268 | AJ22: 6155298.763 | AK22: 3.7703 | AL22: 1.3752 | AM22: 999 | AN22: 999 | AO22: 999 | AP22: 0.3648 | AQ22: NA | AR22: 999 | AS22: 999 | AT22: 999 | AU22: 0.0935 | AV22: NA | AW22: NA | AX22: NA | AY22: -999 | AZ22: NA | BA22: 999 | BB22: 1.3847 | BC22: 999 | BD22: 999 | BE22: 5.5951 | BF22: NA | BG22: NA | BH22: NA | BI22: -999 | BJ22: NA | BK22: 999
A23: 22 | B23: AAATGPSFWLGNETLK | C23: sp|P12955|PEPD_HUMAN | D23: 2 | E23: 0 | F23: 1661.8413 | G23: 2 | H23: 17 | I23: yes | J23: 2.67E-05 | K23: 113.24 | L23: 8 | M23: LAD-D;LAD-M-2;LCX-D-2;LCX-M-2;LM;LM-2;RCA-P-2 | N23: 3103500 | O23: 2876200 | P23: 0 | Q23: 0 | R23: 0 | S23: 0 | T23: 0 | U23: 0 | V23: 0 | W23: 2511200 | X23: 849090 | Y23: 5224382.783 | Z23: 0 | AA23: 2182600 | AB23: 0 | AC23: 3387587.4 | AD23: 0 | AE23: 0 | AF23: 0 | AG23: 3823100 | AH23: 4376800 | AI23: -999 | AJ23: 1726679.198 | AK23: -999 | AL23: NA | AM23: 999 | AN23: 999 | AO23: 999 | AP23: 999 | AQ23: NA | AR23: NA | AS23: 999 | AT23: 999 | AU23: 999 | AV23: NA | AW23: NA | AX23: NA | AY23: NA | AZ23: NA | BA23: NA | BB23: 1.6834 | BC23: NA | BD23: -999 | BE23: -999 | BF23: NA | BG23: -999 | BH23: 999 | BI23: 0.8735 | BJ23: -999 | BK23: 1.7429
A24: 23 | B24: AAATLMSER | C24: sp|P02730|B3AT_HUMAN | D24: 2 | E24: 0 | F24: 948.46987 | G24: 284 | H24: 292 | I24: yes | J24: 0.00026673 | K24: 130.22 | L24: 2 | M24: LAD-P;LCX-D | N24: 0 | O24: 0 | P24: 0 | Q24: 17264000 | R24: 11596000 | S24: 0 | T24: 10545000 | U24: 10636000 | V24: 0 | W24: 0 | X24: 5004100 | Y24: 0 | Z24: 0 | AA24: 0 | AB24: 0 | AC24: 0 | AD24: 0 | AE24: 0 | AF24: 0 | AG24: 0 | AH24: 0 | AI24: NA | AJ24: 0 | AK24: NA | AL24: NA | AM24: NA | AN24: -999 | AO24: NA | AP24: NA | AQ24: -999 | AR24: -999 | AS24: -999 | AT24: NA | AU24: NA | AV24: 999 | AW24: 1.0997 | AX24: NA | AY24: NA | AZ24: -999 | BA24: -999 | BB24: NA | BC24: -999 | BD24: NA | BE24: NA | BF24: 999 | BG24: 999 | BH24: NA | BI24: NA | BJ24: NA | BK24: NA
A25: 24 | B25: AAAVGTANKSTVEGIQASVK | C25: sp|P18206|VINC_HUMAN | D25: 3 | E25: 1 | F25: 1901.0218 | G25: 647 | H25: 666 | I25: yes | J25: 0.061512 | K25: 38.583 | L25: 1 | M25: LAD-M | N25: 0 | O25: 0 | P25: 17135000 | Q25: 0 | R25: 0 | S25: 0 | T25: 0 | U25: 0 | V25: 5766400 | W25: 0 | X25: 2290140 | Y25: 0 | Z25: 0 | AA25: 0 | AB25: 0 | AC25: 0 | AD25: 0 | AE25: 0 | AF25: 0 | AG25: 0 | AH25: 0 | AI25: NA | AJ25: 0 | AK25: NA | AL25: NA | AM25: -999 | AN25: NA | AO25: -999 | AP25: NA | AQ25: 999 | AR25: NA | AS25: NA | AT25: NA | AU25: NA | AV25: NA | AW25: NA | AX25: NA | AY25: NA | AZ25: NA | BA25: NA | BB25: NA | BC25: NA | BD25: NA | BE25: NA | BF25: -999 | BG25: NA | BH25: -999 | BI25: NA | BJ25: 999 | BK25: NA
A26: 25 | B26: AAAVLPVLDLAQR | C26: sp|P19404|NDUV2_HUMAN | D26: 2 | E26: 0 | F26: 1335.7874 | G26: 76 | H26: 88 | I26: yes | J26: 0.00018129 | K26: 106.16 | L26: 3 | M26: LCX-P-2;RCA-M-2 | N26: 2341100 | O26: 3317400 | P26: 1535000 | Q26: 2816000 | R26: 0 | S26: 2224500 | T26: 1611500 | U26: 1189000 | V26: 2383400 | W26: 2516800 | X26: 1993470 | Y26: 2132510.378 | Z26: 2726153.492 | AA26: 3458800 | AB26: 3538000 | AC26: 3806530.671 | AD26: 4863000 | AE26: 28594000 | AF26: 2318633.247 | AG26: 14547000 | AH26: 7850300 | AI26: 0.8218 | AJ26: 6712266.237 | AK26: 0.7882 | AL26: 0.7705 | AM26: 2.1612 | AN26: 1.1781 | AO26: 2.2533 | AP26: 0.9776 | AQ26: 0.5451 | AR26: 1.2564 | AS26: 999 | AT26: 0.7828 | AU26: 0.1331 | AV26: -999 | AW26: -999 | AX26: 2.1861 | AY26: 0.1701 | AZ26: 1.3804 | BA26: 17.7437 | BB26: 0.9109 | BC26: 1.9501 | BD26: 0.1594 | BE26: 0.2954 | BF26: 0.4989 | BG26: 0.4724 | BH26: 6.1035 | BI26: 1.8531 | BJ26: 0.947 | BK26: 3.1192
A27: 26 | B27: AAAYDKLEK | C27: sp|P35749|MYH11_HUMAN | D27: 2 | E27: 1 | F27: 1007.5288 | G27: 1412 | H27: 1420 | I27: yes | J27: 1.48E-05 | K27: 158.61 | L27: 9 | M27: LAD-D-2;LAD-P;LAD-P-2;LCX-D;LCX-M;LCX-P;RCA-D;RCA-D-2;RCA-M | N27: 15406000 | O27: 10388000 | P27: 0 | Q27: 0 | R27: 0 | S27: 0 | T27: 14397000 | U27: 0 | V27: 0 | W27: 7256900 | X27: 4744790 | Y27: 6867708.106 | Z27: 28018639.97 | AA27: 8614600 | AB27: 0 | AC27: 0 | AD27: 14879000 | AE27: 0 | AF27: 0 | AG27: 13574000 | AH27: 8099500 | AI27: 2.6972 | AJ27: 7277586.434 | AK27: 3.2525 | AL27: 999 | AM27: 999 | AN27: 999 | AO27: 999 | AP27: 999 | AQ27: NA | AR27: NA | AS27: NA | AT27: -999 | AU27: NA | AV27: NA | AW27: -999 | AX27: 999 | AY27: 999 | AZ27: -999 | BA27: -999 | BB27: 0.4458 | BC27: NA | BD27: -999 | BE27: -999 | BF27: NA | BG27: -999 | BH27: 999 | BI27: 1.6759 | BJ27: -999 | BK27: 1.1161
A28: 27 | B28: AAAYNLVQHGITNLCVIGGDGSLTGANIFR | C28: sp|P17858|PFKAL_HUMAN | D28: 3 | E28: 0 | F28: 3101.5717 | G28: 100 | H28: 129 | I28: yes | J28: 3.29E-08 | K28: 102.03 | L28: 5 | M28: LAD-D-2;LCX-M;LCX-M-2;LM;RCA-D | N28: 5732400 | O28: 0 | P28: 0 | Q28: 818760 | R28: 789170 | S28: 7525000 | T28: 961690 | U28: 2149500 | V28: 0 | W28: 0 | X28: 1797652 | Y28: 0 | Z28: 5489126.683 | AA28: 0 | AB28: 0 | AC28: 0 | AD28: 8571500 | AE28: 0 | AF28: 0 | AG28: 0 | AH28: 0 | AI28: 999 | AJ28: 1278329.608 | AK28: 999 | AL28: 999 | AM28: NA | AN28: -999 | AO28: NA | AP28: NA | AQ28: -999 | AR28: -999 | AS28: -999 | AT28: -999 | AU28: NA | AV28: 0.1049 | AW28: 0.8206 | AX28: 1.1391 | AY28: 999 | AZ28: 7.8248 | BA28: -999 | BB28: -999 | BC28: -999 | BD28: NA | BE28: NA | BF28: 999 | BG28: 999 | BH28: NA | BI28: NA | BJ28: NA | BK28: NA
A29: 28 | B29: AACAQLNDFLQEYGTQGCQV | C29: sp|P0C0L4|CO4A_HUMAN;sp|P0C0L5|CO4B_HUMAN | D29: 2;3 | E29: 0 | F29: 2271.9889 | G29: 1725 | H29: 1744 | I29: no | J29: 5.93E-30 | K29: 202.29 | L29: 35 | M29: LAD-D;LAD-D-2;LAD-M;LAD-M-2;LAD-P-2;LCX-D-2;LCX-M;LCX-M-2;LCX-P;LCX-P-2;LM;LM-2;RCA-D;RCA-D-2;RCA-M;RCA-M-2;RCA-P;RCA-P-2 | N29: 6556300 | O29: 9338100 | P29: 13414000 | Q29: 1907700 | R29: 1035100 | S29: 14166000 | T29: 1216100 | U29: 1830800 | V29: 10907000 | W29: 14547000 | X29: 7491810 | Y29: 18716408.13 | Z29: 16739155.45 | AA29: 17064000 | AB29: 17571000 | AC29: 17689757.08 | AD29: 17654000 | AE29: 6934900 | AF29: 20237644.83 | AG29: 11778000 | AH29: 8139700 | AI29: 1.7926 | AJ29: 13865869.75 | AK29: 0.981 | AL29: 0.9527 | AM29: 0.6961 | AN29: 4.895 | AO29: 1.2721 | AP29: 0.9711 | AQ29: 7.0315 | AR29: 9.2106 | AS29: 17.0899 | AT29: 1.002 | AU29: 2.5508 | AV29: 0.0731 | AW29: 0.8512 | AX29: 1.2462 | AY29: 2.5457 | AZ29: 11.6487 | BA29: 5.7026 | BB29: 2.8547 | BC29: 11.054 | BD29: 1.7183 | BE29: 2.4863 | BF29: 0.1679 | BG29: 0.1259 | BH29: 1.0799 | BI29: 1.447 | BJ29: 0.7498 | BK29: 0.5595
A30: 29 | B30: AACLPLPGYR | C30: sp|P13796|PLSL_HUMAN | D30: 2 | E30: 0 | F30: 1116.575 | G30: 40 | H30: 49 | I30: yes | J30: 0.0027393 | K30: 92.677 | L30: 9 | M30: LAD-D;LAD-M;LAD-M-2;LCX-M;LCX-P;LM-2;RCA-M;RCA-P;RCA-P-2 | N30: 9084700 | O30: 5046400 | P30: 3059800 | Q30: 0 | R30: 2311400 | S30: 13454000 | T30: 4122000 | U30: 0 | V30: 6200300 | W30: 4663600 | X30: 4794220 | Y30: 10478042.39 | Z30: 7909331.492 | AA30: 6914300 | AB30: 8865100 | AC30: 0 | AD30: 3281000 | AE30: 3344700 | AF30: 3219200.757 | AG30: 0 | AH30: 21223000 | AI30: 1.5673 | AJ30: 5930425.109 | AK30: 1.1439 | AL30: 0.8922 | AM30: 1.6493 | AN30: 999 | AO30: 2.2597 | AP30: 0.7799 | AQ30: 999 | AR30: 999 | AS30: -999 | AT30: -999 | AU30: -999 | AV30: 0.1718 | AW30: 0.5607 | AX30: 0.2439 | AY30: 0.981 | AZ30: 3.2639 | BA30: 0.8114 | BB30: 1.1534 | BC30: 999 | BD30: 999 | BE30: 0.1517 | BF30: -999 | BG30: -999 | BH30: -999 | BI30: -999 | BJ30: 1.3295 | BK30: 4.5508
A31: 30 | B31: AADAEAEVASLNRR | C31: sp|P06753|TPM3_HUMAN | D31: 2 | E31: 1 | F31: 1471.7379 | G31: 79 | H31: 92 | I31: yes | J31: 1.08E-08 | K31: 164.65 | L31: 2 | M31: LM-2;RCA-P-2 | N31: 6277900 | O31: 0 | P31: 0 | Q31: 0 | R31: 0 | S31: 0 | T31: 0 | U31: 0 | V31: 0 | W31: 0 | X31: 627790 | Y31: 10328162.55 | Z31: 7176504.43 | AA31: 9121800 | AB31: 7312200 | AC31: 4483889.57 | AD31: 0 | AE31: 3535000 | AF31: 0 | AG31: 6648100 | AH31: 14082000 | AI31: 999 | AJ31: 5698968.686 | AK31: 0.7867 | AL31: 0.9814 | AM31: NA | AN31: NA | AO31: 999 | AP31: 1.2475 | AQ31: NA | AR31: 999 | AS31: 999 | AT31: 999 | AU31: 1.2684 | AV31: NA | AW31: NA | AX31: NA | AY31: -999 | AZ31: NA | BA31: 999 | BB31: 1.6452 | BC31: NA | BD31: -999 | BE31: -999 | BF31: NA | BG31: NA | BH31: 999 | BI31: 0.4721 | BJ31: NA | BK31: 999
A32: 31 | B32: AADCEVEQWDSDEPIPAKELER | C32: sp|Q9UBQ7|GRHPR_HUMAN | D32: 3 | E32: 1 | F32: 2586.1544 | G32: 26 | H32: 47 | I32: yes | J32: 2.76E-23 | K32: 179.36 | L32: 8 | M32: LAD-D-2;LAD-M;LCX-D-2;LCX-P-2;RCA-D;RCA-D-2;RCA-M;RCA-M-2 | N32: 5103700 | O32: 4773400 | P32: 8232700 | Q32: 0 | R32: 0 | S32: 5896200 | T32: 1741600 | U32: 3086300 | V32: 5812600 | W32: 4770500 | X32: 3941700 | Y32: 5230281.844 | Z32: 6101139.109 | AA32: 4804100 | AB32: 6012200 | AC32: 7075254.091 | AD32: 0 | AE32: 14033000 | AF32: 6468786.947 | AG32: 12986000 | AH32: 6823200 | AI32: 1.2782 | AJ32: 6321269.388 | AK32: 1.27 | AL32: 1.0148 | AM32: 0.5798 | AN32: 999 | AO32: 0.5835 | AP32: 0.7991 | AQ32: 999 | AR32: 999 | AS32: 999 | AT32: 999 | AU32: 0.5042 | AV32: -999 | AW32: -999 | AX32: -999 | AY32: -999 | AZ32: 3.3855 | BA32: 8.0575 | BB32: 1.0248 | BC32: 2.096 | BD32: 0.4981 | BE32: 0.9481 | BF32: 0.531 | BG32: 0.647 | BH32: 2.2341 | BI32: 1.9032 | BJ32: 1.2184 | BK32: 1.4303
A33: 32 | B33: AADDTWEPFASGK | C33: sp|P02766|TTHY_HUMAN | D33: 2 | E33: 0 | F33: 1393.615 | G33: 56 | H33: 68 | I33: yes | J33: 3.78E-11 | K33: 230.65 | L33: 21 | M33: LAD-D;LAD-D-2;LAD-M;LAD-M-2;LAD-P;LCX-D;LCX-M;LCX-P;LCX-P-2;LM-2;RCA-D;RCA-M-2;RCA-P;RCA-P-2 | N33: 64006000 | O33: 43022000 | P33: 30222000 | Q33: 53207000 | R33: 10982000 | S33: 89631000 | T33: 23712000 | U33: 29556000 | V33: 68001000 | W33: 59149000 | X33: 47148800 | Y33: 59197072.32 | Z33: 35536762.17 | AA33: 24610000 | AB33: 60195000 | AC33: 18489151.59 | AD33: 14287000 | AE33: 10951000 | AF33: 31427051.31 | AG33: 44423000 | AH33: 38282000 | AI33: 0.826 | AJ33: 30672548.93 | AK33: 1.444 | AL33: 0.5904 | AM33: 1.4235 | AN33: 0.8086 | AO33: 0.8143 | AP33: 0.4088 | AQ33: 0.568 | AR33: 1.1313 | AS33: 1.6836 | AT33: 1.2941 | AU33: 1.6884 | AV33: 0.1225 | AW33: 0.4631 | AX33: 0.1594 | AY33: 1.3046 | AZ33: 3.78 | BA33: 0.4618 | BB33: 0.9249 | BC33: 1.0633 | BD33: 0.7074 | BE33: 0.8209 | BF33: 0.4346 | BG33: 0.4997 | BH33: 0.6533 | BI33: 1.1604 | BJ33: 1.1497 | BK33: 0.6472
A34: 33 | B34: AADFQLHTHVNDGTEFGGSIYQK | C34: sp|Q9Y277|VDAC3_HUMAN | D34: 4 | E34: 0 | F34: 2534.1826 | G34: 175 | H34: 197 | I34: yes | J34: 0.0011295 | K34: 41.084 | L34: 1 | M34: LCX-P-2 | N34: 0 | O34: 0 | P34: 0 | Q34: 0 | R34: 0 | S34: 0 | T34: 0 | U34: 0 | V34: 0 | W34: 0 | X34: 0 | Y34: 0 | Z34: 0 | AA34: 0 | AB34: 0 | AC34: 0 | AD34: 0 | AE34: 7165600 | AF34: 0 | AG34: 3907100 | AH34: 0 | AI34: NA | AJ34: 1107270 | AK34: NA | AL34: NA | AM34: NA | AN34: NA | AO34: NA | AP34: NA | AQ34: NA | AR34: NA | AS34: NA | AT34: NA | AU34: -999 | AV34: NA | AW34: NA | AX34: NA | AY34: -999 | AZ34: NA | BA34: 999 | BB34: NA | BC34: NA | BD34: -999 | BE34: NA | BF34: NA | BG34: NA | BH34: 999 | BI34: 999 | BJ34: NA | BK34: NA
A35: 34 | B35: AADKGVYIIGSSGFDSIPADLGVIYTR | C35: sp|Q8NBX0|SCPDL_HUMAN | D35: 3 | E35: 1 | F35: 2784.4334 | G35: 141 | H35: 167 | I35: yes | J35: 0.0044909 | K35: 53.089 | L35: 5 | M35: LAD-M;LCX-M;LCX-P;LCX-P-2;RCA-M-2 | N35: 2788500 | O35: 2229500 | P35: 5185400 | Q35: 0 | R35: 0 | S35: 2901300 | T35: 706300 | U35: 495850 | V35: 0 | W35: 1847500 | X35: 1615435 | Y35: 2281297.793 | Z35: 1799907.951 | AA35: 2951900 | AB35: 2365700 | AC35: 3128667.195 | AD35: 0 | AE35: 4379400 | AF35: 1544691.416 | AG35: 3731000 | AH35: 2749900 | AI35: 0.8073 | AJ35: 2266587.742 | AK35: 0.6097 | AL35: 0.7608 | AM35: 0.43 | AN35: 999 | AO35: 0.5693 | AP35: 1.2478 | AQ35: 999 | AR35: 999 | AS35: 999 | AT35: 999 | AU35: 0.7144 | AV35: -999 | AW35: -999 | AX35: -999 | AY35: -999 | AZ35: 4.1077 | BA35: 6.2005 | BB35: 0.8181 | BC35: 3.1152 | BD35: 0.414 | BE35: 0.5617 | BF35: 999 | BG35: 0.2684 | BH35: 999 | BI35: 1.3568 | BJ35: -999 | BK35: 1.4884
A36: 35 | B36: AADMLSGPR | C36: sp|P30038|AL4A1_HUMAN | D36: 2 | E36: 0 | F36: 916.44365 | G36: 131 | H36: 139 | I36: yes | J36: 0.0052825 | K36: 77.923 | L36: 2 | M36: LCX-P-2;RCA-D | N36: 0 | O36: 0 | P36: 0 | Q36: 0 | R36: 3819800 | S36: 0 | T36: 0 | U36: 4760300 | V36: 0 | W36: 0 | X36: 858010 | Y36: 0 | Z36: 0 | AA36: 0 | AB36: 0 | AC36: 1324082.751 | AD36: 0 | AE36: 4077100 | AF36: 0 | AG36: 0 | AH36: 0 | AI36: NA | AJ36: 540118.2751 | AK36: NA | AL36: NA | AM36: NA | AN36: NA | AO36: NA | AP36: NA | AQ36: NA | AR36: NA | AS36: 0.3466 | AT36: 999 | AU36: 0.3248 | AV36: 999 | AW36: 999 | AX36: NA | AY36: -999 | AZ36: NA | BA36: 999 | BB36: NA | BC36: -999 | BD36: NA | BE36: NA | BF36: 999 | BG36: 999 | BH36: NA | BI36: NA | BJ36: NA | BK36: NA
A37: 36 | B37: AADPIDPPGPPAK | C37: sp|Q8WZ42|TITIN_HUMAN | D37: 2 | E37: 0 | F37: 1244.6401 | G37: 28087 | H37: 28099 | I37: yes | J37: 3.18E-05 | K37: 119.22 | L37: 3 | M37: LCX-P-2;RCA-M-2 | N37: 0 | O37: 0 | P37: 0 | Q37: 0 | R37: 0 | S37: 0 | T37: 0 | U37: 0 | V37: 0 | W37: 0 | X37: 0 | Y37: 0 | Z37: 0 | AA37: 0 | AB37: 0 | AC37: 0 | AD37: 0 | AE37: 18220000 | AF37: 0 | AG37: 12150000 | AH37: 0 | AI37: NA | AJ37: 3037000 | AK37: NA | AL37: NA | AM37: NA | AN37: NA | AO37: NA | AP37: NA | AQ37: NA | AR37: NA | AS37: NA | AT37: NA | AU37: -999 | AV37: NA | AW37: NA | AX37: NA | AY37: -999 | AZ37: NA | BA37: 999 | BB37: NA | BC37: NA | BD37: -999 | BE37: NA | BF37: NA | BG37: NA | BH37: 999 | BI37: 999 | BJ37: NA | BK37: NA
A38: 37 | B38: AAEAVAAAVGTGATTAAVMAAAGIAAIGPAKELEAER | C38: sp|P46821|MAP1B_HUMAN | D38: 4 | E38: 1 | F38: 3350.7504 | G38: 791 | H38: 827 | I38: yes | J38: 9.61E-05 | K38: 57.025 | L38: 1 | M38: LAD-M | N38: 0 | O38: 0 | P38: 1850100 | Q38: 0 | R38: 0 | S38: 0 | T38: 88824 | U38: 0 | V38: 0 | W38: 0 | X38: 193892.4 | Y38: 0 | Z38: 0 | AA38: 0 | AB38: 0 | AC38: 0 | AD38: 0 | AE38: 0 | AF38: 0 | AG38: 0 | AH38: 0 | AI38: NA | AJ38: 0 | AK38: NA | AL38: NA | AM38: -999 | AN38: NA | AO38: -999 | AP38: NA | AQ38: 999 | AR38: NA | AS38: NA | AT38: NA | AU38: NA | AV38: NA | AW38: -999 | AX38: NA | AY38: NA | AZ38: -999 | BA38: -999 | BB38: NA | BC38: NA | BD38: NA | BE38: NA | BF38: NA | BG38: NA | BH38: NA | BI38: NA | BJ38: NA | BK38: NA
A39: 38 | B39: AAECNIVVTQPR | C39: sp|Q08211|DHX9_HUMAN | D39: 2 | E39: 0 | F39: 1356.682 | G39: 435 | H39: 446 | I39: yes | J39: 0.014839 | K39: 63.046 | L39: 1 | M39: RCA-D | N39: 0 | O39: 0 | P39: 0 | Q39: 0 | R39: 1790700 | S39: 0 | T39: 0 | U39: 3327000 | V39: 0 | W39: 0 | X39: 511770 | Y39: 0 | Z39: 0 | AA39: 0 | AB39: 0 | AC39: 0 | AD39: 0 | AE39: 0 | AF39: 0 | AG39: 0 | AH39: 0 | AI39: NA | AJ39: 0 | AK39: NA | AL39: NA | AM39: NA | AN39: NA | AO39: NA | AP39: NA | AQ39: NA | AR39: NA | AS39: -999 | AT39: NA | AU39: NA | AV39: 999 | AW39: 999 | AX39: NA | AY39: NA | AZ39: NA | BA39: NA | BB39: NA | BC39: -999 | BD39: NA | BE39: NA | BF39: 999 | BG39: 999 | BH39: NA | BI39: NA | BJ39: NA | BK39: NA
A40: 39 | B40: AAEDYGVIK | C40: sp|Q01995|TAGL_HUMAN | D40: 1;2 | E40: 0 | F40: 964.48656 | G40: 100 | H40: 108 | I40: yes | J40: 0.0016273 | K40: 135.83 | L40: 30 | M40: LAD-D;LAD-D-2;LAD-M;LAD-M-2;LAD-P;LAD-P-2;LCX-D;LCX-D-2;LCX-M;LCX-M-2;LCX-P;LCX-P-2;LM;LM-2;RCA-D;RCA-D-2;RCA-M;RCA-M-2;RCA-P;RCA-P-2 | N40: 722720000 | O40: 470710000 | P40: 87319000 | Q40: 456900000 | R40: 360080000 | S40: 246770000 | T40: 280620000 | U40: 178790000 | V40: 135370000 | W40: 200070000 | X40: 313934900 | Y40: 262016604.8 | Z40: 518386837 | AA40: 227480000 | AB40: 295890000 | AC40: 18262091.83 | AD40: 444520000 | AE40: 203340000 | AF40: 467817450.9 | AG40: 136470000 | AH40: 267700000 | AI40: 1.1013 | AJ40: 258352998.7 | AK40: 2.2788 | AL40: 1.752 | AM40: 5.3907 | AN40: 1.0302 | AO40: 2.6052 | AP40: 0.7688 | AQ40: 0.1911 | AR40: 0.6476 | AS40: 0.0507 | AT40: 0.0411 | AU40: 0.0898 | AV40: 1.4592 | AW40: 1.2832 | AX40: 1.8014 | AY40: 2.1861 | AZ40: 0.8794 | BA40: 0.7246 | BB40: 0.3625 | BC40: 2.6166 | BD40: 3.428 | BE40: 1.7475 | BF40: 1.3208 | BG40: 0.8936 | BH40: 1.0081 | BI40: 0.5098 | BJ40: 0.6766 | BK40: 1.338
A41: 40 | B41: AAEDYGVIKTDMFQTVDLFEGK | C41: sp|Q01995|TAGL_HUMAN | D41: 2;3 | E41: 1 | F41: 2476.1832 | G41: 100 | H41: 121 | I41: yes | J41: 9.40E-53 | K41: 319.55 | L41: 261 | M41: LAD-D;LAD-D-2;LAD-M;LAD-M-2;LAD-P;LAD-P-2;LCX-D;LCX-D-2;LCX-M;LCX-M-2;LCX-P;LCX-P-2;LM;LM-2;RCA-D;RCA-D-2;RCA-M;RCA-M-2;RCA-P;RCA-P-2 | N41: 72834000 | O41: 79460000 | P41: 43610000 | Q41: 31040000 | R41: 36262000 | S41: 81396000 | T41: 43342000 | U41: 14266000 | V41: 57690000 | W41: 78746000 | X41: 53864600 | Y41: 90687131.31 | Z41: 144310206 | AA41: 74433000 | AB41: 77727000 | AC41: 8621783.32 | AD41: 85439000 | AE41: 44110000 | AF41: 107358713.6 | AG41: 35393000 | AH41: 64776000 | AI41: 1.8161 | AJ41: 66623257.82 | AK41: 1.9388 | AL41: 1.8566 | AM41: 1.8221 | AN41: 2.5599 | AO41: 1.7068 | AP41: 0.9576 | AQ41: 1.405 | AR41: 2.5041 | AS41: 0.2378 | AT41: 0.1009 | AU41: 0.1955 | AV41: 0.4455 | AW41: 0.8366 | AX41: 1.0497 | AY41: 1.937 | AZ41: 1.878 | BA41: 1.0177 | BB41: 1.2451 | BC41: 7.5255 | BD41: 3.0333 | BE41: 1.6574 | BF41: 0.2473 | BG41: 0.1812 | BH41: 0.6135 | BI41: 0.5464 | BJ41: 0.7326 | BK41: 0.8226
A42: 41 | B42: AAEDYGVIKTDMFQTVDLFEGKDMAAVQR | C42: sp|Q01995|TAGL_HUMAN | D42: 3;4 | E42: 2 | F42: 3247.5529 | G42: 100 | H42: 128 | I42: yes | J42: 5.76E-198 | K42: 406.4 | L42: 298 | M42: LAD-D;LAD-D-2;LAD-M;LAD-M-2;LAD-P;LAD-P-2;LCX-D;LCX-D-2;LCX-M;LCX-M-2;LCX-P;LCX-P-2;LM;LM-2;RCA-D;RCA-D-2;RCA-M;RCA-M-2;RCA-P;RCA-P-2 | N42: 145110000 | O42: 230080000 | P42: 1896500000 | Q42: 124810000 | R42: 133860000 | S42: 551660000 | T42: 226090000 | U42: 100310000 | V42: 953970000 | W42: 622900000 | X42: 498529000 | Y42: 425617216.5 | Z42: 435036244.4 | AA42: 411880000 | AB42: 441280000 | AC42: 65934549.12 | AD42: 158440000 | AE42: 111130000 | AF42: 296334830.9 | AG42: 89002000 | AH42: 166480000 | AI42: 1.8908 | AJ42: 236466803.9 | AK42: 1.0562 | AL42: 0.9859 | AM42: 0.1213 | AN42: 1.8434 | AO42: 0.2172 | AP42: 0.9334 | AQ42: 15.1951 | AR42: 3.5356 | AS42: 0.4926 | AT42: 0.4161 | AU42: 0.5933 | AV42: 0.2426 | AW42: 0.5921 | AX42: 0.2872 | AY42: 1.4257 | AZ42: 2.44 | BA42: 0.4915 | BB42: 2.9331 | BC42: 2.9542 | BD42: 3.3295 | BE42: 1.78 | BF42: 0.1052 | BG42: 0.161 | BH42: 0.0933 | BI42: 0.5346 | BJ42: 1.5315 | BK42: 0.2673
A43: 42 | B43: AAELIANSLATAGDGLIELR | C43: sp|P35232|PHB_HUMAN | D43: 2 | E43: 0 | F43: 1997.0793 | G43: 220 | H43: 239 | I43: yes | J43: 1.09E-11 | K43: 147.35 | L43: 4 | M43: LCX-D;LCX-M-2;LCX-P-2;RCA-M-2 | N43: 4009700 | O43: 3864400 | P43: 0 | Q43: 0 | R43: 513050 | S43: 0 | T43: 663840 | U43: 880630 | V43: 0 | W43: 3053500 | X43: 1298512 | Y43: 0 | Z43: 3557243.125 | AA43: 3342300 | AB43: 4568200 | AC43: 3626901.175 | AD43: 5504900 | AE43: 5332800 | AF43: 4228304.564 | AG43: 8636100 | AH43: 6001900 | AI43: 0.9205 | AJ43: 4072604.526 | AK43: 1.0643 | AL43: 0.7787 | AM43: 999 | AN43: 999 | AO43: 999 | AP43: 0.7316 | AQ43: NA | AR43: 999 | AS43: 7.0693 | AT43: 0.6588 | AU43: 0.6801 | AV43: 999 | AW43: 0.7729 | AX43: 999 | AY43: 1.0323 | AZ43: -999 | BA43: 8.0333 | BB43: -999 | BC43: 4.8015 | BD43: 0.4896 | BE43: 0.7045 | BF43: 999 | BG43: 0.2884 | BH43: 999 | BI43: 1.4389 | BJ43: -999 | BK43: 1.9656
A44: 43 | B44: AAEPLTELEESIETVVTTFFTFAR | C44: sp|Q99584|S10AD_HUMAN | D44: 2;3 | E44: 0 | F44: 2700.3534 | G44: 2 | H44: 25 | I44: yes | J44: 2.62E-26 | K44: 179.14 | L44: 25 | M44: LAD-D;LAD-D-2;LAD-M;LAD-M-2;LAD-P-2;LCX-D-2;LCX-M;LCX-M-2;LCX-P-2;LM-2;RCA-D-2;RCA-M;RCA-M-2;RCA-P;RCA-P-2 | N44: 0 | O44: 1379600 | P44: 1845400 | Q44: 0 | R44: 0 | S44: 7563800 | T44: 0 | U44: 0 | V44: 4524200 | W44: 811270 | X44: 1612427 | Y44: 5014747.651 | Z44: 3618801.059 | AA44: 5352900 | AB44: 3849900 | AC44: 6362214.373 | AD44: 7738800 | AE44: 2144100 | AF44: 2693781.036 | AG44: 2254100 | AH44: 9541900 | AI44: 2.6231 | AJ44: 4415567.886 | AK44: 0.676 | AL44: 0.94 | AM44: 0.7476 | AN44: 999 | AO44: 2.9007 | AP44: 1.3904 | AQ44: 999 | AR44: 999 | AS44: 999 | AT44: 0.8221 | AU44: 2.9673 | AV44: -999 | AW44: NA | AX44: 1.0231 | AY44: 3.6093 | AZ44: 999 | BA44: 999 | BB44: 999 | BC44: 999 | BD44: 1.1951 | BE44: 0.2823 | BF44: -999 | BG44: -999 | BH44: 0.4982 | BI44: 0.2362 | BJ44: 5.5767 | BK44: 11.7617
A45: 44 | B45: AAESLADPTEYENLFPGLK | C45: sp|P35606|COPB2_HUMAN | D45: 2 | E45: 0 | F45: 2064.0052 | G45: 784 | H45: 802 | I45: yes | J45: 7.13E-07 | K45: 126.95 | L45: 10 | M45: LAD-D;LAD-D-2;LAD-M-2;LCX-D-2;LCX-M;LCX-M-2;LM;RCA-D-2;RCA-M-2;RCA-P-2 | N45: 2916900 | O45: 3444900 | P45: 0 | Q45: 0 | R45: 0 | S45: 3790700 | T45: 0 | U45: 0 | V45: 0 | W45: 0 | X45: 1015250 | Y45: 0 | Z45: 0 | AA45: 2894500 | AB45: 0 | AC45: 3953939.307 | AD45: 3960800 | AE45: 0 | AF45: 2904114.448 | AG45: 0 | AH45: 4609500 | AI45: -999 | AJ45: 1665623.159 | AK45: -999 | AL45: NA | AM45: 999 | AN45: 999 | AO45: 999 | AP45: 999 | AQ45: NA | AR45: NA | AS45: 999 | AT45: 0.9983 | AU45: 999 | AV45: -999 | AW45: NA | AX45: 1.0449 | AY45: 999 | AZ45: 999 | BA45: NA | BB45: -999 | BC45: 999 | BD45: 999 | BE45: 0.63 | BF45: NA | BG45: NA | BH45: NA | BI45: -999 | BJ45: NA | BK45: 999
A46: 45 | B46: AAETTVVEVEEIVDIGAFAPEDIHIPQIYVHR | C46: sp|P55809|SCOT1_HUMAN | D46: 4 | E46: 0 | F46: 3559.8199 | G46: 237 | H46: 268 | I46: yes | J46: 1.13E-06 | K46: 90.123 | L46: 7 | M46: LCX-P-2;RCA-M-2 | N46: 0 | O46: 966680 | P46: 0 | Q46: 0 | R46: 0 | S46: 0 | T46: 0 | U46: 780560 | V46: 0 | W46: 0 | X46: 174724 | Y46: 0 | Z46: 0 | AA46: 0 | AB46: 0 | AC46: 1907013.624 | AD46: 1665800 | AE46: 4156600 | AF46: 0 | AG46: 4354100 | AH46: 1762700 | AI46: -999 | AJ46: 1258655.875 | AK46: NA | AL46: NA | AM46: 999 | AN46: 999 | AO46: NA | AP46: NA | AQ46: NA | AR46: NA | AS46: 999 | AT46: 1.1448 | AU46: 0.4588 | AV46: NA | AW46: NA | AX46: 999 | AY46: 0.4008 | AZ46: NA | BA46: 999 | BB46: NA | BC46: -999 | BD46: -999 | BE46: -999 | BF46: 999 | BG46: 999 | BH46: 999 | BI46: 2.4701 | BJ46: NA | BK46: 999
A47: 46 | B47: AAEVPAPIR | C47: sp|Q8WZ42|TITIN_HUMAN | D47: 2 | E47: 0 | F47: 922.52362 | G47: 28386 | H47: 28394 | I47: yes | J47: 0.0026878 | K47: 89.55 | L47: 2 | M47: LCX-P-2;RCA-M-2 | N47: 0 | O47: 0 | P47: 0 | Q47: 0 | R47: 0 | S47: 0 | T47: 0 | U47: 0 | V47: 0 | W47: 0 | X47: 0 | Y47: 0 | Z47: 0 | AA47: 0 | AB47: 0 | AC47: 0 | AD47: 0 | AE47: 5745500 | AF47: 0 | AG47: 5125600 | AH47: 0 | AI47: NA | AJ47: 1087110 | AK47: NA | AL47: NA | AM47: NA | AN47: NA | AO47: NA | AP47: NA | AQ47: NA | AR47: NA | AS47: NA | AT47: NA | AU47: -999 | AV47: NA | AW47: NA | AX47: NA | AY47: -999 | AZ47: NA | BA47: 999 | BB47: NA | BC47: NA | BD47: -999 | BE47: NA | BF47: NA | BG47: NA | BH47: 999 | BI47: 999 | BJ47: NA | BK47: NA
A48: 47 | B48: AAFDDAIAELDTLSEESYK | C48: sp|P62258|1433E_HUMAN | D48: 2;3 | E48: 0 | F48: 2086.9583 | G48: 197 | H48: 215 | I48: yes | J48: 5.99E-20 | K48: 246.86 | L48: 53 | M48: LAD-D;LAD-D-2;LAD-M;LAD-M-2;LAD-P-2;LCX-D-2;LCX-M;LCX-M-2;LCX-P-2;LM;LM-2;RCA-D-2;RCA-M;RCA-M-2;RCA-P;RCA-P-2 | N48: 45144000 | O48: 40242000 | P48: 2801100 | Q48: 0 | R48: 0 | S48: 21155000 | T48: 0 | U48: 0 | V48: 12471000 | W48: 17466000 | X48: 13927910 | Y48: 21876775.18 | Z48: 32331147.16 | AA48: 24129000 | AB48: 26024000 | AC48: 26124846.82 | AD48: 47109000 | AE48: 28020000 | AF48: 34750532.04 | AG48: 39073000 | AH48: 39252000 | AI48: 0.8034 | AJ48: 28971845.64 | AK48: 1.3399 | AL48: 1.2424 | AM48: 14.3665 | AN48: 999 | AO48: 8.6141 | AP48: 0.9272 | AQ48: 999 | AR48: 999 | AS48: 999 | AT48: 0.5546 | AU48: 0.9324 | AV48: -999 | AW48: NA | AX48: 2.2268 | AY48: 1.6813 | AZ48: 999 | BA48: 999 | BB48: 0.4846 | BC48: 999 | BD48: 0.8894 | BE48: 0.8853 | BF48: -999 | BG48: -999 | BH48: 3.1331 | BI48: 0.9954 | BJ48: 0.714 | BK48: 2.2473
A49: 48 | B49: AAFDDAIAELDTLSEESYKDSTLIMQLLR | C49: sp|P62258|1433E_HUMAN | D49: 3;4 | E49: 1 | F49: 3257.6013 | G49: 197 | H49: 225 | I49: yes | J49: 1.61E-129 | K49: 338.39 | L49: 49 | M49: LAD-D;LAD-D-2;LAD-M;LAD-M-2;LAD-P-2;LCX-D-2;LCX-M;LCX-M-2;LCX-P-2;LM;LM-2;RCA-D-2;RCA-M;RCA-M-2;RCA-P;RCA-P-2 | N49: 10465000 | O49: 71699000 | P49: 39611000 | Q49: 0 | R49: 0 | S49: 109970000 | T49: 0 | U49: 1551100 | V49: 145900000 | W49: 123140000 | X49: 50233610 | Y49: 90554948.66 | Z49: 257185594.3 | AA49: 172090000 | AB49: 299670000 | AC49: 192460174.4 | AD49: 218180000 | AE49: 93867000 | AF49: 171589028.1 | AG49: 201100000 | AH49: 280530000 | AI49: 3.587 | AJ49: 179747886.3 | AK49: 1.4945 | AL49: 0.8582 | AM49: 1.8101 | AN49: 999 | AO49: 4.3445 | AP49: 0.5743 | AQ49: 999 | AR49: 999 | AS49: 999 | AT49: 0.8821 | AU49: 2.0503 | AV49: -999 | AW49: NA | AX49: 1.984 | AY49: 2.3244 | AZ49: 999 | BA49: 999 | BB49: 8.6531 | BC49: 110.6241 | BD49: 0.8533 | BE49: 0.6117 | BF49: 0.0106 | BG49: 0.0126 | BH49: 1.3783 | BI49: 0.7169 | BJ49: 1.1848 | BK49: 2.2781
A50: 49 | B50: AAFDIFVLGAEDGCISTK | C50: sp|P63316|TNNC1_HUMAN | D50: 2 | E50: 0 | F50: 1912.9241 | G50: 22 | H50: 39 | I50: yes | J50: 7.71E-09 | K50: 141.32 | L50: 105 | M50: LCX-M-2;LCX-P-2;RCA-D-2;RCA-M-2 | N50: 0 | O50: 0 | P50: 0 | Q50: 0 | R50: 821150 | S50: 0 | T50: 0 | U50: 0 | V50: 1108800 | W50: 0 | X50: 192995 | Y50: 0 | Z50: 0 | AA50: 0 | AB50: 0 | AC50: 5290203.993 | AD50: 1346500 | AE50: 63636000 | AF50: 2180184.441 | AG50: 45581000 | AH50: 7289700 | AI50: NA | AJ50: 12532358.84 | AK50: NA | AL50: NA | AM50: NA | AN50: NA | AO50: NA | AP50: NA | AQ50: NA | AR50: NA | AS50: 6.4424 | AT50: 3.9289 | AU50: 0.0831 | AV50: 999 | AW50: 999 | AX50: 999 | AY50: 0.0212 | AZ50: NA | BA50: 999 | BB50: NA | BC50: 999 | BD50: 0.0478 | BE50: 0.2991 | BF50: -999 | BG50: NA | BH50: 41.1084 | BI50: 6.2528 | BJ50: 999 | BK50: 999
A51: 50 | B51: AAFGLSEAGFNTACVTK | C51: sp|P31040|SDHA_HUMAN | D51: 2 | E51: 0 | F51: 1742.8298 | G51: 76 | H51: 92 | I51: yes | J51: 4.60E-11 | K51: 158.25 | L51: 13 | M51: LAD-M-2;LCX-D-2;LCX-P;LCX-P-2;LM-2;RCA-M-2;RCA-P;RCA-P-2 | N51: 0 | O51: 3417300 | P51: 4448500 | Q51: 0 | R51: 0 | S51: 0 | T51: 1782700 | U51: 1576600 | V51: 4081700 | W51: 3859500 | X51: 1916630 | Y51: 4621039.983 | Z51: 0 | AA51: 4146500 | AB51: 0 | AC51: 3301520.94 | AD51: 0 | AE51: 20815000 | AF51: 0 | AG51: 11444000 | AH51: 11268000 | AI51: -999 | AJ51: 5054096.538 | AK51: -999 | AL51: NA | AM51: 0.7682 | AN51: 999 | AO51: 0.9321 | AP51: 999 | AQ51: 999 | AR51: NA | AS51: 999 | AT51: 999 | AU51: 0.1586 | AV51: NA | AW51: -999 | AX51: NA | AY51: -999 | AZ51: -999 | BA51: 11.6761 | BB51: 999 | BC51: -999 | BD51: -999 | BE51: -999 | BF51: 0.3863 | BG51: 0.4085 | BH51: 2.8037 | BI51: 1.0156 | BJ51: 1.0576 | BK51: 2.9195
A52: 51 | B52: AAFGQGSGPIMLDEVQCTGTEASLADCK | C52: sp|Q08380|LG3BP_HUMAN | D52: 2;3 | E52: 0 | F52: 2912.299 | G52: 77 | H52: 104 | I52: yes | J52: 2.96E-32 | K52: 191.07 | L52: 6 | M52: LAD-D;LAD-M;LCX-M;LCX-M-2;LM;LM-2 | N52: 7941200 | O52: 3614400 | P52: 12657000 | Q52: 0 | R52: 0 | S52: 12741000 | T52: 0 | U52: 0 | V52: 9634300 | W52: 0 | X52: 4658790 | Y52: 6205265.458 | Z52: 0 | AA52: 0 | AB52: 0 | AC52: 0 | AD52: 6580700 | AE52: 4597600 | AF52: 4896784.11 | AG52: 0 | AH52: 0 | AI52: -999 | AJ52: 2025395.506 | AK52: NA | AL52: NA | AM52: 0.2856 | AN52: 999 | AO52: -999 | AP52: NA | AQ52: 999 | AR52: NA | AS52: NA | AT52: -999 | AU52: -999 | AV52: -999 | AW52: NA | AX52: 0.5165 | AY52: 1.4313 | AZ52: 999 | BA52: 999 | BB52: 0.7814 | BC52: 999 | BD52: 999 | BE52: 999 | BF52: -999 | BG52: NA | BH52: -999 | BI52: NA | BJ52: 999 | BK52: NA
A53: 52 | B53: AAFKGDSGGPLLCNNVAHGIVSYGK | C53: sp|P08311|CATG_HUMAN | D53: 3;4 | E53: 1 | F53: 2531.2591 | G53: 195 | H53: 219 | I53: yes | J53: 5.67E-20 | K53: 159.66 | L53: 13 | M53: LAD-M;LAD-P;LCX-D;LCX-D-2;LCX-P;LM-2;RCA-M;RCA-P;RCA-P-2 | N53: 10978000 | O53: 2656000 | P53: 17887000 | Q53: 4198700 | R53: 3788400 | S53: 13225000 | T53: 5143600 | U53: 4724800 | V53: 13755000 | W53: 23801000 | X53: 10015750 | Y53: 27251474.77 | Z53: 3237717.179 | AA53: 731480 | AB53: 15092000 | AC53: 6257478.555 | AD53: 0 | AE53: 4680700 | AF53: 4252541.972 | AG53: 14444000 | AH53: 19564000 | AI53: 1.219 | AJ53: 8682853.972 | AK53: 4.4263 | AL53: 0.2145 | AM53: 0.1485 | AN53: 0.6326 | AO53: 0.0409 | AP53: 0.0485 | AQ53: 4.2601 | AR53: 3.5944 | AS53: 1.6517 | AT53: 999 | AU53: 1.3369 | AV53: 0.2865 | AW53: 0.7365 | AX53: -999 | AY53: -999 | AZ53: 2.5712 | BA53: 0.91 | BB53: 2.4824 | BC53: 0.9 | BD53: 0.2944 | BE53: 0.2174 | BF53: 0.3435 | BG53: 0.1985 | BH53: 1.0501 | BI53: 0.7383 | BJ53: 0.5779 | BK53: 0.822
A54: 53 | B54: AAFNSGKVDIVAINDPFIDLNYMVYMFQYDSTHGK | C54: sp|P04406|G3P_HUMAN | D54: 3;4 | E54: 1 | F54: 3982.891 | G54: 21 | H54: 55 | I54: yes | J54: 7.39E-52 | K54: 198.74 | L54: 35 | M54: LAD-D-2;LAD-M-2;LAD-P-2;LCX-D;LCX-D-2;LCX-M;LCX-M-2;LCX-P;LCX-P-2;LM;LM-2;RCA-D-2;RCA-M-2;RCA-P;RCA-P-2 | N54: 4048600 | O54: 28812000 | P54: 5668300 | Q54: 0 | R54: 5014000 | S54: 69647000 | T54: 10202000 | U54: 7528200 | V54: 28761000 | W54: 43944000 | X54: 20362510 | Y54: 128752457.9 | Z54: 113431135.7 | AA54: 120540000 | AB54: 111660000 | AC54: 48238304.62 | AD54: 208920000 | AE54: 112170000 | AF54: 149231496.8 | AG54: 107810000 | AH54: 169920000 | AI54: 3.9369 | AJ54: 115515763.5 | AK54: 0.941 | AL54: 1.0159 | AM54: 5.083 | AN54: 999 | AO54: 21.2656 | AP54: 1.0795 | AQ54: 999 | AR54: 999 | AS54: 9.6207 | AT54: 0.2309 | AU54: 0.43 | AV54: 0.072 | AW54: 0.4915 | AX54: 2.9997 | AY54: 1.8625 | AZ54: 6.8268 | BA54: 10.9949 | BB54: 31.8017 | BC54: 19.823 | BD54: 1.3842 | BE54: 0.8782 | BF54: 0.2618 | BG54: 0.1713 | BH54: 3.7485 | BI54: 0.6345 | BJ54: 0.6545 | BK54: 3.8667
A55: 54 | B55: AAFQIISQVISEATEQVLATTVGK | C55: sp|Q92667|AKAP1_HUMAN | D55: 3 | E55: 0 | F55: 2503.3534 | G55: 347 | H55: 370 | I55: yes | J55: 2.09E-26 | K55: 131.33 | L55: 5 | M55: LAD-D;LAD-M;LCX-D-2;RCA-M-2;RCA-P-2 | N55: 0 | O55: 6702800 | P55: 310170 | Q55: 0 | R55: 0 | S55: 0 | T55: 0 | U55: 0 | V55: 18248000 | W55: 1180200 | X55: 2644117 | Y55: 715053.5285 | Z55: 1258543.321 | AA55: 1220400 | AB55: 1073200 | AC55: 3594103.655 | AD55: 668500 | AE55: 1738900 | AF55: 710439.8203 | AG55: 2881200 | AH55: 568470 | AI55: 0.1878 | AJ55: 1311710.047 | AK55: 1.0313 | AL55: 1.1727 | AM55: 21.6101 | AN55: 999 | AO55: 3.9346 | AP55: 1.1372 | AQ55: 999 | AR55: 999 | AS55: 999 | AT55: 5.3764 | AU55: 2.0669 | AV55: NA | AW55: NA | AX55: 999 | AY55: 0.3844 | AZ55: NA | BA55: 999 | BB55: 999 | BC55: 999 | BD55: 0.2466 | BE55: 1.2497 | BF55: -999 | BG55: -999 | BH55: 0.1579 | BI55: 5.0683 | BJ55: 15.4618 | BK55: 0.4817
A56: 55 | B56: AAFQLGSPWR | C56: sp|P05091|ALDH2_HUMAN | D56: 2 | E56: 0 | F56: 1131.5825 | G56: 85 | H56: 94 | I56: yes | J56: 0.00020854 | K56: 182.73 | L56: 36 | M56: LAD-D;LAD-D-2;LAD-M;LAD-M-2;LAD-P;LAD-P-2;LCX-D;LCX-D-2;LCX-M;LCX-M-2;LCX-P;LCX-P-2;LM;LM-2;RCA-D;RCA-D-2;RCA-M;RCA-M-2;RCA-P;RCA-P-2 | N56: 11244000 | O56: 24864000 | P56: 13280000 | Q56: 8231500 | R56: 2329600 | S56: 16312000 | T56: 7645300 | U56: 0 | V56: 21158000 | W56: 8106300 | X56: 11317070 | Y56: 15108149.44 | Z56: 17443332.18 | AA56: 19430000 | AB56: 0 | AC56: 35841562.75 | AD56: 33805000 | AE56: 19610000 | AF56: 16553558.76 | AG56: 33504000 | AH56: 28051000 | AI56: 0.7015 | AJ56: 19940600.35 | AK56: 0.8978 | AL56: 999 | AM56: 1.8723 | AN56: 3.0206 | AO56: 1.4631 | AP56: 999 | AQ56: 1.6133 | AR56: -999 | AS56: 15.3853 | AT56: 1.0602 | AU56: 1.8277 | AV56: 0.1428 | AW56: 0.3047 | AX56: 2.0724 | AY56: 1.7239 | AZ56: 2.1336 | BA56: 2.565 | BB56: 1.3437 | BC56: 999 | BD56: 0.4941 | BE56: 0.5901 | BF56: -999 | BG56: -999 | BH56: 1.5835 | BI56: 1.1944 | BJ56: 2.6101 | BK56: 3.4604
A57: 56 | B57: AAFQLGSPWRR | C57: sp|P05091|ALDH2_HUMAN | D57: 2;3 | E57: 1 | F57: 1287.6836 | G57: 85 | H57: 95 | I57: yes | J57: 7.97E-05 | K57: 125.74 | L57: 29 | M57: LAD-D;LAD-D-2;LAD-M;LAD-P-2;LCX-D;LCX-D-2;LCX-M;LCX-P;LM;LM-2;RCA-D;RCA-M;RCA-M-2;RCA-P-2 | N57: 6367200 | O57: 2477300 | P57: 7419500 | Q57: 0 | R57: 885870 | S57: 14538000 | T57: 5890500 | U57: 4888000 | V57: 19576000 | W57: 0 | X57: 6204237 | Y57: 8111535.941 | Z57: 8764584.052 | AA57: 0 | AB57: 18222000 | AC57: 17976645.28 | AD57: 0 | AE57: 14821000 | AF57: 3057696.855 | AG57: 21915000 | AH57: 17990000 | AI57: 3.538 | AJ57: 10078042.33 | AK57: 999 | AL57: 0.481 | AM57: 0.3339 | AN57: 999 | AO57: -999 | AP57: -999 | AQ57: 999 | AR57: 999 | AS57: 20.2926 | AT57: 999 | AU57: 1.2129 | AV57: 0.0609 | AW57: 0.1504 | AX57: -999 | AY57: -999 | AZ57: 2.468 | BA57: 2.5161 | BB57: 1.274 | BC57: 0.6256 | BD57: 0.1395 | BE57: 0.17 | BF57: 0.2497 | BG57: 999 | BH57: 1.1195 | BI57: 1.2182 | BJ57: 999 | BK57: 999
A58: 57 | B58: AAFQSLLDAQADEAVLDHPDLK | C58: sp|Q9UBI1|COMD3_HUMAN | D58: 3 | E58: 0 | F58: 2366.1754 | G58: 31 | H58: 52 | I58: yes | J58: 1.58E-08 | K58: 102.6 | L58: 1 | M58: LCX-D-2 | N58: 0 | O58: 0 | P58: 0 | Q58: 0 | R58: 0 | S58: 0 | T58: 0 | U58: 0 | V58: 0 | W58: 2404900 | X58: 240490 | Y58: 3426698.711 | Z58: 0 | AA58: 2171500 | AB58: 0 | AC58: 2673250.198 | AD58: 2086000 | AE58: 0 | AF58: 0 | AG58: 0 | AH58: 3928800 | AI58: NA | AJ58: 1428624.891 | AK58: -999 | AL58: NA | AM58: NA | AN58: NA | AO58: 999 | AP58: 999 | AQ58: NA | AR58: NA | AS58: 999 | AT58: 1.2815 | AU58: 999 | AV58: NA | AW58: NA | AX58: 999 | AY58: 999 | AZ58: NA | BA58: NA | BB58: 999 | BC58: NA | BD58: NA | BE58: -999 | BF58: NA | BG58: -999 | BH58: NA | BI58: -999 | BJ58: -999 | BK58: 1.6337
A59: 58 | B59: AAGCDFTNVVK | C59: sp|P52758|RIDA_HUMAN | D59: 2 | E59: 0 | F59: 1180.5547 | G59: 68 | H59: 78 | I59: yes | J59: 0.0048137 | K59: 73.985 | L59: 3 | M59: LCX-D-2;LCX-P;RCA-D | N59: 4305800 | O59: 4309500 | P59: 0 | Q59: 0 | R59: 1584300 | S59: 6001900 | T59: 3423400 | U59: 2547800 | V59: 2050900 | W59: 0 | X59: 2422360 | Y59: 3309919.161 | Z59: 0 | AA59: 0 | AB59: 0 | AC59: 3279103.294 | AD59: 0 | AE59: 0 | AF59: 2734216.127 | AG59: 8391600 | AH59: 3676500 | AI59: -999 | AJ59: 1944576.326 | AK59: NA | AL59: NA | AM59: 999 | AN59: 999 | AO59: NA | AP59: NA | AQ59: NA | AR59: NA | AS59: 2.0697 | AT59: 999 | AU59: 999 | AV59: 0.264 | AW59: 0.4628 | AX59: -999 | AY59: NA | AZ59: 1.7532 | BA59: -999 | BB59: 0.7687 | BC59: 1.0732 | BD59: 0.3258 | BE59: 0.7437 | BF59: 1.2423 | BG59: 999 | BH59: 4.0917 | BI59: 2.2825 | BJ59: 999 | BK59: 999
A60: 59 | B60: AAGGIELFVGGIGPDGHIAFNEPGSSLVSR | C60: sp|P46926|GNPI1_HUMAN | D60: 3 | E60: 0 | F60: 2923.4828 | G60: 127 | H60: 156 | I60: yes | J60: 6.82E-10 | K60: 116.35 | L60: 15 | M60: LAD-D;LAD-D-2;LAD-P-2;LCX-D-2;LCX-M;LCX-M-2;LCX-P;LM-2;RCA-D;RCA-D-2;RCA-M-2;RCA-P;RCA-P-2 | N60: 4357800 | O60: 3830600 | P60: 3148200 | Q60: 0 | R60: 788900 | S60: 5581300 | T60: 1594800 | U60: 1802800 | V60: 4482600 | W60: 4201500 | X60: 2978850 | Y60: 3483285.995 | Z60: 5151996.318 | AA60: 4180700 | AB60: 4160900 | AC60: 5002450.804 | AD60: 5443100 | AE60: 3397500 | AF60: 4731023.883 | AG60: 5205600 | AH60: 5205000 | AI60: 1.345 | AJ60: 4178323.486 | AK60: 1.2323 | AL60: 1.2382 | AM60: 1.2168 | AN60: 999 | AO60: 1.328 | AP60: 1.0048 | AQ60: 999 | AR60: 999 | AS60: 6.341 | AT60: 0.919 | AU60: 1.4724 | AV60: 0.1413 | AW60: 0.4947 | AX60: 0.9752 | AY60: 1.6021 | AZ60: 3.4997 | BA60: 2.1304 | BB60: 0.7993 | BC60: 2.6243 | BD60: 0.9088 | BE60: 0.9089 | BF60: 0.4022 | BG60: 0.4291 | BH60: 1.1613 | BI60: 1.0001 | BJ60: 1.0669 | BK60: 1.2388
A61: 60 | B61: AAGIDEQENWHEGKENIR | C61: sp|P28838|AMPL_HUMAN | D61: 3 | E61: 1 | F61: 2094.9719 | G61: 105 | H61: 122 | I61: yes | J61: 0.00050613 | K61: 92.977 | L61: 1 | M61: LAD-M | N61: 0 | O61: 0 | P61: 5637700 | Q61: 0 | R61: 0 | S61: 11635000 | T61: 0 | U61: 0 | V61: 9295400 | W61: 0 | X61: 2656810 | Y61: 0 | Z61: 0 | AA61: 0 | AB61: 0 | AC61: 0 | AD61: 0 | AE61: 0 | AF61: 0 | AG61: 0 | AH61: 0 | AI61: NA | AJ61: 0 | AK61: NA | AL61: NA | AM61: -999 | AN61: NA | AO61: -999 | AP61: NA | AQ61: 999 | AR61: NA | AS61: NA | AT61: NA | AU61: NA | AV61: -999 | AW61: NA | AX61: -999 | AY61: NA | AZ61: 999 | BA61: NA | BB61: NA | BC61: NA | BD61: NA | BE61: NA | BF61: -999 | BG61: NA | BH61: -999 | BI61: NA | BJ61: 999 | BK61: NA
A62: 61 | B62: AAGKGKLDVQFSGLTK | C62: sp|P21333|FLNA_HUMAN | D62: 3 | E62: 2 | F62: 1618.9043 | G62: 901 | H62: 916 | I62: yes | J62: 4.07E-11 | K62: 137.81 | L62: 7 | M62: LAD-M;LAD-P;LCX-D;LCX-P;RCA-D;RCA-M;RCA-P | N62: 0 | O62: 0 | P62: 13940000 | Q62: 11596000 | R62: 2992900 | S62: 5313600 | T62: 5748600 | U62: 3218400 | V62: 6472800 | W62: 4197900 | X62: 5348020 | Y62: 0 | Z62: 0 | AA62: 0 | AB62: 0 | AC62: 0 | AD62: 0 | AE62: 0 | AF62: 0 | AG62: 0 | AH62: 0 | AI62: NA | AJ62: 0 | AK62: NA | AL62: NA | AM62: -999 | AN62: -999 | AO62: -999 | AP62: NA | AQ62: 1.2021 | AR62: -999 | AS62: -999 | AT62: NA | AU62: NA | AV62: 0.5633 | AW62: 0.5206 | AX62: -999 | AY62: NA | AZ62: 0.9243 | BA62: -999 | BB62: NA | BC62: -999 | BD62: NA | BE62: NA | BF62: 0.4972 | BG62: 0.7667 | BH62: -999 | BI62: NA | BJ62: 1.5419 | BK62: -999
A63: 62 | B63: AAGLLSTYR | C63: sp|P39059|COFA1_HUMAN | D63: 2 | E63: 0 | F63: 950.51853 | G63: 1243 | H63: 1251 | I63: yes | J63: 7.08E-05 | K63: 159.04 | L63: 16 | M63: LAD-D;LAD-D-2;LAD-M;LAD-M-2;LAD-P-2;LCX-D;LCX-D-2;LCX-M;LCX-P;LCX-P-2;LM-2;RCA-D;RCA-D-2;RCA-M;RCA-M-2;RCA-P-2 | N63: 12542000 | O63: 9355200 | P63: 7642000 | Q63: 0 | R63: 11311000 | S63: 11162000 | T63: 12010000 | U63: 6547600 | V63: 8611800 | W63: 6629500 | X63: 8581110 | Y63: 15456630.98 | Z63: 12854677.25 | AA63: 8815200 | AB63: 15661000 | AC63: 7103366.251 | AD63: 8097200 | AE63: 9533200 | AF63: 11394892.41 | AG63: 13512000 | AH63: 21857000 | AI63: 1.3741 | AJ63: 11298651.66 | AK63: 1.4582 | AL63: 0.8208 | AM63: 1.2242 | AN63: 999 | AO63: 1.1535 | AP63: 0.5629 | AQ63: 999 | AR63: 999 | AS63: 0.628 | AT63: 0.8773 | AU63: 0.7451 | AV63: 1.0133 | AW63: 0.9418 | AX63: 0.7254 | AY63: 0.8494 | AZ63: 0.9294 | BA63: 0.7938 | BB63: 1.2324 | BC63: 1.7403 | BD63: 0.8433 | BE63: 0.5213 | BF63: 0.7603 | BG63: 0.9876 | BH63: 1.569 | BI63: 0.6182 | BJ63: 1.299 | BK63: 3.2969
A64: 63 | B64: AAGTLYTYPENWR | C64: sp|P26641|EF1G_HUMAN | D64: 2 | E64: 0 | F64: 1540.731 | G64: 2 | H64: 14 | I64: yes | J64: 4.47E-07 | K64: 152.04 | L64: 9 | M64: LAD-D;LAD-D-2;LAD-M;LAD-M-2;LAD-P-2;LCX-M-2;LCX-P;LM;RCA-D-2 | N64: 5743000 | O64: 5122100 | P64: 5168800 | Q64: 1146200 | R64: 0 | S64: 6153300 | T64: 1321000 | U64: 872680 | V64: 5141100 | W64: 5909900 | X64: 3657808 | Y64: 7611754.424 | Z64: 6040501.668 | AA64: 6159500 | AB64: 5253700 | AC64: 6342103.366 | AD64: 7061900 | AE64: 0 | AF64: 5261645.779 | AG64: 5699400 | AH64: 9902100 | AI64: 1.1793 | AJ64: 5393873.311 | AK64: 0.9807 | AL64: 1.1498 | AM64: 0.991 | AN64: 4.4688 | AO64: 1.1917 | AP64: 1.1724 | AQ64: 4.5095 | AR64: 4.5836 | AS64: 999 | AT64: 0.8981 | AU64: 999 | AV64: -999 | AW64: -999 | AX64: 1.1477 | AY64: 999 | AZ64: 4.6581 | BA64: -999 | BB64: 1.3254 | BC64: 6.0293 | BD64: 0.9232 | BE64: 0.5314 | BF64: 0.1697 | BG64: 0.1477 | BH64: 1.1086 | BI64: 0.5756 | BJ64: 0.8699 | BK64: 1.6755
A65: 64 | B65: AAGVCLMLLATCCEDDIVPHVLPFIK | C65: sp|Q14974|IMB1_HUMAN | D65: 3 | E65: 0 | F65: 2941.4574 | G65: 347 | H65: 372 | I65: yes | J65: 0.029016 | K65: 25.213 | L65: 3 | M65: LCX-D-2;LCX-M-2;RCA-P-2 | N65: 947540 | O65: 0 | P65: 0 | Q65: 0 | R65: 0 | S65: 932840 | T65: 0 | U65: 0 | V65: 0 | W65: 0 | X65: 188038 | Y65: 1060476.295 | Z65: 0 | AA65: 0 | AB65: 1307500 | AC65: 1302818.424 | AD65: 1630400 | AE65: 0 | AF65: 0 | AG65: 0 | AH65: 1965800 | AI65: NA | AJ65: 726699.4719 | AK65: NA | AL65: -999 | AM65: NA | AN65: NA | AO65: NA | AP65: -999 | AQ65: NA | AR65: 999 | AS65: 999 | AT65: 0.7991 | AU65: 999 | AV65: -999 | AW65: NA | AX65: 1.7478 | AY65: 999 | AZ65: 999 | BA65: NA | BB65: 1.1192 | BC65: NA | BD65: NA | BE65: -999 | BF65: NA | BG65: NA | BH65: NA | BI65: -999 | BJ65: NA | BK65: 999
A66: 65 | B66: AAGVEAAAEVAATEIK | C66: sp|P52272|HNRPM_HUMAN | D66: 2 | E66: 0 | F66: 1499.7831 | G66: 2 | H66: 17 | I66: yes | J66: 3.65E-05 | K66: 111.12 | L66: 1 | M66: RCA-M-2 | N66: 3114700 | O66: 0 | P66: 0 | Q66: 0 | R66: 0 | S66: 0 | T66: 0 | U66: 0 | V66: 0 | W66: 0 | X66: 311470 | Y66: 0 | Z66: 0 | AA66: 0 | AB66: 0 | AC66: 0 | AD66: 0 | AE66: 1416800 | AF66: 0 | AG66: 1539300 | AH66: 2332600 | AI66: NA | AJ66: 528870 | AK66: NA | AL66: NA | AM66: NA | AN66: NA | AO66: NA | AP66: NA | AQ66: NA | AR66: NA | AS66: NA | AT66: NA | AU66: -999 | AV66: NA | AW66: NA | AX66: NA | AY66: -999 | AZ66: NA | BA66: 999 | BB66: -999 | BC66: NA | BD66: -999 | BE66: -999 | BF66: NA | BG66: NA | BH66: 999 | BI66: 0.6599 | BJ66: NA | BK66: 999
A67: 66 | B67: AAGVNVEPFWPGLFAK | C67: sp|P05386|RLA1_HUMAN | D67: 2 | E67: 0 | F67: 1701.8879 | G67: 34 | H67: 49 | I67: yes | J67: 9.21E-06 | K67: 160.52 | L67: 58 | M67: LAD-D;LAD-D-2;LAD-M;LAD-M-2;LAD-P;LAD-P-2;LCX-D;LCX-D-2;LCX-M;LCX-M-2;LCX-P;LCX-P-2;LM;LM-2;RCA-D;RCA-D-2;RCA-M;RCA-M-2;RCA-P;RCA-P-2 | N67: 23608000 | O67: 44772000 | P67: 38944000 | Q67: 1811700 | R67: 2421000 | S67: 33598000 | T67: 4698800 | U67: 3461000 | V67: 18683000 | W67: 34608000 | X67: =AVERAGE(N67:W67) -> 20660550 | Y67: 24648241.21 | Z67: 27441030.95 | AA67: 25736000 | AB67: 22115000 | AC67: 17980249.41 | AD67: 24373000 | AE67: 17932000 | AF67: 22303144.95 | AG67: 22279000 | AH67: 45703000 | AI67: 0.6129 | AJ67: =AVERAGE(Y67:AI67) -> 22773697.01 | AK67: 1.0663 | AL67: 1.2408 | AM67: 1.1497 | AN67: 24.7127 | AO67: 0.6608 | AP67: 1.1637 | AQ67: 21.4958 | AR67: 12.2068 | AS67: 7.4268 | AT67: 0.7377 | AU67: 1.0027 | AV67: 0.0721 | AW67: 0.5152 | AX67: 0.7254 | AY67: 1.3592 | AZ67: 7.1503 | BA67: 3.8163 | BB67: 1.0441 | BC67: 6.4441 | BD67: 1.0011 | BE67: 0.488 | BF67: 0.1852 | BG67: 0.1 | BH67: 1.1925 | BI67: 0.4875 | BJ67: 0.5398 | BK67: 1.3206
A68: 67 | B68: AAGVPSATITWR | C68: sp|P98160|PGBM_HUMAN | D68: 2 | E68: 0 | F68: 1228.6564 | G68: 1979 | H68: 1990 | I68: yes | J68: 5.82E-06 | K68: 157.96 | L68: 33 | M68: LAD-D;LAD-D-2;LAD-M;LAD-M-2;LAD-P;LAD-P-2;LCX-D;LCX-D-2;LCX-M;LCX-M-2;LCX-P;LCX-P-2;LM;LM-2;RCA-D;RCA-D-2;RCA-M;RCA-M-2;RCA-P;RCA-P-2 | N68: 85529000 | O68: 132570000 | P68: 52094000 | Q68: 107480000 | R68: 15155000 | S68: 58809000 | T68: 25931000 | U68: 7367400 | V68: 40101000 | W68: 46470000 | X68: 57150640 | Y68: 101574175.2 | Z68: 77464043.26 | AA68: 24372000 | AB68: 93475000 | AC68: 13609889.71 | AD68: 81654000 | AE68: 71389000 | AF68: 75928115.39 | AG68: 91586000 | AH68: 107130000 | AI68: 0.5843 | AJ68: 67107474.93 | AK68: 3.1784 | AL68: 0.8287 | AM68: 2.5448 | AN68: 1.2334 | AO68: 0.4678 | AP68: 0.2607 | AQ68: 0.4847 | AR68: 0.8697 | AS68: 0.898 | AT68: 0.1667 | AU68: 0.1906 | AV68: 0.2577 | AW68: 0.5844 | AX68: 1.3885 | AY68: 1.1438 | AZ68: 2.2679 | BA68: 2.753 | BB68: 1.1876 | BC68: 10.306 | BD68: 0.829 | BE68: 0.7087 | BF68: 0.1837 | BG68: 0.1585 | BH68: 2.2839 | BI68: 0.8549 | BJ68: 0.8629 | BK68: 2.3054
A69: 68 | B69: AAGVPSATITWRK | C69: sp|P98160|PGBM_HUMAN | D69: 3 | E69: 1 | F69: 1356.7514 | G69: 1979 | H69: 1991 | I69: yes | J69: 7.24E-05 | K69: 109.72 | L69: 1 | M69: LAD-M | N69: 0 | O69: 0 | P69: 13241000 | Q69: 0 | R69: 0 | S69: 2861700 | T69: 0 | U69: 0 | V69: 0 | W69: 0 | X69: 1610270 | Y69: 0 | Z69: 0 | AA69: 0 | AB69: 0 | AC69: 0 | AD69: 0 | AE69: 0 | AF69: 0 | AG69: 0 | AH69: 0 | AI69: NA | AJ69: 0 | AK69: NA | AL69: NA | AM69: -999 | AN69: NA | AO69: -999 | AP69: NA | AQ69: 999 | AR69: NA | AS69: NA | AT69: NA | AU69: NA | AV69: -999 | AW69: NA | AX69: -999 | AY69: NA | AZ69: 999 | BA69: NA | BB69: NA | BC69: NA | BD69: NA | BE69: NA | BF69: NA | BG69: NA | BH69: NA | BI69: NA | BJ69: NA | BK69: NA
A70: 69 | B70: AAHFGQGTGPIWLNEVFCFGR | C70: sp|P21757|MSRE_HUMAN | D70: 3 | E70: 0 | F70: 2363.127 | G70: 402 | H70: 422 | I70: yes | J70: 7.19E-06 | K70: 100.21 | L70: 3 | M70: LCX-D-2;LM-2;RCA-P-2 | N70: 1274300 | O70: 0 | P70: 1294900 | Q70: 0 | R70: 0 | S70: 1902800 | T70: 0 | U70: 569130 | V70: 1742100 | W70: 1425900 | X70: 820913 | Y70: 2713567.839 | Z70: 1664480.497 | AA70: 0 | AB70: 0 | AC70: 1488863.26 | AD70: 0 | AE70: 0 | AF70: 0 | AG70: 0 | AH70: 3440800 | AI70: 999 | AJ70: 846246.4178 | AK70: 999 | AL70: 999 | AM70: -999 | AN70: NA | AO70: -999 | AP70: NA | AQ70: 999 | AR70: NA | AS70: 999 | AT70: 999 | AU70: 999 | AV70: -999 | AW70: NA | AX70: -999 | AY70: NA | AZ70: 999 | BA70: NA | BB70: 2.1295 | BC70: -999 | BD70: NA | BE70: -999 | BF70: 0.3267 | BG70: 0.3991 | BH70: -999 | BI70: -999 | BJ70: 1.2218 | BK70: 2.4131
A71: 70 | B71: AAHVFFTDSCPDALFNELVK | C71: sp|P61764|STXB1_HUMAN | D71: 2;3 | E71: 0 | F71: 2280.0885 | G71: 101 | H71: 120 | I71: yes | J71: 5.04E-06 | K71: 100.77 | L71: 16 | M71: LAD-D;LAD-M;LAD-M-2;LAD-P-2;LCX-D-2;LCX-M;LCX-P;LCX-P-2;LM-2;RCA-D;RCA-D-2;RCA-M-2;RCA-P;RCA-P-2 | N71: 4455200 | O71: 3952800 | P71: 6599700 | Q71: 660850 | R71: 0 | S71: 3970300 | T71: 983990 | U71: 981700 | V71: 4194000 | W71: 3588300 | X71: 2938684 | Y71: 4227987.765 | Z71: 1303072.144 | AA71: 4470300 | AB71: 3319900 | AC71: 10562964.03 | AD71: 0 | AE71: 3031300 | AF71: 3281981.556 | AG71: 2253800 | AH71: 3247400 | AI71: 0.3297 | AJ71: 3245336.893 | AK71: 0.2915 | AL71: 0.3925 | AM71: 0.5989 | AN71: 5.9814 | AO71: 0.6773 | AP71: 1.3465 | AQ71: 9.9867 | AR71: 5.0237 | AS71: 999 | AT71: 999 | AU71: 3.4846 | AV71: -999 | AW71: -999 | AX71: -999 | AY71: -999 | AZ71: 4.0349 | BA71: 3.0806 | BB71: 0.949 | BC71: 3.3432 | BD71: 1.4562 | BE71: 1.0106 | BF71: 0.2341 | BG71: 0.2736 | BH71: 0.5374 | BI71: 0.694 | BJ71: 1.1688 | BK71: 0.905
A72: 71 | B72: AAIAAPILHVNSK | C72: sp|P36269|GGT5_HUMAN | D72: 3 | E72: 0 | F72: 1303.7612 | G72: 515 | H72: 527 | I72: yes | J72: 0.089714 | K72: 39.509 | L72: 4 | M72: LAD-D;LCX-M;RCA-D;RCA-M | N72: 4292100 | O72: 1058500 | P72: 2104800 | Q72: 0 | R72: 2326400 | S72: 2781200 | T72: 1801900 | U72: 2388500 | V72: 1854600 | W72: 1692100 | X72: 2030010 | Y72: 3493554.73 | Z72: 1833851.11 | AA72: 0 | AB72: 2979500 | AC72: 2130180.927 | AD72: 2012000 | AE72: 0 | AF72: 0 | AG72: 1524000 | AH72: 1534300 | AI72: 1.7325 | AJ72: 1409762.591 | AK72: 999 | AL72: 0.6155 | AM72: 0.5029 | AN72: 999 | AO72: -999 | AP72: -999 | AQ72: 999 | AR72: 999 | AS72: 0.9157 | AT72: 1.0587 | AU72: 999 | AV72: 0.8365 | AW72: 1.2911 | AX72: 0.7234 | AY72: 999 | AZ72: 1.5435 | BA72: -999 | BB72: 0.8139 | BC72: -999 | BD72: -999 | BE72: -999 | BF72: 1.2879 | BG72: 1.4116 | BH72: 0.8217 | BI72: 0.9933 | BJ72: 1.096 | BK72: 0.9067
A73: 72 | B73: AAIDWFDGK | C73: sp|P35637|FUS_HUMAN;sp|Q92804|RBP56_HUMAN | D73: 2 | E73: 0 | F73: 1021.4869 | G73: 349 | H73: 357 | I73: yes | J73: 0.12567 | K73: 38.086 | L73: 1 | M73: RCA-P-2 | N73: 1549300 | O73: 846710 | P73: 0 | Q73: 0 | R73: 0 | S73: 0 | T73: 0 | U73: 0 | V73: 0 | W73: 0 | X73: 239601 | Y73: 757887.2624 | Z73: 0 | AA73: 0 | AB73: 0 | AC73: 922295.1056 | AD73: 1863500 | AE73: 0 | AF73: 1415582.88 | AG73: 1343300 | AH73: 1501200 | AI73: -999 | AJ73: 709342.3862 | AK73: NA | AL73: NA | AM73: 999 | AN73: 999 | AO73: NA | AP73: NA | AQ73: NA | AR73: NA | AS73: 999 | AT73: 0.4949 | AU73: 999 | AV73: NA | AW73: NA | AX73: 999 | AY73: 999 | AZ73: NA | BA73: NA | BB73: 0.4892 | BC73: 999 | BD73: 1.0538 | BE73: 0.943 | BF73: NA | BG73: NA | BH73: 999 | BI73: 0.8948 | BJ73: NA | BK73: 999
A74: 73 | B74: AAIDWFDGKEFSGNPIK | C74: sp|P35637|FUS_HUMAN | D74: 2;3 | E74: 1 | F74: 1893.9261 | G74: 349 | H74: 365 | I74: yes | J74: 0.00027142 | K74: 92.38 | L74: 7 | M74: LAD-M-2;LAD-P-2;LCX-D-2;LCX-M-2;LM-2;RCA-D-2;RCA-P-2 | N74: 2340900 | O74: 2202800 | P74: 0 | Q74: 0 | R74: 1125200 | S74: 0 | T74: 0 | U74: 0 | V74: 0 | W74: 0 | X74: 566890 | Y74: 2388901.027 | Z74: 8864227.362 | AA74: 3273100 | AB74: 2201300 | AC74: 3564766.092 | AD74: 9478700 | AE74: 2130700 | AF74: 8713998.581 | AG74: 5930900 | AH74: 6365000 | AI74: 4.0241 | AJ74: 4810145.19 | AK74: 2.7082 | AL74: 4.0268 | AM74: 999 | AN74: 999 | AO74: 999 | AP74: 1.4869 | AQ74: NA | AR74: 999 | AS74: 3.1681 | AT74: 0.3761 | AU74: 1.673 | AV74: 999 | AW74: 999 | AX74: 999 | AY74: 4.4486 | AZ74: NA | BA74: 999 | BB74: 1.0205 | BC74: 999 | BD74: 1.4693 | BE74: 1.369 | BF74: NA | BG74: NA | BH74: 999 | BI74: 0.9318 | BJ74: NA | BK74: 999
A75: 74 | B75: AAILGDTIMVAK | C75: sp|Q8NI60|COQ8A_HUMAN | D75: 2 | E75: 0 | F75: 1201.674 | G75: 2 | H75: 13 | I75: yes | J75: 0.00019965 | K75: 98.033 | L75: 7 | M75: LCX-P-2;RCA-M-2 | N75: 0 | O75: 0 | P75: 0 | Q75: 0 | R75: 0 | S75: 0 | T75: 0 | U75: 0 | V75: 0 | W75: 0 | X75: 0 | Y75: 0 | Z75: 0 | AA75: 0 | AB75: 0 | AC75: 0 | AD75: 0 | AE75: 7142500 | AF75: 0 | AG75: 2823100 | AH75: 0 | AI75: NA | AJ75: 996560 | AK75: NA | AL75: NA | AM75: NA | AN75: NA | AO75: NA | AP75: NA | AQ75: NA | AR75: NA | AS75: NA | AT75: NA | AU75: -999 | AV75: NA | AW75: NA | AX75: NA | AY75: -999 | AZ75: NA | BA75: 999 | BB75: NA | BC75: NA | BD75: -999 | BE75: NA | BF75: NA | BG75: NA | BH75: 999 | BI75: 999 | BJ75: NA | BK75: NA
A76: 75 | B76: AAISGENAGLVR | C76: sp|P19827|ITIH1_HUMAN;CON__Q0VCM5 | D76: 2 | E76: 0 | F76: 1156.62 | G76: 126 | H76: 137 | I76: yes | J76: 0.0033309 | K76: 75.509 | L76: 2 | M76: LCX-D;RCA-D | N76: 1799900 | O76: 0 | P76: 0 | Q76: 6082800 | R76: 6154800 | S76: 0 | T76: 2711000 | U76: 5233100 | V76: 0 | W76: 0 | X76: 2198160 | Y76: 0 | Z76: 0 | AA76: 0 | AB76: 0 | AC76: 0 | AD76: 0 | AE76: 0 | AF76: 0 | AG76: 0 | AH76: 0 | AI76: NA | AJ76: 0 | AK76: NA | AL76: NA | AM76: NA | AN76: -999 | AO76: NA | AP76: NA | AQ76: -999 | AR76: -999 | AS76: -999 | AT76: NA | AU76: NA | AV76: 999 | AW76: 2.2703 | AX76: NA | AY76: NA | AZ76: -999 | BA76: -999 | BB76: -999 | BC76: -999 | BD76: NA | BE76: NA | BF76: 999 | BG76: 999 | BH76: NA | BI76: NA | BJ76: NA | BK76: NA
A77: 76 | B77: AALAGGTTMIIDHVVPEPESSLTEAYEK | C77: sp|Q14195|DPYL3_HUMAN | D77: 3 | E77: 0 | F77: 2928.4427 | G77: 95 | H77: 122 | I77: yes | J77: 5.24E-17 | K77: 137.35 | L77: 32 | M77: LAD-D;LAD-D-2;LAD-M;LAD-M-2;LAD-P;LAD-P-2;LCX-D-2;LCX-M;LCX-M-2;LCX-P-2;LM;LM-2;RCA-D-2;RCA-M;RCA-M-2;RCA-P;RCA-P-2 | N77: 12812000 | O77: 15616000 | P77: 7274400 | Q77: 3116200 | R77: 0 | S77: 11887000 | T77: 0 | U77: 0 | V77: 8576600 | W77: 13656000 | X77: 7293820 | Y77: 15675114.7 | Z77: 11233459.9 | AA77: 14849000 | AB77: 14473000 | AC77: 6408347.149 | AD77: 15173000 | AE77: 10471000 | AF77: 17156538.19 | AG77: 8159400 | AH77: 20812000 | AI77: 0.7194 | AJ77: 12219169.15 | AK77: 0.7565 | AL77: 0.7762 | AM77: 2.1467 | AN77: 5.0112 | AO77: 2.0413 | AP77: 1.026 | AQ77: 2.3344 | AR77: 4.6444 | AS77: 999 | AT77: 0.4224 | AU77: 0.612 | AV77: -999 | AW77: NA | AX77: 1.2764 | AY77: 1.449 | AZ77: 999 | BA77: 999 | BB77: 1.2235 | BC77: 999 | BD77: 2.1027 | BE77: 0.8244 | BF77: -999 | BG77: -999 | BH77: 0.9514 | BI77: 0.3921 | BJ77: 0.628 | BK77: 1.524
A78: 77 | B78: AALAGGTTMIIDHVVPEPESSLTEAYEKWREWADGK | C78: sp|Q14195|DPYL3_HUMAN | D78: 4 | E78: 2 | F78: 3956.9255 | G78: 95 | H78: 130 | I78: yes | J78: 0.0017532 | K78: 53.408 | L78: 1 | M78: LAD-M | N78: 0 | O78: 0 | P78: 6250500 | Q78: 0 | R78: 0 | S78: 0 | T78: 354260 | U78: 0 | V78: 0 | W78: 0 | X78: 660476 | Y78: 0 | Z78: 0 | AA78: 0 | AB78: 0 | AC78: 0 | AD78: 0 | AE78: 0 | AF78: 0 | AG78: 0 | AH78: 0 | AI78: NA | AJ78: 0 | AK78: NA | AL78: NA | AM78: -999 | AN78: NA | AO78: -999 | AP78: NA | AQ78: 999 | AR78: NA | AS78: NA | AT78: NA | AU78: NA | AV78: NA | AW78: -999 | AX78: NA | AY78: NA | AZ78: -999 | BA78: -999 | BB78: NA | BC78: NA | BD78: NA | BE78: NA | BF78: NA | BG78: NA | BH78: NA | BI78: NA | BJ78: NA | BK78: NA
A79: 78 | B79: AALAGGTTMIIDHVVPEPGTSLLAAFDQWR | C79: sp|Q16555|DPYL2_HUMAN | D79: 2;3 | E79: 0 | F79: 3136.6016 | G79: 95 | H79: 124 | I79: yes | J79: 3.24E-44 | K79: 171.05 | L79: 76 | M79: LAD-D;LAD-D-2;LAD-M-2;LAD-P;LAD-P-2;LCX-D;LCX-D-2;LCX-M;LCX-M-2;LCX-P;LCX-P-2;LM;LM-2;RCA-D;RCA-D-2;RCA-M;RCA-M-2;RCA-P;RCA-P-2 | N79: 24957000 | O79: 16391000 | P79: 0 | Q79: 358250 | R79: 837420 | S79: 11096000 | T79: 1342900 | U79: 2264200 | V79: 2645500 | W79: 11624000 | X79: 7151627 | Y79: 21478042.39 | Z79: 19322287.42 | AA79: 20362000 | AB79: 15588000 | AC79: 13168745.04 | AD79: 33380000 | AE79: 11102000 | AF79: 18855521.4 | AG79: 17499000 | AH79: 20758000 | AI79: 1.1788 | AJ79: 17410327.04 | AK79: 0.9489 | AL79: 1.2396 | AM79: 999 | AN79: 45.753 | AO79: 999 | AP79: 1.3063 | AQ79: -999 | AR79: 43.5115 | AS79: 15.7254 | AT79: 0.3945 | AU79: 1.1862 | AV79: 0.0755 | AW79: 0.6236 | AX79: 3.0083 | AY79: 3.0067 | AZ79: 8.2627 | BA79: 8.2672 | BB79: 0.8606 | BC79: 8.3277 | BD79: 1.0775 | BE79: 0.9083 | BF79: 0.8559 | BG79: 0.1948 | BH79: 6.6146 | BI79: 0.843 | BJ79: 0.2276 | BK79: 1.7858
A80: 79 | B80: AALAGGTTMIIDHVVPEPGTSLLAAFDQWREWADSK | C80: sp|Q16555|DPYL2_HUMAN | D80: 3;4 | E80: 1 | F80: 3852.9145 | G80: 95 | H80: 130 | I80: yes | J80: 4.29E-31 | K80: 172.64 | L80: 28 | M80: LAD-D-2;LAD-M;LAD-M-2;LAD-P-2;LCX-D-2;LCX-M;LCX-M-2;LM-2;RCA-D-2;RCA-M;RCA-M-2;RCA-P;RCA-P-2 | N80: 5609100 | O80: 0 | P80: 20070000 | Q80: 0 | R80: 0 | S80: 19517000 | T80: 0 | U80: 0 | V80: 23458000 | W80: 27209000 | X80: 9586310 | Y80: 47958269.61 | Z80: 17610171.44 | AA80: 59080000 | AB80: 33045000 | AC80: 34684639.23 | AD80: 19812000 | AE80: 8799800 | AF80: 11586427.05 | AG80: 13586000 | AH80: 24731000 | AI80: 999 | AJ80: 24626755.12 | AK80: 0.2981 | AL80: 0.5329 | AM80: -999 | AN80: NA | AO80: 2.9437 | AP80: 1.7879 | AQ80: 999 | AR80: 999 | AS80: 999 | AT80: 1.7507 | AU80: 3.9415 | AV80: -999 | AW80: NA | AX80: 1.0151 | AY80: 2.2514 | AZ80: 999 | BA80: 999 | BB80: 8.5501 | BC80: 999 | BD80: 0.8528 | BE80: 0.4685 | BF80: -999 | BG80: -999 | BH80: 0.5792 | BI80: 0.5494 | BJ80: 0.8621 | BK80: 0.9089
A81: 80 | B81: AALAHSEEVTASQVAATK | C81: sp|Q15149|PLEC_HUMAN | D81: 3 | E81: 0 | F81: 1782.9112 | G81: 2744 | H81: 2761 | I81: yes | J81: 0.023396 | K81: 33.828 | L81: 1 | M81: LCX-D | N81: 0 | O81: 0 | P81: 0 | Q81: 0 | R81: 2091200 | S81: 0 | T81: 3522800 | U81: 2888900 | V81: 0 | W81: 0 | X81: 850290 | Y81: 0 | Z81: 0 | AA81: 0 | AB81: 0 | AC81: 0 | AD81: 0 | AE81: 0 | AF81: 0 | AG81: 0 | AH81: 0 | AI81: NA | AJ81: 0 | AK81: NA | AL81: NA | AM81: NA | AN81: NA | AO81: NA | AP81: NA | AQ81: NA | AR81: NA | AS81: -999 | AT81: NA | AU81: NA | AV81: 999 | AW81: 0.5936 | AX81: NA | AY81: NA | AZ81: -999 | BA81: -999 | BB81: NA | BC81: -999 | BD81: NA | BE81: NA | BF81: 999 | BG81: 999 | BH81: NA | BI81: NA | BJ81: NA | BK81: NA
A82: 81 | B82: AALANLCIGDVITAIDGENTSNMTHLEAQNR | C82: sp|O00151|PDLI1_HUMAN | D82: 3 | E82: 0 | F82: 3311.5874 | G82: 39 | H82: 69 | I82: yes | J82: 1.82E-33 | K82: 180.71 | L82: 22 | M82: LAD-D;LAD-D-2;LAD-M;LAD-P-2;LCX-D;LCX-D-2;LCX-P;LCX-P-2;LM;LM-2;RCA-D-2;RCA-M-2;RCA-P;RCA-P-2 | N82: 9894200 | O82: 17392000 | P82: 6080700 | Q82: 763200 | R82: 1323600 | S82: 0 | T82: 1755500 | U82: 0 | V82: 4898800 | W82: 5617600 | X82: 4772560 | Y82: 4304894.035 | Z82: 9975146.703 | AA82: 2353500 | AB82: 7664600 | AC82: 6741223.96 | AD82: 4590600 | AE82: 18869000 | AF82: 11454717.43 | AG82: 18535000 | AH82: 7290400 | AI82: 0.5735 | AJ82: 8343552.973 | AK82: 4.2384 | AL82: 1.3015 | AM82: 2.8602 | AN82: 22.7883 | AO82: 0.387 | AP82: 0.3071 | AQ82: 7.9674 | AR82: 10.0427 | AS82: 5.0931 | AT82: 1.4685 | AU82: 0.3573 | AV82: 999 | AW82: 0.754 | AX82: 999 | AY82: 0.2433 | AZ82: -999 | BA82: 10.7485 | BB82: 0.4351 | BC82: 999 | BD82: 0.618 | BE82: 1.5712 | BF82: -999 | BG82: -999 | BH82: 3.7836 | BI82: 2.5424 | BJ82: 0.872 | BK82: 1.2978
A83: 82 | B83: AALAPLPPLPAQFK | C83: sp|Q9NP79|VTA1_HUMAN | D83: 2 | E83: 0 | F83: 1432.8442 | G83: 2 | H83: 15 | I83: yes | J83: 0.00052111 | K83: 89.543 | L83: 6 | M83: LAD-D;LAD-D-2;LCX-M;LM;RCA-M-2;RCA-P-2 | N83: 2033100 | O83: 1579300 | P83: 0 | Q83: 0 | R83: 0 | S83: 3795500 | T83: 0 | U83: 0 | V83: 0 | W83: 2699800 | X83: 1010770 | Y83: 2042276.6 | Z83: 2010355.54 | AA83: 0 | AB83: 0 | AC83: 1630577.381 | AD83: 0 | AE83: 1275400 | AF83: 1764601.561 | AG83: 2662600 | AH83: 2341800 | AI83: 1.2729 | AJ83: 1247964.76 | AK83: 999 | AL83: 999 | AM83: 999 | AN83: 999 | AO83: NA | AP83: NA | AQ83: NA | AR83: NA | AS83: 999 | AT83: 999 | AU83: 1.2785 | AV83: -999 | AW83: NA | AX83: -999 | AY83: -999 | AZ83: 999 | BA83: 999 | BB83: 1.0045 | BC83: 999 | BD83: 0.6627 | BE83: 0.7535 | BF83: NA | BG83: -999 | BH83: 999 | BI83: 1.137 | BJ83: -999 | BK83: 0.8674
A84: 83 | B84: AALAPYNWPVWLGVHDR | C84: sp|Q9Y240|CLC11_HUMAN | D84: 3 | E84: 0 | F84: 1964.0057 | G84: 229 | H84: 245 | I84: yes | J84: 0.033423 | K84: 49.606 | L84: 2 | M84: LAD-M;LM-2 | N84: 0 | O84: 0 | P84: 3315900 | Q84: 0 | R84: 599830 | S84: 0 | T84: 672120 | U84: 0 | V84: 2994600 | W84: 1576200 | X84: 915865 | Y84: 3809482.194 | Z84: 0 | AA84: 0 | AB84: 0 | AC84: 0 | AD84: 0 | AE84: 0 | AF84: 0 | AG84: 0 | AH84: 1690000 | AI84: NA | AJ84: 549948.2194 | AK84: NA | AL84: NA | AM84: -999 | AN84: NA | AO84: -999 | AP84: NA | AQ84: 999 | AR84: NA | AS84: -999 | AT84: NA | AU84: NA | AV84: 999 | AW84: 0.8924 | AX84: NA | AY84: NA | AZ84: -999 | BA84: -999 | BB84: 999 | BC84: NA | BD84: NA | BE84: -999 | BF84: -999 | BG84: -999 | BH84: -999 | BI84: -999 | BJ84: 1.8999 | BK84: 1.0722
A85: 84 | B85: AALCHFCIDMLNAK | C85: sp|P54920|SNAA_HUMAN | D85: 3 | E85: 0 | F85: 1662.768 | G85: 209 | H85: 222 | I85: yes | J85: 0.00020348 | K85: 80.905 | L85: 5 | M85: LAD-P-2;LCX-D-2;LCX-M-2;LCX-P-2;RCA-P-2 | N85: 3251500 | O85: 3412300 | P85: 2653000 | Q85: 0 | R85: 0 | S85: 0 | T85: 0 | U85: 0 | V85: 2412400 | W85: 1803100 | X85: 1353230 | Y85: 3125300.415 | Z85: 0 | AA85: 1465100 | AB85: 4141300 | AC85: 5647084.264 | AD85: 5404000 | AE85: 2940600 | AF85: 3543390.873 | AG85: 3732100 | AH85: 5874800 | AI85: -999 | AJ85: 3261152.414 | AK85: -999 | AL85: -999 | AM85: 1.2862 | AN85: 999 | AO85: 0.5522 | AP85: 0.3538 | AQ85: 999 | AR85: 999 | AS85: 999 | AT85: 1.045 | AU85: 1.9204 | AV85: NA | AW85: NA | AX85: 999 | AY85: 1.8377 | AZ85: NA | BA85: 999 | BB85: 0.9612 | BC85: 999 | BD85: 0.9494 | BE85: 0.6032 | BF85: -999 | BG85: -999 | BH85: 1.547 | BI85: 0.6353 | BJ85: 1.3379 | BK85: 3.2582
A86: 85 | B86: AALDGTPGMIGYGMAK | C86: sp|P09417|DHPR_HUMAN | D86: 2 | E86: 0 | F86: 1551.7425 | G86: 139 | H86: 154 | I86: yes | J86: 0.036035 | K86: 66.262 | L86: 4 | M86: LCX-D-2;LCX-P;LCX-P-2;RCA-D | N86: 0 | O86: 0 | P86: 0 | Q86: 0 | R86: 1015000 | S86: 0 | T86: 2363400 | U86: 1593600 | V86: 0 | W86: 0 | X86: 497200 | Y86: 0 | Z86: 0 | AA86: 0 | AB86: 0 | AC86: 6009731.132 | AD86: 0 | AE86: 4563000 | AF86: 0 | AG86: 0 | AH86: 0 | AI86: NA | AJ86: 1057273.113 | AK86: NA | AL86: NA | AM86: NA | AN86: NA | AO86: NA | AP86: NA | AQ86: NA | AR86: NA | AS86: 5.9209 | AT86: 999 | AU86: 1.3171 | AV86: 999 | AW86: 0.4295 | AX86: NA | AY86: -999 | AZ86: -999 | BA86: 1.9307 | BB86: NA | BC86: -999 | BD86: NA | BE86: NA | BF86: 999 | BG86: 999 | BH86: NA | BI86: NA | BJ86: NA | BK86: NA
A87: 86 | B87: AALEACHKGWGVSVVVGVAASGEEIATRPFQLVTGR | C87: sp|P11766|ADHX_HUMAN | D87: 4;5 | E87: 2 | F87: 3721.9362 | G87: 277 | H87: 312 | I87: yes | J87: 9.94E-06 | K87: 74.05 | L87: 2 | M87: LAD-M;RCA-M | N87: 0 | O87: 0 | P87: 15548000 | Q87: 0 | R87: 0 | S87: 1870700 | T87: 0 | U87: 1030100 | V87: 7935600 | W87: 711010 | X87: 2709541 | Y87: 0 | Z87: 0 | AA87: 0 | AB87: 0 | AC87: 0 | AD87: 0 | AE87: 0 | AF87: 0 | AG87: 0 | AH87: 0 | AI87: NA | AJ87: 0 | AK87: NA | AL87: NA | AM87: -999 | AN87: NA | AO87: -999 | AP87: NA | AQ87: 999 | AR87: NA | AS87: NA | AT87: NA | AU87: NA | AV87: -999 | AW87: NA | AX87: -999 | AY87: NA | AZ87: 999 | BA87: NA | BB87: NA | BC87: -999 | BD87: NA | BE87: NA | BF87: 0.1298 | BG87: 1.4488 | BH87: -999 | BI87: NA | BJ87: 11.161 | BK87: -999
A88: 87 | B88: AALEAIER | C88: sp|Q92523|CPT1B_HUMAN | D88: 2 | E88: 0 | F88: 871.47633 | G88: 407 | H88: 414 | I88: yes | J88: 0.047514 | K88: 67.169 | L88: 1 | M88: RCA-M-2 | N88: 0 | O88: 0 | P88: 0 | Q88: 0 | R88: 0 | S88: 0 | T88: 0 | U88: 0 | V88: 0 | W88: 0 | X88: 0 | Y88: 0 | Z88: 0 | AA88: 0 | AB88: 0 | AC88: 0 | AD88: 0 | AE88: 6887800 | AF88: 0 | AG88: 2714000 | AH88: 0 | AI88: NA | AJ88: 960180 | AK88: NA | AL88: NA | AM88: NA | AN88: NA | AO88: NA | AP88: NA | AQ88: NA | AR88: NA | AS88: NA | AT88: NA | AU88: -999 | AV88: NA | AW88: NA | AX88: NA | AY88: -999 | AZ88: NA | BA88: 999 | BB88: NA | BC88: NA | BD88: -999 | BE88: NA | BF88: NA | BG88: NA | BH88: 999 | BI88: 999 | BJ88: NA | BK88: NA
A89: 88 | B89: AALEALLGR | C89: sp|O15061|SYNEM_HUMAN | D89: 2 | E89: 0 | F89: 912.53927 | G89: 128 | H89: 136 | I89: yes | J89: 0.00042341 | K89: 111.82 | L89: 14 | M89: LAD-D;LAD-M;LAD-M-2;LAD-P-2;LCX-P;LCX-P-2;LM-2;RCA-D;RCA-D-2;RCA-M;RCA-M-2;RCA-P-2 | N89: 3802300 | O89: 3040200 | P89: 4002900 | Q89: 0 | R89: 586980 | S89: 2915000 | T89: 2254800 | U89: 647360 | V89: 2473100 | W89: 2408900 | X89: 2213154 | Y89: 0 | Z89: 3463237.832 | AA89: 2521500 | AB89: 2181400 | AC89: 0 | AD89: 4451400 | AE89: 4072600 | AF89: 1476826.673 | AG89: 3870400 | AH89: 3488400 | AI89: 1.1391 | AJ89: 2320524.149 | AK89: 1.3735 | AL89: 1.5876 | AM89: 0.7595 | AN89: 999 | AO89: 0.6299 | AP89: 1.1559 | AQ89: 999 | AR89: 999 | AS89: -999 | AT89: -999 | AU89: -999 | AV89: 0.2014 | AW89: 0.2603 | AX89: 1.5271 | AY89: 1.093 | AZ89: 1.2928 | BA89: 1.8062 | BB89: -999 | BC89: 2.2813 | BD89: 0.3816 | BE89: 0.4234 | BF89: 0.2618 | BG89: 0.2687 | BH89: 1.565 | BI89: 1.1095 | BJ89: 1.0267 | BK89: 1.4481
A90: 89 | B90: AALEYLEDIDLK | C90: sp|Q9BRX8|F213A_HUMAN | D90: 2 | E90: 0 | F90: 1391.7184 | G90: 44 | H90: 55 | I90: yes | J90: 5.30E-05 | K90: 121.6 | L90: 16 | M90: LAD-D;LAD-D-2;LAD-M;LAD-M-2;LAD-P-2;LCX-D-2;LCX-M;LCX-M-2;LM;LM-2;RCA-D-2;RCA-M;RCA-P;RCA-P-2 | N90: 6656300 | O90: 15011000 | P90: 8451700 | Q90: 0 | R90: 0 | S90: 9567900 | T90: 2796900 | U90: 0 | V90: 0 | W90: 5217100 | X90: 4770090 | Y90: 5270701.333 | Z90: 7945460.822 | AA90: 8813100 | AB90: 10232000 | AC90: 19630937.79 | AD90: 9336800 | AE90: 6968500 | AF90: 6454244.502 | AG90: 11836000 | AH90: 12224000 | AI90: 0.5293 | AJ90: 8973794.998 | AK90: 0.9016 | AL90: 0.7765 | AM90: 1.7761 | AN90: 999 | AO90: 1.0428 | AP90: 0.8613 | AQ90: 999 | AR90: 999 | AS90: 999 | AT90: 2.1025 | AU90: 2.8171 | AV90: -999 | AW90: -999 | AX90: 0.9758 | AY90: 1.3399 | AZ90: 3.4209 | BA90: 2.4915 | BB90: 0.7918 | BC90: 999 | BD90: 0.5453 | BE90: 0.528 | BF90: NA | BG90: -999 | BH90: 999 | BI90: 0.9683 | BJ90: -999 | BK90: 2.3431
A91: 90 | B91: AALITEENQQLSYEHIAK | C91: sp|Q8WZ42|TITIN_HUMAN | D91: 3 | E91: 0 | F91: 2057.0429 | G91: 3765 | H91: 3782 | I91: yes | J91: 1.25E-06 | K91: 101.96 | L91: 3 | M91: LCX-P-2;RCA-M-2 | N91: 0 | O91: 1084500 | P91: 0 | Q91: 0 | R91: 0 | S91: 0 | T91: 0 | U91: 0 | V91: 0 | W91: 0 | X91: 108450 | Y91: 0 | Z91: 0 | AA91: 0 | AB91: 0 | AC91: 0 | AD91: 0 | AE91: 17988000 | AF91: 0 | AG91: 14917000 | AH91: 2592300 | AI91: -999 | AJ91: 3226936.455 | AK91: NA | AL91: NA | AM91: 999 | AN91: 999 | AO91: NA | AP91: NA | AQ91: NA | AR91: NA | AS91: NA | AT91: NA | AU91: -999 | AV91: NA | AW91: NA | AX91: NA | AY91: -999 | AZ91: NA | BA91: 999 | BB91: NA | BC91: NA | BD91: -999 | BE91: -999 | BF91: NA | BG91: NA | BH91: 999 | BI91: 5.7543 | BJ91: NA | BK91: 999
A92: 91 | B92: AALLELWELR | C92: sp|Q13813|SPTN1_HUMAN | D92: 2 | E92: 0 | F92: 1212.6867 | G92: 450 | H92: 459 | I92: yes | J92: 0.00025511 | K92: 135.83 | L92: 21 | M92: LAD-D;LAD-D-2;LAD-P-2;LCX-D-2;LCX-M;LCX-M-2;LCX-P;LCX-P-2;LM;LM-2;RCA-D;RCA-D-2;RCA-M;RCA-M-2;RCA-P;RCA-P-2 | N92: 4308500 | O92: 4485600 | P92: 872610 | Q92: 0 | R92: 0 | S92: 2804400 | T92: 449150 | U92: 388290 | V92: 1294900 | W92: 2208400 | X92: 1681185 | Y92: 2495521.084 | Z92: 4152571.626 | AA92: 3347500 | AB92: 3749900 | AC92: 4285734.881 | AD92: 5418800 | AE92: 3007400 | AF92: 3546819.579 | AG92: 6265600 | AH92: 4699000 | AI92: 0.9258 | AJ92: 3724440.736 | AK92: 1.2405 | AL92: 1.1074 | AM92: 5.1404 | AN92: 999 | AO92: 3.8362 | AP92: 0.8927 | AQ92: 999 | AR92: 999 | AS92: 999 | AT92: 0.7909 | AU92: 1.4251 | AV92: -999 | AW92: -999 | AX92: 1.9322 | AY92: 1.8018 | AZ92: 6.2438 | BA92: 6.6958 | BB92: 0.5792 | BC92: 9.1345 | BD92: 0.5661 | BE92: 0.7548 | BF92: 0.2999 | BG92: 0.1758 | BH92: 4.8387 | BI92: 1.3334 | BJ92: 0.5864 | BK92: 2.1278
A93: 92 | B93: AALLELWELRR | C93: sp|Q13813|SPTN1_HUMAN | D93: 2;3 | E93: 1 | F93: 1368.7878 | G93: 450 | H93: 460 | I93: yes | J93: 3.50E-05 | K93: 166.93 | L93: 36 | M93: LAD-D;LAD-D-2;LAD-M;LAD-M-2;LAD-P;LAD-P-2;LCX-D;LCX-D-2;LCX-M;LCX-M-2;LCX-P;LCX-P-2;LM;LM-2;RCA-D;RCA-D-2;RCA-M;RCA-M-2;RCA-P;RCA-P-2 | N93: 6554900 | O93: 7322000 | P93: 2916100 | Q93: 2314700 | R93: 594050 | S93: 7097200 | T93: 927920 | U93: 932540 | V93: 2338800 | W93: 3238000 | X93: 3423621 | Y93: 5308608.259 | Z93: 10771947.99 | AA93: 6741300 | AB93: 7131600 | AC93: 8048006.92 | AD93: 9003700 | AE93: 8410800 | AF93: 7655710.57 | AG93: 9174500 | AH93: 12735000 | AI93: 1.4712 | AJ93: 7725561.383 | AK93: 1.5979 | AL93: 1.5105 | AM93: 2.5109 | AN93: 3.1633 | AO93: 2.3118 | AP93: 0.9453 | AQ93: 1.2598 | AR93: 3.081 | AS93: 13.5477 | AT93: 0.8939 | AU93: 0.9569 | AV93: 0.0837 | AW93: 0.6402 | AX93: 1.2686 | AY93: 1.0705 | AZ93: 7.6485 | BA93: 9.0641 | BB93: 0.8099 | BC93: 8.2095 | BD93: 0.8345 | BE93: 0.6012 | BF93: 0.3987 | BG93: 0.288 | BH93: 3.9227 | BI93: 0.7204 | BJ93: 0.7223 | BK93: 3.933
A94: 93 | B94: AALPSHVVTMLDNFPTNLHPMSQLSAAVTALNSESNFAR | C94: sp|O75390|CISY_HUMAN | D94: 3;4;5 | E94: 0 | F94: 4151.0568 | G94: 145 | H94: 183 | I94: yes | J94: 2.47E-87 | K94: 252.75 | L94: 57 | M94: LAD-D;LAD-D-2;LAD-M;LAD-M-2;LAD-P-2;LCX-D;LCX-D-2;LCX-M;LCX-M-2;LCX-P;LCX-P-2;LM;LM-2;RCA-D;RCA-D-2;RCA-M;RCA-M-2;RCA-P;RCA-P-2 | N94: 29429000 | O94: 66908000 | P94: 31223000 | Q94: 958180 | R94: 2906800 | S94: 28657000 | T94: 7480000 | U94: 2998200 | V94: 11176000 | W94: 11869000 | X94: 19360518 | Y94: 11085864.1 | Z94: 15128293.64 | AA94: 44946000 | AB94: 44930000 | AC94: 22784545.52 | AD94: 55570000 | AE94: 166010000 | AF94: 24607472.22 | AG94: 187410000 | AH94: 77752000 | AI94: 0.2261 | AJ94: 59111288.7 | AK94: 0.3366 | AL94: 0.3367 | AM94: 2.1429 | AN94: 69.8282 | AO94: 1.4395 | AP94: 1.0004 | AQ94: 32.5857 | AR94: 46.891 | AS94: 7.8384 | AT94: 0.41 | AU94: 0.1372 | AV94: 0.1014 | AW94: 0.3886 | AX94: 1.9391 | AY94: 0.3347 | AZ94: 3.8311 | BA94: 22.1939 | BB94: 0.3767 | BC94: 8.2074 | BD94: 0.1313 | BE94: 0.3165 | BF94: 0.2683 | BG94: 0.2526 | BH94: 16.769 | BI94: 2.4104 | BJ94: 0.9416 | BK94: 6.5508
A95: 94 | B95: AALPYFPR | C95: sp|Q9NRN5|OLFL3_HUMAN | D95: 2 | E95: 0 | F95: 933.50724 | G95: 360 | H95: 367 | I95: yes | J95: 0.023035 | K95: 66.138 | L95: 3 | M95: LAD-M;LCX-D-2;LCX-P-2 | N95: 0 | O95: 1142400 | P95: 1828800 | Q95: 0 | R95: 0 | S95: 0 | T95: 0 | U95: 0 | V95: 0 | W95: 0 | X95: 297120 | Y95: 0 | Z95: 0 | AA95: 1229800 | AB95: 0 | AC95: 2086571.037 | AD95: 0 | AE95: 3033900 | AF95: 0 | AG95: 0 | AH95: 0 | AI95: -999 | AJ95: 577206.5488 | AK95: -999 | AL95: NA | AM95: 0.6247 | AN95: 999 | AO95: 0.6725 | AP95: 999 | AQ95: 999 | AR95: NA | AS95: 999 | AT95: 999 | AU95: 0.6878 | AV95: NA | AW95: NA | AX95: NA | AY95: -999 | AZ95: NA | BA95: 999 | BB95: NA | BC95: NA | BD95: NA | BE95: NA | BF95: NA | BG95: NA | BH95: NA | BI95: NA | BJ95: NA | BK95: NA
A96: 95 | B96: AALQEELQLCK | C96: sp|P49327|FAS_HUMAN | D96: 2 | E96: 0 | F96: 1301.6649 | G96: 1132 | H96: 1142 | I96: yes | J96: 1.66E-05 | K96: 142.92 | L96: 7 | M96: LAD-M;LCX-D;LCX-D-2;LCX-P;RCA-D;RCA-M;RCA-M-2 | N96: 0 | O96: 0 | P96: 0 | Q96: 0 | R96: 0 | S96: 5348100 | T96: 0 | U96: 0 | V96: 0 | W96: 0 | X96: 534810 | Y96: 0 | Z96: 0 | AA96: 0 | AB96: 0 | AC96: 8377423.773 | AD96: 0 | AE96: 0 | AF96: 0 | AG96: 0 | AH96: 10327000 | AI96: NA | AJ96: 1870442.377 | AK96: NA | AL96: NA | AM96: NA | AN96: NA | AO96: NA | AP96: NA | AQ96: NA | AR96: NA | AS96: 999 | AT96: 999 | AU96: 999 | AV96: -999 | AW96: NA | AX96: -999 | AY96: NA | AZ96: 999 | BA96: NA | BB96: NA | BC96: NA | BD96: NA | BE96: -999 | BF96: NA | BG96: NA | BH96: NA | BI96: -999 | BJ96: NA | BK96: 999
A97: 96 | B97: AALQEELSDVLIYLVALAAR | C97: sp|Q9H773|DCTP1_HUMAN | D97: 3 | E97: 0 | F97: 2157.2045 | G97: 90 | H97: 109 | I97: yes | J97: 5.16E-05 | K97: 87.676 | L97: 2 | M97: LCX-M-2;RCA-M-2 | N97: 0 | O97: 0 | P97: 0 | Q97: 0 | R97: 0 | S97: 0 | T97: 0 | U97: 0 | V97: 0 | W97: 0 | X97: 0 | Y97: 0 | Z97: 0 | AA97: 0 | AB97: 0 | AC97: 491241.9808 | AD97: 1032500 | AE97: 0 | AF97: 0 | AG97: 1301900 | AH97: 610530 | AI97: NA | AJ97: 343617.1981 | AK97: NA | AL97: NA | AM97: NA | AN97: NA | AO97: NA | AP97: NA | AQ97: NA | AR97: NA | AS97: 999 | AT97: 0.4758 | AU97: 999 | AV97: NA | AW97: NA | AX97: 999 | AY97: 999 | AZ97: NA | BA97: NA | BB97: NA | BC97: NA | BD97: -999 | BE97: -999 | BF97: NA | BG97: NA | BH97: 999 | BI97: 2.1324 | BJ97: NA | BK97: 999
A98: 97 | B98: AALQELLSK | C98: sp|P62851|RS25_HUMAN | D98: 2 | E98: 0 | F98: 971.56515 | G98: 86 | H98: 94 | I98: yes | J98: 0.00045403 | K98: 111.17 | L98: 4 | M98: LAD-M;RCA-D;RCA-P | N98: 0 | O98: 0 | P98: 11468000 | Q98: 0 | R98: 4817100 | S98: 0 | T98: 7713000 | U98: 4996500 | V98: 0 | W98: 4521800 | X98: 3351640 | Y98: 0 | Z98: 0 | AA98: 0 | AB98: 0 | AC98: 11050241.48 | AD98: 0 | AE98: 4346200 | AF98: 0 | AG98: 0 | AH98: 0 | AI98: NA | AJ98: 1539644.148 | AK98: NA | AL98: NA | AM98: -999 | AN98: NA | AO98: -999 | AP98: NA | AQ98: 999 | AR98: NA | AS98: 2.294 | AT98: 999 | AU98: 2.5425 | AV98: 999 | AW98: 0.6245 | AX98: NA | AY98: -999 | AZ98: -999 | BA98: 0.5635 | BB98: NA | BC98: -999 | BD98: NA | BE98: NA | BF98: 999 | BG98: 1.105 | BH98: NA | BI98: NA | BJ98: -999 | BK98: -999
A99: 98 | B99: AALSAGKVSPETVDSVIMGNVLQSSSDAIYLAR | C99: sp|P42765|THIM_HUMAN | D99: 3 | E99: 1 | F99: 3348.7235 | G99: 39 | H99: 71 | I99: yes | J99: 1.59E-13 | K99: 124.32 | L99: 2 | M99: LAD-M | N99: 0 | O99: 0 | P99: 7649500 | Q99: 0 | R99: 0 | S99: 0 | T99: 0 | U99: 0 | V99: 2562700 | W99: 0 | X99: 1021220 | Y99: 0 | Z99: 0 | AA99: 0 | AB99: 0 | AC99: 0 | AD99: 0 | AE99: 0 | AF99: 0 | AG99: 0 | AH99: 0 | AI99: NA | AJ99: 0 | AK99: NA | AL99: NA | AM99: -999 | AN99: NA | AO99: -999 | AP99: NA | AQ99: 999 | AR99: NA | AS99: NA | AT99: NA | AU99: NA | AV99: NA | AW99: NA | AX99: NA | AY99: NA | AZ99: NA | BA99: NA | BB99: NA | BC99: NA | BD99: NA | BE99: NA | BF99: -999 | BG99: NA | BH99: -999 | BI99: NA | BJ99: 999 | BK99: NA
A100: 99 | B100: AALSGANVLTLIEK | C100: sp|Q07954|LRP1_HUMAN | D100: 2 | E100: 0 | F100: 1398.8082 | G100: 2361 | H100: 2374 | I100: yes | J100: 0.00010997 | K100: 111.94 | L100: 9 | M100: LAD-D;LAD-D-2;LAD-M-2;LAD-P-2;LCX-D-2;LCX-M;LM;LM-2;RCA-P-2 | N100: 3452400 | O100: 2545700 | P100: 0 | Q100: 3896200 | R100: 0 | S100: 4045700 | T100: 0 | U100: 0 | V100: 0 | W100: 0 | X100: 1394000 | Y100: 2586082.587 | Z100: 3915659.878 | AA100: 5181300 | AB100: 3249800 | AC100: 5770705.687 | AD100: 7020700 | AE100: 0 | AF100: 3213998.581 | AG100: 3541100 | AH100: 5560600 | AI100: 1.5381 | AJ100: 3639995.297 | AK100: 0.7557 | AL100: 1.2049 | AM100: 999 | AN100: 0.6534 | AO100: 999 | AP100: 1.5943 | AQ100: -999 | AR100: 0.8341 | AS100: 999 | AT100: 0.822 | AU100: 999 | AV100: -999 | AW100: NA | AX100: 1.7353 | AY100: 999 | AZ100: 999 | BA100: NA | BB100: 0.7491 | BC100: 999 | BD100: 0.9076 | BE100: 0.578 | BF100: NA | BG100: NA | BH100: 999 | BI100: 0.6368 | BJ100: NA | BK100: 999
A101: 100 | B101: AALSGANVLTLIEKDIR | C101: sp|Q07954|LRP1_HUMAN | D101: 3 | E101: 1 | F101: 1783.0203 | G101: 2361 | H101: 2377 | I101: yes | J101: 4.73E-06 | K101: 123.97 | L101: 4 | M101: LAD-M;LCX-D-2;RCA-M;RCA-P | N101: 0 | O101: 0 | P101: 5610700 | Q101: 0 | R101: 0 | S101: 2625600 | T101: 0 | U101: 0 | V101: 4480600 | W101: 1511900 | X101: 1422880 | Y101: 671629.8886 | Z101: 870095.5011 | AA101: 1752800 | AB101: 3408100 | AC101: 2618179.197 | AD101: 0 | AE101: 0 | AF101: 0 | AG101: 0 | AH101: 0 | AI101: 999 | AJ101: 847436.6897 | AK101: 0.4964 | AL101: 0.2553 | AM101: -999 | AN101: NA | AO101: 0.3124 | AP101: 0.5143 | AQ101: 999 | AR101: 999 | AS101: 999 | AT101: 999 | AU101: 999 | AV101: -999 | AW101: NA | AX101: -999 | AY101: NA | AZ101: 999 | BA101: NA | BB101: 999 | BC101: NA | BD101: NA | BE101: NA | BF101: -999 | BG101: -999 | BH101: -999 | BI101: NA | BJ101: 2.9636 | BK101: -999
A102: 101 | B102: AALTAEHFAALQSLLK | C102: sp|Q9P000|COMD9_HUMAN | D102: 2 | E102: 0 | F102: 1682.9356 | G102: 2 | H102: 17 | I102: yes | J102: 9.64E-08 | K102: 145.6 | L102: 1 | M102: RCA-P-2 | N102: 1241100 | O102: 1757300 | P102: 2849500 | Q102: 184440 | R102: 0 | S102: 2384600 | T102: 320850 | U102: 415910 | V102: 1681900 | W102: 1623800 | X102: 1245940 | Y102: 2959143.544 | Z102: 2065354.965 | AA102: 2796000 | AB102: 2202200 | AC102: 3960570.893 | AD102: 1954600 | AE102: 1716700 | AF102: 1957673.209 | AG102: 2616100 | AH102: 3353800 | AI102: 1.1753 | AJ102: 2325649.435 | AK102: 0.7387 | AL102: 0.9379 | AM102: 0.6167 | AN102: 9.5278 | AO102: 0.9812 | AP102: 1.2696 | AQ102: 15.4495 | AR102: 11.9399 | AS102: 999 | AT102: 2.0263 | AU102: 2.3071 | AV102: -999 | AW102: -999 | AX102: 0.8197 | AY102: 1.1386 | AZ102: 7.4321 | BA102: 5.3505 | BB102: 2.3843 | BC102: 4.707 | BD102: 0.7483 | BE102: 0.5837 | BF102: 0.2473 | BG102: 0.2561 | BH102: 1.5554 | BI102: 0.78 | BJ102: 1.0358 | BK102: 2.0654
A103: 102 | B103: AALTELSLGSAYQAMILGVDSK | C103: sp|P04114|APOB_HUMAN | D103: 2 | E103: 0 | F103: 2237.1613 | G103: 1703 | H103: 1724 | I103: yes | J103: 0.084695 | K103: 46.964 | L103: 1 | M103: LCX-D | N103: 0 | O103: 0 | P103: 0 | Q103: 0 | R103: 694670 | S103: 0 | T103: 0 | U103: 1219500 | V103: 0 | W103: 1857700 | X103: 377187 | Y103: 2112956.085 | Z103: 0 | AA103: 0 | AB103: 0 | AC103: 0 | AD103: 0 | AE103: 0 | AF103: 0 | AG103: 0 | AH103: 0 | AI103: NA | AJ103: 211295.6085 | AK103: NA | AL103: NA | AM103: NA | AN103: NA | AO103: NA | AP103: NA | AQ103: NA | AR103: NA | AS103: -999 | AT103: NA | AU103: NA | AV103: 999 | AW103: 999 | AX103: NA | AY103: NA | AZ103: NA | BA103: NA | BB103: 999 | BC103: -999 | BD103: NA | BE103: NA | BF103: 999 | BG103: 0.6565 | BH103: NA | BI103: NA | BJ103: -999 | BK103: -999
A104: 103 | B104: AALTGLLHR | C104: sp|P55084|ECHB_HUMAN | D104: 2 | E104: 0 | F104: 950.56615 | G104: 82 | H104: 90 | I104: yes | J104: 6.53E-05 | K104: 203.19 | L104: 24 | M104: LAD-D;LAD-D-2;LAD-M;LAD-M-2;LAD-P;LAD-P-2;LCX-D;LCX-D-2;LCX-M;LCX-P;LCX-P-2;LM;LM-2;RCA-D;RCA-D-2;RCA-M;RCA-M-2;RCA-P;RCA-P-2 | N104: 9468500 | O104: 12224000 | P104: 14734000 | Q104: 7426500 | R104: 4083100 | S104: 14127000 | T104: 5302200 | U104: 15714000 | V104: 10958000 | W104: 7731800 | X104: 10176910 | Y104: 12409875.46 | Z104: 6367966.862 | AA104: 8911700 | AB104: 16636000 | AC104: 9054998.919 | AD104: 7025500 | AE104: 53559000 | AF104: 11094821.47 | AG104: 41394000 | AH104: 37547000 | AI104: 0.5209 | AJ104: 18545533.02 | AK104: 0.7146 | AL104: 0.3828 | AM104: 0.8296 | AN104: 1.646 | AO104: 0.6048 | AP104: 0.5357 | AQ104: 1.984 | AR104: 2.2401 | AS104: 2.2177 | AT104: 1.2889 | AU104: 0.1691 | AV104: 0.289 | AW104: 0.7701 | AX104: 0.4973 | AY104: 0.1312 | AZ104: 2.6644 | BA104: 10.1013 | BB104: 1.3106 | BC104: 0.706 | BD104: 0.268 | BE104: 0.2955 | BF104: 1.434 | BG104: 2.0324 | BH104: 3.7775 | BI104: 1.1025 | BJ104: 1.4173 | BK104: 4.8562
A105: 104 | B105: AALTRDPQFQK | C105: sp|P06744|G6PI_HUMAN | D105: 2 | E105: 1 | F105: 1273.6779 | G105: 2 | H105: 12 | I105: yes | J105: 1.13E-11 | K105: 219.72 | L105: 24 | M105: LAD-D;LAD-D-2;LAD-M;LAD-M-2;LAD-P;LAD-P-2;LCX-D;LCX-D-2;LCX-M;LCX-P;LCX-P-2;LM;LM-2;RCA-D;RCA-D-2;RCA-M;RCA-M-2;RCA-P;RCA-P-2 | N105: 10675000 | O105: 11121000 | P105: 51300000 | Q105: 34774000 | R105: 8301600 | S105: 37185000 | T105: 29513000 | U105: 21794000 | V105: 58699000 | W105: 16437000 | X105: 27979960 | Y105: 0 | Z105: 13530088.6 | AA105: 17112000 | AB105: 34028000 | AC105: 34518128.74 | AD105: 0 | AE105: 27140000 | AF105: 15340506.03 | AG105: 26497000 | AH105: 28164000 | AI105: 1.2166 | AJ105: 17848156.78 | AK105: 0.7907 | AL105: 0.3976 | AM105: 0.2168 | AN105: 0.3198 | AO105: 0.3336 | AP105: 0.5029 | AQ105: 1.4752 | AR105: 0.9785 | AS105: 4.158 | AT105: 999 | AU105: 1.2719 | AV105: 0.2233 | AW105: 0.2813 | AX105: -999 | AY105: -999 | AZ105: 1.26 | BA105: 0.9196 | BB105: -999 | BC105: 0.7039 | BD105: 0.579 | BE105: 0.5447 | BF105: 0.3713 | BG105: 1.3259 | BH105: 0.4514 | BI105: 0.9408 | BJ105: 3.5712 | BK105: 1.7135
A106: 105 | B106: AALTTLFK | C106: sp|Q96KP4|CNDP2_HUMAN | D106: 1;2 | E106: 0 | F106: 863.51165 | G106: 2 | H106: 9 | I106: yes | J106: 0.0013388 | K106: 109.01 | L106: 4 | M106: LAD-M;LAD-M-2;LCX-M-2;RCA-M | N106: 0 | O106: 7451600 | P106: 9588500 | Q106: 0 | R106: 0 | S106: 0 | T106: 694090 | U106: 0 | V106: 7667400 | W106: 8914600 | X106: 3431619 | Y106: 7276709.635 | Z106: 0 | AA106: 7171900 | AB106: 6797400 | AC106: 7545592.157 | AD106: 3534500 | AE106: 4618600 | AF106: 0 | AG106: 7437000 | AH106: 15977000 | AI106: -999 | AJ106: 5487063.89 | AK106: -999 | AL106: -999 | AM106: 0.7771 | AN106: 999 | AO106: 0.748 | AP106: 1.0551 | AQ106: 999 | AR106: 999 | AS106: 999 | AT106: 2.1348 | AU106: 1.6337 | AV106: NA | AW106: -999 | AX106: 999 | AY106: 0.7653 | AZ106: -999 | BA106: 6.6542 | BB106: 999 | BC106: NA | BD106: -999 | BE106: -999 | BF106: -999 | BG106: -999 | BH106: 0.97 | BI106: 0.4655 | BJ106: 0.8601 | BK106: 1.7922
A107: 106 | B107: AALVDLEPGTMDSVR | C107: sp|Q9BUF5|TBB6_HUMAN | D107: 2 | E107: 0 | F107: 1572.7818 | G107: 63 | H107: 77 | I107: yes | J107: 0.00020739 | K107: 96.64 | L107: 3 | M107: LAD-M-2;LCX-D-2;LCX-P | N107: 0 | O107: 0 | P107: 0 | Q107: 0 | R107: 0 | S107: 0 | T107: 2618800 | U107: 0 | V107: 0 | W107: 0 | X107: 261880 | Y107: 0 | Z107: 0 | AA107: 13245000 | AB107: 11125000 | AC107: 15429971.89 | AD107: 16852000 | AE107: 0 | AF107: 0 | AG107: 0 | AH107: 0 | AI107: NA | AJ107: 5665197.189 | AK107: -999 | AL107: -999 | AM107: NA | AN107: NA | AO107: 999 | AP107: 1.1906 | AQ107: NA | AR107: 999 | AS107: 999 | AT107: 0.9156 | AU107: 999 | AV107: NA | AW107: -999 | AX107: 999 | AY107: 999 | AZ107: -999 | BA107: -999 | BB107: NA | BC107: NA | BD107: NA | BE107: NA | BF107: NA | BG107: NA | BH107: NA | BI107: NA | BJ107: NA | BK107: NA
A108: 107 | B108: AAMEALVVEVTKQPAIISQLDPVNER | C108: sp|Q08211|DHX9_HUMAN | D108: 3 | E108: 1 | F108: 2820.5055 | G108: 1105 | H108: 1130 | I108: yes | J108: 3.61E-06 | K108: 95.123 | L108: 5 | M108: LAD-M;LCX-D-2;LCX-M;LCX-M-2;LM-2 | N108: 0 | O108: 1970500 | P108: 3849400 | Q108: 0 | R108: 0 | S108: 2929900 | T108: 0 | U108: 0 | V108: 0 | W108: 0 | X108: 874980 | Y108: 1937076.688 | Z108: 1641007.939 | AA108: 0 | AB108: 2341200 | AC108: 3094283.861 | AD108: 2771800 | AE108: 6951200 | AF108: 1937573.895 | AG108: 4875700 | AH108: 2667000 | AI108: 0.8328 | AJ108: 2565167.565 | AK108: 999 | AL108: 0.7009 | AM108: 0.5119 | AN108: 999 | AO108: -999 | AP108: -999 | AQ108: 999 | AR108: 999 | AS108: 999 | AT108: 1.1163 | AU108: 0.4451 | AV108: -999 | AW108: NA | AX108: 0.946 | AY108: 0.3988 | AZ108: 999 | BA108: 999 | BB108: 999 | BC108: 999 | BD108: 0.3974 | BE108: 0.7265 | BF108: NA | BG108: NA | BH108: 999 | BI108: 1.8282 | BJ108: NA | BK108: 999
A109: 108 | B109: AAMEPIVISAK | C109: sp|Q9Y490|TLN1_HUMAN | D109: 2 | E109: 0 | F109: 1128.6213 | G109: 1594 | H109: 1604 | I109: yes | J109: 0.0036329 | K109: 79.148 | L109: 22 | M109: LAD-D;LAD-D-2;LAD-M;LAD-M-2;LAD-P;LCX-D;LCX-M;LCX-M-2;LCX-P;LCX-P-2;LM;LM-2;RCA-D;RCA-D-2;RCA-M;RCA-M-2;RCA-P;RCA-P-2 | N109: 15556000 | O109: 14699000 | P109: 13337000 | Q109: 20938000 | R109: 13863000 | S109: 13172000 | T109: 11807000 | U109: 18914000 | V109: 9926100 | W109: 9929700 | X109: 14214180 | Y109: 10005134.37 | Z109: 9022091.819 | AA109: 10083000 | AB109: 11477000 | AC109: 0 | AD109: 8321800 | AE109: 10433000 | AF109: 19808465.36 | AG109: 7326400 | AH109: 12868000 | AI109: 0.6138 | AJ109: 9031353.833 | AK109: 0.8948 | AL109: 0.7861 | AM109: 1.1021 | AN109: 0.702 | AO109: 0.756 | AP109: 0.8785 | AQ109: 0.637 | AR109: 0.5481 | AS109: -999 | AT109: -999 | AU109: -999 | AV109: 1.0525 | AW109: 1.1741 | AX109: 0.6318 | AY109: 0.7976 | AZ109: 1.1156 | BA109: 0.8836 | BB109: 0.6432 | BC109: 1.0473 | BD109: 2.7037 | BE109: 1.5394 | BF109: 1.9055 | BG109: 1.9048 | BH109: 0.7381 | BI109: 0.5694 | BJ109: 0.9996 | BK109: 1.2959
A110: 109 | B110: AAMKGLGTDEDTLIEILASR | C110: sp|P04083|ANXA1_HUMAN | D110: 3 | E110: 1 | F110: 2103.0882 | G110: 125 | H110: 144 | I110: yes | J110: 4.25E-06 | K110: 104.84 | L110: 2 | M110: LAD-M | N110: 0 | O110: 0 | P110: 14719000 | Q110: 0 | R110: 0 | S110: 0 | T110: 0 | U110: 0 | V110: 0 | W110: 0 | X110: 1471900 | Y110: 0 | Z110: 0 | AA110: 0 | AB110: 0 | AC110: 0 | AD110: 0 | AE110: 0 | AF110: 0 | AG110: 0 | AH110: 0 | AI110: NA | AJ110: 0 | AK110: NA | AL110: NA | AM110: -999 | AN110: NA | AO110: -999 | AP110: NA | AQ110: 999 | AR110: NA | AS110: NA | AT110: NA | AU110: NA | AV110: NA | AW110: NA | AX110: NA | AY110: NA | AZ110: NA | BA110: NA | BB110: NA | BC110: NA | BD110: NA | BE110: NA | BF110: NA | BG110: NA | BH110: NA | BI110: NA | BJ110: NA | BK110: NA
A111: 110 | B111: AAMPPQIIQFPEDQK | C111: sp|Q15746|MYLK_HUMAN | D111: 2 | E111: 0 | F111: 1711.8603 | G111: 1234 | H111: 1248 | I111: yes | J111: 0.01993 | K111: 59.496 | L111: 2 | M111: LAD-D-2;LCX-P | N111: 0 | O111: 3190300 | P111: 0 | Q111: 0 | R111: 785710 | S111: 0 | T111: 1823500 | U111: 0 | V111: 0 | W111: 0 | X111: 579951 | Y111: 3054293.205 | Z111: 4248302.842 | AA111: 0 | AB111: 0 | AC111: 0 | AD111: 9943500 | AE111: 2548300 | AF111: 0 | AG111: 3541900 | AH111: 0 | AI111: 1.3316 | AJ111: 2121481.58 | AK111: 999 | AL111: 999 | AM111: 999 | AN111: 999 | AO111: NA | AP111: NA | AQ111: NA | AR111: NA | AS111: -999 | AT111: -999 | AU111: -999 | AV111: 999 | AW111: 0.4309 | AX111: 999 | AY111: 3.902 | AZ111: -999 | BA111: 1.3975 | BB111: 999 | BC111: NA | BD111: -999 | BE111: NA | BF111: NA | BG111: NA | BH111: 999 | BI111: 999 | BJ111: NA | BK111: NA
A112: 111 | B112: AAMVGMLANFLGFR | C112: sp|P01019|ANGT_HUMAN | D112: 2 | E112: 0 | F112: 1496.7632 | G112: 103 | H112: 116 | I112: yes | J112: 5.61E-09 | K112: 163.32 | L112: 21 | M112: LAD-D;LAD-D-2;LAD-M-2;LAD-P-2;LCX-D-2;LCX-M;LCX-M-2;LM;LM-2;RCA-M-2;RCA-P;RCA-P-2 | N112: 7657200 | O112: 1971900 | P112: 387020 | Q112: 0 | R112: 143390 | S112: 1549200 | T112: 531620 | U112: 101960 | V112: 1086200 | W112: 4546800 | X112: 1797529 | Y112: 2195870.658 | Z112: 1240133.471 | AA112: 1666100 | AB112: 2013700 | AC112: 3344482.088 | AD112: 8361300 | AE112: 0 | AF112: 0 | AG112: 2706600 | AH112: 2057300 | AI112: 0.6289 | AJ112: 2144135.168 | AK112: 0.7443 | AL112: 0.6158 | AM112: 5.0951 | AN112: 999 | AO112: 4.3049 | AP112: 0.8274 | AQ112: 999 | AR112: 999 | AS112: 23.3244 | AT112: 0.4 | AU112: 999 | AV112: 0.0926 | AW112: 0.2697 | AX112: 5.3972 | AY112: 999 | AZ112: 2.9141 | BA112: -999 | BB112: 0.2868 | BC112: -999 | BD112: -999 | BE112: -999 | BF112: 0.0939 | BG112: 0.0224 | BH112: 2.4918 | BI112: 1.3156 | BJ112: 0.2389 | BK112: 0.4525
A113: 112 | B113: AANATTNPSQLLPLELVDK | C113: sp|Q9Y4Y9|LSM5_HUMAN | D113: 2 | E113: 0 | F113: 1994.0684 | G113: 2 | H113: 20 | I113: yes | J113: 5.89E-06 | K113: 102.52 | L113: 10 | M113: LAD-D;LAD-D-2;LAD-M-2;LAD-P-2;LCX-D-2;LCX-M;LM;LM-2;RCA-M-2;RCA-P-2 | N113: 3030900 | O113: 2756800 | P113: 2298600 | Q113: 0 | R113: 0 | S113: 3116600 | T113: 0 | U113: 0 | V113: 2572200 | W113: 2894700 | X113: 1666980 | Y113: 2547957.177 | Z113: 0 | AA113: 2930500 | AB113: 2947900 | AC113: 3202623.802 | AD113: 2895500 | AE113: 1717800 | AF113: 2257271.223 | AG113: 2902900 | AH113: 3199600 | AI113: -999 | AJ113: 2236459.382 | AK113: -999 | AL113: -999 | AM113: 1.1993 | AN113: 999 | AO113: 1.2749 | AP113: 0.9941 | AQ113: 999 | AR113: 999 | AS113: 999 | AT113: 1.1061 | AU113: 1.8644 | AV113: -999 | AW113: NA | AX113: 0.9291 | AY113: 1.6856 | AZ113: 999 | BA113: 999 | BB113: 0.8407 | BC113: 999 | BD113: 0.7776 | BE113: 0.7055 | BF113: -999 | BG113: -999 | BH113: 1.1286 | BI113: 0.9073 | BJ113: 0.8886 | BK113: 1.1053
A114: 113 | B114: AANDAGYFNDEMAPIEVK | C114: sp|P42765|THIM_HUMAN | D114: 2 | E114: 0 | F114: 1953.8778 | G114: 192 | H114: 209 | I114: yes | J114: 7.29E-51 | K114: 296.22 | L114: 30 | M114: LAD-D;LAD-D-2;LAD-M;LAD-M-2;LAD-P-2;LCX-D-2;LCX-M;LCX-M-2;LCX-P;LCX-P-2;LM;LM-2;RCA-D-2;RCA-M;RCA-M-2;RCA-P;RCA-P-2 | N114: 6782100 | O114: 11284000 | P114: 5093500 | Q114: 0 | R114: 0 | S114: 11301000 | T114: 2020000 | U114: 1660600 | V114: 5027200 | W114: 5206800 | X114: 4837520 | Y114: 5594057.243 | Z114: 9760902.083 | AA114: 7928000 | AB114: 11148000 | AC114: 15511425.07 | AD114: 17963000 | AE114: 67198000 | AF114: 8059588.555 | AG114: 40071000 | AH114: 19845000 | AI114: 0.865 | AJ114: 18461724.89 | AK114: 1.2312 | AL114: 0.8756 | AM114: 2.2154 | AN114: 999 | AO114: 1.5565 | AP114: 0.7112 | AQ114: 999 | AR114: 999 | AS114: 999 | AT114: 0.8635 | AU114: 0.2308 | AV114: -999 | AW114: -999 | AX114: 1.5895 | AY114: 0.2673 | AZ114: 5.5946 | BA114: 33.2663 | BB114: 0.8248 | BC114: 4.8534 | BD114: 0.2011 | BE114: 0.4061 | BF114: 0.3303 | BG114: 0.3189 | BH114: 7.9708 | BI114: 2.0192 | BJ114: 0.9655 | BK114: 3.8114
A115: 114 | B115: AANFENHSGKLGATAEK | C115: sp|P18206|VINC_HUMAN | D115: 3 | E115: 1 | F115: 1743.854 | G115: 630 | H115: 646 | I115: yes | J115: 3.34E-06 | K115: 127.83 | L115: 2 | M115: LAD-P;LCX-P | N115: 0 | O115: 0 | P115: 0 | Q115: 28077000 | R115: 16028000 | S115: 0 | T115: 18388000 | U115: 21625000 | V115: 329960 | W115: 0 | X115: 8444796 | Y115: 0 | Z115: 0 | AA115: 0 | AB115: 0 | AC115: 0 | AD115: 0 | AE115: 0 | AF115: 0 | AG115: 0 | AH115: 0 | AI115: NA | AJ115: 0 | AK115: NA | AL115: NA | AM115: NA | AN115: -999 | AO115: NA | AP115: NA | AQ115: -999 | AR115: -999 | AS115: -999 | AT115: NA | AU115: NA | AV115: 999 | AW115: 0.8717 | AX115: NA | AY115: NA | AZ115: -999 | BA115: -999 | BB115: NA | BC115: -999 | BD115: NA | BE115: NA | BF115: 65.5382 | BG115: 999 | BH115: -999 | BI115: NA | BJ115: 999 | BK115: NA
A116: 115 | B116: AANIVGEGEPR | C116: sp|Q8WZ42|TITIN_HUMAN | D116: 2 | E116: 0 | F116: 1111.5622 | G116: 18808 | H116: 18818 | I116: yes | J116: 0.00020655 | K116: 109.88 | L116: 2 | M116: LCX-P-2;RCA-M-2 | N116: 0 | O116: 0 | P116: 0 | Q116: 0 | R116: 0 | S116: 0 | T116: 0 | U116: 0 | V116: 0 | W116: 0 | X116: 0 | Y116: 0 | Z116: 0 | AA116: 0 | AB116: 0 | AC116: 0 | AD116: 0 | AE116: 15041000 | AF116: 0 | AG116: 6540900 | AH116: 0 | AI116: NA | AJ116: 2158190 | AK116: NA | AL116: NA | AM116: NA | AN116: NA | AO116: NA | AP116: NA | AQ116: NA | AR116: NA | AS116: NA | AT116: NA | AU116: -999 | AV116: NA | AW116: NA | AX116: NA | AY116: -999 | AZ116: NA | BA116: 999 | BB116: NA | BC116: NA | BD116: -999 | BE116: NA | BF116: NA | BG116: NA | BH116: 999 | BI116: 999 | BJ116: NA | BK116: NA
A117: 116 | B117: AANLYASSPHSDFLDYVSAPIGK | C117: sp|Q8IWW8|HOT_HUMAN | D117: 3 | E117: 0 | F117: 2422.1805 | G117: 148 | H117: 170 | I117: yes | J117: 0.00015335 | K117: 75.646 | L117: 1 | M117: LCX-P-2 | N117: 0 | O117: 0 | P117: 0 | Q117: 0 | R117: 0 | S117: 0 | T117: 0 | U117: 0 | V117: 0 | W117: 0 | X117: 0 | Y117: 0 | Z117: 0 | AA117: 0 | AB117: 0 | AC117: 7043465.725 | AD117: 0 | AE117: 7324000 | AF117: 0 | AG117: 5731800 | AH117: 0 | AI117: NA | AJ117: 2009926.572 | AK117: NA | AL117: NA | AM117: NA | AN117: NA | AO117: NA | AP117: NA | AQ117: NA | AR117: NA | AS117: 999 | AT117: 999 | AU117: 0.9617 | AV117: NA | AW117: NA | AX117: NA | AY117: -999 | AZ117: NA | BA117: 999 | BB117: NA | BC117: NA | BD117: -999 | BE117: NA | BF117: NA | BG117: NA | BH117: 999 | BI117: 999 | BJ117: NA | BK117: NA
A118: 117 | B118: AANSPRPGNWILER | C118: sp|P24043|LAMA2_HUMAN | D118: 3 | E118: 1 | F118: 1579.8219 | G118: 143 | H118: 156 | I118: yes | J118: 0.097455 | K118: 40.941 | L118: 1 | M118: RCA-P-2 | N118: 0 | O118: 1385000 | P118: 0 | Q118: 0 | R118: 0 | S118: 0 | T118: 0 | U118: 0 | V118: 2250100 | W118: 0 | X118: 363510 | Y118: 2528075.158 | Z118: 0 | AA118: 1415400 | AB118: 2733500 | AC118: 0 | AD118: 0 | AE118: 0 | AF118: 0 | AG118: 0 | AH118: 3038500 | AI118: -999 | AJ118: 883134.1962 | AK118: -999 | AL118: -999 | AM118: 999 | AN118: 999 | AO118: 999 | AP118: 0.5178 | AQ118: NA | AR118: 999 | AS118: NA | AT118: NA | AU118: NA | AV118: NA | AW118: NA | AX118: NA | AY118: NA | AZ118: NA | BA118: NA | BB118: 999 | BC118: NA | BD118: NA | BE118: -999 | BF118: -999 | BG118: NA | BH118: -999 | BI118: -999 | BJ118: 999 | BK118: 999
A119: 118 | B119: AANWAGVGELSAPSSLFECK | C119: sp|Q5VTT5|MYOM3_HUMAN | D119: 2 | E119: 0 | F119: 2092.9888 | G119: 776 | H119: 795 | I119: yes | J119: 1.72E-39 | K119: 220.99 | L119: 1 | M119: LCX-P-2 | N119: 0 | O119: 0 | P119: 0 | Q119: 0 | R119: 0 | S119: 0 | T119: 0 | U119: 0 | V119: 0 | W119: 0 | X119: 0 | Y119: 0 | Z119: 0 | AA119: 0 | AB119: 0 | AC119: 0 | AD119: 0 | AE119: 17752000 | AF119: 0 | AG119: 13546000 | AH119: 2873200 | AI119: NA | AJ119: 3417120 | AK119: NA | AL119: NA | AM119: NA | AN119: NA | AO119: NA | AP119: NA | AQ119: NA | AR119: NA | AS119: NA | AT119: NA | AU119: -999 | AV119: NA | AW119: NA | AX119: NA | AY119: -999 | AZ119: NA | BA119: 999 | BB119: NA | BC119: NA | BD119: -999 | BE119: -999 | BF119: NA | BG119: NA | BH119: 999 | BI119: 4.7146 | BJ119: NA | BK119: 999
A120: 119 | B120: AAPAPAPPPEPERPK | C120: sp|P08590|MYL3_HUMAN | D120: 2;3 | E120: 1 | F120: 1523.8096 | G120: 19 | H120: 33 | I120: yes | J120: 4.90E-13 | K120: 206.27 | L120: 10 | M120: LAD-D;LAD-M-2;LCX-M-2;LCX-P-2;RCA-D-2;RCA-M-2;RCA-P-2 | N120: 14392000 | O120: 57301000 | P120: 0 | Q120: 0 | R120: 0 | S120: 0 | T120: 0 | U120: 0 | V120: 0 | W120: 0 | X120: 7169300 | Y120: 0 | Z120: 0 | AA120: 46814000 | AB120: 7824200 | AC120: 1925394.651 | AD120: 145960000 | AE120: 3553700000 | AF120: 64074249.23 | AG120: 2204500000 | AH120: 410910000 | AI120: -999 | AJ120: 585064258.6 | AK120: -999 | AL120: -999 | AM120: 999 | AN120: 999 | AO120: 999 | AP120: 5.9832 | AQ120: NA | AR120: 999 | AS120: 999 | AT120: 0.0132 | AU120: 0.0005 | AV120: NA | AW120: NA | AX120: 999 | AY120: 0.0411 | AZ120: NA | BA120: 999 | BB120: -999 | BC120: 999 | BD120: 0.0291 | BE120: 0.1559 | BF120: NA | BG120: NA | BH120: 999 | BI120: 5.3649 | BJ120: NA | BK120: 999
A121: 120 | B121: AAPAPAPPPEPERPKEVEFDASK | C121: sp|P08590|MYL3_HUMAN | D121: 2;3;4 | E121: 2 | F121: 2429.2227 | G121: 19 | H121: 41 | I121: yes | J121: 1.89E-33 | K121: 198.98 | L121: 14 | M121: LCX-P-2;RCA-M-2;RCA-P-2 | N121: 0 | O121: 0 | P121: 0 | Q121: 0 | R121: 0 | S121: 0 | T121: 0 | U121: 0 | V121: 0 | W121: 0 | X121: 0 | Y121: 0 | Z121: 0 | AA121: 4886000 | AB121: 0 | AC121: 0 | AD121: 8686900 | AE121: 503310000 | AF121: 0 | AG121: 368850000 | AH121: 57299000 | AI121: NA | AJ121: 94303190 | AK121: -999 | AL121: NA | AM121: NA | AN121: NA | AO121: 999 | AP121: 999 | AQ121: NA | AR121: NA | AS121: NA | AT121: -999 | AU121: -999 | AV121: NA | AW121: NA | AX121: 999 | AY121: 0.0173 | AZ121: NA | BA121: 999 | BB121: NA | BC121: NA | BD121: -999 | BE121: -999 | BF121: NA | BG121: NA | BH121: 999 | BI121: 6.4373 | BJ121: NA | BK121: 999
A122: 121 | B122: AAPAPGLISVFSSSQELGAALAQLVAQR | C122: sp|O95336|6PGL_HUMAN | D122: 2;3 | E122: 0 | F122: 2751.4919 | G122: 2 | H122: 29 | I122: yes | J122: 1.28E-42 | K122: 213.61 | L122: 27 | M122: LAD-D;LAD-D-2;LAD-M;LAD-M-2;LAD-P;LAD-P-2;LCX-D-2;LCX-M-2;LCX-P-2;LM;LM-2;RCA-D;RCA-D-2;RCA-M;RCA-M-2;RCA-P;RCA-P-2 | N122: 576210 | O122: 10226000 | P122: 8121500 | Q122: 1555900 | R122: 1191700 | S122: 0 | T122: 1100800 | U122: 2300900 | V122: 4062600 | W122: 5060400 | X122: 3419601 | Y122: 8208651.955 | Z122: 5158094.581 | AA122: 18784000 | AB122: 6993400 | AC122: 16407410.08 | AD122: 9317600 | AE122: 3733300 | AF122: 5859895.956 | AG122: 3511000 | AH122: 7903200 | AI122: 0.5044 | AJ122: 7806959.37 | AK122: 0.2746 | AL122: 0.7376 | AM122: 1.2591 | AN122: 6.5724 | AO122: 2.3129 | AP122: 2.686 | AQ122: 5.2198 | AR122: 4.4948 | AS122: 13.7681 | AT122: 1.7609 | AU122: 4.3949 | AV122: 999 | AW122: 1.0826 | AX122: 999 | AY122: 2.4958 | AZ122: -999 | BA122: 3.3914 | BB122: 14.2459 | BC122: 2.5468 | BD122: 1.669 | BE122: 0.7415 | BF122: 0.5664 | BG122: 0.4547 | BH122: 0.8642 | BI122: 0.4443 | BJ122: 0.8028 | BK122: 1.5618
A123: 122 | B123: AAPEASGTPSSDAVSRLEEEMR | C123: sp|P31146|COR1A_HUMAN | D123: 3 | E123: 1 | F123: 2289.0543 | G123: 417 | H123: 438 | I123: yes | J123: 7.59E-09 | K123: 99.059 | L123: 3 | M123: LAD-M;RCA-P;RCA-P-2 | N123: 0 | O123: 0 | P123: 8233700 | Q123: 0 | R123: 941100 | S123: 8431800 | T123: 1431400 | U123: 1378000 | V123: 5205400 | W123: 6570800 | X123: 3219220 | Y123: 6081712.912 | Z123: 0 | AA123: 6132500 | AB123: 3912800 | AC123: 4529589.851 | AD123: 5924400 | AE123: 0 | AF123: 0 | AG123: 0 | AH123: 8578400 | AI123: NA | AJ123: 3515940.276 | AK123: -999 | AL123: -999 | AM123: -999 | AN123: NA | AO123: 0.7448 | AP123: 1.5673 | AQ123: 999 | AR123: 999 | AS123: 4.8131 | AT123: 0.7646 | AU123: 999 | AV123: 0.1116 | AW123: 0.6575 | AX123: 0.7026 | AY123: 999 | AZ123: 5.8906 | BA123: -999 | BB123: 999 | BC123: -999 | BD123: NA | BE123: -999 | BF123: 0.2647 | BG123: 0.2097 | BH123: -999 | BI123: -999 | BJ123: 0.7922 | BK123: 1.3055
